Workbook

Sheet Cover
G4: PORT
C5: Comparison Period for all sheets | G5: =_xlfn.IFS(MONTH($I$6)=6,"2Q"&RIGHT(YEAR($I$6),2),MONTH($I$6)=3,"1Q"&RIGHT(YEAR($I$6),2),MONTH($I$6)=9,"3Q"&RIGHT(YEAR($I$6),2),MONTH($I$6)=12,"4Q"&RIGHT(YEAR($I$6),2)) -> 1Q25 | H5: x | I5: =_xlfn.IFS(MONTH($I$6)=6,"2Q"&RIGHT(YEAR($I$6)-1,2),MONTH($I$6)=3,"1Q"&RIGHT(YEAR($I$6)-1,2),MONTH($I$6)=9,"3Q"&RIGHT(YEAR($I$6)-1,2),MONTH($I$6)=12,"4Q"&RIGHT(YEAR($I$6)-1,2)) -> 1Q24
G6: Updated on | I6: =CAPA!H6 -> 45747
C7: General Information | D7: Operating | E7: Financial | F7: Balance Sheet | G7: Income Statement
C8: Discos' Profile | D8: Energy Market | E8: Investments | F8: Consolidated | G8: Consolidated
C9: Shareholding Structure | D9: Number of Consumers | E9: Indebtedness | F9: Energisa (Parent Company) | G9: Energisa (Parent Company)
C10: Regulatory - Parcel B | D10: Losses | E10: Financing | F10: EMR | G10: EMR
C11: Regulatory - RAB | D11: Energy Balance | E11: Debentures | F11: ESE | G11: ESE
C12: Dividends - EPM e EPNE | D12: Delinquency | F12: EPB | G12: EPB
D13: Collection | F13: Rede Consolidated | G13: Rede Consolidated
D14: DEC/FEC | F14: Rede (Parent Company) | G14: Rede (Parent Company)
F15: EMT | G15: EMT
F16: EMS | G16: EMS
F17: ETO | G17: ETO
F18: ESS | G18: ESS
F19: ERO | G19: ERO
F20: EAC | G20: EAC
F21: ALSOL | G21: ALSOL
F22: ETE Consolidated | G22: ETE Consolidated
F23: ES Gás | G23: ES Gás
G24: ETE Regulatory

Sheet CAPA
F3: ENG
B5: Período comparativo para todas as planilhas | F5: =_xlfn.IFS(MONTH($H$6)=6,"2T"&RIGHT(YEAR($H$6),2),MONTH($H$6)=3,"1T"&RIGHT(YEAR($H$6),2),MONTH($H$6)=9,"3T"&RIGHT(YEAR($H$6),2),MONTH($H$6)=12,"4T"&RIGHT(YEAR($H$6),2)) -> 1T25 | G5: x | H5: =_xlfn.IFS(MONTH($H$6)=6,"2T"&RIGHT(YEAR($H$6)-1,2),MONTH($H$6)=3,"1T"&RIGHT(YEAR($H$6)-1,2),MONTH($H$6)=9,"3T"&RIGHT(YEAR($H$6)-1,2),MONTH($H$6)=12,"4T"&RIGHT(YEAR($H$6)-1,2)) -> 1T24
F6: Referência | H6: 45747
B7: Dados Gerais | C7: Dados Operacionais | D7: Dados Financeiros | E7: Balanço Patrimonial | F7: DRE
B8: Perfil das Discos | C8: Mercado | D8: Investimentos | E8: Consolidado | F8: Consolidado
B9: Composição Acionária | C9: Nº de Consumidores | D9: Endividamento | E9: Energisa Controladora | F9: Energisa Controladora
B10: Regulatório - Parcela B | C10: Perdas | D10: Financiamento | E10: EMR | F10: EMR
B11: Regulatório - BRR | C11: Balanço de energia | D11: Debêntures | E11: ESE | F11: ESE
B12: Dividendos - EPM e EPNE | C12: PDD | E12: EPB | F12: EPB
C13: Arrecadação | E13: Rede Consolidado | F13: Rede Consolidado
C14: DEC/FEC | E14: Rede Controladora | F14: Rede Controladora
E15: EMT | F15: EMT
B16: Nota: No dia 30/11/2022 a empresa ENF – Energisa Nova Friburgo foi incorporada pela empresa EMG – Energisa Minas Gerais, que agora se chama EMR – Energisa Minas Rio. No dia 30/04/2023 a empresa EBO – Energisa Borborema foi incorporada pela empresa EPB – Energisa Paraíba. | E16: EMS | F16: EMS
E17: ETO | F17: ETO
B18: Os dados das empresas ENF e EBO ficarão ocultos no menu, para acessá-los localize as sheets dessas empresas na barra inferior. | E18: ESS | F18: ESS
E19: ERO | F19: ERO
E20: EAC | F20: EAC
E21: ALSOL | F21: ALSOL
E22: ETE Consolidado | F22: ETE Consolidado
E23: ES GÁS | F23: ES GÁS
F24: ETE Regulatório

Sheet Dividendos
B2: DIVIDENDOS/JUROS SOBRE CAPITAL PRÓRPIO - EPM e EPNE
A4: Energisa Participações Minoritárias - EPM
A6: Histórico de Aportes e Dividendos | G6: Estrutura Acionária
A8: Data | B8: Valor (R$ mil) | C8: Evento
A9: 43461 | B9: 600000 | C9: Aumento de Capital
A10: 43777 | B10: 50000 | C10: Pagamento de Dividendos
A11: 43796 | B11: 260000 | C11: Aumento de Capital
A12: 44008 | B12: 46156 | C12: Pagamento de Dividendos
A13: 44068 | B13: 41675 | C13: Pagamento de Dividendos
A14: 44287 | B14: 400000 | C14: Aumento de Capital
A15: 44316 | B15: 167134 | C15: Pagamento de Dividendos
A16: 44487 | B16: 182353 | C16: Pagamento de Dividendos
A17: 44676 | B17: 175312 | C17: Pagamento de Dividendos
A18: 44832 | B18: 228010 | C18: Pagamento de Dividendos
A19: 44917 | B19: 100000 | C19: Pagamento de Dividendos
A20: 44967 | B20: 1380000 | C20: Aumento de Capital
A21: 45196 | B21: 175172 | C21: Pagamento de Dividendos
A22: 45196 | B22: 221823 | C22: Pagamento de Dividendos
A23: 45286 | B23: 500000 | C23: Aumento de Capital
A24: 45483 | B24: 315421 | C24: Pagamento de Dividendos
A25: 45621 | B25: =292498887.27/1000 -> 292498.8873 | C25: Pagamento de Dividendos
A26: 45744 | B26: =199185098.36/1000 -> 199185.0984 | C26: Pagamento de Dividendos
A28: Período de Exercício da Call
A29: 26 de dezembro de 2027 e 31 de dezembro de 2032
A32: Saldo atualizado em | B32: 45747
A33: 1653377174
A35: Energisa Participações Nordeste - EPNE
A37: Histórico de Aportes e Dividendos | G37: Estrutura Acionária
A40: Data | B40: Valor (R$ mil) | C40: Evento
A41: 45546 | B41: 1000000 | C41: Aumento de Capital
A45: Período de Exercício da Call
A46: 11 de setembro de 2028 e 11 de setembro de 2034
A49: Saldo atualizado em 31/03/2025
A50: 1067150795

Sheet Dividends
B2: Dividends/Interest on Equity Capital - EPM e EPNE
A4: Energisa Participações Minoritárias - EPM
A6: History of Contributions and Dividends | G6: Shareholding Structure
A8: Date | B8: Amount (R$ thousand) | C8: Event
A9: =Dividendos!A9 -> 43461 | B9: =Dividendos!B9 -> 600000 | C9: Capital Increase
A10: =Dividendos!A10 -> 43777 | B10: =Dividendos!B10 -> 50000 | C10: Dividend Payment
A11: =Dividendos!A11 -> 43796 | B11: =Dividendos!B11 -> 260000 | C11: Capital Increase
A12: =Dividendos!A12 -> 44008 | B12: =Dividendos!B12 -> 46156 | C12: Dividend Payment
A13: =Dividendos!A13 -> 44068 | B13: =Dividendos!B13 -> 41675 | C13: Dividend Payment
A14: =Dividendos!A14 -> 44287 | B14: =Dividendos!B14 -> 400000 | C14: Capital Increase
A15: =Dividendos!A15 -> 44316 | B15: =Dividendos!B15 -> 167134 | C15: Dividend Payment
A16: =Dividendos!A16 -> 44487 | B16: =Dividendos!B16 -> 182353 | C16: Dividend Payment
A17: =Dividendos!A17 -> 44676 | B17: =Dividendos!B17 -> 175312 | C17: Dividend Payment
A18: =Dividendos!A18 -> 44832 | B18: =Dividendos!B18 -> 228010 | C18: Dividend Payment
A19: =Dividendos!A19 -> 44917 | B19: =Dividendos!B19 -> 100000 | C19: Dividend Payment
A20: =Dividendos!A20 -> 44967 | B20: =Dividendos!B20 -> 1380000 | C20: Capital Increase
A21: =Dividendos!A21 -> 45196 | B21: =Dividendos!B21 -> 175172 | C21: Dividend Payment
A22: =Dividendos!A22 -> 45196 | B22: =Dividendos!B22 -> 221823 | C22: Dividend Payment
A23: =Dividendos!A23 -> 45286 | B23: =Dividendos!B23 -> 500000 | C23: Capital Increase
A24: =Dividendos!A24 -> 45483 | B24: =Dividendos!B24 -> 315421 | C24: Dividend Payment
A25: =Dividendos!A25 -> 45621 | B25: =Dividendos!B25 -> 292498.8873 | C25: Dividend Payment
A27: Exercise Period of the Call Option
A28: December 26, 2027, and December 31, 2032
A29: Balance updated on | B29: =Dividendos!B32 -> 45747
A30: =Dividendos!A33 -> 1653377174
A32: Energisa Participações Nordeste - EPNE
A34: History of Contributions and Dividends | G34: Shareholding Structure
A37: Date | B37: Amount (R$ thousand) | C37: Event
A38: 45546 | B38: 1000000 | C38: Capital Increase
A42: Exercise Period of the Call Option
A43: September 11, 2028, and September 11, 2034
A45: Balance updated on | B45: =B29 -> 45747
A46: =Dividendos!A50 -> 1067150795

Sheet Perfil
B1: Perfil das Discos
K5: Base: | L5: 45657
B6: Descrição | C6: EMR | D6: ESE | E6: EPB | F6: EMT | G6: EMS | H6: ETO | I6: ESS | J6: ERO | K6: EAC | L6: Energisa consolidada
B10: Área de concessão (km2) | C10: 17874.051 | D10: 17503.559 | E10: 56467.242 | F10: 903207.05 | G10: 328314.806 | H10: 277423.63 | I10: 32049.143 | J10: 237765.347 | K10: 164173.431 | L10: 2034778.259
B11: Municípios atendidos | C11: 67 | D11: 63 | E11: 223 | F11: 141 | G11: 74 | H11: 139 | I11: 81 | J11: 52 | K11: 22 | L11: 862
B12: População atendida | C12: 35401 | D12: 1998866 | E12: 4039277 | F12: 3526220 | G12: 2650742 | H12: 1590248 | I12: 1808698 | J12: 1796460 | K12: 894470 | L12: 18340382
B13: Propriedades na Transmissão (*) | C13: 0 | D13: 0 | E13: 0 | F13: 0 | G13: 0 | H13: 0 | I13: 0 | J13: 0 | K13: 0 | L13: 0
B14: km de linhas de transmissão (em 69 e 138 kv) | C14: 1251.41 | D14: 1406.57 | E14: 2454 | F14: 7206 | G14: 4174.51 | H14: 2982 | I14: 589 | J14: 2047 | K14: 821.52 | L14: 22932.01
B15: km de linhas de transmissão (220 kV) | C15: 0 | D15: 7 | E15: 0 | F15: 0 | G15: 0 | H15: 0 | I15: 0 | J15: 0 | K15: 0 | L15: 7
B16: Número de Postes e Torres de Transmissão | C16: 3672 | D16: 9599 | E16: 18586 | F16: 23910 | G16: 13311 | H16: 10619 | I16: 3443 | J16: 8224 | K16: 2892 | L16: 94256
B17: Propriedades na Distribuição (*) | C17: 0 | D17: 0 | E17: 0 | F17: 0 | G17: 0 | H17: 0 | I17: 0 | J17: 0 | K17: 0 | L17: 0
B18: Subestações – nº | C18: 64 | D18: 34 | E18: 73 | F18: 178 | G18: 112 | H18: 108 | I18: 101 | J18: 77 | K18: 25 | L18: 772
B19: Capacidade instalada nas subestações – MVA | C19: 1511.97 | D19: 943 | E19: 1614 | F19: 4327 | G19: 3000 | H19: 1726.055 | I19: 2719 | J19: 1846 | K19: 628 | L19: 18315.025
B20: Transformadores instalados nas redes de distribuição – nº | C20: 72856 | D20: 55739 | E20: 72585 | F20: 252648 | G20: 93898 | H20: 88615 | I20: 53351 | J20: 150009 | K20: 45026 | L20: 884727
B21: Número de postes próprios nas redes de distribuição urbana e rural | C21: 320102 | D21: 392203 | E21: 1243158 | F21: 2069476 | G21: 1174769 | H21: 1069371 | I21: 568437 | J21: 734753 | K21: 246334 | L21: 7818603
B22: Capacidade instalada nas redes de distribuição (próprias) – MVA | C22: 1577.51 | D22: 1210 | E22: 2224 | F22: 5170 | G22: 3094.8105 | H22: 1979 | I22: 2070 | J22: 3187 | K22: 680.71 | L22: 21193.0305
B23: Redes de distribuição – km | C23: 30601 | D23: 27534.11 | E23: 83455 | F23: 229114 | G23: 105050.35 | H23: 103774 | I23: 34503 | J23: 78723 | K23: 23706.94777 | L23: 716461.4078
B24: (*) Dados atualizados anualmente
B25: Nota: No dia 30/11/2022 a empresa ENF – Energisa Nova Friburgo foi incorporada pela empresa EMG – Energisa Minas Gerais, que agora se chama EMR – Energisa Minas Rio, para os dados de 2022 estamos considerando a soma dos resultados das duas empresas.
B26: Nota: No dia 30/04/2023 a empresa EBO – Energisa Borborema foi incorporada pela empresa EPB – Energisa Paraíba. A partir do 2T23 estamos considerando os valores consolidados.

Sheet Profile
B1: Discos' Profile
N5: Base: | O5: =Perfil!L5 -> 45657
B6: Description | C6: =Perfil!#REF! ->  | D6: =Perfil!#REF! ->  | E6: EMR (1) | F6: =Perfil!D6 -> ESE | G6: =Perfil!#REF! ->  | H6: =Perfil!E6 -> EPB | I6: =Perfil!F6 -> EMT | J6: =Perfil!G6 -> EMS | K6: =Perfil!H6 -> ETO | L6: =Perfil!I6 -> ESS | M6: =Perfil!J6 -> ERO | N6: =Perfil!K6 -> EAC | O6: Energisa consolidada
B10: Concession area (km2) | C10: =Perfil!#REF! ->  | D10: =Perfil!#REF! ->  | E10: =Perfil!C10 -> 17874.051 | F10: =Perfil!D10 -> 17503.559 | G10: =Perfil!#REF! ->  | H10: =Perfil!E10 -> 56467.242 | I10: =Perfil!F10 -> 903207.05 | J10: =Perfil!G10 -> 328314.806 | K10: =Perfil!H10 -> 277423.63 | L10: =Perfil!I10 -> 32049.143 | M10: =Perfil!J10 -> 237765.347 | N10: =Perfil!K10 -> 164173.431 | O10: =Perfil!L10 -> 2034778.259
B11: Number of municipalities | C11: =Perfil!#REF! ->  | D11: =Perfil!#REF! ->  | E11: =Perfil!C11 -> 67 | F11: =Perfil!D11 -> 63 | G11: =Perfil!#REF! ->  | H11: =Perfil!E11 -> 223 | I11: =Perfil!F11 -> 141 | J11: =Perfil!G11 -> 74 | K11: =Perfil!H11 -> 139 | L11: =Perfil!I11 -> 81 | M11: =Perfil!J11 -> 52 | N11: =Perfil!K11 -> 22 | O11: =Perfil!L11 -> 862
B12: Population | C12: =Perfil!#REF! ->  | D12: =Perfil!#REF! ->  | E12: =Perfil!C12 -> 35401 | F12: =Perfil!D12 -> 1998866 | G12: =Perfil!#REF! ->  | H12: =Perfil!E12 -> 4039277 | I12: =Perfil!F12 -> 3526220 | J12: =Perfil!G12 -> 2650742 | K12: =Perfil!H12 -> 1590248 | L12: =Perfil!I12 -> 1808698 | M12: =Perfil!J12 -> 1796460 | N12: =Perfil!K12 -> 894470 | O12: =Perfil!L12 -> 18340382
B13: Transmission
B14: km of transmission lines (in 69 and 138 kv) | C14: =Perfil!#REF! ->  | D14: =Perfil!#REF! ->  | E14: =Perfil!C14 -> 1251.41 | F14: =Perfil!D14 -> 1406.57 | G14: =Perfil!#REF! ->  | H14: =Perfil!E14 -> 2454 | I14: =Perfil!F14 -> 7206 | J14: =Perfil!G14 -> 4174.51 | K14: =Perfil!H14 -> 2982 | L14: =Perfil!I14 -> 589 | M14: =Perfil!J14 -> 2047 | N14: =Perfil!K14 -> 821.52 | O14: =Perfil!L14 -> 22932.01
B15: km of transmission lines (220 kV) | C15: =Perfil!#REF! ->  | D15: =Perfil!#REF! ->  | E15: =Perfil!C15 -> 0 | F15: =Perfil!D15 -> 7 | G15: =Perfil!#REF! ->  | H15: =Perfil!E15 -> 0 | I15: =Perfil!F15 -> 0 | J15: =Perfil!G15 -> 0 | K15: =Perfil!H15 -> 0 | L15: =Perfil!I15 -> 0 | M15: =Perfil!J15 -> 0 | N15: =Perfil!K15 -> 0 | O15: =Perfil!L15 -> 7
B16: Number of posts and transmission towers | C16: =Perfil!#REF! ->  | D16: =Perfil!#REF! ->  | E16: =Perfil!C16 -> 3672 | F16: =Perfil!D16 -> 9599 | G16: =Perfil!#REF! ->  | H16: =Perfil!E16 -> 18586 | I16: =Perfil!F16 -> 23910 | J16: =Perfil!G16 -> 13311 | K16: =Perfil!H16 -> 10619 | L16: =Perfil!I16 -> 3443 | M16: =Perfil!J16 -> 8224 | N16: =Perfil!K16 -> 2892 | O16: =Perfil!L16 -> 94256
B17: Distribution
B18: Number of substations | C18: =Perfil!#REF! ->  | D18: =Perfil!#REF! ->  | E18: =Perfil!C18 -> 64 | F18: =Perfil!D18 -> 34 | G18: =Perfil!#REF! ->  | H18: =Perfil!E18 -> 73 | I18: =Perfil!F18 -> 178 | J18: =Perfil!G18 -> 112 | K18: =Perfil!H18 -> 108 | L18: =Perfil!I18 -> 101 | M18: =Perfil!J18 -> 77 | N18: =Perfil!K18 -> 25 | O18: =Perfil!L18 -> 772
B19: Substations power (MVA) | C19: =Perfil!#REF! ->  | D19: =Perfil!#REF! ->  | E19: =Perfil!C19 -> 1511.97 | F19: =Perfil!D19 -> 943 | G19: =Perfil!#REF! ->  | H19: =Perfil!E19 -> 1614 | I19: =Perfil!F19 -> 4327 | J19: =Perfil!G19 -> 3000 | K19: =Perfil!H19 -> 1726.055 | L19: =Perfil!I19 -> 2719 | M19: =Perfil!J19 -> 1846 | N19: =Perfil!K19 -> 628 | O19: =Perfil!L19 -> 18315.025
B20: Number of transformers | C20: =Perfil!#REF! ->  | D20: =Perfil!#REF! ->  | E20: =Perfil!C20 -> 72856 | F20: =Perfil!D20 -> 55739 | G20: =Perfil!#REF! ->  | H20: =Perfil!E20 -> 72585 | I20: =Perfil!F20 -> 252648 | J20: =Perfil!G20 -> 93898 | K20: =Perfil!H20 -> 88615 | L20: =Perfil!I20 -> 53351 | M20: =Perfil!J20 -> 150009 | N20: =Perfil!K20 -> 45026 | O20: =Perfil!L20 -> 884727
B21: Number of posts in the urban and rural distribution area | C21: =Perfil!#REF! ->  | D21: =Perfil!#REF! ->  | E21: =Perfil!C21 -> 320102 | F21: =Perfil!D21 -> 392203 | G21: =Perfil!#REF! ->  | H21: =Perfil!E21 -> 1243158 | I21: =Perfil!F21 -> 2069476 | J21: =Perfil!G21 -> 1174769 | K21: =Perfil!H21 -> 1069371 | L21: =Perfil!I21 -> 568437 | M21: =Perfil!J21 -> 734753 | N21: =Perfil!K21 -> 246334 | O21: =Perfil!L21 -> 7818603
B22: Transformers' installed capacity (MVA) | C22: =Perfil!#REF! ->  | D22: =Perfil!#REF! ->  | E22: =Perfil!C22 -> 1577.51 | F22: =Perfil!D22 -> 1210 | G22: =Perfil!#REF! ->  | H22: =Perfil!E22 -> 2224 | I22: =Perfil!F22 -> 5170 | J22: =Perfil!G22 -> 3094.8105 | K22: =Perfil!H22 -> 1979 | L22: =Perfil!I22 -> 2070 | M22: =Perfil!J22 -> 3187 | N22: =Perfil!K22 -> 680.71 | O22: =Perfil!L22 -> 21193.0305
B23: Km of distribution lines and grids | C23: =Perfil!#REF! ->  | D23: =Perfil!#REF! ->  | E23: =Perfil!C23 -> 30601 | F23: =Perfil!D23 -> 27534.11 | G23: =Perfil!#REF! ->  | H23: =Perfil!E23 -> 83455 | I23: =Perfil!F23 -> 229114 | J23: =Perfil!G23 -> 105050.35 | K23: =Perfil!H23 -> 103774 | L23: =Perfil!I23 -> 34503 | M23: =Perfil!J23 -> 78723 | N23: =Perfil!K23 -> 23706.94777 | O23: =Perfil!L23 -> 716461.4078
B24: (*) Includes emplyees from other companies that belong to the Group
B26: (1) On 11/30/2022 the company ENF – Energisa Nova Friburgo was merged into the company EMG – Energisa Minas Gerais, which is now called EMR – Energisa Minas Rio.
B27: (2) On 4/30/2023 the company EBO – Energisa Borborema was merged into the company EPB – Energisa Paraíba. As of 2Q23 we are considering the consolidated values.

Sheet Acionistas
B1: Composição Acionária
H7: Base: | I7: 45747
B8: Distribuição do Capital Social
C9: Quantidade de Ações
A10: Empresa | B10: Acionistas | C10: Ordinárias | D10: % | E10: Preferenciais | F10: %2 | G10: Total | H10: %3 | I10: Units Possúidas
A11: ENERGISA
A12: ENERGISA | B12: ENERGISA S.A.
A13: ENERGISA | B13: GIPAR S/A | C13: 554114842 | D13: 62.45438761 | E13: 81040004 | F13: 5.779516797 | G13: 635154846 | H13: 27.74298959 | I13: 20260000
A14: ENERGISA | B14: SAMAMBAIA MASTER FIA INVESTIMENTO NO EXTERIOR - BDR NIVEL I | C14: 33653987 | D14: 3.793147177 | E14: 134615948 | F14: 9.600383689 | G14: 168269935 | H14: 7.349878671 | I14: 33653987
A15: ENERGISA | B15: BNDES PARTICIPACOES S/A BNDESPAR | C15: 29326967 | D15: 3.305447943 | E15: 117307868 | F15: 8.36602616 | G15: 146634835 | H15: 6.404877058 | I15: 29326967
A16: ENERGISA | B16: OUTROS ACIONISTAS | C16: 270135451 | D16: 30.44701727 | E16: 1069229596 | F16: 76.25407335 | G16: 1339365047 | H16: 58.50225468 | I16: 265047782
A17: ENERGISA | B17: TOTAL DO CAPITAL SOCIAL | C17: =SUBTOTAL(109,C12:C16) -> 887231247 | D17: =SUBTOTAL(109,D12:D16) -> 100 | E17: 1402193416 | F17: 100 | G17: 2289424663 | H17: 100 | I17: 348288736
A18: ENERGISA
A19: REDE | B19: REDE ENERGIA S.A.
A20: REDE | B20: DENERGE DES ENERGETICO SA | C20: 1477379356 | D20: 70.0072498
A21: REDE | B21: ENERGISA PARTICIPACOES MINORITARIAS S A | C21: 623968171 | D21: 29.56741979
A22: REDE | B22: ENERGISA S.A. | C22: 3789343 | D22: 0.1795621963
A23: REDE | B23: DEPARTAMENTO DE AGUAS ENERGIA ELET DAEE | C23: 1035990 | D23: 0.04909152847
A24: REDE | B24: OUTROS ACIONISTAS | C24: 4150514 | D24: 0.1966766824
A25: REDE | B25: Total do capital social | C25: =SUBTOTAL(109,C20:C24) -> 2110323374 | D25: =SUBTOTAL(109,D20:D24) -> 100
A26: REDE
A27: EMT | B27: ENERGISA MATO GROSSO - DISTRIBUIDORA DE ENERGIA S/A
A28: EMT | B28: REDE ENERGIA PARTICIPACOES SA | C28: 54701194 | D28: 72.42335188 | E28: 71591063 | F28: 49.91979795 | G28: 126292257 | H28: 57.6829901
A29: EMT | B29: ENERGISA PARTICIPACOES MINORITARIAS S A | C29: 16445386 | D29: 21.77338171 | E29: 70755665 | F29: 49.33728251 | G29: 87201051 | H29: 39.82839076
A30: EMT | B30: OUTROS ACIONISTAS | C30: 4383194 | D30: 5.803266405 | E30: 1065437 | F30: 0.7429195424 | G30: 5448631 | H30: 2.48861914
A31: EMT | B31: Total do capital social | C31: =SUBTOTAL(109,C28:C30) -> 75529774 | D31: =SUBTOTAL(109,D28:D30) -> 100 | E31: 143412165 | F31: 100 | G31: 218941939 | H31: 100
A32: EMT
A33: EMS | B33: ENERGISA MATO GROSSO DO SUL - DISTRIBUIDORA DE ENERGIA S/A
A34: EMS | B34: Rede Energia Participações S/A | C34: 414161 | D34: 64.01103529
A35: EMS | B35: Rede Power do Brasil S/A | C35: 232433 | D35: 35.92389666
A36: EMS | B36: OUTROS ACIONISTAS | C36: 421 | D36: 0.06506804324
A37: EMS | B37: Total do capital social | C37: =SUBTOTAL(109,C34:C36) -> 647015 | D37: =SUBTOTAL(109,D34:D36) -> 100
A38: EMS
A39: ETO | B39: ENERGISA TOCANTINS - DISTRIBUIDORA DE ENERGIA S/A
A40: ETO | B40: Rede Energia Participações S/A | C40: 338034 | D40: 87.45937946 | E40: 161567 | F40: 60.94315211 | G40: 499601 | H40: 76.67119388
A41: ETO | B41: Estado do Tocantins | C41: 48470 | D41: 12.54062054 | E41: 103544 | F41: 39.05684789 | G41: 152014 | H41: 23.32880612
A42: ETO | B42: Total do capital social | C42: =SUBTOTAL(109,C39:C41) -> 386504 | D42: =SUBTOTAL(109,D39:D41) -> 100 | E42: 265111 | F42: 100 | G42: 651615 | H42: 100
A43: ETO
A44: ERO | B44: ERO - ENERGISA RONDÔNIA - DISTRIBUIDORA DE ENERGIA S/A
A45: ERO | B45: ENERGISA S/A | C45: 24544301 | D45: 99.40768022
A46: ERO | B46: OUTROS ACIONISTAS | C46: 146247 | D46: 0.5923197816
A47: ERO | B47: Total do capital social | C47: =SUBTOTAL(109,C44:C46) -> 24690548 | D47: =SUBTOTAL(109,D44:D46) -> 100
A48: ERO
A49: EAC | B49: EAC - ENERGISA ACRE - DISTRIBUIDORA DE ENERGIA S/A
A50: EAC | B50: ENERGISA S/A | C50: 1301247623 | D50: 99.75637398
A51: EAC | B51: OUTROS ACIONISTAS | C51: 3177920 | D51: 0.2436260174
A52: EAC | B52: Total do capital social | C52: =SUBTOTAL(109,C49:C51) -> 1304425543 | D52: =SUBTOTAL(109,D49:D51) -> 100
A53: EAC

Sheet Shareholders
B1: Shareholding Structure
H7: Base: | I7: =Acionistas!I7 -> 45747
B8: Total Capital
C9: Amount of shares
A10: Company | B10: Shareholders | C10: Ordinary | D10: % | E10: Preferred | F10: %2 | G10: Total | H10: %3 | I10: Units
A11: ENERGISA
A12: ENERGISA | B12: ENERGISA S.A.
A13: ENERGISA | B13: =Acionistas!B13 -> GIPAR S/A | C13: =Acionistas!C13 -> 554114842 | D13: =Acionistas!D13 -> 62.45438761 | E13: =Acionistas!E13 -> 81040004 | F13: =Acionistas!F13 -> 5.779516797 | G13: =Acionistas!G13 -> 635154846 | H13: =Acionistas!H13 -> 27.74298959 | I13: =Acionistas!I13 -> 20260000
A14: ENERGISA | B14: =Acionistas!B14 -> SAMAMBAIA MASTER FIA INVESTIMENTO NO EXTERIOR - BDR NIVEL I | C14: =Acionistas!C14 -> 33653987 | D14: =Acionistas!D14 -> 3.793147177 | E14: =Acionistas!E14 -> 134615948 | F14: =Acionistas!F14 -> 9.600383689 | G14: =Acionistas!G14 -> 168269935 | H14: =Acionistas!H14 -> 7.349878671 | I14: =Acionistas!I14 -> 33653987
A15: ENERGISA | B15: =Acionistas!B15 -> BNDES PARTICIPACOES S/A BNDESPAR | C15: =Acionistas!C15 -> 29326967 | D15: =Acionistas!D15 -> 3.305447943 | E15: =Acionistas!E15 -> 117307868 | F15: =Acionistas!F15 -> 8.36602616 | G15: =Acionistas!G15 -> 146634835 | H15: =Acionistas!H15 -> 6.404877058 | I15: =Acionistas!I15 -> 29326967
A16: ENERGISA | B16: Others | C16: =Acionistas!C16 -> 270135451 | D16: =Acionistas!D16 -> 30.44701727 | E16: =Acionistas!E16 -> 1069229596 | F16: =Acionistas!F16 -> 76.25407335 | G16: =Acionistas!G16 -> 1339365047 | H16: =Acionistas!H16 -> 58.50225468 | I16: =Acionistas!I16 -> 265047782
A17: ENERGISA | B17: =Acionistas!B17 -> TOTAL DO CAPITAL SOCIAL | C17: =Acionistas!C17 -> 887231247 | D17: =Acionistas!D17 -> 100 | E17: =Acionistas!E17 -> 1402193416 | F17: =Acionistas!F17 -> 100 | G17: =Acionistas!G17 -> 2289424663 | H17: =Acionistas!H17 -> 100 | I17: =Acionistas!I17 -> 348288736
A18: ENERGISA
A19: REDE | B19: REDE ENERGIA S.A.
A20: REDE | B20: =Acionistas!B20 -> DENERGE DES ENERGETICO SA | C20: =Acionistas!C20 -> 1477379356 | D20: =Acionistas!D20 -> 70.0072498
A21: REDE | B21: =Acionistas!B21 -> ENERGISA PARTICIPACOES MINORITARIAS S A | C21: =Acionistas!C21 -> 623968171 | D21: =Acionistas!D21 -> 29.56741979
A22: REDE | B22: =Acionistas!B22 -> ENERGISA S.A. | C22: =Acionistas!C22 -> 3789343 | D22: =Acionistas!D22 -> 0.1795621963
A23: REDE | B23: Others | C23: =Acionistas!C24 -> 4150514 | D23: =Acionistas!D24 -> 0.1966766824
A24: REDE | B24: =Acionistas!B25 -> Total do capital social | C24: =Acionistas!C25 -> 2110323374 | D24: =Acionistas!D25 -> 100
A25: REDE
A26: EMT | B26: ENERGISA MATO GROSSO - DISTRIBUIDORA DE ENERGIA S/A
A27: EMT | B27: =Acionistas!B28 -> REDE ENERGIA PARTICIPACOES SA | C27: =Acionistas!C28 -> 54701194 | D27: =Acionistas!D28 -> 72.42335188 | E27: =Acionistas!E28 -> 71591063 | F27: =Acionistas!F28 -> 49.91979795 | G27: =Acionistas!G28 -> 126292257 | H27: =Acionistas!H28 -> 57.6829901
A28: EMT | B28: =Acionistas!B29 -> ENERGISA PARTICIPACOES MINORITARIAS S A | C28: =Acionistas!C29 -> 16445386 | D28: =Acionistas!D29 -> 21.77338171 | E28: =Acionistas!E29 -> 70755665 | F28: =Acionistas!F29 -> 49.33728251 | G28: =Acionistas!G29 -> 87201051 | H28: =Acionistas!H29 -> 39.82839076
A29: EMT | B29: Others | C29: =Acionistas!C30 -> 4383194 | D29: =Acionistas!D30 -> 5.803266405 | E29: =Acionistas!E30 -> 1065437 | F29: =Acionistas!F30 -> 0.7429195424 | G29: =Acionistas!G30 -> 5448631 | H29: =Acionistas!H30 -> 2.48861914
A30: EMT | B30: =Acionistas!B31 -> Total do capital social | C30: =Acionistas!C31 -> 75529774 | D30: =Acionistas!D31 -> 100 | E30: =Acionistas!E31 -> 143412165 | F30: =Acionistas!F31 -> 100 | G30: =Acionistas!G31 -> 218941939 | H30: =Acionistas!H31 -> 100
A31: EMT
A32: EMS | B32: ENERGISA MATO GROSSO DO SUL - DISTRIBUIDORA DE ENERGIA S/A
A33: EMS | B33: =Acionistas!B34 -> Rede Energia Participações S/A | C33: =Acionistas!C34 -> 414161 | D33: =Acionistas!D34 -> 64.01103529
A34: EMS | B34: =Acionistas!B35 -> Rede Power do Brasil S/A | C34: =Acionistas!C35 -> 232433 | D34: =Acionistas!D35 -> 35.92389666
A35: EMS | B35: Others | C35: =Acionistas!C36 -> 421 | D35: =Acionistas!D36 -> 0.06506804324
A36: EMS | B36: =Acionistas!B37 -> Total do capital social | C36: =Acionistas!C37 -> 647015 | D36: =Acionistas!D37 -> 100
A37: EMS
A38: ETO | B38: ENERGISA TOCANTINS - DISTRIBUIDORA DE ENERGIA S/A
A39: ETO | B39: =Acionistas!B40 -> Rede Energia Participações S/A | C39: =Acionistas!C40 -> 338034 | D39: =Acionistas!D40 -> 87.45937946 | E39: =Acionistas!E40 -> 161567 | F39: =Acionistas!F40 -> 60.94315211 | G39: =Acionistas!G40 -> 499601 | H39: =Acionistas!H40 -> 76.67119388
A40: ETO | B40: =Acionistas!B41 -> Estado do Tocantins | C40: =Acionistas!C41 -> 48470 | D40: =Acionistas!D41 -> 12.54062054 | E40: =Acionistas!E41 -> 103544 | F40: =Acionistas!F41 -> 39.05684789 | G40: =Acionistas!G41 -> 152014 | H40: =Acionistas!H41 -> 23.32880612
A41: ETO | B41: =Acionistas!B42 -> Total do capital social | C41: =Acionistas!C42 -> 386504 | D41: =Acionistas!D42 -> 100 | E41: =Acionistas!E42 -> 265111 | F41: =Acionistas!F42 -> 100 | G41: =Acionistas!G42 -> 651615 | H41: =Acionistas!H42 -> 100
A42: ETO
A43: ERO | B43: ERO - ENERGISA RONDÔNIA - DISTRIBUIDORA DE ENERGIA S/A
A44: ERO | B44: =Acionistas!B45 -> ENERGISA S/A | C44: =Acionistas!C45 -> 24544301 | D44: =Acionistas!D45 -> 99.40768022
A45: ERO | B45: =Acionistas!B46 -> OUTROS ACIONISTAS | C45: =Acionistas!C46 -> 146247 | D45: =Acionistas!D46 -> 0.5923197816
A46: ERO | B46: =Acionistas!B47 -> Total do capital social | C46: =Acionistas!C47 -> 24690548 | D46: =Acionistas!D47 -> 100
A47: ERO
A48: EAC | B48: EAC - ENERGISA ACRE - DISTRIBUIDORA DE ENERGIA S/A
A49: EAC | B49: =Acionistas!B50 -> ENERGISA S/A | C49: =Acionistas!C50 -> 1301247623 | D49: =Acionistas!D50 -> 99.75637398 | E49: =Acionistas!#REF! ->  | F49: =Acionistas!#REF! ->  | G49: =Acionistas!E50 -> 0 | H49: =Acionistas!F50 -> 0
A50: EAC | B50: =Acionistas!B51 -> OUTROS ACIONISTAS | C50: =Acionistas!C51 -> 3177920 | D50: =Acionistas!D51 -> 0.2436260174 | E50: =Acionistas!#REF! ->  | F50: =Acionistas!#REF! ->  | G50: =Acionistas!E51 -> 0 | H50: =Acionistas!F51 -> 0
A51: EAC | B51: =Acionistas!B52 -> Total do capital social | C51: =Acionistas!C52 -> 1304425543 | D51: =Acionistas!D52 -> 100 | E51: =Acionistas!#REF! ->  | F51: =Acionistas!#REF! ->  | G51: =Acionistas!E52 -> 0 | H51: =Acionistas!F52 -> 0
A52: EAC

Sheet Regulat
B1: Regulatório - Parcela B
A5: EMG | B5: Coluna2 | C5: Coluna3 | D5: Coluna4 | E5: Coluna5 | F5: Coluna6 | G5: Coluna7 | H5: Coluna8 | I5: Coluna9 | J5: Coluna10 | K5: Coluna11 | L5: Coluna12 | M5: Coluna13 | N5: Coluna14 | O5: Coluna142
A6: EMG | B6: EMG | N6: EMR | O6: EMR
A7: EMG
A8: EMG | B8: ENERGISA MINAS GERAIS | C8: 41078 | D8: 41443 | E8: 41808 | F8: 42173 | G8: 42543 | H8: 42908 | I8: 43273 | J8: 43638 | K8: 44004 | L8: 44369 | M8: 44734 | N8: 45099 | O8: 45465
A9: EMG | B9: Custo de Administração, Operação e Manutenção (CAOM) | C9: =SUM(C10:C12) -> 103830635 | D9: =SUM(D10:D12) -> 0 | E9: 0 | F9: 0 | G9: 130552318.1 | H9: 0 | I9: 0 | J9: 0 | K9: 0 | L9: 153695446.9 | M9: 0 | N9: 0 | O9: 0
A10: EMG | B10: Custos Operacionais (CO3) | C10: 101456979.3 | D10: 0 | E10: 0 | F10: 0 | G10: 127800325.5 | H10: 0 | I10: 0 | J10: 0 | K10: 0 | L10: 153695446.9 | M10: 0 | N10: 0 | O10: 0
A11: EMG | B11: Receitas Irrecuperáveis - Encargos Setoriais (Vi) | C11: 136301.5311 | D11: 0 | E11: 0 | F11: 0 | G11: 240923.086 | H11: 0 | I11: 0 | J11: 0 | K11: 0 | L11: 0 | M11: 0 | N11: 0 | O11: 0
A12: EMG | B12: Demais Receitas Irrecuperáveis (Vse) | C12: 2237354.189 | D12: 0 | E12: 0 | F12: 0 | G12: 2511069.472 | H12: 0 | I12: 0 | J12: 0 | K12: 0 | L12: 0 | M12: 0 | N12: 0 | O12: 0
A13: EMG | B13: Custo Anual dos Ativos (CAA) | C13: =SUM(C14:C16) -> 54110639.13 | D13: =SUM(D14:D16) -> 0 | E13: 0 | F13: 0 | G13: 89809751.78 | H13: 0 | I13: 0 | J13: 0 | K13: 0 | L13: 128054003.1 | M13: 0 | N13: 0 | O13: 0
A14: EMG | B14: Remuneração do Capital (RC) | C14: 22689615.07 | D14: 0 | E14: 0 | F14: 0 | G14: 43913669.29 | H14: 0 | I14: 0 | J14: 0 | K14: 0 | L14: 65568986.33 | M14: 0 | N14: 0 | O14: 0
A15: EMG | B15: Quota de Reintegração Regulatória (QRR) | C15: 20631191.83 | D15: 0 | E15: 0 | F15: 0 | G15: 26244466.41 | H15: 0 | I15: 0 | J15: 0 | K15: 0 | L15: 35826734.67 | M15: 0 | N15: 0 | O15: 0
A16: EMG | B16: Custo anual das instalações móveis e imóveis (CAIMI) | C16: 10789832.23 | D16: 0 | E16: 0 | F16: 0 | G16: 19651616.08 | H16: 0 | I16: 0 | J16: 0 | K16: 0 | L16: 26658282.08 | M16: 0 | N16: 0 | O16: 0
A17: EMG | B17: Parcela B (VPB) | C17: =C9+C13 -> 157941274.2 | D17: =D9+D13 -> 0 | E17: 0 | F17: 0 | G17: 220362069.9 | H17: 0 | I17: 0 | J17: 0 | K17: 0 | L17: 281749450 | M17: 0 | N17: 0 | O17: 0
A18: EMG | B18: Parcela B com Ajuste de Mercado e Qualidade | C18: 156472247 | D18: 0 | E18: 0 | F18: 0 | G18: 217697632.4 | H18: 0 | I18: 0 | J18: 0 | K18: 0 | L18: 279711177.8 | M18: 0 | N18: 0 | O18: 0
A19: EMG | B19: Outras Receitas | C19: 2589621.736 | D19: 0 | E19: 0 | F19: 0 | G19: 6455747.637 | H19: 0 | I19: 0 | J19: 0 | K19: 0 | L19: 11165659.33 | M19: 0 | N19: 0 | O19: 0
A20: EMG | B20: Ultrapassagem de Demanda e Excedente de Reativo | C20: 0 | D20: 0 | E20: 0 | F20: 0 | G20: 0 | H20: 0 | I20: 0 | J20: 0 | K20: 0 | L20: 3394115.354 | M20: 0 | N20: 0 | O20: 0
A21: EMG | B21: ONS | C21: 0 | D21: 0 | E21: 0 | F21: 0 | G21: 0 | H21: 0 | I21: 0 | J21: 0 | K21: 0 | L21: 0 | M21: 0 | N21: 0 | O21: 0
A22: EMG | B22: Parcela B com Ajustes | C22: 153882625.2 | D22: 0 | E22: 0 | F22: 0 | G22: 211241884.8 | H22: 0 | I22: 0 | J22: 0 | K22: 0 | L22: 265151403.1 | M22: 0 | N22: 0 | O22: 0
A23: EMG
A24: EMG | B24: Fator X | C24: 0.02629601513 | D24: 0.0263 | E24: 0.02139601513 | F24: 0.02299601513 | G24: 0.009892465066 | H24: 0.01453710994 | I24: -0.0007586347198 | J24: 0.01300792671 | K24: 0 | L24: 0.007234343075 | M24: -0.02274906872 | N24: -0.0166001895 | O24: -0.01700845977
A25: EMG | B25: Componente Pd | C25: 0.009301097737 | D25: 0.0093 | E25: 0.009301097737 | F25: 0.009301097737 | G25: 0.01390965338 | H25: 0.0139 | I25: 0.0139 | J25: 0.0139 | K25: 0 | L25: 0.00616326106 | M25: 0.004945426931 | N25: 0.003807112549 | O25: 0.004356813912
A26: EMG | B26: Componente T | C26: 0.0169949174 | D26: 0.017 | E26: 0.0169949174 | F26: 0.0169949174 | G26: -0.002198714925 | H26: -0.0022 | I26: -0.0022 | J26: -0.0022 | K26: 0 | L26: 0 | M26: -0.0215 | N26: -0.01894101439 | O26: -0.01894101439
A27: EMG | B27: Componente Q | C27: 0 | D27: 0 | E27: -0.0049 | F27: -0.0033 | G27: -0.001818473391 | H27: 0.002837109937 | I27: -0.01245863472 | J27: 0.001307926712 | K27: 0 | L27: 0.001071082015 | M27: -0.00619449565 | N27: -0.001466287658 | O27: -0.002424259293
A28: EMG
A29: EMG | B29: VPB | C29: =C17 -> 157941274.2 | D29: =D17 -> 0 | E29: 0 | F29: 0 | G29: 220362069.9 | H29: 0 | I29: 0 | J29: 0 | K29: 0 | L29: 281749450 | M29: 0 | N29: 0 | O29: 0
A30: EMG
A31: EMG | B31: Receita Requerida | C31: =C8 -> 41078 | D31: =D8 -> 41443 | E31: 41808 | F31: 42173 | G31: 42543 | H31: 42908 | I31: 43273 | J31: 43638 | K31: 44004 | L31: =L8 -> 44369 | M31: =M8 -> 44734 | N31: 45099 | O31: =O8 -> 45465
A32: EMG | B32: Custos Operacionais (CO3) | C32: 100513318 | D32: 110545059.4 | E32: 124992424.4 | F32: 128846887.5 | G32: 126255068.8 | H32: 128414923.4 | I32: 137140948.9 | J32: 143218597.9 | K32: 0 | L32: 152583561.3 | M32: 173126414.2 | N32: 225180844.4 | O32: 250876859.9
A33: EMG | B33: Receitas Irrecuperáveis - Encargos Setoriais (Vi) | C33: 135033.7773 | D33: 152275.0186 | E33: 176489.5259 | F33: 186708.2874 | G33: 238010.0416 | H33: 0 | I33: 0 | J33: 0 | K33: 0 | L33: 0 | M33: 0 | N33: 0 | O33: 0
A34: EMG | B34: Demais Receitas Irrecuperáveis (Vse) | C34: 2216544.339 | D34: 2499554.831 | E34: 2897029.672 | F34: 3064767.985 | G34: 2480707.679 | H34: 0 | I34: 0 | J34: 0 | K34: 0 | L34: 0 | M34: 0 | N34: 0 | O34: 0
A35: EMG | B35: Remuneração do Capital (RC) | C35: 22478576.74 | D35: 25348662.83 | E35: 29379562.89 | F35: 31080642.57 | G35: 43382701.21 | H35: 43963273.12 | I35: 46780395.23 | J35: 48677231.12 | K35: 0 | L35: 65094637.79 | M35: 71349280.08 | N35: 89841547.85 | O35: 96942772.54
A36: EMG | B36: Quota de Reintegração Regulatória (QRR) | C36: 20439299.1 | D36: 23049008.28 | E36: 26714221.29 | F36: 28260977.43 | G36: 25927139.84 | H36: 26274111.53 | I36: 27957730.04 | J36: 29091350.77 | K36: 0 | L36: 35567551.78 | M36: 38985073.12 | N36: 49089203.25 | O36: 52969295.16
A37: EMG | B37: Custo anual das instalações móveis e imóveis (CAIMI) | C37: 10689474.95 | D37: 12054317.29 | E37: 13971173.76 | F37: 14780106.14 | G37: 19414004.85 | H37: 19673814.07 | I37: 20934492.19 | J37: 21783337.01 | K37: 0 | L37: 26465426.92 | M37: 29008367.23 | N37: 36526740.14 | O37: 39413874.16
A38: EMG | B38: Outras Receitas | C38: -2589621.736 | D38: -2920267.106 | E38: -3384642.877 | F38: -3580614.044 | G38: -6455747.637 | H38: -5772551.992 | I38: -7885351.316 | J38: -8495982.853 | K38: 0 | L38: -11165659.33 | M38: -17372686.92 | N38: -15682473.44 | O38: -17263882.1
A39: EMG | B39: Ultrapassagem de Demanda e Excedente de Reativo | C39: 0 | D39: 0 | E39: 0 | F39: 0 | G39: 0 | H39: -418451.1001 | I39: -1933352.178 | J39: -2428814.19 | K39: 0 | L39: -3394115.354 | M39: -3318057.992 | N39: -4998110.818 | O39: -5572760.932
A40: EMG | B40: ONS | C40: 0 | D40: 0 | E40: 0 | F40: 0 | G40: 0 | H40: 30121.14286 | I40: 39241.71429 | J40: 39241.71429 | K40: 0 | L40: 0 | M40: 0 | N40: 0 | O40: 0
A41: EMG | B41: Erro ONS | C41: 0 | D41: 0 | E41: 0 | F41: 0 | G41: 0 | H41: 0.001477330923 | I41: 32051.27682 | J41: 74183.75558 | K41: 0 | L41: 0 | M41: -579937.4116 | N41: -152688.5713 | O41: -164757.3288
A42: EMG | B42: TOTAL | C42: =SUM(C32:C41) -> 153882625.2 | D42: =SUM(D32:D41) -> 170728610.5 | E42: 194746258.6 | F42: 202639475.9 | G42: 211241884.8 | H42: 212165240.2 | I42: 223066155.8 | J42: 231959145.2 | K42: 0 | L42: 265151403.1 | M42: 291198452.3 | N42: 379805062.8 | O42: 417201401.4
A43: EMG
A44: EMG | B44: Receita Requerida - % | C44: =C31 -> 41078 | D44: =D31 -> 41443 | E44: 41808 | F44: 42173 | G44: 42543 | H44: 42908 | I44: 43273 | J44: 43638 | K44: 44004 | L44: =L8 -> 44369 | M44: =M8 -> 44734 | N44: 45099 | O44: =O8 -> 45465
A45: EMG | B45: Custos Operacionais (CO3) | C45: 0.6531817215 | D45: 0.6474899494 | E45: 0.6418219546 | F45: 0.6358429765 | G45: 0.5976800904 | H45: 0.6052590109 | I45: 0.6147994453 | J45: 0.617430271 | K45: 0 | L45: 0.5754582458 | M45: 0.5945306811 | N45: 0.5928853152 | O45: 0.6013327353
A46: EMG | B46: Receitas Irrecuperáveis - Encargos Setoriais (Vi) | C46: 0.0008775115259 | D46: 0.0008919127151 | E46: 0.0009062537434 | F46: 0.0009213816144 | G46: 0.001126718036 | H46: 0 | I46: 0 | J46: 0 | K46: 0 | L46: 0 | M46: 0 | N46: 0 | O46: 0
A47: EMG | B47: Demais Receitas Irrecuperáveis (Vse) | C47: 0.0144041235 | D47: 0.01464051528 | E47: 0.01487591953 | F47: 0.0151242396 | G47: 0.01174344606 | H47: 0 | I47: 0 | J47: 0 | K47: 0 | L47: 0 | M47: 0 | N47: 0 | O47: 0
A48: EMG | B48: Remuneração do Capital (RC) | C48: 0.1460761194 | D48: 0.1484734325 | E48: 0.1508607308 | F48: 0.1533790119 | G48: 0.2053697886 | H48: 0.2072124212 | I48: 0.2097153423 | J48: 0.209852606 | K48: 0 | L48: 0.2454998806 | M48: 0.2450194344 | N48: 0.2365464725 | O48: 0.2323644461
A49: EMG | B49: Quota de Reintegração Regulatória (QRR) | C49: 0.1328239564 | D49: 0.135003783 | E49: 0.1371745033 | F49: 0.1394643236 | G49: 0.1227367379 | H49: 0.1238379647 | I49: 0.1253338048 | J49: 0.1254158388 | K49: 0 | L49: 0.1341405377 | M49: 0.1338780231 | N49: 0.1292484173 | O49: 0.1269633683
A50: EMG | B50: Custo anual das instalações móveis e imóveis (CAIMI) | C50: 0.06946511948 | D50: 0.07060513907 | E50: 0.07174039623 | F50: 0.07293794103 | G50: 0.0919041452 | H50: 0.09272873376 | I50: 0.09384880514 | J50: 0.09391023144 | K50: 0 | L50: 0.09981250943 | M50: 0.09961717518 | N50: 0.09617233608 | O50: 0.09447205602
A51: EMG | B51: Outras Receitas | C51: -0.01682855184 | D51: -0.01710473187 | E51: -0.01737975816 | F51: -0.01766987419 | G51: -0.03056092613 | H51: -0.02720781211 | I51: -0.03534983281 | J51: -0.0366270657 | K51: 0 | L51: -0.04211050441 | M51: -0.05965926941 | N51: -0.04129084884 | O51: -0.0413802112
A52: EMG | B52: Ultrapassagem de Demanda e Excedente de Reativo | C52: 0 | D52: 0 | E52: 0 | F52: 0 | G52: 0 | H52: -0.001972288673 | I52: -0.008667169478 | J52: -0.01047087058 | K52: 0 | L52: -0.01280066903 | M52: -0.01139449048 | N52: -0.01315967402 | O52: -0.01335748373
A53: EMG | B53: ONS | C53: 0 | D53: 0 | E53: 0 | F53: 0 | G53: 0 | H53: 0.000141970206 | I53: 0.0001759196241 | J53: 0.0001691751116 | K53: 0 | L53: 0 | M53: 0 | N53: 0 | O53: 0
A54: EMG | B54: Erro ONS | C54: 0 | D54: 0 | E54: 0 | F54: 0 | G54: 0 | H54: 6.963114795e-12 | I54: 0.0001436850727 | J54: 0.0003198138858 | K54: 0 | L54: 0 | M54: -0.001991553894 | N54: -0.0004020182622 | O54: -0.0003949107752
A55: EMG | B55: TOTAL | C55: =SUM(C45:C54) -> 1 | D55: =SUM(D45:D54) -> 1 | E55: 1 | F55: 1 | G55: 1 | H55: 1 | I55: 1 | J55: 1 | K55: 0 | L55: 1 | M55: 1 | N55: 1 | O55: 1
A56: EMG
A57: ENF | B57: ENF
A58: ENF
A59: ENF | B59: ENERGISA NOVA FRIBURGO | C59: 41078 | D59: 41443 | E59: 41808 | F59: 42173 | G59: 42543 | H59: 42908 | I59: 43273 | J59: 43638 | K59: 44004 | L59: 44369 | M59: 44734 | N59: 45099
A60: ENF | B60: Custo de Administração, Operação e Manutenção (CAOM) | C60: =SUM(C61:C63) -> 22534184.97 | D60: 0 | E60: 0 | F60: 0 | G60: 26118863.63 | H60: 0 | I60: 0 | J60: 0 | K60: 0 | L60: 28423828.76 | M60: 0 | N60: 0
A61: ENF | B61: Custos Operacionais (CO3) | C61: 22334427.94 | D61: 0 | E61: 0 | F61: 0 | G61: 25960692.84 | H61: 0 | I61: 0 | J61: 0 | K61: 0 | L61: 28423828.76 | M61: 0 | N61: 0
A62: ENF | B62: Receitas Irrecuperáveis - Encargos Setoriais (Vi) | C62: 34328.52295 | D62: 0 | E62: 0 | F62: 0 | G62: 50648.74279 | H62: 0 | I62: 0 | J62: 0 | K62: 0 | L62: 0 | M62: 0 | N62: 0
A63: ENF | B63: Demais Receitas Irrecuperáveis (Vse) | C63: 165428.5084 | D63: 0 | E63: 0 | F63: 0 | G63: 107522.0492 | H63: 0 | I63: 0 | J63: 0 | K63: 0 | L63: 0 | M63: 0 | N63: 0
A64: ENF | B64: Custo Anual dos Ativos (CAA) | C64: =SUM(C65:C67) -> 14876480.97 | D64: 0 | E64: 0 | F64: 0 | G64: 22379246.32 | H64: 0 | I64: 0 | J64: 0 | K64: 0 | L64: 27068337.72 | M64: 0 | N64: 0
A65: ENF | B65: Remuneração do Capital (RC) | C65: 7863298.749 | D65: 0 | E65: 0 | F65: 0 | G65: 11886837.96 | H65: 0 | I65: 0 | J65: 0 | K65: 0 | L65: 13424061.74 | M65: 0 | N65: 0
A66: ENF | B66: Quota de Reintegração Regulatória (QRR) | C66: 4554786.397 | D66: 0 | E66: 0 | F66: 0 | G66: 6344710.781 | H66: 0 | I66: 0 | J66: 0 | K66: 0 | L66: 8213643.459 | M66: 0 | N66: 0
A67: ENF | B67: Custo anual das instalações móveis e imóveis (CAIMI) | C67: 2458395.823 | D67: 0 | E67: 0 | F67: 0 | G67: 4147697.583 | H67: 0 | I67: 0 | J67: 0 | K67: 0 | L67: 5430632.524 | M67: 0 | N67: 0
A68: ENF | B68: Parcela B (VPB) | C68: =C60+C64 -> 37410665.94 | D68: =D60+D64 -> 0 | E68: 0 | F68: 0 | G68: 48498109.95 | H68: 0 | I68: 0 | J68: 0 | K68: 0 | L68: 55492166.48 | M68: 0 | N68: 0
A69: ENF | B69: Parcela B com Ajuste de Mercado e Qualidade | C69: 37047336.89 | D69: 0 | E69: 0 | F69: 0 | G69: 48158032.91 | H69: 0 | I69: 0 | J69: 0 | K69: 0 | L69: 54977854.92 | M69: 0 | N69: 0
A70: ENF | B70: Outras Receitas | C70: 1572448.905 | D70: 0 | E70: 0 | F70: 0 | G70: 1928234.398 | H70: 0 | I70: 0 | J70: 0 | K70: 0 | L70: 2490451.057 | M70: 0 | N70: 0
A71: ENF | B71: Ultrapassagem de Demanda e Excedente de Reativo | C71: 0 | D71: 0 | E71: 0 | F71: 0 | G71: 0 | H71: 0 | I71: 0 | J71: 0 | K71: 0 | L71: 545181.9274 | M71: 0 | N71: 0
A72: ENF | B72: ONS | C72: 0 | D72: 0 | E72: 0 | F72: 0 | G72: 0 | H72: 0 | I72: 0 | J72: 0 | K72: 0 | L72: 0 | M72: 0 | N72: 0
A73: ENF | B73: Parcela B com Ajustes | C73: 35474887.99 | D73: 0 | E73: 0 | F73: 0 | G73: 46229798.51 | H73: 0 | I73: 0 | J73: 0 | K73: 0 | L73: 51942221.94 | M73: 0 | N73: 0
A74: ENF
A75: ENF | B75: Fator X | C75: 0.009711910662 | D75: -0.0003 | E75: -0.0002880893384 | F75: 0.003311910662 | G75: 0.007012171065 | H75: 0.01225846685 | I75: 0.002930418902 | J75: 0.01289895466 | K75: 0 | L75: 0.009268183052 | M75: -0.0114851103 | N75: -0.001204402585
A76: ENF | B76: Componente Pd | C76: 0.009711910662 | D76: 0.009711910662 | E76: 0.009711910662 | F76: 0.009711910662 | G76: 0.009678719905 | H76: 0.0097 | I76: 0.0097 | J76: 0.0097 | K76: 0 | L76: 0.003700265159 | M76: 0.002478342771 | N76: -1.276958943e-05
A77: ENF | B77: Componente T | C77: 0 | D77: 0 | E77: 0 | F77: 0 | G77: 0 | H77: 0 | I77: 0 | J77: 0 | K77: 0 | L77: 0 | M77: -0.0057 | N77: -0.0057
A78: ENF | B78: Componente Q | C78: 0 | D78: -0.01001191066 | E78: -0.01 | F78: -0.0064 | G78: -0.002666548841 | H78: 0.002558466852 | I78: -0.006769581098 | J78: 0.003198954657 | K78: 0 | L78: 0.005567917893 | M78: -0.00826345307 | N78: 0.004508367004
A79: ENF
A80: ENF | B80: VPB | C80: =C68 -> 37410665.94 | D80: =D68 -> 0 | E80: 0 | F80: 0 | G80: 48498109.95 | H80: 0 | I80: 0 | J80: 0 | K80: 0 | L80: 55492166.48 | M80: 0 | N80: 0
A81: ENF
A82: ENF | B82: Receita Requerida | C82: =C59 -> 41078 | D82: =D59 -> 41443 | E82: 41808 | F82: 42173 | G82: 42543 | H82: 42908 | I82: 43273 | J82: 43638 | K82: 44004 | L82: =L59 -> 44369 | M82: =M59 -> 44734 | N82: 45099
A83: ENF | B83: Custos Operacionais (CO3) | C83: 22117517.97 | D83: 23613192.51 | E83: 26880320.16 | F83: 27502050.08 | G83: 25778652.02 | H83: 26013627.08 | I83: 26804633.47 | J83: 27692862.81 | K83: 0 | L83: 28160391.51 | M83: 31594129.17 | N83: 33110474
A84: ENF | B84: Receitas Irrecuperáveis - Encargos Setoriais (Vi) | C84: 33995.1274 | D84: 36294.01314 | E84: 41315.66253 | F84: 42271.27554 | G84: 50293.58514 | H84: 0 | I84: 0 | J84: 0 | K84: 0 | L84: 0 | M84: 0 | N84: 0
A85: ENF | B85: Demais Receitas Irrecuperáveis (Vse) | C85: 163821.8815 | D85: 174900.1688 | E85: 199099.403 | F85: 203704.4842 | G85: 106768.0862 | H85: 0 | I85: 0 | J85: 0 | K85: 0 | L85: 0 | M85: 0 | N85: 0
A86: ENF | B86: Remuneração do Capital (RC) | C86: 7786931.094 | D86: 8313514.35 | E86: 9463774.423 | F86: 9682667.344 | G86: 11803485.42 | H86: 11911075.4 | I86: 12273260.06 | J86: 12679961 | K86: 0 | L86: 13299645.08 | M86: 14775135.97 | N86: 15320522.91
A87: ENF | B87: Quota de Reintegração Regulatória (QRR) | C87: 4510550.718 | D87: 4815572.1 | E87: 5481855.946 | F87: 5608648.852 | G87: 6300220.583 | H87: 6357647.74 | I87: 6550967.186 | J87: 6768047.612 | K87: 0 | L87: 8137517.908 | M87: 9040311.44 | N87: 9374011.774
A88: ENF | B88: Custo anual das instalações móveis e imóveis (CAIMI) | C88: 2434520.103 | D88: 2599152.036 | E88: 2958771.408 | F88: 3027206.484 | G88: 4118613.218 | H88: 4156154.799 | I88: 4282532.601 | J88: 4424443.554 | K88: 0 | L88: 5380300.428 | M88: 5977202.392 | N88: 6197835.769
A89: ENF | B89: Outras Receitas | C89: -1572448.905 | D89: -1678784.155 | E89: -1911061.181 | F89: -1955263.181 | G89: -1928234.398 | H89: -2627596.214 | I89: -2316714.979 | J89: -2550169.232 | K89: 0 | L89: -2490451.057 | M89: -4063228.365 | N89: -5271829.395
A90: ENF | B90: Ultrapassagem de Demanda e Excedente de Reativo | C90: 0 | D90: 0 | E90: 0 | F90: 0 | G90: 0 | H90: -81477.87338 | I90: -350525.523 | J90: -427787.1475 | K90: 0 | L90: -545181.9274 | M90: -522672.0314 | N90: -564153.7699
A91: ENF | B91: ONS | C91: 0 | D91: 0 | E91: 0 | F91: 0 | G91: 0 | H91: 0 | I91: 0 | J91: 0 | K91: 0 | L91: 0 | M91: 0 | N91: 0
A92: ENF | B92: Erro ONS | C92: 0 | D92: 0 | E92: 0 | F92: 0 | G92: 0 | H92: 0.004332914948 | I92: 0.00446465984 | J92: 0.004612606019 | K92: 0 | L92: 0 | M92: -82399.73398 | N92: -85441.31268
A93: ENF | B93: TOTAL | C93: =SUM(C83:C92) -> 35474887.99 | D93: =SUM(D83:D92) -> 37873841.02 | E93: 43114075.82 | F93: 44111285.34 | G93: 46229798.51 | H93: 45729430.93 | I93: 47244152.82 | J93: 48587358.6 | K93: 0 | L93: 51942221.94 | M93: 56718478.84 | N93: 58081419.97
A94: ENF
A95: ENF | B95: Receita Requerida - % | C95: =C82 -> 41078 | D95: =D82 -> 41443 | E95: 41808 | F95: 42173 | G95: 42543 | H95: 42908 | I95: 43273 | J95: 43638 | K95: 44004 | L95: =L59 -> 44369 | M95: =M59 -> 44734 | N95: 45099
A96: ENF | B96: Custos Operacionais (CO3) | C96: 0.6234697056 | D96: 0.6234697056 | E96: 0.6234697056 | F96: 0.6234697056 | G96: 0.5576198221 | H96: 0.5688596282 | I96: 0.5673640413 | J96: 0.5699602449 | K96: 0 | L96: 0.5421483806 | M96: 0.5570341415 | N96: 0.5700699813
A97: ENF | B97: Receitas Irrecuperáveis - Encargos Setoriais (Vi) | C97: 0.0009582870963 | D97: 0.0009582870963 | E97: 0.0009582870963 | F97: 0.0009582870963 | G97: 0.001087904052 | H97: 0 | I97: 0 | J97: 0 | K97: 0 | L97: 0 | M97: 0 | N97: 0
A98: ENF | B98: Demais Receitas Irrecuperáveis (Vse) | C98: 0.004617967548 | D98: 0.004617967548 | E98: 0.004617967548 | F98: 0.004617967548 | G98: 0.002309507929 | H98: 0 | I98: 0 | J98: 0 | K98: 0 | L98: 0 | M98: 0 | N98: 0
A99: ENF | B99: Remuneração do Capital (RC) | C99: 0.2195054456 | D99: 0.2195054456 | E99: 0.2195054456 | F99: 0.2195054456 | G99: 0.2553220173 | H99: 0.2604684807 | I99: 0.2597836839 | J99: 0.2609724292 | K99: 0 | L99: 0.2560469033 | M99: 0.2604995104 | N99: 0.263776659
A100: ENF | B100: Quota de Reintegração Regulatória (QRR) | C100: 0.1271477085 | D100: 0.1271477085 | E100: 0.1271477085 | F100: 0.1271477085 | G100: 0.1362805114 | H100: 0.1390274843 | I100: 0.1386619676 | J100: 0.1392964715 | K100: 0 | L100: 0.1566648019 | M100: 0.1593891731 | N100: 0.1613943285
A101: ENF | B101: Custo anual das instalações móveis e imóveis (CAIMI) | C101: 0.06862657617 | D101: 0.06862657617 | E101: 0.06862657617 | F101: 0.06862657617 | G101: 0.08909001012 | H101: 0.09088577563 | I101: 0.09064682814 | J101: 0.09106161936 | K101: 0 | L101: 0.1035824081 | M101: 0.1053836865 | N101: 0.1067094395
A102: ENF | B102: Outras Receitas | C102: -0.0443256905 | D102: -0.0443256905 | E102: -0.0443256905 | F102: -0.0443256905 | G102: -0.04170977291 | H102: -0.05745963071 | I102: -0.04903707318 | J102: -0.05248627021 | K102: 0 | L102: -0.04794656378 | M102: -0.07163852854 | N102: -0.09076619334
A103: ENF | B103: Ultrapassagem de Demanda e Excedente de Reativo | C103: 0 | D103: 0 | E103: 0 | F103: 0 | G103: 0 | H103: -0.001781738187 | I103: -0.007419447742 | J103: -0.008804494829 | K103: 0 | L103: -0.01049593004 | M103: -0.009215198329 | N103: -0.009713153883
A104: ENF | B104: ONS | C104: 0 | D104: 0 | E104: 0 | F104: 0 | G104: 0 | H104: 0 | I104: 0 | J104: 0 | K104: 0 | L104: 0 | M104: 0 | N104: 0
A105: ENF | B105: Erro ONS | C105: 0 | D105: 0 | E105: 0 | F105: 0 | G105: 0 | H105: 9.47511233e-11 | I105: 9.450184994e-11 | J105: 9.493428233e-11 | K105: 0 | L105: 0 | M105: -0.001452784624 | N105: -0.001471061016
A106: ENF | B106: TOTAL | C106: =SUM(C96:C105) -> 1 | D106: =SUM(D96:D105) -> 1 | E106: 1 | F106: 1 | G106: 1 | H106: 1 | I106: 1 | J106: 1 | K106: 0 | L106: 1 | M106: 1 | N106: 1
A107: ENF
A108: ESE | B108: ESE
A109: ESE
A110: ESE | B110: ENERGISA SERGIPE | D110: 41386 | E110: 41751 | F110: 42116 | G110: 42482 | H110: 42847 | I110: 43212 | J110: 43577 | K110: 43943 | L110: 44308 | M110: 44673 | N110: 45038 | O110: 45404
A111: ESE | B111: Custo de Administração, Operação e Manutenção (CAOM) | C111: =SUM(C112:C114) -> 0 | D111: 166266044.1 | E111: 0 | F111: 0 | G111: 0 | H111: 0 | I111: 219343365.4 | J111: 0 | K111: 0 | L111: 0 | M111: 0 | N111: 329676098.8 | O111: 0
A112: ESE | B112: Custos Operacionais (CO3) | C112: 0 | D112: 159408691.3 | E112: 0 | F112: 0 | G112: 0 | H112: 0 | I112: 210183655.9 | J112: 0 | K112: 0 | L112: 0 | M112: 0 | N112: 312722803 | O112: 0
A113: ESE | B113: Receitas Irrecuperáveis - Encargos Setoriais (Vi) | C113: 0 | D113: 284521.0707 | E113: 0 | F113: 0 | G113: 0 | H113: 0 | I113: 575495.7452 | J113: 0 | K113: 0 | L113: 0 | M113: 0 | N113: 1173325.268 | O113: 0
A114: ESE | B114: Demais Receitas Irrecuperáveis (Vse) | C114: 0 | D114: 6572831.679 | E114: 0 | F114: 0 | G114: 0 | H114: 0 | I114: 8584213.707 | J114: 0 | K114: 0 | L114: 0 | M114: 0 | N114: 15779970.57 | O114: 0
A115: ESE | B115: Custo Anual dos Ativos (CAA) | C115: =SUM(C116:C118) -> 0 | D115: 101119682.8 | E115: 0 | F115: 0 | G115: 0 | H115: 0 | I115: 184282785.5 | J115: 0 | K115: 0 | L115: 0 | M115: 0 | N115: 282236755.3 | O115: 0
A116: ESE | B116: Remuneração do Capital (RC) | C116: 0 | D116: 54261931.61 | E116: 0 | F116: 0 | G116: 0 | H116: 0 | I116: 105618602 | J116: 0 | K116: 0 | L116: 0 | M116: 0 | N116: 159255239 | O116: 0
A117: ESE | B117: Quota de Reintegração Regulatória (QRR) | C117: 0 | D117: 33015057.03 | E117: 0 | F117: 0 | G117: 0 | H117: 0 | I117: 49318515.6 | J117: 0 | K117: 0 | L117: 0 | M117: 0 | N117: 80356169.59 | O117: 0
A118: ESE | B118: Custo anual das instalações móveis e imóveis (CAIMI) | C118: 0 | D118: 13842694.19 | E118: 0 | F118: 0 | G118: 0 | H118: 0 | I118: 29345667.88 | J118: 0 | K118: 0 | L118: 0 | M118: 0 | N118: 42625346.72 | O118: 0
A119: ESE | B119: Parcela B (VPB) | C119: =C111+C115 -> 0 | D119: =D111+D115 -> 267385726.9 | E119: 0 | F119: 0 | G119: 0 | H119: 0 | I119: 403626150.9 | J119: 0 | K119: 0 | L119: 0 | M119: 0 | N119: 611912854.1 | O119: 0
A120: ESE | B120: Parcela B com Ajuste de Mercado e Qualidade | C120: 0 | D120: 263087843.6 | E120: 0 | F120: 0 | G120: 0 | H120: 0 | I120: 399490064.2 | J120: 0 | K120: 0 | L120: 0 | M120: 0 | N120: 626118459.3 | O120: 0
A121: ESE | B121: Outras Receitas | C121: 0 | D121: 3235950.231 | E121: 0 | F121: 0 | G121: 0 | H121: 0 | I121: 5085909.108 | J121: 0 | K121: 0 | L121: 0 | M121: 0 | N121: 12435033.79 | O121: 0
A122: ESE | B122: Ultrapassagem de Demanda e Excedente de Reativo | C122: 0 | D122: 0 | E122: 0 | F122: 0 | G122: 0 | H122: 0 | I122: 0 | J122: 0 | K122: 0 | L122: 0 | M122: 0 | N122: 930318.9366 | O122: 0
A123: ESE | B123: ONS | C123: 0 | D123: 0 | E123: 0 | F123: 0 | G123: 0 | H123: 0 | I123: 0 | J123: 0 | K123: 0 | L123: 0 | M123: 0 | N123: 0 | O123: 0
A124: ESE | B124: Parcela B com Ajustes | C124: 0 | D124: 259851893.4 | E124: 0 | F124: 0 | G124: 0 | H124: 0 | I124: 394404155.1 | J124: 0 | K124: 0 | L124: 0 | M124: 0 | N124: 612753106.5 | O124: 0
A125: ESE
A126: ESE | B126: Fator X | C126: 0 | D126: 0.02405950635 | E126: 0.01765950635 | F126: 0.02405950635 | G126: 0.01765950635 | H126: 0.01915950635 | I126: 0.03193574428 | J126: 0.02549368834 | K126: 0 | L126: 0.03165894888 | M126: 0.03284073547 | N126: 0.02185345575 | O126: 0.02851222631
A127: ESE | B127: Componente Pd | C127: 0 | D127: 0.01607372003 | E127: 0.01607372003 | F127: 0.01607372003 | G127: 0.01607372003 | H127: 0.01607372003 | I127: 0.01029596792 | J127: 0.01029596792 | K127: 0 | L127: 0.01029596792 | M127: 0.01029596792 | N127: 0.004225996072 | O127: 0.00423
A128: ESE | B128: Componente T | C128: 0 | D128: 0.007985786312 | E128: 0.007985786312 | F128: 0.007985786312 | G128: 0.007985786312 | H128: 0.007985786312 | I128: 0.02168842337 | J128: 0.02168842337 | K128: 0 | L128: 0.02168842337 | M128: 0.02168842337 | N128: 0.02632011412 | O128: 0.02632
A129: ESE | B129: Componente Q | C129: 0 | D129: 0 | E129: -0.0064 | F129: 0 | G129: -0.0064 | H129: -0.0049 | I129: -4.864701219e-05 | J129: -0.006490702949 | K129: 0 | L129: -0.000325442413 | M129: 0.0008563441726 | N129: -0.008692654435 | O129: -0.00203777369
A130: ESE
A131: ESE | B131: VPB | C131: =C119 -> 0 | D131: =D119 -> 267385726.9 | E131: 0 | F131: 0 | G131: 0 | H131: 0 | I131: 403626150.9 | J131: 0 | K131: 0 | L131: 0 | M131: 0 | N131: 611912854.1 | O131: 0
A132: ESE
A133: ESE | B133: Receita Requerida | D133: =D110 -> 41386 | E133: 41751 | F133: 42116 | G133: 42482 | H133: 42847 | I133: 43212 | J133: 43577 | K133: 43943 | L133: =L110 -> 44308 | M133: 44673 | N133: =N110 -> 45038 | O133: =O110 -> 45404
A134: ESE | B134: Custos Operacionais (CO3) | C134: 0 | D134: 156846400.7 | E134: 190097510.6 | F134: 193404734.1 | G134: 212588269 | H134: 219810121.8 | I134: 208029836.6 | J134: 223198570.3 | K134: 0 | L134: 290326841.6 | M134: 328645763.7 | N134: 319982687.5 | O134: 314852683.4
A135: ESE | B135: Receitas Irrecuperáveis - Encargos Setoriais (Vi) | C135: 0 | D135: 279947.7587 | E135: 343624.8392 | F135: 354300.4154 | G135: 394269.4098 | H135: 413081.2184 | I135: 569598.4556 | J135: 635671.3892 | K135: 0 | L135: 891148.5142 | M135: 1049455.671 | N135: 1200564.107 | O135: 1248015.14
A136: ESE | B136: Demais Receitas Irrecuperáveis (Vse) | C136: 0 | D136: 6467181.823 | E136: 7938210.773 | F136: 8184831.404 | G136: 9108170.655 | H136: 9542749.546 | I136: 8496248.514 | J136: 9481806.074 | K136: 0 | L136: 13292555.77 | M136: 15653898.1 | N136: 16146303.83 | O136: 16784469.51
A137: ESE | B137: Remuneração do Capital (RC) | C137: 0 | D137: 53389740.51 | E137: 65533802.03 | F137: 67569775.64 | G137: 75192391.54 | H137: 78780052.26 | I137: 104536294.3 | J137: 116662415 | K137: 0 | L137: 163549185.3 | M137: 192602711.2 | N137: 162952361.9 | O137: 169392882.6
A138: ESE | B138: Quota de Reintegração Regulatória (QRR) | C138: 0 | D138: 32484382.25 | E138: 39873298.78 | F138: 41112063.84 | G138: 45749958.05 | H138: 47932829.54 | I138: 48813132.95 | J138: 54475414.62 | K138: 0 | L138: 76369151.76 | M138: 89935670.76 | N138: 82221644.4 | O138: 85471368.39
A139: ESE | B139: Custo anual das instalações móveis e imóveis (CAIMI) | C139: 0 | D139: 13620190.6 | E139: 16718247.1 | F139: 17237641.81 | G139: 19182237.91 | H139: 20097481.6 | I139: 29044953.4 | J139: 32414143.15 | K139: 0 | L139: 45441427.75 | M139: 53513823.19 | N139: 43614897.5 | O139: 45338730.44
A140: ESE | B140: Outras Receitas | C140: 0 | D140: -3235950.231 | E140: -3942170.892 | F140: -4032681.479 | G140: -4455206.507 | H140: -4631845.395 | I140: -5085909.108 | J140: -5561767.974 | K140: 0 | L140: -7509640.551 | M140: -8674922.117 | N140: -12435033.79 | O140: -7987538.097
A141: ESE | B141: Ultrapassagem de Demanda e Excedente de Reativo | C141: 0 | D141: 0 | E141: 0 | F141: 0 | G141: 0 | H141: 0 | I141: 0 | J141: 0 | K141: 0 | L141: 0 | M141: 0 | N141: -930318.9366 | O141: 0
A142: ESE | B142: ONS | C142: 0 | D142: 0 | E142: 0 | F142: 0 | G142: 0 | H142: 0 | I142: 0 | J142: 0 | K142: 0 | L142: 0 | M142: 0 | N142: 0 | O142: 0
A143: ESE | B143: Erro ONS | C143: 0 | D143: 0 | E143: 0 | F143: 0 | G143: 0 | H143: 0 | I143: 0 | J143: 0 | K143: 0 | L143: 0 | M143: 0 | N143: 0 | O143: -5679747.312
A144: ESE | B144: TOTAL | C144: =SUM(C134:C143) -> 0 | D144: =SUM(D134:D143) -> 259851893.4 | E144: 316562523.2 | F144: 323830665.7 | G144: 357760090.1 | H144: 371944470.6 | I144: 394404155.1 | J144: 431306252.6 | K144: 0 | L144: 582360670.1 | M144: 672726400.5 | N144: 612753106.5 | O144: 619420864
A145: ESE
A146: ESE | B146: Receita Requerida - % | D146: =D133 -> 41386 | E146: =E133 -> 41751 | F146: 42116 | G146: 42482 | H146: 42847 | I146: 43212 | J146: 43577 | K146: 43943 | L146: =L110 -> 44308 | M146: 44673 | N146: =N110 -> 45038 | O146: =O110 -> 45404
A147: ESE | B147: Custos Operacionais (CO3) | C147: 0 | D147: 0.6035992219 | E147: 0.6005054188 | F147: 0.5972403314 | G147: 0.5942201909 | H147: 0.5909756407 | I147: 0.5274534608 | J147: 0.5174943998 | K147: 0 | L147: 0.4985344247 | M147: 0.48852812 | N147: 0.5222049209 | O147: 0.5083017084
A148: ESE | B148: Receitas Irrecuperáveis - Encargos Setoriais (Vi) | C148: 0 | D148: 0.001077335843 | E148: 0.00108548806 | F148: 0.001094091613 | G148: 0.001102049728 | H148: 0.001110599165 | I148: 0.001444199936 | J148: 0.001473828365 | K148: 0 | L148: 0.001530234715 | M148: 0.001560003695 | N148: 0.001959295015 | O148: 0.00201480966
A149: ESE | B149: Demais Receitas Irrecuperáveis (Vse) | C149: 0 | D149: 0.02488795344 | E149: 0.02507628096 | F149: 0.02527503498 | G149: 0.02545887847 | H149: 0.02565638234 | I149: 0.02154198531 | J149: 0.02198392909 | K149: 0 | L149: 0.02282529789 | M149: 0.02326933816 | N149: 0.02635042346 | O149: 0.02709703609
A150: ESE | B150: Remuneração do Capital (RC) | C150: 0 | D150: 0.2054621955 | E150: 0.207016931 | F150: 0.2086577424 | G150: 0.2101754601 | H150: 0.2118059509 | I150: 0.2650486638 | J150: 0.2704862596 | K150: 0 | L150: 0.280838308 | M150: 0.2863016986 | N150: 0.2659347789 | O150: 0.2643003243
A151: ESE | B151: Quota de Reintegração Regulatória (QRR) | C151: 0 | D151: 0.1250111432 | E151: 0.1259571044 | F151: 0.1269554375 | G151: 0.1278788756 | H151: 0.1288709292 | I151: 0.1237642462 | J151: 0.1263033269 | K151: 0 | L151: 0.131137207 | M151: 0.1336883326 | N151: 0.1341839699 | O151: 0.1379859371
A152: ESE | B152: Custo anual das instalações móveis e imóveis (CAIMI) | C152: 0 | D152: 0.05241520631 | E152: 0.05281183297 | F152: 0.05323041833 | G152: 0.05361760141 | H152: 0.05403355389 | I152: 0.07364261514 | J152: 0.07515342742 | K152: 0 | L152: 0.07802969891 | M152: 0.07954767816 | N152: 0.07117858243 | O152: 0.07319535565
A153: ESE | B153: Outras Receitas | C153: 0 | D153: -0.0124530562 | E153: -0.0124530562 | F153: -0.0124530562 | G153: -0.0124530562 | H153: -0.0124530562 | I153: -0.01289517122 | J153: -0.01289517122 | K153: 0 | L153: -0.01289517122 | M153: -0.01289517122 | N153: -0.02029370991 | O153: -0.01289517122
A154: ESE | B154: Ultrapassagem de Demanda e Excedente de Reativo | C154: 0 | D154: 0 | E154: 0 | F154: 0 | G154: 0 | H154: 0 | I154: 0 | J154: 0 | K154: 0 | L154: 0 | M154: 0 | N154: -0.001518260661 | O154: 0
A155: ESE | B155: ONS | C155: 0 | D155: 0 | E155: 0 | F155: 0 | G155: 0 | H155: 0 | I155: 0 | J155: 0 | K155: 0 | L155: 0 | M155: 0 | N155: 0 | O155: 0
A156: ESE | B156: Erro ONS | C156: 0 | D156: 0 | E156: 0 | F156: 0 | G156: 0 | H156: 0 | I156: 0 | J156: 0 | K156: 0 | L156: 0 | M156: 0 | N156: 0 | O156: 0
A157: ESE | B157: TOTAL | C157: =SUM(C147:C156) -> 0 | D157: =SUM(D147:D156) -> 1 | E157: 1 | F157: 1 | G157: 1 | H157: 1 | I157: 1 | J157: 1 | K157: 0 | L157: 1 | M157: 1 | N157: 1 | O157: 1
A158: ESE
A159: EBO | B159: EBO
A160: EBO
A161: EBO | B161: ENERGISA BORBOREMA | D161: 41309 | E161: 41674 | F161: 42039 | G161: 42404 | H161: 42770 | I161: 43135 | J161: 43500 | K161: 43865 | L161: 44231 | M161: 44596 | N161: 44961 | O161: 0
A162: EBO | B162: Custo de Administração, Operação e Manutenção (CAOM) | C162: =SUM(C163:C165) -> 0 | D162: 35439259.72 | E162: 0 | F162: 0 | G162: 0 | H162: 48657756.55 | I162: 0 | J162: 0 | K162: 0 | L162: 55933496.45 | M162: 0 | N162: - | O162: -
A163: EBO | B163: Custos Operacionais (CO3) | C163: 0 | D163: 33717700.69 | E163: 0 | F163: 0 | G163: 0 | H163: 48414712.46 | I163: 0 | J163: 0 | K163: 0 | L163: 55617860.08 | M163: 0 | N163: - | O163: -
A164: EBO | B164: Receitas Irrecuperáveis - Encargos Setoriais (Vi) | C164: 0 | D164: 115734.1644 | E164: 0 | F164: 0 | G164: 0 | H164: 89560.49535 | I164: 0 | J164: 0 | K164: 0 | L164: 90207.08745 | M164: 0 | N164: - | O164: -
A165: EBO | B165: Demais Receitas Irrecuperáveis (Vse) | C165: 0 | D165: 1605824.864 | E165: 0 | F165: 0 | G165: 0 | H165: 153483.5952 | I165: 0 | J165: 0 | K165: 0 | L165: 225429.2848 | M165: 0 | N165: - | O165: -
A166: EBO | B166: Custo Anual dos Ativos (CAA) | C166: =SUM(C167:C169) -> 0 | D166: 15465781.74 | E166: 0 | F166: 0 | G166: 0 | H166: 28388513.19 | I166: 0 | J166: 0 | K166: 0 | L166: 35757941.29 | M166: 0 | N166: - | O166: -
A167: EBO | B167: Remuneração do Capital (RC) | C167: 0 | D167: 7586639.489 | E167: 0 | F167: 0 | G167: 0 | H167: 15997128 | I167: 0 | J167: 0 | K167: 0 | L167: 19334039.63 | M167: 0 | N167: - | O167: -
A168: EBO | B168: Quota de Reintegração Regulatória (QRR) | C168: 0 | D168: 4769565.218 | E168: 0 | F168: 0 | G168: 0 | H168: 6473329.645 | I168: 0 | J168: 0 | K168: 0 | L168: 8875634.112 | M168: 0 | N168: - | O168: -
A169: EBO | B169: Custo anual das instalações móveis e imóveis (CAIMI) | C169: 0 | D169: 3109577.038 | E169: 0 | F169: 0 | G169: 0 | H169: 5918055.544 | I169: 0 | J169: 0 | K169: 0 | L169: 7548267.552 | M169: 0 | N169: - | O169: -
A170: EBO | B170: Parcela B (VPB) | C170: =C162+C166 -> 0 | D170: =D162+D166 -> 50905041.47 | E170: 0 | F170: 0 | G170: 0 | H170: 77046269.74 | I170: 0 | J170: 0 | K170: 0 | L170: 91691437.74 | M170: 0 | N170: - | O170: -
A171: EBO | B171: Parcela B com Ajuste de Mercado e Qualidade | C171: 0 | D171: 50798839.09 | E171: 0 | F171: 0 | G171: 0 | H171: 77087391.81 | I171: 0 | J171: 0 | K171: 0 | L171: 92344713.61 | M171: 0 | N171: - | O171: -
A172: EBO | B172: Outras Receitas | C172: 0 | D172: 970584.1366 | E172: 0 | F172: 0 | G172: 0 | H172: 1533548.341 | I172: 0 | J172: 0 | K172: 0 | L172: 2368506.976 | M172: 0 | N172: - | O172: -
A173: EBO | B173: Ultrapassagem de Demanda e Excedente de Reativo | C173: 0 | D173: 0 | E173: 0 | F173: 0 | G173: 0 | H173: 0 | I173: 0 | J173: 0 | K173: 0 | L173: 1542491.961 | M173: 0 | N173: - | O173: -
A174: EBO | B174: ONS | C174: 0 | D174: 0 | E174: 0 | F174: 0 | G174: 0 | H174: 0 | I174: 0 | J174: 0 | K174: 0 | L174: 0 | M174: 0 | N174: - | O174: -
A175: EBO | B175: Parcela B com Ajustes | C175: 0 | D175: 49828254.96 | E175: 0 | F175: 0 | G175: 0 | H175: 75553843.47 | I175: 0 | J175: 0 | K175: 0 | L175: 88433714.68 | M175: 0 | N175: - | O175: -
A176: EBO
A177: EBO | B177: Fator X | C177: 0 | D177: 0.002086284012 | E177: -0.0082 | F177: -0.0015 | G177: -0.0031 | H177: 0.005016174822 | I177: 0.007873061577 | J177: 0.006010162696 | K177: 0 | L177: 0.002810638681 | M177: 0.01088247815 | N177: - | O177: -
A178: EBO | B178: Componente Pd | C178: 0 | D178: 0.002086284012 | E178: 0.0018 | F178: 0.0018 | G178: 0.0018 | H178: 0.01146626778 | I178: 0.0115 | J178: 0.01146626778 | K178: 0 | L178: 0.003220845164 | M178: 0.003220845164 | N178: - | O178: -
A179: EBO | B179: Componente T | C179: 0 | D179: 0 | E179: 0 | F179: 0 | G179: 0 | H179: 0.005549907037 | I179: 0.0055 | J179: 0.005549907037 | K179: 0 | L179: 0.009935359261 | M179: 0.009935359261 | N179: - | O179: -
A180: EBO | B180: Componente Q | C180: 0 | D180: 0 | E180: -0.01 | F180: -0.0033 | G180: -0.0049 | H180: -0.012 | I180: -0.009126938423 | J180: -0.01100601213 | K180: 0 | L180: -0.01034556574 | M180: -0.002273726272 | N180: - | O180: -
A181: EBO
A182: EBO | B182: VPB | C182: =C170 -> 0 | D182: =D170 -> 50905041.47 | E182: 0 | F182: 0 | G182: 0 | H182: 77046269.74 | I182: 0 | J182: 0 | K182: 0 | L182: 91691437.74 | M182: 0 | N182: - | O182: -
A183: EBO
A184: EBO | B184: Receita Requerida | D184: =D161 -> 41309 | E184: =E161 -> 41674 | F184: 42039 | G184: 42404 | H184: 42770 | I184: 43135 | J184: 43500 | K184: 43865 | L184: =L161 -> 44231 | M184: =M161 -> 44596 | N184: 44961 | O184: =O161 -> 0
A185: EBO | B185: Custos Operacionais (CO3) | C185: 0 | D185: 33647355.99 | E185: 38631538.63 | F185: 44062905.09 | G185: 48730543.51 | H185: 48440552.95 | I185: 47789235.58 | J185: 53043803.87 | K185: 0 | L185: 56014121.79 | M185: 65185848.66 | N185: - | O185: -
A186: EBO | B186: Receitas Irrecuperáveis - Encargos Setoriais (Vi) | C186: 0 | D186: 115492.71 | E186: 132600.6444 | F186: 151243.5129 | G186: 167264.9266 | H186: 89608.29668 | I186: 89191.17404 | J186: 99825.3374 | K186: 0 | L186: 90849.78774 | M186: 107220.139 | N186: - | O186: -
A187: EBO | B187: Demais Receitas Irrecuperáveis (Vse) | C187: 0 | D187: 1602474.658 | E187: 1839849.219 | F187: 2098521.166 | G187: 2320820.127 | H187: 153565.5143 | I187: 152850.6737 | J187: 171074.8876 | K187: 0 | L187: 227035.4054 | M187: 267945.2351 | N187: - | O187: -
A188: EBO | B188: Remuneração do Capital (RC) | C188: 0 | D188: 7570811.604 | E188: 8692275.879 | F188: 9914358.596 | G188: 10964598.95 | H188: 16005666.18 | I188: 15931160.51 | J188: 17830614.86 | K188: 0 | L188: 19471789.26 | M188: 22980438.41 | N188: - | O188: -
A189: EBO | B189: Quota de Reintegração Regulatória (QRR) | C189: 0 | D189: 4759614.551 | E189: 5464656.224 | F189: 6232954.655 | G189: 6893219.307 | H189: 6476784.67 | I189: 6446635.525 | J189: 7215260.628 | K189: 0 | L189: 8938870.525 | M189: 10549578.2 | N189: - | O189: -
A190: EBO | B190: Custo anual das instalações móveis e imóveis (CAIMI) | C190: 0 | D190: 3103089.577 | E190: 3562750.216 | F190: 4063651.882 | G190: 4494119.588 | H190: 5921214.201 | I190: 5893651.212 | J190: 6596344.617 | K190: 0 | L190: 7602046.849 | M190: 8971870.385 | N190: - | O190: -
A191: EBO | B191: Outras Receitas | C191: 0 | D191: -970584.1366 | E191: -1114356.759 | F191: -1271028.746 | G191: -1405670.404 | H191: -1533548.341 | I191: -1517938.46 | J191: -1690101.936 | K191: 0 | L191: -2368506.976 | M191: -2771254.002 | N191: - | O191: -
A192: EBO | B192: Ultrapassagem de Demanda e Excedente de Reativo | C192: 0 | D192: 0 | E192: 0 | F192: 0 | G192: 0 | H192: 0 | I192: 0 | J192: 0 | K192: 0 | L192: -1542491.961 | M192: 0 | N192: - | O192: -
A193: EBO | B193: ONS | C193: 0 | D193: 0 | E193: 0 | F193: 0 | G193: 0 | H193: 0 | I193: 0 | J193: 0 | K193: 0 | L193: 0 | M193: 0 | N193: - | O193: -
A194: EBO | B194: Erro ONS | C194: 0 | D194: 0 | E194: 0 | F194: 0 | G194: 0 | H194: 0 | I194: 0 | J194: 2.980232239e-08 | K194: 0 | L194: 0 | M194: -1820435.761 | N194: - | O194: -
A195: EBO | B195: TOTAL | C195: =SUM(C185:C194) -> 0 | D195: =SUM(D185:D194) -> 49828254.96 | E195: 57209314.05 | F195: 65252606.15 | G195: 72164896.01 | H195: 75553843.47 | I195: 74784786.21 | J195: 83266822.26 | K195: 0 | L195: 88433714.68 | M195: 103471211.3 | N195: - | O195: -
A196: EBO
A197: EBO | B197: Receita Requerida - % | D197: =D184 -> 41309 | E197: =E184 -> 41674 | F197: 42039 | G197: 42404 | H197: 42770 | I197: 43135 | J197: 43500 | K197: 43865 | L197: =L161 -> 44231 | M197: =M161 -> 44596 | N197: 44961 | O197: =O161 -> 0
A198: EBO | B198: Custos Operacionais (CO3) | C198: 0 | D198: 0.6752665937 | E198: 0.6752665937 | F198: 0.6752665937 | G198: 0.6752665937 | H198: 0.6411394937 | I198: 0.6390234965 | J198: 0.6370340842 | K198: 0 | L198: 0.6334023397 | M198: 0.629990196 | N198: - | O198: -
A199: EBO | B199: Receitas Irrecuperáveis - Encargos Setoriais (Vi) | C199: 0 | D199: 0.002317815668 | E199: 0.002317815668 | F199: 0.002317815668 | G199: 0.002317815668 | H199: 0.001186019037 | I199: 0.001192637949 | J199: 0.001198860899 | K199: 0 | L199: 0.001027320723 | M199: 0.001036231602 | N199: - | O199: -
A200: EBO | B200: Demais Receitas Irrecuperáveis (Vse) | C200: 0 | D200: 0.03215995942 | E200: 0.03215995942 | F200: 0.03215995942 | G200: 0.03215995942 | H200: 0.002032530805 | I200: 0.002043873913 | J200: 0.002054538445 | K200: 0 | L200: 0.002567294682 | M200: 0.002589563143 | N200: - | O200: -
A201: EBO | B201: Remuneração do Capital (RC) | C201: 0 | D201: 0.1519381245 | E201: 0.1519381245 | F201: 0.1519381245 | G201: 0.1519381245 | H201: 0.2118444998 | I201: 0.2130267575 | J201: 0.2141382892 | K201: 0 | L201: 0.2201851333 | M201: 0.2220949975 | N201: - | O201: -
A202: EBO | B202: Quota de Reintegração Regulatória (QRR) | C202: 0 | D202: 0.0955203941 | E202: 0.0955203941 | F202: 0.0955203941 | G202: 0.0955203941 | H202: 0.08572409255 | I202: 0.08620249989 | J202: 0.08665228757 | K202: 0 | L202: 0.1010798942 | M202: 0.1019566513 | N202: - | O202: -
A203: EBO | B203: Custo anual das instalações móveis e imóveis (CAIMI) | C203: 0 | D203: 0.0622757024 | E203: 0.0622757024 | F203: 0.0622757024 | G203: 0.0622757024 | H203: 0.07837078736 | I203: 0.07880815752 | J203: 0.07921936298 | K203: 0 | L203: 0.08596321976 | M203: 0.08670885626 | N203: - | O203: -
... 364 more rows

Sheet Parcel B
B1: Regulatory - Parcel B
A7: Company | B7: Coluna1 | C7: Coluna2 | D7: Coluna3 | E7: Coluna4 | F7: Coluna5 | G7: Coluna6 | H7: Coluna7 | I7: Coluna8 | J7: Coluna9 | K7: Coluna10 | L7: Coluna11 | M7: Coluna12 | N7: Coluna12 | O7: Coluna12
A8: EMR | B8: EMG | N8: EMR | O8: EMR
A9: EMR
A10: EMR | B10: EMG | C10: =Regulat!C8 -> 41078 | D10: =Regulat!D8 -> 41443 | E10: =Regulat!E8 -> 41808 | F10: =Regulat!F8 -> 42173 | G10: =Regulat!G8 -> 42543 | H10: =Regulat!H8 -> 42908 | I10: =Regulat!I8 -> 43273 | J10: =Regulat!J8 -> 43638 | K10: =Regulat!K8 -> 44004 | L10: =Regulat!L8 -> 44369 | M10: =Regulat!M8 -> 44734 | N10: =Regulat!N8 -> 45099 | O10: =Regulat!O8 -> 45465
A11: EMR | B11: Administration, Operating and Maintenance Costs (CAOM) | C11: =Regulat!C9 -> 103830635 | D11: =Regulat!D9 -> 0 | E11: =Regulat!E9 -> 0 | F11: =Regulat!F9 -> 0 | G11: =Regulat!G9 -> 130552318.1 | H11: =Regulat!H9 -> 0 | I11: =Regulat!I9 -> 0 | J11: =Regulat!J9 -> 0 | K11: =Regulat!K9 -> 0 | L11: =Regulat!L9 -> 153695446.9 | M11: =Regulat!M9 -> 0 | N11: =Regulat!N9 -> 0 | O11: =Regulat!O9 -> 0
A12: EMR | B12: Operating Costs (CO3) | C12: =Regulat!C10 -> 101456979.3 | D12: =Regulat!D10 -> 0 | E12: =Regulat!E10 -> 0 | F12: =Regulat!F10 -> 0 | G12: =Regulat!G10 -> 127800325.5 | H12: =Regulat!H10 -> 0 | I12: =Regulat!I10 -> 0 | J12: =Regulat!J10 -> 0 | K12: =Regulat!K10 -> 0 | L12: =Regulat!L10 -> 153695446.9 | M12: =Regulat!M10 -> 0 | N12: =Regulat!N10 -> 0 | O12: =Regulat!O10 -> 0
A13: EMR | B13: Delinquency - Sector Charges (Vi) | C13: =Regulat!C11 -> 136301.5311 | D13: =Regulat!D11 -> 0 | E13: =Regulat!E11 -> 0 | F13: =Regulat!F11 -> 0 | G13: =Regulat!G11 -> 240923.086 | H13: =Regulat!H11 -> 0 | I13: =Regulat!I11 -> 0 | J13: =Regulat!J11 -> 0 | K13: =Regulat!K11 -> 0 | L13: =Regulat!L11 -> 0 | M13: =Regulat!M11 -> 0 | N13: =Regulat!N11 -> 0 | O13: =Regulat!O11 -> 0
A14: EMR | B14: Delinquency - Others (Vse) | C14: =Regulat!C12 -> 2237354.189 | D14: =Regulat!D12 -> 0 | E14: =Regulat!E12 -> 0 | F14: =Regulat!F12 -> 0 | G14: =Regulat!G12 -> 2511069.472 | H14: =Regulat!H12 -> 0 | I14: =Regulat!I12 -> 0 | J14: =Regulat!J12 -> 0 | K14: =Regulat!K12 -> 0 | L14: =Regulat!L12 -> 0 | M14: =Regulat!M12 -> 0 | N14: =Regulat!N12 -> 0 | O14: =Regulat!O12 -> 0
A15: EMR | B15: Annual Asset Costs (CAA) | C15: =Regulat!C13 -> 54110639.13 | D15: =Regulat!D13 -> 0 | E15: =Regulat!E13 -> 0 | F15: =Regulat!F13 -> 0 | G15: =Regulat!G13 -> 89809751.78 | H15: =Regulat!H13 -> 0 | I15: =Regulat!I13 -> 0 | J15: =Regulat!J13 -> 0 | K15: =Regulat!K13 -> 0 | L15: =Regulat!L13 -> 128054003.1 | M15: =Regulat!M13 -> 0 | N15: =Regulat!N13 -> 0 | O15: =Regulat!O13 -> 0
A16: EMR | B16: Capital Remuneration (RC) | C16: =Regulat!C14 -> 22689615.07 | D16: =Regulat!D14 -> 0 | E16: =Regulat!E14 -> 0 | F16: =Regulat!F14 -> 0 | G16: =Regulat!G14 -> 43913669.29 | H16: =Regulat!H14 -> 0 | I16: =Regulat!I14 -> 0 | J16: =Regulat!J14 -> 0 | K16: =Regulat!K14 -> 0 | L16: =Regulat!L14 -> 65568986.33 | M16: =Regulat!M14 -> 0 | N16: =Regulat!N14 -> 0 | O16: =Regulat!O14 -> 0
A17: EMR | B17: Regulatory Depreciation (QRR) | C17: =Regulat!C15 -> 20631191.83 | D17: =Regulat!D15 -> 0 | E17: =Regulat!E15 -> 0 | F17: =Regulat!F15 -> 0 | G17: =Regulat!G15 -> 26244466.41 | H17: =Regulat!H15 -> 0 | I17: =Regulat!I15 -> 0 | J17: =Regulat!J15 -> 0 | K17: =Regulat!K15 -> 0 | L17: =Regulat!L15 -> 35826734.67 | M17: =Regulat!M15 -> 0 | N17: =Regulat!N15 -> 0 | O17: =Regulat!O15 -> 0
A18: EMR | B18: Annual Costs for Fleet and Real State (CAIMI) | C18: =Regulat!C16 -> 10789832.23 | D18: =Regulat!D16 -> 0 | E18: =Regulat!E16 -> 0 | F18: =Regulat!F16 -> 0 | G18: =Regulat!G16 -> 19651616.08 | H18: =Regulat!H16 -> 0 | I18: =Regulat!I16 -> 0 | J18: =Regulat!J16 -> 0 | K18: =Regulat!K16 -> 0 | L18: =Regulat!L16 -> 26658282.08 | M18: =Regulat!M16 -> 0 | N18: =Regulat!N16 -> 0 | O18: =Regulat!O16 -> 0
A19: EMR | B19: Parcel B (VPB) | C19: =Regulat!C17 -> 157941274.2 | D19: =Regulat!D17 -> 0 | E19: =Regulat!E17 -> 0 | F19: =Regulat!F17 -> 0 | G19: =Regulat!G17 -> 220362069.9 | H19: =Regulat!H17 -> 0 | I19: =Regulat!I17 -> 0 | J19: =Regulat!J17 -> 0 | K19: =Regulat!K17 -> 0 | L19: =Regulat!L17 -> 281749450 | M19: =Regulat!M17 -> 0 | N19: =Regulat!N17 -> 0 | O19: =Regulat!O17 -> 0
A20: EMR | B20: Parcel B with Market and Quality Adjustment | C20: =Regulat!C18 -> 156472247 | D20: =Regulat!D18 -> 0 | E20: =Regulat!E18 -> 0 | F20: =Regulat!F18 -> 0 | G20: =Regulat!G18 -> 217697632.4 | H20: =Regulat!H18 -> 0 | I20: =Regulat!I18 -> 0 | J20: =Regulat!J18 -> 0 | K20: =Regulat!K18 -> 0 | L20: =Regulat!L18 -> 279711177.8 | M20: =Regulat!M18 -> 0 | N20: =Regulat!N18 -> 0 | O20: =Regulat!O18 -> 0
A21: EMR | B21: Other Revenues | C21: =Regulat!C19 -> 2589621.736 | D21: =Regulat!D19 -> 0 | E21: =Regulat!E19 -> 0 | F21: =Regulat!F19 -> 0 | G21: =Regulat!G19 -> 6455747.637 | H21: =Regulat!H19 -> 0 | I21: =Regulat!I19 -> 0 | J21: =Regulat!J19 -> 0 | K21: =Regulat!K19 -> 0 | L21: =Regulat!L19 -> 11165659.33 | M21: =Regulat!M19 -> 0 | N21: =Regulat!N19 -> 0 | O21: =Regulat!O19 -> 0
A22: EMR | B22: Other Revenues | C22: =Regulat!C20 -> 0 | D22: =Regulat!D20 -> 0 | E22: =Regulat!E20 -> 0 | F22: =Regulat!F20 -> 0 | G22: =Regulat!G20 -> 0 | H22: =Regulat!H20 -> 0 | I22: =Regulat!I20 -> 0 | J22: =Regulat!J20 -> 0 | K22: =Regulat!K20 -> 0 | L22: =Regulat!L20 -> 3394115.354 | M22: =Regulat!M20 -> 0 | N22: =Regulat!N20 -> 0 | O22: =Regulat!O20 -> 0
A23: EMR | B23: Excess Demand and Excess Power Factor | C23: =Regulat!C21 -> 0 | D23: =Regulat!D21 -> 0 | E23: =Regulat!E21 -> 0 | F23: =Regulat!F21 -> 0 | G23: =Regulat!G21 -> 0 | H23: =Regulat!H21 -> 0 | I23: =Regulat!I21 -> 0 | J23: =Regulat!J21 -> 0 | K23: =Regulat!K21 -> 0 | L23: =Regulat!L21 -> 0 | M23: =Regulat!M21 -> 0 | N23: =Regulat!N21 -> 0 | O23: =Regulat!O21 -> 0
A24: EMR | B24: Parcel B with Adjustments | C24: =Regulat!C22 -> 153882625.2 | D24: =Regulat!D22 -> 0 | E24: =Regulat!E22 -> 0 | F24: =Regulat!F22 -> 0 | G24: =Regulat!G22 -> 211241884.8 | H24: =Regulat!H22 -> 0 | I24: =Regulat!I22 -> 0 | J24: =Regulat!J22 -> 0 | K24: =Regulat!K22 -> 0 | L24: =Regulat!L22 -> 265151403.1 | M24: =Regulat!M22 -> 0 | N24: =Regulat!N22 -> 0 | O24: =Regulat!O22 -> 0
A25: EMR
A26: EMR | B26: Factor X | C26: =Regulat!C24 -> 0.02629601513 | D26: =Regulat!D24 -> 0.0263 | E26: =Regulat!E24 -> 0.02139601513 | F26: =Regulat!F24 -> 0.02299601513 | G26: =Regulat!G24 -> 0.009892465066 | H26: =Regulat!H24 -> 0.01453710994 | I26: =Regulat!I24 -> -0.0007586347198 | J26: =Regulat!J24 -> 0.01300792671 | K26: =Regulat!K24 -> 0 | L26: =Regulat!L24 -> 0.007234343075 | M26: =Regulat!M24 -> -0.02274906872 | N26: =Regulat!N24 -> -0.0166001895 | O26: =Regulat!O24 -> -0.01700845977
A27: EMR | B27: Component Pd | C27: =Regulat!C25 -> 0.009301097737 | D27: =Regulat!D25 -> 0.0093 | E27: =Regulat!E25 -> 0.009301097737 | F27: =Regulat!F25 -> 0.009301097737 | G27: =Regulat!G25 -> 0.01390965338 | H27: =Regulat!H25 -> 0.0139 | I27: =Regulat!I25 -> 0.0139 | J27: =Regulat!J25 -> 0.0139 | K27: =Regulat!K25 -> 0 | L27: =Regulat!L25 -> 0.00616326106 | M27: =Regulat!M25 -> 0.004945426931 | N27: =Regulat!N25 -> 0.003807112549 | O27: =Regulat!O25 -> 0.004356813912
A28: EMR | B28: Component T | C28: =Regulat!C26 -> 0.0169949174 | D28: =Regulat!D26 -> 0.017 | E28: =Regulat!E26 -> 0.0169949174 | F28: =Regulat!F26 -> 0.0169949174 | G28: =Regulat!G26 -> -0.002198714925 | H28: =Regulat!H26 -> -0.0022 | I28: =Regulat!I26 -> -0.0022 | J28: =Regulat!J26 -> -0.0022 | K28: =Regulat!K26 -> 0 | L28: =Regulat!L26 -> 0 | M28: =Regulat!M26 -> -0.0215 | N28: =Regulat!N26 -> -0.01894101439 | O28: =Regulat!O26 -> -0.01894101439
A29: EMR | B29: Component Q | C29: =Regulat!C27 -> 0 | D29: =Regulat!D27 -> 0 | E29: =Regulat!E27 -> -0.0049 | F29: =Regulat!F27 -> -0.0033 | G29: =Regulat!G27 -> -0.001818473391 | H29: =Regulat!H27 -> 0.002837109937 | I29: =Regulat!I27 -> -0.01245863472 | J29: =Regulat!J27 -> 0.001307926712 | K29: =Regulat!K27 -> 0 | L29: =Regulat!L27 -> 0.001071082015 | M29: =Regulat!M27 -> -0.00619449565 | N29: =Regulat!N27 -> -0.001466287658 | O29: =Regulat!O27 -> -0.002424259293
A30: EMR
A31: EMR | B31: VPB | C31: =Regulat!C29 -> 157941274.2 | D31: =Regulat!D29 -> 0 | E31: =Regulat!E29 -> 0 | F31: =Regulat!F29 -> 0 | G31: =Regulat!G29 -> 220362069.9 | H31: =Regulat!H29 -> 0 | I31: =Regulat!I29 -> 0 | J31: =Regulat!J29 -> 0 | K31: =Regulat!K29 -> 0 | L31: =Regulat!L29 -> 281749450 | M31: =Regulat!M29 -> 0 | N31: =Regulat!N29 -> 0 | O31: =Regulat!O29 -> 0
A32: EMR
A33: EMR | B33: Required Revenue | C33: =Regulat!C31 -> 41078 | D33: =Regulat!D31 -> 41443 | E33: =Regulat!E31 -> 41808 | F33: =Regulat!F31 -> 42173 | G33: =Regulat!G31 -> 42543 | H33: =Regulat!H31 -> 42908 | I33: =Regulat!I31 -> 43273 | J33: =Regulat!J31 -> 43638 | K33: =Regulat!K31 -> 44004 | L33: =Regulat!L31 -> 44369 | M33: =Regulat!M31 -> 44734 | N33: =Regulat!N31 -> 45099 | O33: =Regulat!O31 -> 45465
A34: EMR | B34: Operating Costs (CO3) | C34: =Regulat!C32 -> 100513318 | D34: =Regulat!D32 -> 110545059.4 | E34: =Regulat!E32 -> 124992424.4 | F34: =Regulat!F32 -> 128846887.5 | G34: =Regulat!G32 -> 126255068.8 | H34: =Regulat!H32 -> 128414923.4 | I34: =Regulat!I32 -> 137140948.9 | J34: =Regulat!J32 -> 143218597.9 | K34: =Regulat!K32 -> 0 | L34: =Regulat!L32 -> 152583561.3 | M34: =Regulat!M32 -> 173126414.2 | N34: =Regulat!N32 -> 225180844.4 | O34: =Regulat!O32 -> 250876859.9
A35: EMR | B35: Delinquency - Sector Charges (Vi) | C35: =Regulat!C33 -> 135033.7773 | D35: =Regulat!D33 -> 152275.0186 | E35: =Regulat!E33 -> 176489.5259 | F35: =Regulat!F33 -> 186708.2874 | G35: =Regulat!G33 -> 238010.0416 | H35: =Regulat!H33 -> 0 | I35: =Regulat!I33 -> 0 | J35: =Regulat!J33 -> 0 | K35: =Regulat!K33 -> 0 | L35: =Regulat!L33 -> 0 | M35: =Regulat!M33 -> 0 | N35: =Regulat!N33 -> 0 | O35: =Regulat!O33 -> 0
A36: EMR | B36: Delinquency - Others (Vse) | C36: =Regulat!C34 -> 2216544.339 | D36: =Regulat!D34 -> 2499554.831 | E36: =Regulat!E34 -> 2897029.672 | F36: =Regulat!F34 -> 3064767.985 | G36: =Regulat!G34 -> 2480707.679 | H36: =Regulat!H34 -> 0 | I36: =Regulat!I34 -> 0 | J36: =Regulat!J34 -> 0 | K36: =Regulat!K34 -> 0 | L36: =Regulat!L34 -> 0 | M36: =Regulat!M34 -> 0 | N36: =Regulat!N34 -> 0 | O36: =Regulat!O34 -> 0
A37: EMR | B37: Capital Remuneration (RC) | C37: =Regulat!C35 -> 22478576.74 | D37: =Regulat!D35 -> 25348662.83 | E37: =Regulat!E35 -> 29379562.89 | F37: =Regulat!F35 -> 31080642.57 | G37: =Regulat!G35 -> 43382701.21 | H37: =Regulat!H35 -> 43963273.12 | I37: =Regulat!I35 -> 46780395.23 | J37: =Regulat!J35 -> 48677231.12 | K37: =Regulat!K35 -> 0 | L37: =Regulat!L35 -> 65094637.79 | M37: =Regulat!M35 -> 71349280.08 | N37: =Regulat!N35 -> 89841547.85 | O37: =Regulat!O35 -> 96942772.54
A38: EMR | B38: Regulatory Depreciation (QRR) | C38: =Regulat!C36 -> 20439299.1 | D38: =Regulat!D36 -> 23049008.28 | E38: =Regulat!E36 -> 26714221.29 | F38: =Regulat!F36 -> 28260977.43 | G38: =Regulat!G36 -> 25927139.84 | H38: =Regulat!H36 -> 26274111.53 | I38: =Regulat!I36 -> 27957730.04 | J38: =Regulat!J36 -> 29091350.77 | K38: =Regulat!K36 -> 0 | L38: =Regulat!L36 -> 35567551.78 | M38: =Regulat!M36 -> 38985073.12 | N38: =Regulat!N36 -> 49089203.25 | O38: =Regulat!O36 -> 52969295.16
A39: EMR | B39: Annual Costs for Fleet and Real State (CAIMI) | C39: =Regulat!C37 -> 10689474.95 | D39: =Regulat!D37 -> 12054317.29 | E39: =Regulat!E37 -> 13971173.76 | F39: =Regulat!F37 -> 14780106.14 | G39: =Regulat!G37 -> 19414004.85 | H39: =Regulat!H37 -> 19673814.07 | I39: =Regulat!I37 -> 20934492.19 | J39: =Regulat!J37 -> 21783337.01 | K39: =Regulat!K37 -> 0 | L39: =Regulat!L37 -> 26465426.92 | M39: =Regulat!M37 -> 29008367.23 | N39: =Regulat!N37 -> 36526740.14 | O39: =Regulat!O37 -> 39413874.16
A40: EMR | B40: Other Revenues | C40: =Regulat!C38 -> -2589621.736 | D40: =Regulat!D38 -> -2920267.106 | E40: =Regulat!E38 -> -3384642.877 | F40: =Regulat!F38 -> -3580614.044 | G40: =Regulat!G38 -> -6455747.637 | H40: =Regulat!H38 -> -5772551.992 | I40: =Regulat!I38 -> -7885351.316 | J40: =Regulat!J38 -> -8495982.853 | K40: =Regulat!K38 -> 0 | L40: =Regulat!L38 -> -11165659.33 | M40: =Regulat!M38 -> -17372686.92 | N40: =Regulat!N38 -> -15682473.44 | O40: =Regulat!O38 -> -17263882.1
A41: EMR | B41: Excess Demand and Excess Power Factor | C41: =Regulat!C39 -> 0 | D41: =Regulat!D39 -> 0 | E41: =Regulat!E39 -> 0 | F41: =Regulat!F39 -> 0 | G41: =Regulat!G39 -> 0 | H41: =Regulat!H39 -> -418451.1001 | I41: =Regulat!I39 -> -1933352.178 | J41: =Regulat!J39 -> -2428814.19 | K41: =Regulat!K39 -> 0 | L41: =Regulat!L39 -> -3394115.354 | M41: =Regulat!M39 -> -3318057.992 | N41: =Regulat!N39 -> -4998110.818 | O41: =Regulat!O39 -> -5572760.932
A42: EMR | B42: =Regulat!B40 -> ONS | C42: =Regulat!C40 -> 0 | D42: =Regulat!D40 -> 0 | E42: =Regulat!E40 -> 0 | F42: =Regulat!F40 -> 0 | G42: =Regulat!G40 -> 0 | H42: =Regulat!H40 -> 30121.14286 | I42: =Regulat!I40 -> 39241.71429 | J42: =Regulat!J40 -> 39241.71429 | K42: =Regulat!K40 -> 0 | L42: =Regulat!L40 -> 0 | M42: =Regulat!M40 -> 0 | N42: =Regulat!N40 -> 0 | O42: =Regulat!O40 -> 0
A43: EMR | C43: =Regulat!C41 -> 0 | D43: =Regulat!D41 -> 0 | E43: =Regulat!E41 -> 0 | F43: =Regulat!F41 -> 0 | G43: =Regulat!G41 -> 0 | H43: =Regulat!H41 -> 0.001477330923 | I43: =Regulat!I41 -> 32051.27682 | J43: =Regulat!J41 -> 74183.75558 | K43: =Regulat!K41 -> 0 | L43: =Regulat!L41 -> 0 | M43: =Regulat!M41 -> -579937.4116 | N43: =Regulat!N41 -> -152688.5713 | O43: =Regulat!O41 -> -164757.3288
A44: EMR | B44: VPB | C44: =Regulat!C42 -> 153882625.2 | D44: =Regulat!D42 -> 170728610.5 | E44: =Regulat!E42 -> 194746258.6 | F44: =Regulat!F42 -> 202639475.9 | G44: =Regulat!G42 -> 211241884.8 | H44: =Regulat!H42 -> 212165240.2 | I44: =Regulat!I42 -> 223066155.8 | J44: =Regulat!J42 -> 231959145.2 | K44: =Regulat!K42 -> 0 | L44: =Regulat!L42 -> 265151403.1 | M44: =Regulat!M42 -> 291198452.3 | N44: =Regulat!N42 -> 379805062.8 | O44: =Regulat!O42 -> 417201401.4
A45: EMR
A46: EMR | B46: Required Revenue - % | C46: =Regulat!C44 -> 41078 | D46: =Regulat!D44 -> 41443 | E46: =Regulat!E44 -> 41808 | F46: =Regulat!F44 -> 42173 | G46: =Regulat!G44 -> 42543 | H46: =Regulat!H44 -> 42908 | I46: =Regulat!I44 -> 43273 | J46: =Regulat!J44 -> 43638 | K46: =Regulat!K44 -> 44004 | L46: =Regulat!L44 -> 44369 | M46: =Regulat!M44 -> 44734 | N46: =Regulat!N44 -> 45099 | O46: =Regulat!O44 -> 45465
A47: EMR | B47: Operating Costs (CO3) | C47: =Regulat!C45 -> 0.6531817215 | D47: =Regulat!D45 -> 0.6474899494 | E47: =Regulat!E45 -> 0.6418219546 | F47: =Regulat!F45 -> 0.6358429765 | G47: =Regulat!G45 -> 0.5976800904 | H47: =Regulat!H45 -> 0.6052590109 | I47: =Regulat!I45 -> 0.6147994453 | J47: =Regulat!J45 -> 0.617430271 | K47: =Regulat!K45 -> 0 | L47: =Regulat!L45 -> 0.5754582458 | M47: =Regulat!M45 -> 0.5945306811 | N47: =Regulat!N45 -> 0.5928853152 | O47: =Regulat!O45 -> 0.6013327353
A48: EMR | B48: Delinquency - Sector Charges (Vi) | C48: =Regulat!C46 -> 0.0008775115259 | D48: =Regulat!D46 -> 0.0008919127151 | E48: =Regulat!E46 -> 0.0009062537434 | F48: =Regulat!F46 -> 0.0009213816144 | G48: =Regulat!G46 -> 0.001126718036 | H48: =Regulat!H46 -> 0 | I48: =Regulat!I46 -> 0 | J48: =Regulat!J46 -> 0 | K48: =Regulat!K46 -> 0 | L48: =Regulat!L46 -> 0 | M48: =Regulat!M46 -> 0 | N48: =Regulat!N46 -> 0 | O48: =Regulat!O46 -> 0
A49: EMR | B49: Delinquency - Others (Vse) | C49: =Regulat!C47 -> 0.0144041235 | D49: =Regulat!D47 -> 0.01464051528 | E49: =Regulat!E47 -> 0.01487591953 | F49: =Regulat!F47 -> 0.0151242396 | G49: =Regulat!G47 -> 0.01174344606 | H49: =Regulat!H47 -> 0 | I49: =Regulat!I47 -> 0 | J49: =Regulat!J47 -> 0 | K49: =Regulat!K47 -> 0 | L49: =Regulat!L47 -> 0 | M49: =Regulat!M47 -> 0 | N49: =Regulat!N47 -> 0 | O49: =Regulat!O47 -> 0
A50: EMR | B50: Capital Remuneration (RC) | C50: =Regulat!C48 -> 0.1460761194 | D50: =Regulat!D48 -> 0.1484734325 | E50: =Regulat!E48 -> 0.1508607308 | F50: =Regulat!F48 -> 0.1533790119 | G50: =Regulat!G48 -> 0.2053697886 | H50: =Regulat!H48 -> 0.2072124212 | I50: =Regulat!I48 -> 0.2097153423 | J50: =Regulat!J48 -> 0.209852606 | K50: =Regulat!K48 -> 0 | L50: =Regulat!L48 -> 0.2454998806 | M50: =Regulat!M48 -> 0.2450194344 | N50: =Regulat!N48 -> 0.2365464725 | O50: =Regulat!O48 -> 0.2323644461
A51: EMR | B51: Regulatory Depreciation (QRR) | C51: =Regulat!C49 -> 0.1328239564 | D51: =Regulat!D49 -> 0.135003783 | E51: =Regulat!E49 -> 0.1371745033 | F51: =Regulat!F49 -> 0.1394643236 | G51: =Regulat!G49 -> 0.1227367379 | H51: =Regulat!H49 -> 0.1238379647 | I51: =Regulat!I49 -> 0.1253338048 | J51: =Regulat!J49 -> 0.1254158388 | K51: =Regulat!K49 -> 0 | L51: =Regulat!L49 -> 0.1341405377 | M51: =Regulat!M49 -> 0.1338780231 | N51: =Regulat!N49 -> 0.1292484173 | O51: =Regulat!O49 -> 0.1269633683
A52: EMR | B52: Annual Costs for Fleet and Real State (CAIMI) | C52: =Regulat!C50 -> 0.06946511948 | D52: =Regulat!D50 -> 0.07060513907 | E52: =Regulat!E50 -> 0.07174039623 | F52: =Regulat!F50 -> 0.07293794103 | G52: =Regulat!G50 -> 0.0919041452 | H52: =Regulat!H50 -> 0.09272873376 | I52: =Regulat!I50 -> 0.09384880514 | J52: =Regulat!J50 -> 0.09391023144 | K52: =Regulat!K50 -> 0 | L52: =Regulat!L50 -> 0.09981250943 | M52: =Regulat!M50 -> 0.09961717518 | N52: =Regulat!N50 -> 0.09617233608 | O52: =Regulat!O50 -> 0.09447205602
A53: EMR | B53: Other Revenues | C53: =Regulat!C51 -> -0.01682855184 | D53: =Regulat!D51 -> -0.01710473187 | E53: =Regulat!E51 -> -0.01737975816 | F53: =Regulat!F51 -> -0.01766987419 | G53: =Regulat!G51 -> -0.03056092613 | H53: =Regulat!H51 -> -0.02720781211 | I53: =Regulat!I51 -> -0.03534983281 | J53: =Regulat!J51 -> -0.0366270657 | K53: =Regulat!K51 -> 0 | L53: =Regulat!L51 -> -0.04211050441 | M53: =Regulat!M51 -> -0.05965926941 | N53: =Regulat!N51 -> -0.04129084884 | O53: =Regulat!O51 -> -0.0413802112
A54: EMR | B54: Excess Demand and Excess Power Factor | C54: =Regulat!C52 -> 0 | D54: =Regulat!D52 -> 0 | E54: =Regulat!E52 -> 0 | F54: =Regulat!F52 -> 0 | G54: =Regulat!G52 -> 0 | H54: =Regulat!H52 -> -0.001972288673 | I54: =Regulat!I52 -> -0.008667169478 | J54: =Regulat!J52 -> -0.01047087058 | K54: =Regulat!K52 -> 0 | L54: =Regulat!L52 -> -0.01280066903 | M54: =Regulat!M52 -> -0.01139449048 | N54: =Regulat!N52 -> -0.01315967402 | O54: =Regulat!O52 -> -0.01335748373
A55: EMR | B55: =Regulat!B53 -> ONS | C55: =Regulat!C53 -> 0 | D55: =Regulat!D53 -> 0 | E55: =Regulat!E53 -> 0 | F55: =Regulat!F53 -> 0 | G55: =Regulat!G53 -> 0 | H55: =Regulat!H53 -> 0.000141970206 | I55: =Regulat!I53 -> 0.0001759196241 | J55: =Regulat!J53 -> 0.0001691751116 | K55: =Regulat!K53 -> 0 | L55: =Regulat!L53 -> 0 | M55: =Regulat!M53 -> 0 | N55: =Regulat!N53 -> 0 | O55: =Regulat!O53 -> 0
A56: EMR | C56: =Regulat!C54 -> 0 | D56: =Regulat!D54 -> 0 | E56: =Regulat!E54 -> 0 | F56: =Regulat!F54 -> 0 | G56: =Regulat!G54 -> 0 | H56: =Regulat!H54 -> 6.963114795e-12 | I56: =Regulat!I54 -> 0.0001436850727 | J56: =Regulat!J54 -> 0.0003198138858 | K56: =Regulat!K54 -> 0 | L56: =Regulat!L54 -> 0 | M56: =Regulat!M54 -> -0.001991553894 | N56: =Regulat!N54 -> -0.0004020182622 | O56: =Regulat!O54 -> -0.0003949107752
A57: EMR | B57: VPB | C57: =Regulat!C55 -> 1 | D57: =Regulat!D55 -> 1 | E57: =Regulat!E55 -> 1 | F57: =Regulat!F55 -> 1 | G57: =Regulat!G55 -> 1 | H57: =Regulat!H55 -> 1 | I57: =Regulat!I55 -> 1 | J57: =Regulat!J55 -> 1 | K57: =Regulat!K55 -> 0 | L57: =Regulat!L55 -> 1 | M57: =Regulat!M55 -> 1 | N57: =Regulat!N55 -> 1 | O57: =Regulat!O55 -> 1
A58: EMR
A59: ENF | B59: ENF
A60: ENF
A61: ENF | B61: ENF | C61: =Regulat!C59 -> 41078 | D61: =Regulat!D59 -> 41443 | E61: =Regulat!E59 -> 41808 | F61: =Regulat!F59 -> 42173 | G61: =Regulat!G59 -> 42543 | H61: =Regulat!H59 -> 42908 | I61: =Regulat!I59 -> 43273 | J61: =Regulat!J59 -> 43638 | K61: =Regulat!K59 -> 44004 | L61: =Regulat!L59 -> 44369 | M61: =Regulat!M59 -> 44734 | N61: =Regulat!N59 -> 45099 | O61: =Regulat!O59 -> 0
A62: ENF | B62: Administration, Operating and Maintenance Costs (CAOM) | C62: =Regulat!C60 -> 22534184.97 | D62: =Regulat!D60 -> 0 | E62: =Regulat!E60 -> 0 | F62: =Regulat!F60 -> 0 | G62: =Regulat!G60 -> 26118863.63 | H62: =Regulat!H60 -> 0 | I62: =Regulat!I60 -> 0 | J62: =Regulat!J60 -> 0 | K62: =Regulat!K60 -> 0 | L62: =Regulat!L60 -> 28423828.76 | M62: =Regulat!M60 -> 0 | N62: =Regulat!N60 -> 0 | O62: =Regulat!O60 -> 0
A63: ENF | B63: Operating Costs (CO3) | C63: =Regulat!C61 -> 22334427.94 | D63: =Regulat!D61 -> 0 | E63: =Regulat!E61 -> 0 | F63: =Regulat!F61 -> 0 | G63: =Regulat!G61 -> 25960692.84 | H63: =Regulat!H61 -> 0 | I63: =Regulat!I61 -> 0 | J63: =Regulat!J61 -> 0 | K63: =Regulat!K61 -> 0 | L63: =Regulat!L61 -> 28423828.76 | M63: =Regulat!M61 -> 0 | N63: =Regulat!N61 -> 0 | O63: =Regulat!O61 -> 0
A64: ENF | B64: Delinquency - Sector Charges (Vi) | C64: =Regulat!C62 -> 34328.52295 | D64: =Regulat!D62 -> 0 | E64: =Regulat!E62 -> 0 | F64: =Regulat!F62 -> 0 | G64: =Regulat!G62 -> 50648.74279 | H64: =Regulat!H62 -> 0 | I64: =Regulat!I62 -> 0 | J64: =Regulat!J62 -> 0 | K64: =Regulat!K62 -> 0 | L64: =Regulat!L62 -> 0 | M64: =Regulat!M62 -> 0 | N64: =Regulat!N62 -> 0 | O64: =Regulat!O62 -> 0
A65: ENF | B65: Delinquency - Others (Vse) | C65: =Regulat!C63 -> 165428.5084 | D65: =Regulat!D63 -> 0 | E65: =Regulat!E63 -> 0 | F65: =Regulat!F63 -> 0 | G65: =Regulat!G63 -> 107522.0492 | H65: =Regulat!H63 -> 0 | I65: =Regulat!I63 -> 0 | J65: =Regulat!J63 -> 0 | K65: =Regulat!K63 -> 0 | L65: =Regulat!L63 -> 0 | M65: =Regulat!M63 -> 0 | N65: =Regulat!N63 -> 0 | O65: =Regulat!O63 -> 0
A66: ENF | B66: Annual Asset Costs (CAA) | C66: =Regulat!C64 -> 14876480.97 | D66: =Regulat!D64 -> 0 | E66: =Regulat!E64 -> 0 | F66: =Regulat!F64 -> 0 | G66: =Regulat!G64 -> 22379246.32 | H66: =Regulat!H64 -> 0 | I66: =Regulat!I64 -> 0 | J66: =Regulat!J64 -> 0 | K66: =Regulat!K64 -> 0 | L66: =Regulat!L64 -> 27068337.72 | M66: =Regulat!M64 -> 0 | N66: =Regulat!N64 -> 0 | O66: =Regulat!O64 -> 0
A67: ENF | B67: Capital Remuneration (RC) | C67: =Regulat!C65 -> 7863298.749 | D67: =Regulat!D65 -> 0 | E67: =Regulat!E65 -> 0 | F67: =Regulat!F65 -> 0 | G67: =Regulat!G65 -> 11886837.96 | H67: =Regulat!H65 -> 0 | I67: =Regulat!I65 -> 0 | J67: =Regulat!J65 -> 0 | K67: =Regulat!K65 -> 0 | L67: =Regulat!L65 -> 13424061.74 | M67: =Regulat!M65 -> 0 | N67: =Regulat!N65 -> 0 | O67: =Regulat!O65 -> 0
A68: ENF | B68: Regulatory Depreciation (QRR) | C68: =Regulat!C66 -> 4554786.397 | D68: =Regulat!D66 -> 0 | E68: =Regulat!E66 -> 0 | F68: =Regulat!F66 -> 0 | G68: =Regulat!G66 -> 6344710.781 | H68: =Regulat!H66 -> 0 | I68: =Regulat!I66 -> 0 | J68: =Regulat!J66 -> 0 | K68: =Regulat!K66 -> 0 | L68: =Regulat!L66 -> 8213643.459 | M68: =Regulat!M66 -> 0 | N68: =Regulat!N66 -> 0 | O68: =Regulat!O66 -> 0
A69: ENF | B69: Annual Costs for Fleet and Real State (CAIMI) | C69: =Regulat!C67 -> 2458395.823 | D69: =Regulat!D67 -> 0 | E69: =Regulat!E67 -> 0 | F69: =Regulat!F67 -> 0 | G69: =Regulat!G67 -> 4147697.583 | H69: =Regulat!H67 -> 0 | I69: =Regulat!I67 -> 0 | J69: =Regulat!J67 -> 0 | K69: =Regulat!K67 -> 0 | L69: =Regulat!L67 -> 5430632.524 | M69: =Regulat!M67 -> 0 | N69: =Regulat!N67 -> 0 | O69: =Regulat!O67 -> 0
A70: ENF | B70: Parcel B (VPB) | C70: =Regulat!C68 -> 37410665.94 | D70: =Regulat!D68 -> 0 | E70: =Regulat!E68 -> 0 | F70: =Regulat!F68 -> 0 | G70: =Regulat!G68 -> 48498109.95 | H70: =Regulat!H68 -> 0 | I70: =Regulat!I68 -> 0 | J70: =Regulat!J68 -> 0 | K70: =Regulat!K68 -> 0 | L70: =Regulat!L68 -> 55492166.48 | M70: =Regulat!M68 -> 0 | N70: =Regulat!N68 -> 0 | O70: =Regulat!O68 -> 0
A71: ENF | B71: Parcel B with Market and Quality Adjustment | C71: =Regulat!C69 -> 37047336.89 | D71: =Regulat!D69 -> 0 | E71: =Regulat!E69 -> 0 | F71: =Regulat!F69 -> 0 | G71: =Regulat!G69 -> 48158032.91 | H71: =Regulat!H69 -> 0 | I71: =Regulat!I69 -> 0 | J71: =Regulat!J69 -> 0 | K71: =Regulat!K69 -> 0 | L71: =Regulat!L69 -> 54977854.92 | M71: =Regulat!M69 -> 0 | N71: =Regulat!N69 -> 0 | O71: =Regulat!O69 -> 0
A72: ENF | B72: Other Revenues | C72: =Regulat!C70 -> 1572448.905 | D72: =Regulat!D70 -> 0 | E72: =Regulat!E70 -> 0 | F72: =Regulat!F70 -> 0 | G72: =Regulat!G70 -> 1928234.398 | H72: =Regulat!H70 -> 0 | I72: =Regulat!I70 -> 0 | J72: =Regulat!J70 -> 0 | K72: =Regulat!K70 -> 0 | L72: =Regulat!L70 -> 2490451.057 | M72: =Regulat!M70 -> 0 | N72: =Regulat!N70 -> 0 | O72: =Regulat!O70 -> 0
A73: ENF | B73: Parcel B with Adjustments | C73: =Regulat!C71 -> 0 | D73: =Regulat!D71 -> 0 | E73: =Regulat!E71 -> 0 | F73: =Regulat!F71 -> 0 | G73: =Regulat!G71 -> 0 | H73: =Regulat!H71 -> 0 | I73: =Regulat!I71 -> 0 | J73: =Regulat!J71 -> 0 | K73: =Regulat!K71 -> 0 | L73: =Regulat!L71 -> 545181.9274 | M73: =Regulat!M71 -> 0 | N73: =Regulat!N71 -> 0 | O73: =Regulat!O71 -> 0
A74: ENF | C74: =Regulat!C72 -> 0 | D74: =Regulat!D72 -> 0 | E74: =Regulat!E72 -> 0 | F74: =Regulat!F72 -> 0 | G74: =Regulat!G72 -> 0 | H74: =Regulat!H72 -> 0 | I74: =Regulat!I72 -> 0 | J74: =Regulat!J72 -> 0 | K74: =Regulat!K72 -> 0 | L74: =Regulat!L72 -> 0 | M74: =Regulat!M72 -> 0 | N74: =Regulat!N72 -> 0 | O74: =Regulat!O72 -> 0
A75: ENF | C75: =Regulat!C73 -> 35474887.99 | D75: =Regulat!D73 -> 0 | E75: =Regulat!E73 -> 0 | F75: =Regulat!F73 -> 0 | G75: =Regulat!G73 -> 46229798.51 | H75: =Regulat!H73 -> 0 | I75: =Regulat!I73 -> 0 | J75: =Regulat!J73 -> 0 | K75: =Regulat!K73 -> 0 | L75: =Regulat!L73 -> 51942221.94 | M75: =Regulat!M73 -> 0 | N75: =Regulat!N73 -> 0 | O75: =Regulat!O73 -> 0
A76: ENF
A77: ENF | B77: Factor X | C77: =Regulat!C75 -> 0.009711910662 | D77: =Regulat!D75 -> -0.0003 | E77: =Regulat!E75 -> -0.0002880893384 | F77: =Regulat!F75 -> 0.003311910662 | G77: =Regulat!G75 -> 0.007012171065 | H77: =Regulat!H75 -> 0.01225846685 | I77: =Regulat!I75 -> 0.002930418902 | J77: =Regulat!J75 -> 0.01289895466 | K77: =Regulat!K75 -> 0 | L77: =Regulat!L75 -> 0.009268183052 | M77: =Regulat!M75 -> -0.0114851103 | N77: =Regulat!N75 -> -0.001204402585 | O77: =Regulat!O75 -> 0
A78: ENF | B78: Component Pd | C78: =Regulat!C76 -> 0.009711910662 | D78: =Regulat!D76 -> 0.009711910662 | E78: =Regulat!E76 -> 0.009711910662 | F78: =Regulat!F76 -> 0.009711910662 | G78: =Regulat!G76 -> 0.009678719905 | H78: =Regulat!H76 -> 0.0097 | I78: =Regulat!I76 -> 0.0097 | J78: =Regulat!J76 -> 0.0097 | K78: =Regulat!K76 -> 0 | L78: =Regulat!L76 -> 0.003700265159 | M78: =Regulat!M76 -> 0.002478342771 | N78: =Regulat!N76 -> -1.276958943e-05 | O78: =Regulat!O76 -> 0
A79: ENF | B79: Component T | C79: =Regulat!C77 -> 0 | D79: =Regulat!D77 -> 0 | E79: =Regulat!E77 -> 0 | F79: =Regulat!F77 -> 0 | G79: =Regulat!G77 -> 0 | H79: =Regulat!H77 -> 0 | I79: =Regulat!I77 -> 0 | J79: =Regulat!J77 -> 0 | K79: =Regulat!K77 -> 0 | L79: =Regulat!L77 -> 0 | M79: =Regulat!M77 -> -0.0057 | N79: =Regulat!N77 -> -0.0057 | O79: =Regulat!O77 -> 0
A80: ENF | B80: Component Q | C80: =Regulat!C78 -> 0 | D80: =Regulat!D78 -> -0.01001191066 | E80: =Regulat!E78 -> -0.01 | F80: =Regulat!F78 -> -0.0064 | G80: =Regulat!G78 -> -0.002666548841 | H80: =Regulat!H78 -> 0.002558466852 | I80: =Regulat!I78 -> -0.006769581098 | J80: =Regulat!J78 -> 0.003198954657 | K80: =Regulat!K78 -> 0 | L80: =Regulat!L78 -> 0.005567917893 | M80: =Regulat!M78 -> -0.00826345307 | N80: =Regulat!N78 -> 0.004508367004 | O80: =Regulat!O78 -> 0
A81: ENF
A82: ENF | B82: VPB | C82: =Regulat!C80 -> 37410665.94 | D82: =Regulat!D80 -> 0 | E82: =Regulat!E80 -> 0 | F82: =Regulat!F80 -> 0 | G82: =Regulat!G80 -> 48498109.95 | H82: =Regulat!H80 -> 0 | I82: =Regulat!I80 -> 0 | J82: =Regulat!J80 -> 0 | K82: =Regulat!K80 -> 0 | L82: =Regulat!L80 -> 55492166.48 | M82: =Regulat!M80 -> 0 | N82: =Regulat!N80 -> 0 | O82: =Regulat!O80 -> 0
A83: ENF
A84: ENF | B84: Required Revenue | C84: =Regulat!C82 -> 41078 | D84: =Regulat!D82 -> 41443 | E84: =Regulat!E82 -> 41808 | F84: =Regulat!F82 -> 42173 | G84: =Regulat!G82 -> 42543 | H84: =Regulat!H82 -> 42908 | I84: =Regulat!I82 -> 43273 | J84: =Regulat!J82 -> 43638 | K84: =Regulat!K82 -> 44004 | L84: =Regulat!L82 -> 44369 | M84: =Regulat!M82 -> 44734 | N84: =Regulat!N82 -> 45099 | O84: =Regulat!O82 -> 0
A85: ENF | B85: Operating Costs (CO3) | C85: =Regulat!C83 -> 22117517.97 | D85: =Regulat!D83 -> 23613192.51 | E85: =Regulat!E83 -> 26880320.16 | F85: =Regulat!F83 -> 27502050.08 | G85: =Regulat!G83 -> 25778652.02 | H85: =Regulat!H83 -> 26013627.08 | I85: =Regulat!I83 -> 26804633.47 | J85: =Regulat!J83 -> 27692862.81 | K85: =Regulat!K83 -> 0 | L85: =Regulat!L83 -> 28160391.51 | M85: =Regulat!M83 -> 31594129.17 | N85: =Regulat!N83 -> 33110474 | O85: =Regulat!O83 -> 0
A86: ENF | B86: Delinquency - Sector Charges (Vi) | C86: =Regulat!C84 -> 33995.1274 | D86: =Regulat!D84 -> 36294.01314 | E86: =Regulat!E84 -> 41315.66253 | F86: =Regulat!F84 -> 42271.27554 | G86: =Regulat!G84 -> 50293.58514 | H86: =Regulat!H84 -> 0 | I86: =Regulat!I84 -> 0 | J86: =Regulat!J84 -> 0 | K86: =Regulat!K84 -> 0 | L86: =Regulat!L84 -> 0 | M86: =Regulat!M84 -> 0 | N86: =Regulat!N84 -> 0 | O86: =Regulat!O84 -> 0
A87: ENF | B87: Delinquency - Others (Vse) | C87: =Regulat!C85 -> 163821.8815 | D87: =Regulat!D85 -> 174900.1688 | E87: =Regulat!E85 -> 199099.403 | F87: =Regulat!F85 -> 203704.4842 | G87: =Regulat!G85 -> 106768.0862 | H87: =Regulat!H85 -> 0 | I87: =Regulat!I85 -> 0 | J87: =Regulat!J85 -> 0 | K87: =Regulat!K85 -> 0 | L87: =Regulat!L85 -> 0 | M87: =Regulat!M85 -> 0 | N87: =Regulat!N85 -> 0 | O87: =Regulat!O85 -> 0
A88: ENF | B88: Capital Remuneration (RC) | C88: =Regulat!C86 -> 7786931.094 | D88: =Regulat!D86 -> 8313514.35 | E88: =Regulat!E86 -> 9463774.423 | F88: =Regulat!F86 -> 9682667.344 | G88: =Regulat!G86 -> 11803485.42 | H88: =Regulat!H86 -> 11911075.4 | I88: =Regulat!I86 -> 12273260.06 | J88: =Regulat!J86 -> 12679961 | K88: =Regulat!K86 -> 0 | L88: =Regulat!L86 -> 13299645.08 | M88: =Regulat!M86 -> 14775135.97 | N88: =Regulat!N86 -> 15320522.91 | O88: =Regulat!O86 -> 0
A89: ENF | B89: Regulatory Depreciation (QRR) | C89: =Regulat!C87 -> 4510550.718 | D89: =Regulat!D87 -> 4815572.1 | E89: =Regulat!E87 -> 5481855.946 | F89: =Regulat!F87 -> 5608648.852 | G89: =Regulat!G87 -> 6300220.583 | H89: =Regulat!H87 -> 6357647.74 | I89: =Regulat!I87 -> 6550967.186 | J89: =Regulat!J87 -> 6768047.612 | K89: =Regulat!K87 -> 0 | L89: =Regulat!L87 -> 8137517.908 | M89: =Regulat!M87 -> 9040311.44 | N89: =Regulat!N87 -> 9374011.774 | O89: =Regulat!O87 -> 0
A90: ENF | B90: Annual Costs for Fleet and Real State (CAIMI) | C90: =Regulat!C88 -> 2434520.103 | D90: =Regulat!D88 -> 2599152.036 | E90: =Regulat!E88 -> 2958771.408 | F90: =Regulat!F88 -> 3027206.484 | G90: =Regulat!G88 -> 4118613.218 | H90: =Regulat!H88 -> 4156154.799 | I90: =Regulat!I88 -> 4282532.601 | J90: =Regulat!J88 -> 4424443.554 | K90: =Regulat!K88 -> 0 | L90: =Regulat!L88 -> 5380300.428 | M90: =Regulat!M88 -> 5977202.392 | N90: =Regulat!N88 -> 6197835.769 | O90: =Regulat!O88 -> 0
A91: ENF | B91: Other Revenues | C91: =Regulat!C89 -> -1572448.905 | D91: =Regulat!D89 -> -1678784.155 | E91: =Regulat!E89 -> -1911061.181 | F91: =Regulat!F89 -> -1955263.181 | G91: =Regulat!G89 -> -1928234.398 | H91: =Regulat!H89 -> -2627596.214 | I91: =Regulat!I89 -> -2316714.979 | J91: =Regulat!J89 -> -2550169.232 | K91: =Regulat!K89 -> 0 | L91: =Regulat!L89 -> -2490451.057 | M91: =Regulat!M89 -> -4063228.365 | N91: =Regulat!N89 -> -5271829.395 | O91: =Regulat!O89 -> 0
A92: ENF | B92: Excess Demand and Excess Power Factor | C92: =Regulat!C90 -> 0 | D92: =Regulat!D90 -> 0 | E92: =Regulat!E90 -> 0 | F92: =Regulat!F90 -> 0 | G92: =Regulat!G90 -> 0 | H92: =Regulat!H90 -> -81477.87338 | I92: =Regulat!I90 -> -350525.523 | J92: =Regulat!J90 -> -427787.1475 | K92: =Regulat!K90 -> 0 | L92: =Regulat!L90 -> -545181.9274 | M92: =Regulat!M90 -> -522672.0314 | N92: =Regulat!N90 -> -564153.7699 | O92: =Regulat!O90 -> 0
A93: ENF | B93: =Regulat!B91 -> ONS | C93: =Regulat!C91 -> 0 | D93: =Regulat!D91 -> 0 | E93: =Regulat!E91 -> 0 | F93: =Regulat!F91 -> 0 | G93: =Regulat!G91 -> 0 | H93: =Regulat!H91 -> 0 | I93: =Regulat!I91 -> 0 | J93: =Regulat!J91 -> 0 | K93: =Regulat!K91 -> 0 | L93: =Regulat!L91 -> 0 | M93: =Regulat!M91 -> 0 | N93: =Regulat!N91 -> 0 | O93: =Regulat!O91 -> 0
A94: ENF | C94: =Regulat!C92 -> 0 | D94: =Regulat!D92 -> 0 | E94: =Regulat!E92 -> 0 | F94: =Regulat!F92 -> 0 | G94: =Regulat!G92 -> 0 | H94: =Regulat!H92 -> 0.004332914948 | I94: =Regulat!I92 -> 0.00446465984 | J94: =Regulat!J92 -> 0.004612606019 | K94: =Regulat!K92 -> 0 | L94: =Regulat!L92 -> 0 | M94: =Regulat!M92 -> -82399.73398 | N94: =Regulat!N92 -> -85441.31268 | O94: =Regulat!O92 -> 0
A95: ENF | B95: VPB | C95: =Regulat!C93 -> 35474887.99 | D95: =Regulat!D93 -> 37873841.02 | E95: =Regulat!E93 -> 43114075.82 | F95: =Regulat!F93 -> 44111285.34 | G95: =Regulat!G93 -> 46229798.51 | H95: =Regulat!H93 -> 45729430.93 | I95: =Regulat!I93 -> 47244152.82 | J95: =Regulat!J93 -> 48587358.6 | K95: =Regulat!K93 -> 0 | L95: =Regulat!L93 -> 51942221.94 | M95: =Regulat!M93 -> 56718478.84 | N95: =Regulat!N93 -> 58081419.97 | O95: =Regulat!O93 -> 0
A96: ENF
A97: ENF | B97: Required Revenue - % | C97: =Regulat!C95 -> 41078 | D97: =Regulat!D95 -> 41443 | E97: =Regulat!E95 -> 41808 | F97: =Regulat!F95 -> 42173 | G97: =Regulat!G95 -> 42543 | H97: =Regulat!H95 -> 42908 | I97: =Regulat!I95 -> 43273 | J97: =Regulat!J95 -> 43638 | K97: =Regulat!K95 -> 44004 | L97: =Regulat!L95 -> 44369 | M97: =Regulat!M95 -> 44734 | N97: =Regulat!N95 -> 45099 | O97: =Regulat!O95 -> 0
A98: ENF | B98: Operating Costs (CO3) | C98: =Regulat!C96 -> 0.6234697056 | D98: =Regulat!D96 -> 0.6234697056 | E98: =Regulat!E96 -> 0.6234697056 | F98: =Regulat!F96 -> 0.6234697056 | G98: =Regulat!G96 -> 0.5576198221 | H98: =Regulat!H96 -> 0.5688596282 | I98: =Regulat!I96 -> 0.5673640413 | J98: =Regulat!J96 -> 0.5699602449 | K98: =Regulat!K96 -> 0 | L98: =Regulat!L96 -> 0.5421483806 | M98: =Regulat!M96 -> 0.5570341415 | N98: =Regulat!N96 -> 0.5700699813 | O98: =Regulat!O96 -> 0
A99: ENF | B99: Delinquency - Sector Charges (Vi) | C99: =Regulat!C97 -> 0.0009582870963 | D99: =Regulat!D97 -> 0.0009582870963 | E99: =Regulat!E97 -> 0.0009582870963 | F99: =Regulat!F97 -> 0.0009582870963 | G99: =Regulat!G97 -> 0.001087904052 | H99: =Regulat!H97 -> 0 | I99: =Regulat!I97 -> 0 | J99: =Regulat!J97 -> 0 | K99: =Regulat!K97 -> 0 | L99: =Regulat!L97 -> 0 | M99: =Regulat!M97 -> 0 | N99: =Regulat!N97 -> 0 | O99: =Regulat!O97 -> 0
A100: ENF | B100: Delinquency - Others (Vse) | C100: =Regulat!C98 -> 0.004617967548 | D100: =Regulat!D98 -> 0.004617967548 | E100: =Regulat!E98 -> 0.004617967548 | F100: =Regulat!F98 -> 0.004617967548 | G100: =Regulat!G98 -> 0.002309507929 | H100: =Regulat!H98 -> 0 | I100: =Regulat!I98 -> 0 | J100: =Regulat!J98 -> 0 | K100: =Regulat!K98 -> 0 | L100: =Regulat!L98 -> 0 | M100: =Regulat!M98 -> 0 | N100: =Regulat!N98 -> 0 | O100: =Regulat!O98 -> 0
A101: ENF | B101: Capital Remuneration (RC) | C101: =Regulat!C99 -> 0.2195054456 | D101: =Regulat!D99 -> 0.2195054456 | E101: =Regulat!E99 -> 0.2195054456 | F101: =Regulat!F99 -> 0.2195054456 | G101: =Regulat!G99 -> 0.2553220173 | H101: =Regulat!H99 -> 0.2604684807 | I101: =Regulat!I99 -> 0.2597836839 | J101: =Regulat!J99 -> 0.2609724292 | K101: =Regulat!K99 -> 0 | L101: =Regulat!L99 -> 0.2560469033 | M101: =Regulat!M99 -> 0.2604995104 | N101: =Regulat!N99 -> 0.263776659 | O101: =Regulat!O99 -> 0
A102: ENF | B102: Regulatory Depreciation (QRR) | C102: =Regulat!C100 -> 0.1271477085 | D102: =Regulat!D100 -> 0.1271477085 | E102: =Regulat!E100 -> 0.1271477085 | F102: =Regulat!F100 -> 0.1271477085 | G102: =Regulat!G100 -> 0.1362805114 | H102: =Regulat!H100 -> 0.1390274843 | I102: =Regulat!I100 -> 0.1386619676 | J102: =Regulat!J100 -> 0.1392964715 | K102: =Regulat!K100 -> 0 | L102: =Regulat!L100 -> 0.1566648019 | M102: =Regulat!M100 -> 0.1593891731 | N102: =Regulat!N100 -> 0.1613943285 | O102: =Regulat!O100 -> 0
A103: ENF | B103: Annual Costs for Fleet and Real State (CAIMI) | C103: =Regulat!C101 -> 0.06862657617 | D103: =Regulat!D101 -> 0.06862657617 | E103: =Regulat!E101 -> 0.06862657617 | F103: =Regulat!F101 -> 0.06862657617 | G103: =Regulat!G101 -> 0.08909001012 | H103: =Regulat!H101 -> 0.09088577563 | I103: =Regulat!I101 -> 0.09064682814 | J103: =Regulat!J101 -> 0.09106161936 | K103: =Regulat!K101 -> 0 | L103: =Regulat!L101 -> 0.1035824081 | M103: =Regulat!M101 -> 0.1053836865 | N103: =Regulat!N101 -> 0.1067094395 | O103: =Regulat!O101 -> 0
A104: ENF | B104: Other Revenues | C104: =Regulat!C102 -> -0.0443256905 | D104: =Regulat!D102 -> -0.0443256905 | E104: =Regulat!E102 -> -0.0443256905 | F104: =Regulat!F102 -> -0.0443256905 | G104: =Regulat!G102 -> -0.04170977291 | H104: =Regulat!H102 -> -0.05745963071 | I104: =Regulat!I102 -> -0.04903707318 | J104: =Regulat!J102 -> -0.05248627021 | K104: =Regulat!K102 -> 0 | L104: =Regulat!L102 -> -0.04794656378 | M104: =Regulat!M102 -> -0.07163852854 | N104: =Regulat!N102 -> -0.09076619334 | O104: =Regulat!O102 -> 0
A105: ENF | B105: Excess Demand and Excess Power Factor | C105: =Regulat!C103 -> 0 | D105: =Regulat!D103 -> 0 | E105: =Regulat!E103 -> 0 | F105: =Regulat!F103 -> 0 | G105: =Regulat!G103 -> 0 | H105: =Regulat!H103 -> -0.001781738187 | I105: =Regulat!I103 -> -0.007419447742 | J105: =Regulat!J103 -> -0.008804494829 | K105: =Regulat!K103 -> 0 | L105: =Regulat!L103 -> -0.01049593004 | M105: =Regulat!M103 -> -0.009215198329 | N105: =Regulat!N103 -> -0.009713153883 | O105: =Regulat!O103 -> 0
A106: ENF | B106: =Regulat!B104 -> ONS | C106: =Regulat!C104 -> 0 | D106: =Regulat!D104 -> 0 | E106: =Regulat!E104 -> 0 | F106: =Regulat!F104 -> 0 | G106: =Regulat!G104 -> 0 | H106: =Regulat!H104 -> 0 | I106: =Regulat!I104 -> 0 | J106: =Regulat!J104 -> 0 | K106: =Regulat!K104 -> 0 | L106: =Regulat!L104 -> 0 | M106: =Regulat!M104 -> 0 | N106: =Regulat!N104 -> 0 | O106: =Regulat!O104 -> 0
A107: ENF | C107: =Regulat!C105 -> 0 | D107: =Regulat!D105 -> 0 | E107: =Regulat!E105 -> 0 | F107: =Regulat!F105 -> 0 | G107: =Regulat!G105 -> 0 | H107: =Regulat!H105 -> 9.47511233e-11 | I107: =Regulat!I105 -> 9.450184994e-11 | J107: =Regulat!J105 -> 9.493428233e-11 | K107: =Regulat!K105 -> 0 | L107: =Regulat!L105 -> 0 | M107: =Regulat!M105 -> -0.001452784624 | N107: =Regulat!N105 -> -0.001471061016 | O107: =Regulat!O105 -> 0
A108: ENF | B108: VPB | C108: =Regulat!C106 -> 1 | D108: =Regulat!D106 -> 1 | E108: =Regulat!E106 -> 1 | F108: =Regulat!F106 -> 1 | G108: =Regulat!G106 -> 1 | H108: =Regulat!H106 -> 1 | I108: =Regulat!I106 -> 1 | J108: =Regulat!J106 -> 1 | K108: =Regulat!K106 -> 0 | L108: =Regulat!L106 -> 1 | M108: =Regulat!M106 -> 1 | N108: =Regulat!N106 -> 1 | O108: =Regulat!O106 -> 0
A109: ENF
A110: ESE | B110: ESE
A111: ESE
A112: ESE | B112: ESE | C112: =Regulat!C110 -> 0 | D112: =Regulat!D110 -> 41386 | E112: =Regulat!E110 -> 41751 | F112: =Regulat!F110 -> 42116 | G112: =Regulat!G110 -> 42482 | H112: =Regulat!H110 -> 42847 | I112: =Regulat!I110 -> 43212 | J112: =Regulat!J110 -> 43577 | K112: =Regulat!K110 -> 43943 | L112: =Regulat!L110 -> 44308 | M112: =Regulat!M110 -> 44673 | N112: =Regulat!N110 -> 45038 | O112: =Regulat!O110 -> 45404
A113: ESE | B113: Administration, Operating and Maintenance Costs (CAOM) | C113: =Regulat!C111 -> 0 | D113: =Regulat!D111 -> 166266044.1 | E113: =Regulat!E111 -> 0 | F113: =Regulat!F111 -> 0 | G113: =Regulat!G111 -> 0 | H113: =Regulat!H111 -> 0 | I113: =Regulat!I111 -> 219343365.4 | J113: =Regulat!J111 -> 0 | K113: =Regulat!K111 -> 0 | L113: =Regulat!L111 -> 0 | M113: =Regulat!M111 -> 0 | N113: =Regulat!N111 -> 329676098.8 | O113: =Regulat!O111 -> 0
A114: ESE | B114: Operating Costs (CO3) | C114: =Regulat!C112 -> 0 | D114: =Regulat!D112 -> 159408691.3 | E114: =Regulat!E112 -> 0 | F114: =Regulat!F112 -> 0 | G114: =Regulat!G112 -> 0 | H114: =Regulat!H112 -> 0 | I114: =Regulat!I112 -> 210183655.9 | J114: =Regulat!J112 -> 0 | K114: =Regulat!K112 -> 0 | L114: =Regulat!L112 -> 0 | M114: =Regulat!M112 -> 0 | N114: =Regulat!N112 -> 312722803 | O114: =Regulat!O112 -> 0
A115: ESE | B115: Delinquency - Sector Charges (Vi) | C115: =Regulat!C113 -> 0 | D115: =Regulat!D113 -> 284521.0707 | E115: =Regulat!E113 -> 0 | F115: =Regulat!F113 -> 0 | G115: =Regulat!G113 -> 0 | H115: =Regulat!H113 -> 0 | I115: =Regulat!I113 -> 575495.7452 | J115: =Regulat!J113 -> 0 | K115: =Regulat!K113 -> 0 | L115: =Regulat!L113 -> 0 | M115: =Regulat!M113 -> 0 | N115: =Regulat!N113 -> 1173325.268 | O115: =Regulat!O113 -> 0
A116: ESE | B116: Delinquency - Others (Vse) | C116: =Regulat!C114 -> 0 | D116: =Regulat!D114 -> 6572831.679 | E116: =Regulat!E114 -> 0 | F116: =Regulat!F114 -> 0 | G116: =Regulat!G114 -> 0 | H116: =Regulat!H114 -> 0 | I116: =Regulat!I114 -> 8584213.707 | J116: =Regulat!J114 -> 0 | K116: =Regulat!K114 -> 0 | L116: =Regulat!L114 -> 0 | M116: =Regulat!M114 -> 0 | N116: =Regulat!N114 -> 15779970.57 | O116: =Regulat!O114 -> 0
A117: ESE | B117: Annual Asset Costs (CAA) | C117: =Regulat!C115 -> 0 | D117: =Regulat!D115 -> 101119682.8 | E117: =Regulat!E115 -> 0 | F117: =Regulat!F115 -> 0 | G117: =Regulat!G115 -> 0 | H117: =Regulat!H115 -> 0 | I117: =Regulat!I115 -> 184282785.5 | J117: =Regulat!J115 -> 0 | K117: =Regulat!K115 -> 0 | L117: =Regulat!L115 -> 0 | M117: =Regulat!M115 -> 0 | N117: =Regulat!N115 -> 282236755.3 | O117: =Regulat!O115 -> 0
A118: ESE | B118: Capital Remuneration (RC) | C118: =Regulat!C116 -> 0 | D118: =Regulat!D116 -> 54261931.61 | E118: =Regulat!E116 -> 0 | F118: =Regulat!F116 -> 0 | G118: =Regulat!G116 -> 0 | H118: =Regulat!H116 -> 0 | I118: =Regulat!I116 -> 105618602 | J118: =Regulat!J116 -> 0 | K118: =Regulat!K116 -> 0 | L118: =Regulat!L116 -> 0 | M118: =Regulat!M116 -> 0 | N118: =Regulat!N116 -> 159255239 | O118: =Regulat!O116 -> 0
A119: ESE | B119: Regulatory Depreciation (QRR) | C119: =Regulat!C117 -> 0 | D119: =Regulat!D117 -> 33015057.03 | E119: =Regulat!E117 -> 0 | F119: =Regulat!F117 -> 0 | G119: =Regulat!G117 -> 0 | H119: =Regulat!H117 -> 0 | I119: =Regulat!I117 -> 49318515.6 | J119: =Regulat!J117 -> 0 | K119: =Regulat!K117 -> 0 | L119: =Regulat!L117 -> 0 | M119: =Regulat!M117 -> 0 | N119: =Regulat!N117 -> 80356169.59 | O119: =Regulat!O117 -> 0
A120: ESE | B120: Annual Costs for Fleet and Real State (CAIMI) | C120: =Regulat!C118 -> 0 | D120: =Regulat!D118 -> 13842694.19 | E120: =Regulat!E118 -> 0 | F120: =Regulat!F118 -> 0 | G120: =Regulat!G118 -> 0 | H120: =Regulat!H118 -> 0 | I120: =Regulat!I118 -> 29345667.88 | J120: =Regulat!J118 -> 0 | K120: =Regulat!K118 -> 0 | L120: =Regulat!L118 -> 0 | M120: =Regulat!M118 -> 0 | N120: =Regulat!N118 -> 42625346.72 | O120: =Regulat!O118 -> 0
A121: ESE | B121: Parcel B (VPB) | C121: =Regulat!C119 -> 0 | D121: =Regulat!D119 -> 267385726.9 | E121: =Regulat!E119 -> 0 | F121: =Regulat!F119 -> 0 | G121: =Regulat!G119 -> 0 | H121: =Regulat!H119 -> 0 | I121: =Regulat!I119 -> 403626150.9 | J121: =Regulat!J119 -> 0 | K121: =Regulat!K119 -> 0 | L121: =Regulat!L119 -> 0 | M121: =Regulat!M119 -> 0 | N121: =Regulat!N119 -> 611912854.1 | O121: =Regulat!O119 -> 0
A122: ESE | B122: Parcel B with Market and Quality Adjustment | C122: =Regulat!C120 -> 0 | D122: =Regulat!D120 -> 263087843.6 | E122: =Regulat!E120 -> 0 | F122: =Regulat!F120 -> 0 | G122: =Regulat!G120 -> 0 | H122: =Regulat!H120 -> 0 | I122: =Regulat!I120 -> 399490064.2 | J122: =Regulat!J120 -> 0 | K122: =Regulat!K120 -> 0 | L122: =Regulat!L120 -> 0 | M122: =Regulat!M120 -> 0 | N122: =Regulat!N120 -> 626118459.3 | O122: =Regulat!O120 -> 0
A123: ESE | C123: =Regulat!C121 -> 0 | D123: =Regulat!D121 -> 3235950.231 | E123: =Regulat!E121 -> 0 | F123: =Regulat!F121 -> 0 | G123: =Regulat!G121 -> 0 | H123: =Regulat!H121 -> 0 | I123: =Regulat!I121 -> 5085909.108 | J123: =Regulat!J121 -> 0 | K123: =Regulat!K121 -> 0 | L123: =Regulat!L121 -> 0 | M123: =Regulat!M121 -> 0 | N123: =Regulat!N121 -> 12435033.79 | O123: =Regulat!O121 -> 0
A124: ESE | C124: =Regulat!C122 -> 0 | D124: =Regulat!D122 -> 0 | E124: =Regulat!E122 -> 0 | F124: =Regulat!F122 -> 0 | G124: =Regulat!G122 -> 0 | H124: =Regulat!H122 -> 0 | I124: =Regulat!I122 -> 0 | J124: =Regulat!J122 -> 0 | K124: =Regulat!K122 -> 0 | L124: =Regulat!L122 -> 0 | M124: =Regulat!M122 -> 0 | N124: =Regulat!N122 -> 930318.9366 | O124: =Regulat!O122 -> 0
A125: ESE | B125: Other Revenues | C125: =Regulat!C123 -> 0 | D125: =Regulat!D123 -> 0 | E125: =Regulat!E123 -> 0 | F125: =Regulat!F123 -> 0 | G125: =Regulat!G123 -> 0 | H125: =Regulat!H123 -> 0 | I125: =Regulat!I123 -> 0 | J125: =Regulat!J123 -> 0 | K125: =Regulat!K123 -> 0 | L125: =Regulat!L123 -> 0 | M125: =Regulat!M123 -> 0 | N125: =Regulat!N123 -> 0 | O125: =Regulat!O123 -> 0
A126: ESE | B126: Parcel B with Adjustments | C126: =Regulat!C124 -> 0 | D126: =Regulat!D124 -> 259851893.4 | E126: =Regulat!E124 -> 0 | F126: =Regulat!F124 -> 0 | G126: =Regulat!G124 -> 0 | H126: =Regulat!H124 -> 0 | I126: =Regulat!I124 -> 394404155.1 | J126: =Regulat!J124 -> 0 | K126: =Regulat!K124 -> 0 | L126: =Regulat!L124 -> 0 | M126: =Regulat!M124 -> 0 | N126: =Regulat!N124 -> 612753106.5 | O126: =Regulat!O124 -> 0
A127: ESE
A128: ESE | B128: Factor X | C128: =Regulat!C126 -> 0 | D128: =Regulat!D126 -> 0.02405950635 | E128: =Regulat!E126 -> 0.01765950635 | F128: =Regulat!F126 -> 0.02405950635 | G128: =Regulat!G126 -> 0.01765950635 | H128: =Regulat!H126 -> 0.01915950635 | I128: =Regulat!I126 -> 0.03193574428 | J128: =Regulat!J126 -> 0.02549368834 | K128: =Regulat!K126 -> 0 | L128: =Regulat!L126 -> 0.03165894888 | M128: =Regulat!M126 -> 0.03284073547 | N128: =Regulat!N126 -> 0.02185345575 | O128: =Regulat!O126 -> 0.02851222631
A129: ESE | B129: Component Pd | C129: =Regulat!C127 -> 0 | D129: =Regulat!D127 -> 0.01607372003 | E129: =Regulat!E127 -> 0.01607372003 | F129: =Regulat!F127 -> 0.01607372003 | G129: =Regulat!G127 -> 0.01607372003 | H129: =Regulat!H127 -> 0.01607372003 | I129: =Regulat!I127 -> 0.01029596792 | J129: =Regulat!J127 -> 0.01029596792 | K129: =Regulat!K127 -> 0 | L129: =Regulat!L127 -> 0.01029596792 | M129: =Regulat!M127 -> 0.01029596792 | N129: =Regulat!N127 -> 0.004225996072 | O129: =Regulat!O127 -> 0.00423
A130: ESE | B130: Component T | C130: =Regulat!C128 -> 0 | D130: =Regulat!D128 -> 0.007985786312 | E130: =Regulat!E128 -> 0.007985786312 | F130: =Regulat!F128 -> 0.007985786312 | G130: =Regulat!G128 -> 0.007985786312 | H130: =Regulat!H128 -> 0.007985786312 | I130: =Regulat!I128 -> 0.02168842337 | J130: =Regulat!J128 -> 0.02168842337 | K130: =Regulat!K128 -> 0 | L130: =Regulat!L128 -> 0.02168842337 | M130: =Regulat!M128 -> 0.02168842337 | N130: =Regulat!N128 -> 0.02632011412 | O130: =Regulat!O128 -> 0.02632
A131: ESE | B131: Component Q | C131: =Regulat!C129 -> 0 | D131: =Regulat!D129 -> 0 | E131: =Regulat!E129 -> -0.0064 | F131: =Regulat!F129 -> 0 | G131: =Regulat!G129 -> -0.0064 | H131: =Regulat!H129 -> -0.0049 | I131: =Regulat!I129 -> -4.864701219e-05 | J131: =Regulat!J129 -> -0.006490702949 | K131: =Regulat!K129 -> 0 | L131: =Regulat!L129 -> -0.000325442413 | M131: =Regulat!M129 -> 0.0008563441726 | N131: =Regulat!N129 -> -0.008692654435 | O131: =Regulat!O129 -> -0.00203777369
A132: ESE
A133: ESE | B133: VPB | C133: =Regulat!C131 -> 0 | D133: =Regulat!D131 -> 267385726.9 | E133: =Regulat!E131 -> 0 | F133: =Regulat!F131 -> 0 | G133: =Regulat!G131 -> 0 | H133: =Regulat!H131 -> 0 | I133: =Regulat!I131 -> 403626150.9 | J133: =Regulat!J131 -> 0 | K133: =Regulat!K131 -> 0 | L133: =Regulat!L131 -> 0 | M133: =Regulat!M131 -> 0 | N133: =Regulat!N131 -> 611912854.1 | O133: =Regulat!O131 -> 0
A134: ESE
A135: ESE | B135: Required Revenue | C135: =Regulat!C133 -> 0 | D135: =Regulat!D133 -> 41386 | E135: =Regulat!E133 -> 41751 | F135: =Regulat!F133 -> 42116 | G135: =Regulat!G133 -> 42482 | H135: =Regulat!H133 -> 42847 | I135: =Regulat!I133 -> 43212 | J135: =Regulat!J133 -> 43577 | K135: =Regulat!K133 -> 43943 | L135: =Regulat!L133 -> 44308 | M135: =Regulat!M133 -> 44673 | N135: =Regulat!N133 -> 45038 | O135: =Regulat!O133 -> 45404
A136: ESE | B136: Operating Costs (CO3) | C136: =Regulat!C134 -> 0 | D136: =Regulat!D134 -> 156846400.7 | E136: =Regulat!E134 -> 190097510.6 | F136: =Regulat!F134 -> 193404734.1 | G136: =Regulat!G134 -> 212588269 | H136: =Regulat!H134 -> 219810121.8 | I136: =Regulat!I134 -> 208029836.6 | J136: =Regulat!J134 -> 223198570.3 | K136: =Regulat!K134 -> 0 | L136: =Regulat!L134 -> 290326841.6 | M136: =Regulat!M134 -> 328645763.7 | N136: =Regulat!N134 -> 319982687.5 | O136: =Regulat!O134 -> 314852683.4
A137: ESE | B137: Delinquency - Sector Charges (Vi) | C137: =Regulat!C135 -> 0 | D137: =Regulat!D135 -> 279947.7587 | E137: =Regulat!E135 -> 343624.8392 | F137: =Regulat!F135 -> 354300.4154 | G137: =Regulat!G135 -> 394269.4098 | H137: =Regulat!H135 -> 413081.2184 | I137: =Regulat!I135 -> 569598.4556 | J137: =Regulat!J135 -> 635671.3892 | K137: =Regulat!K135 -> 0 | L137: =Regulat!L135 -> 891148.5142 | M137: =Regulat!M135 -> 1049455.671 | N137: =Regulat!N135 -> 1200564.107 | O137: =Regulat!O135 -> 1248015.14
A138: ESE | B138: Delinquency - Others (Vse) | C138: =Regulat!C136 -> 0 | D138: =Regulat!D136 -> 6467181.823 | E138: =Regulat!E136 -> 7938210.773 | F138: =Regulat!F136 -> 8184831.404 | G138: =Regulat!G136 -> 9108170.655 | H138: =Regulat!H136 -> 9542749.546 | I138: =Regulat!I136 -> 8496248.514 | J138: =Regulat!J136 -> 9481806.074 | K138: =Regulat!K136 -> 0 | L138: =Regulat!L136 -> 13292555.77 | M138: =Regulat!M136 -> 15653898.1 | N138: =Regulat!N136 -> 16146303.83 | O138: =Regulat!O136 -> 16784469.51
A139: ESE | B139: Capital Remuneration (RC) | C139: =Regulat!C137 -> 0 | D139: =Regulat!D137 -> 53389740.51 | E139: =Regulat!E137 -> 65533802.03 | F139: =Regulat!F137 -> 67569775.64 | G139: =Regulat!G137 -> 75192391.54 | H139: =Regulat!H137 -> 78780052.26 | I139: =Regulat!I137 -> 104536294.3 | J139: =Regulat!J137 -> 116662415 | K139: =Regulat!K137 -> 0 | L139: =Regulat!L137 -> 163549185.3 | M139: =Regulat!M137 -> 192602711.2 | N139: =Regulat!N137 -> 162952361.9 | O139: =Regulat!O137 -> 169392882.6
A140: ESE | B140: Regulatory Depreciation (QRR) | C140: =Regulat!C138 -> 0 | D140: =Regulat!D138 -> 32484382.25 | E140: =Regulat!E138 -> 39873298.78 | F140: =Regulat!F138 -> 41112063.84 | G140: =Regulat!G138 -> 45749958.05 | H140: =Regulat!H138 -> 47932829.54 | I140: =Regulat!I138 -> 48813132.95 | J140: =Regulat!J138 -> 54475414.62 | K140: =Regulat!K138 -> 0 | L140: =Regulat!L138 -> 76369151.76 | M140: =Regulat!M138 -> 89935670.76 | N140: =Regulat!N138 -> 82221644.4 | O140: =Regulat!O138 -> 85471368.39
A141: ESE | B141: Annual Costs for Fleet and Real State (CAIMI) | C141: =Regulat!C139 -> 0 | D141: =Regulat!D139 -> 13620190.6 | E141: =Regulat!E139 -> 16718247.1 | F141: =Regulat!F139 -> 17237641.81 | G141: =Regulat!G139 -> 19182237.91 | H141: =Regulat!H139 -> 20097481.6 | I141: =Regulat!I139 -> 29044953.4 | J141: =Regulat!J139 -> 32414143.15 | K141: =Regulat!K139 -> 0 | L141: =Regulat!L139 -> 45441427.75 | M141: =Regulat!M139 -> 53513823.19 | N141: =Regulat!N139 -> 43614897.5 | O141: =Regulat!O139 -> 45338730.44
A142: ESE | B142: Other Revenues | C142: =Regulat!C140 -> 0 | D142: =Regulat!D140 -> -3235950.231 | E142: =Regulat!E140 -> -3942170.892 | F142: =Regulat!F140 -> -4032681.479 | G142: =Regulat!G140 -> -4455206.507 | H142: =Regulat!H140 -> -4631845.395 | I142: =Regulat!I140 -> -5085909.108 | J142: =Regulat!J140 -> -5561767.974 | K142: =Regulat!K140 -> 0 | L142: =Regulat!L140 -> -7509640.551 | M142: =Regulat!M140 -> -8674922.117 | N142: =Regulat!N140 -> -12435033.79 | O142: =Regulat!O140 -> -7987538.097
A143: ESE | B143: Excess Demand and Excess Power Factor | C143: =Regulat!C141 -> 0 | D143: =Regulat!D141 -> 0 | E143: =Regulat!E141 -> 0 | F143: =Regulat!F141 -> 0 | G143: =Regulat!G141 -> 0 | H143: =Regulat!H141 -> 0 | I143: =Regulat!I141 -> 0 | J143: =Regulat!J141 -> 0 | K143: =Regulat!K141 -> 0 | L143: =Regulat!L141 -> 0 | M143: =Regulat!M141 -> 0 | N143: =Regulat!N141 -> -930318.9366 | O143: =Regulat!O141 -> 0
A144: ESE | B144: =Regulat!B142 -> ONS | C144: =Regulat!C142 -> 0 | D144: =Regulat!D142 -> 0 | E144: =Regulat!E142 -> 0 | F144: =Regulat!F142 -> 0 | G144: =Regulat!G142 -> 0 | H144: =Regulat!H142 -> 0 | I144: =Regulat!I142 -> 0 | J144: =Regulat!J142 -> 0 | K144: =Regulat!K142 -> 0 | L144: =Regulat!L142 -> 0 | M144: =Regulat!M142 -> 0 | N144: =Regulat!N142 -> 0 | O144: =Regulat!O142 -> 0
A145: ESE | C145: =Regulat!C143 -> 0 | D145: =Regulat!D143 -> 0 | E145: =Regulat!E143 -> 0 | F145: =Regulat!F143 -> 0 | G145: =Regulat!G143 -> 0 | H145: =Regulat!H143 -> 0 | I145: =Regulat!I143 -> 0 | J145: =Regulat!J143 -> 0 | K145: =Regulat!K143 -> 0 | L145: =Regulat!L143 -> 0 | M145: =Regulat!M143 -> 0 | N145: =Regulat!N143 -> 0 | O145: =Regulat!O143 -> -5679747.312
A146: ESE | B146: VPB | C146: =Regulat!C144 -> 0 | D146: =Regulat!D144 -> 259851893.4 | E146: =Regulat!E144 -> 316562523.2 | F146: =Regulat!F144 -> 323830665.7 | G146: =Regulat!G144 -> 357760090.1 | H146: =Regulat!H144 -> 371944470.6 | I146: =Regulat!I144 -> 394404155.1 | J146: =Regulat!J144 -> 431306252.6 | K146: =Regulat!K144 -> 0 | L146: =Regulat!L144 -> 582360670.1 | M146: =Regulat!M144 -> 672726400.5 | N146: =Regulat!N144 -> 612753106.5 | O146: =Regulat!O144 -> 619420864
A147: ESE
A148: ESE | B148: Required Revenue - % | C148: =Regulat!C146 -> 0 | D148: =Regulat!D146 -> 41386 | E148: =Regulat!E146 -> 41751 | F148: =Regulat!F146 -> 42116 | G148: =Regulat!G146 -> 42482 | H148: =Regulat!H146 -> 42847 | I148: =Regulat!I146 -> 43212 | J148: =Regulat!J146 -> 43577 | K148: =Regulat!K146 -> 43943 | L148: =Regulat!L146 -> 44308 | M148: =Regulat!M146 -> 44673 | N148: =Regulat!N146 -> 45038 | O148: =Regulat!O146 -> 45404
A149: ESE | B149: Operating Costs (CO3) | C149: =Regulat!C147 -> 0 | D149: =Regulat!D147 -> 0.6035992219 | E149: =Regulat!E147 -> 0.6005054188 | F149: =Regulat!F147 -> 0.5972403314 | G149: =Regulat!G147 -> 0.5942201909 | H149: =Regulat!H147 -> 0.5909756407 | I149: =Regulat!I147 -> 0.5274534608 | J149: =Regulat!J147 -> 0.5174943998 | K149: =Regulat!K147 -> 0 | L149: =Regulat!L147 -> 0.4985344247 | M149: =Regulat!M147 -> 0.48852812 | N149: =Regulat!N147 -> 0.5222049209 | O149: =Regulat!O147 -> 0.5083017084
A150: ESE | B150: Delinquency - Sector Charges (Vi) | C150: =Regulat!C148 -> 0 | D150: =Regulat!D148 -> 0.001077335843 | E150: =Regulat!E148 -> 0.00108548806 | F150: =Regulat!F148 -> 0.001094091613 | G150: =Regulat!G148 -> 0.001102049728 | H150: =Regulat!H148 -> 0.001110599165 | I150: =Regulat!I148 -> 0.001444199936 | J150: =Regulat!J148 -> 0.001473828365 | K150: =Regulat!K148 -> 0 | L150: =Regulat!L148 -> 0.001530234715 | M150: =Regulat!M148 -> 0.001560003695 | N150: =Regulat!N148 -> 0.001959295015 | O150: =Regulat!O148 -> 0.00201480966
A151: ESE | B151: Delinquency - Others (Vse) | C151: =Regulat!C149 -> 0 | D151: =Regulat!D149 -> 0.02488795344 | E151: =Regulat!E149 -> 0.02507628096 | F151: =Regulat!F149 -> 0.02527503498 | G151: =Regulat!G149 -> 0.02545887847 | H151: =Regulat!H149 -> 0.02565638234 | I151: =Regulat!I149 -> 0.02154198531 | J151: =Regulat!J149 -> 0.02198392909 | K151: =Regulat!K149 -> 0 | L151: =Regulat!L149 -> 0.02282529789 | M151: =Regulat!M149 -> 0.02326933816 | N151: =Regulat!N149 -> 0.02635042346 | O151: =Regulat!O149 -> 0.02709703609
A152: ESE | B152: Capital Remuneration (RC) | C152: =Regulat!C150 -> 0 | D152: =Regulat!D150 -> 0.2054621955 | E152: =Regulat!E150 -> 0.207016931 | F152: =Regulat!F150 -> 0.2086577424 | G152: =Regulat!G150 -> 0.2101754601 | H152: =Regulat!H150 -> 0.2118059509 | I152: =Regulat!I150 -> 0.2650486638 | J152: =Regulat!J150 -> 0.2704862596 | K152: =Regulat!K150 -> 0 | L152: =Regulat!L150 -> 0.280838308 | M152: =Regulat!M150 -> 0.2863016986 | N152: =Regulat!N150 -> 0.2659347789 | O152: =Regulat!O150 -> 0.2643003243
A153: ESE | B153: Regulatory Depreciation (QRR) | C153: =Regulat!C151 -> 0 | D153: =Regulat!D151 -> 0.1250111432 | E153: =Regulat!E151 -> 0.1259571044 | F153: =Regulat!F151 -> 0.1269554375 | G153: =Regulat!G151 -> 0.1278788756 | H153: =Regulat!H151 -> 0.1288709292 | I153: =Regulat!I151 -> 0.1237642462 | J153: =Regulat!J151 -> 0.1263033269 | K153: =Regulat!K151 -> 0 | L153: =Regulat!L151 -> 0.131137207 | M153: =Regulat!M151 -> 0.1336883326 | N153: =Regulat!N151 -> 0.1341839699 | O153: =Regulat!O151 -> 0.1379859371
A154: ESE | B154: Annual Costs for Fleet and Real State (CAIMI) | C154: =Regulat!C152 -> 0 | D154: =Regulat!D152 -> 0.05241520631 | E154: =Regulat!E152 -> 0.05281183297 | F154: =Regulat!F152 -> 0.05323041833 | G154: =Regulat!G152 -> 0.05361760141 | H154: =Regulat!H152 -> 0.05403355389 | I154: =Regulat!I152 -> 0.07364261514 | J154: =Regulat!J152 -> 0.07515342742 | K154: =Regulat!K152 -> 0 | L154: =Regulat!L152 -> 0.07802969891 | M154: =Regulat!M152 -> 0.07954767816 | N154: =Regulat!N152 -> 0.07117858243 | O154: =Regulat!O152 -> 0.07319535565
A155: ESE | B155: Other Revenues | C155: =Regulat!C153 -> 0 | D155: =Regulat!D153 -> -0.0124530562 | E155: =Regulat!E153 -> -0.0124530562 | F155: =Regulat!F153 -> -0.0124530562 | G155: =Regulat!G153 -> -0.0124530562 | H155: =Regulat!H153 -> -0.0124530562 | I155: =Regulat!I153 -> -0.01289517122 | J155: =Regulat!J153 -> -0.01289517122 | K155: =Regulat!K153 -> 0 | L155: =Regulat!L153 -> -0.01289517122 | M155: =Regulat!M153 -> -0.01289517122 | N155: =Regulat!N153 -> -0.02029370991 | O155: =Regulat!O153 -> -0.01289517122
A156: ESE | B156: Excess Demand and Excess Power Factor | C156: =Regulat!C154 -> 0 | D156: =Regulat!D154 -> 0 | E156: =Regulat!E154 -> 0 | F156: =Regulat!F154 -> 0 | G156: =Regulat!G154 -> 0 | H156: =Regulat!H154 -> 0 | I156: =Regulat!I154 -> 0 | J156: =Regulat!J154 -> 0 | K156: =Regulat!K154 -> 0 | L156: =Regulat!L154 -> 0 | M156: =Regulat!M154 -> 0 | N156: =Regulat!N154 -> -0.001518260661 | O156: =Regulat!O154 -> 0
A157: ESE | B157: =Regulat!B155 -> ONS | C157: =Regulat!C155 -> 0 | D157: =Regulat!D155 -> 0 | E157: =Regulat!E155 -> 0 | F157: =Regulat!F155 -> 0 | G157: =Regulat!G155 -> 0 | H157: =Regulat!H155 -> 0 | I157: =Regulat!I155 -> 0 | J157: =Regulat!J155 -> 0 | K157: =Regulat!K155 -> 0 | L157: =Regulat!L155 -> 0 | M157: =Regulat!M155 -> 0 | N157: =Regulat!N155 -> 0 | O157: =Regulat!O155 -> 0
A158: ESE | C158: =Regulat!C156 -> 0 | D158: =Regulat!D156 -> 0 | E158: =Regulat!E156 -> 0 | F158: =Regulat!F156 -> 0 | G158: =Regulat!G156 -> 0 | H158: =Regulat!H156 -> 0 | I158: =Regulat!I156 -> 0 | J158: =Regulat!J156 -> 0 | K158: =Regulat!K156 -> 0 | L158: =Regulat!L156 -> 0 | M158: =Regulat!M156 -> 0 | N158: =Regulat!N156 -> 0 | O158: =Regulat!O156 -> 0
A159: ESE | B159: VPB | C159: =Regulat!C157 -> 0 | D159: =Regulat!D157 -> 1 | E159: =Regulat!E157 -> 1 | F159: =Regulat!F157 -> 1 | G159: =Regulat!G157 -> 1 | H159: =Regulat!H157 -> 1 | I159: =Regulat!I157 -> 1 | J159: =Regulat!J157 -> 1 | K159: =Regulat!K157 -> 0 | L159: =Regulat!L157 -> 1 | M159: =Regulat!M157 -> 1 | N159: =Regulat!N157 -> 1 | O159: =Regulat!O157 -> 1
A160: ESE
A161: EBO | B161: EBO
A162: EBO
A163: EBO | B163: EBO | C163: =Regulat!C161 -> 0 | D163: =Regulat!D161 -> 41309 | E163: =Regulat!E161 -> 41674 | F163: =Regulat!F161 -> 42039 | G163: =Regulat!G161 -> 42404 | H163: =Regulat!H161 -> 42770 | I163: =Regulat!I161 -> 43135 | J163: =Regulat!J161 -> 43500 | K163: =Regulat!K161 -> 43865 | L163: =Regulat!L161 -> 44231 | M163: =Regulat!M161 -> 44596 | N163: =Regulat!N161 -> 44961 | O163: =Regulat!O161 -> 0
A164: EBO | B164: Administration, Operating and Maintenance Costs (CAOM) | C164: =Regulat!C162 -> 0 | D164: =Regulat!D162 -> 35439259.72 | E164: =Regulat!E162 -> 0 | F164: =Regulat!F162 -> 0 | G164: =Regulat!G162 -> 0 | H164: =Regulat!H162 -> 48657756.55 | I164: =Regulat!I162 -> 0 | J164: =Regulat!J162 -> 0 | K164: =Regulat!K162 -> 0 | L164: =Regulat!L162 -> 55933496.45 | M164: =Regulat!M162 -> 0 | N164: =Regulat!N162 -> - | O164: =Regulat!O162 -> -
A165: EBO | B165: Operating Costs (CO3) | C165: =Regulat!C163 -> 0 | D165: =Regulat!D163 -> 33717700.69 | E165: =Regulat!E163 -> 0 | F165: =Regulat!F163 -> 0 | G165: =Regulat!G163 -> 0 | H165: =Regulat!H163 -> 48414712.46 | I165: =Regulat!I163 -> 0 | J165: =Regulat!J163 -> 0 | K165: =Regulat!K163 -> 0 | L165: =Regulat!L163 -> 55617860.08 | M165: =Regulat!M163 -> 0 | N165: =Regulat!N163 -> - | O165: =Regulat!O163 -> -
A166: EBO | B166: Delinquency - Sector Charges (Vi) | C166: =Regulat!C164 -> 0 | D166: =Regulat!D164 -> 115734.1644 | E166: =Regulat!E164 -> 0 | F166: =Regulat!F164 -> 0 | G166: =Regulat!G164 -> 0 | H166: =Regulat!H164 -> 89560.49535 | I166: =Regulat!I164 -> 0 | J166: =Regulat!J164 -> 0 | K166: =Regulat!K164 -> 0 | L166: =Regulat!L164 -> 90207.08745 | M166: =Regulat!M164 -> 0 | N166: =Regulat!N164 -> - | O166: =Regulat!O164 -> -
A167: EBO | B167: Delinquency - Others (Vse) | C167: =Regulat!C165 -> 0 | D167: =Regulat!D165 -> 1605824.864 | E167: =Regulat!E165 -> 0 | F167: =Regulat!F165 -> 0 | G167: =Regulat!G165 -> 0 | H167: =Regulat!H165 -> 153483.5952 | I167: =Regulat!I165 -> 0 | J167: =Regulat!J165 -> 0 | K167: =Regulat!K165 -> 0 | L167: =Regulat!L165 -> 225429.2848 | M167: =Regulat!M165 -> 0 | N167: =Regulat!N165 -> - | O167: =Regulat!O165 -> -
A168: EBO | B168: Annual Asset Costs (CAA) | C168: =Regulat!C166 -> 0 | D168: =Regulat!D166 -> 15465781.74 | E168: =Regulat!E166 -> 0 | F168: =Regulat!F166 -> 0 | G168: =Regulat!G166 -> 0 | H168: =Regulat!H166 -> 28388513.19 | I168: =Regulat!I166 -> 0 | J168: =Regulat!J166 -> 0 | K168: =Regulat!K166 -> 0 | L168: =Regulat!L166 -> 35757941.29 | M168: =Regulat!M166 -> 0 | N168: =Regulat!N166 -> - | O168: =Regulat!O166 -> -
A169: EBO | B169: Capital Remuneration (RC) | C169: =Regulat!C167 -> 0 | D169: =Regulat!D167 -> 7586639.489 | E169: =Regulat!E167 -> 0 | F169: =Regulat!F167 -> 0 | G169: =Regulat!G167 -> 0 | H169: =Regulat!H167 -> 15997128 | I169: =Regulat!I167 -> 0 | J169: =Regulat!J167 -> 0 | K169: =Regulat!K167 -> 0 | L169: =Regulat!L167 -> 19334039.63 | M169: =Regulat!M167 -> 0 | N169: =Regulat!N167 -> - | O169: =Regulat!O167 -> -
A170: EBO | B170: Regulatory Depreciation (QRR) | C170: =Regulat!C168 -> 0 | D170: =Regulat!D168 -> 4769565.218 | E170: =Regulat!E168 -> 0 | F170: =Regulat!F168 -> 0 | G170: =Regulat!G168 -> 0 | H170: =Regulat!H168 -> 6473329.645 | I170: =Regulat!I168 -> 0 | J170: =Regulat!J168 -> 0 | K170: =Regulat!K168 -> 0 | L170: =Regulat!L168 -> 8875634.112 | M170: =Regulat!M168 -> 0 | N170: =Regulat!N168 -> - | O170: =Regulat!O168 -> -
A171: EBO | B171: Annual Costs for Fleet and Real State (CAIMI) | C171: =Regulat!C169 -> 0 | D171: =Regulat!D169 -> 3109577.038 | E171: =Regulat!E169 -> 0 | F171: =Regulat!F169 -> 0 | G171: =Regulat!G169 -> 0 | H171: =Regulat!H169 -> 5918055.544 | I171: =Regulat!I169 -> 0 | J171: =Regulat!J169 -> 0 | K171: =Regulat!K169 -> 0 | L171: =Regulat!L169 -> 7548267.552 | M171: =Regulat!M169 -> 0 | N171: =Regulat!N169 -> - | O171: =Regulat!O169 -> -
A172: EBO | B172: Parcel B (VPB) | C172: =Regulat!C170 -> 0 | D172: =Regulat!D170 -> 50905041.47 | E172: =Regulat!E170 -> 0 | F172: =Regulat!F170 -> 0 | G172: =Regulat!G170 -> 0 | H172: =Regulat!H170 -> 77046269.74 | I172: =Regulat!I170 -> 0 | J172: =Regulat!J170 -> 0 | K172: =Regulat!K170 -> 0 | L172: =Regulat!L170 -> 91691437.74 | M172: =Regulat!M170 -> 0 | N172: =Regulat!N170 -> - | O172: =Regulat!O170 -> -
A173: EBO | B173: Parcel B with Market and Quality Adjustment | C173: =Regulat!C171 -> 0 | D173: =Regulat!D171 -> 50798839.09 | E173: =Regulat!E171 -> 0 | F173: =Regulat!F171 -> 0 | G173: =Regulat!G171 -> 0 | H173: =Regulat!H171 -> 77087391.81 | I173: =Regulat!I171 -> 0 | J173: =Regulat!J171 -> 0 | K173: =Regulat!K171 -> 0 | L173: =Regulat!L171 -> 92344713.61 | M173: =Regulat!M171 -> 0 | N173: =Regulat!N171 -> - | O173: =Regulat!O171 -> -
A174: EBO | B174: Other Revenues | C174: =Regulat!C172 -> 0 | D174: =Regulat!D172 -> 970584.1366 | E174: =Regulat!E172 -> 0 | F174: =Regulat!F172 -> 0 | G174: =Regulat!G172 -> 0 | H174: =Regulat!H172 -> 1533548.341 | I174: =Regulat!I172 -> 0 | J174: =Regulat!J172 -> 0 | K174: =Regulat!K172 -> 0 | L174: =Regulat!L172 -> 2368506.976 | M174: =Regulat!M172 -> 0 | N174: =Regulat!N172 -> - | O174: =Regulat!O172 -> -
A175: EBO | C175: =Regulat!C173 -> 0 | D175: =Regulat!D173 -> 0 | E175: =Regulat!E173 -> 0 | F175: =Regulat!F173 -> 0 | G175: =Regulat!G173 -> 0 | H175: =Regulat!H173 -> 0 | I175: =Regulat!I173 -> 0 | J175: =Regulat!J173 -> 0 | K175: =Regulat!K173 -> 0 | L175: =Regulat!L173 -> 1542491.961 | M175: =Regulat!M173 -> 0 | N175: =Regulat!N173 -> - | O175: =Regulat!O173 -> -
A176: EBO | C176: =Regulat!C174 -> 0 | D176: =Regulat!D174 -> 0 | E176: =Regulat!E174 -> 0 | F176: =Regulat!F174 -> 0 | G176: =Regulat!G174 -> 0 | H176: =Regulat!H174 -> 0 | I176: =Regulat!I174 -> 0 | J176: =Regulat!J174 -> 0 | K176: =Regulat!K174 -> 0 | L176: =Regulat!L174 -> 0 | M176: =Regulat!M174 -> 0 | N176: =Regulat!N174 -> - | O176: =Regulat!O174 -> -
A177: EBO | B177: Parcel B with Adjustments | C177: =Regulat!C175 -> 0 | D177: =Regulat!D175 -> 49828254.96 | E177: =Regulat!E175 -> 0 | F177: =Regulat!F175 -> 0 | G177: =Regulat!G175 -> 0 | H177: =Regulat!H175 -> 75553843.47 | I177: =Regulat!I175 -> 0 | J177: =Regulat!J175 -> 0 | K177: =Regulat!K175 -> 0 | L177: =Regulat!L175 -> 88433714.68 | M177: =Regulat!M175 -> 0 | N177: =Regulat!N175 -> - | O177: =Regulat!O175 -> -
A178: EBO
A179: EBO | B179: Factor X | C179: =Regulat!C177 -> 0 | D179: =Regulat!D177 -> 0.002086284012 | E179: =Regulat!E177 -> -0.0082 | F179: =Regulat!F177 -> -0.0015 | G179: =Regulat!G177 -> -0.0031 | H179: =Regulat!H177 -> 0.005016174822 | I179: =Regulat!I177 -> 0.007873061577 | J179: =Regulat!J177 -> 0.006010162696 | K179: =Regulat!K177 -> 0 | L179: =Regulat!L177 -> 0.002810638681 | M179: =Regulat!M177 -> 0.01088247815 | N179: =Regulat!N177 -> - | O179: =Regulat!O177 -> -
A180: EBO | B180: Component Pd | C180: =Regulat!C178 -> 0 | D180: =Regulat!D178 -> 0.002086284012 | E180: =Regulat!E178 -> 0.0018 | F180: =Regulat!F178 -> 0.0018 | G180: =Regulat!G178 -> 0.0018 | H180: =Regulat!H178 -> 0.01146626778 | I180: =Regulat!I178 -> 0.0115 | J180: =Regulat!J178 -> 0.01146626778 | K180: =Regulat!K178 -> 0 | L180: =Regulat!L178 -> 0.003220845164 | M180: =Regulat!M178 -> 0.003220845164 | N180: =Regulat!N178 -> - | O180: =Regulat!O178 -> -
A181: EBO | B181: Component T | C181: =Regulat!C179 -> 0 | D181: =Regulat!D179 -> 0 | E181: =Regulat!E179 -> 0 | F181: =Regulat!F179 -> 0 | G181: =Regulat!G179 -> 0 | H181: =Regulat!H179 -> 0.005549907037 | I181: =Regulat!I179 -> 0.0055 | J181: =Regulat!J179 -> 0.005549907037 | K181: =Regulat!K179 -> 0 | L181: =Regulat!L179 -> 0.009935359261 | M181: =Regulat!M179 -> 0.009935359261 | N181: =Regulat!N179 -> - | O181: =Regulat!O179 -> -
A182: EBO | B182: Component Q | C182: =Regulat!C180 -> 0 | D182: =Regulat!D180 -> 0 | E182: =Regulat!E180 -> -0.01 | F182: =Regulat!F180 -> -0.0033 | G182: =Regulat!G180 -> -0.0049 | H182: =Regulat!H180 -> -0.012 | I182: =Regulat!I180 -> -0.009126938423 | J182: =Regulat!J180 -> -0.01100601213 | K182: =Regulat!K180 -> 0 | L182: =Regulat!L180 -> -0.01034556574 | M182: =Regulat!M180 -> -0.002273726272 | N182: =Regulat!N180 -> - | O182: =Regulat!O180 -> -
A183: EBO
A184: EBO | B184: VPB | C184: =Regulat!C182 -> 0 | D184: =Regulat!D182 -> 50905041.47 | E184: =Regulat!E182 -> 0 | F184: =Regulat!F182 -> 0 | G184: =Regulat!G182 -> 0 | H184: =Regulat!H182 -> 77046269.74 | I184: =Regulat!I182 -> 0 | J184: =Regulat!J182 -> 0 | K184: =Regulat!K182 -> 0 | L184: =Regulat!L182 -> 91691437.74 | M184: =Regulat!M182 -> 0 | N184: =Regulat!N182 -> - | O184: =Regulat!O182 -> -
A185: EBO
A186: EBO | B186: Required Revenue | C186: =Regulat!C184 -> 0 | D186: =Regulat!D184 -> 41309 | E186: =Regulat!E184 -> 41674 | F186: =Regulat!F184 -> 42039 | G186: =Regulat!G184 -> 42404 | H186: =Regulat!H184 -> 42770 | I186: =Regulat!I184 -> 43135 | J186: =Regulat!J184 -> 43500 | K186: =Regulat!K184 -> 43865 | L186: =Regulat!L184 -> 44231 | M186: =Regulat!M184 -> 44596 | N186: =Regulat!N184 -> 44961 | O186: =Regulat!O184 -> 0
A187: EBO | B187: Operating Costs (CO3) | C187: =Regulat!C185 -> 0 | D187: =Regulat!D185 -> 33647355.99 | E187: =Regulat!E185 -> 38631538.63 | F187: =Regulat!F185 -> 44062905.09 | G187: =Regulat!G185 -> 48730543.51 | H187: =Regulat!H185 -> 48440552.95 | I187: =Regulat!I185 -> 47789235.58 | J187: =Regulat!J185 -> 53043803.87 | K187: =Regulat!K185 -> 0 | L187: =Regulat!L185 -> 56014121.79 | M187: =Regulat!M185 -> 65185848.66 | N187: =Regulat!N185 -> - | O187: =Regulat!O185 -> -
A188: EBO | B188: Delinquency - Sector Charges (Vi) | C188: =Regulat!C186 -> 0 | D188: =Regulat!D186 -> 115492.71 | E188: =Regulat!E186 -> 132600.6444 | F188: =Regulat!F186 -> 151243.5129 | G188: =Regulat!G186 -> 167264.9266 | H188: =Regulat!H186 -> 89608.29668 | I188: =Regulat!I186 -> 89191.17404 | J188: =Regulat!J186 -> 99825.3374 | K188: =Regulat!K186 -> 0 | L188: =Regulat!L186 -> 90849.78774 | M188: =Regulat!M186 -> 107220.139 | N188: =Regulat!N186 -> - | O188: =Regulat!O186 -> -
A189: EBO | B189: Delinquency - Others (Vse) | C189: =Regulat!C187 -> 0 | D189: =Regulat!D187 -> 1602474.658 | E189: =Regulat!E187 -> 1839849.219 | F189: =Regulat!F187 -> 2098521.166 | G189: =Regulat!G187 -> 2320820.127 | H189: =Regulat!H187 -> 153565.5143 | I189: =Regulat!I187 -> 152850.6737 | J189: =Regulat!J187 -> 171074.8876 | K189: =Regulat!K187 -> 0 | L189: =Regulat!L187 -> 227035.4054 | M189: =Regulat!M187 -> 267945.2351 | N189: =Regulat!N187 -> - | O189: =Regulat!O187 -> -
A190: EBO | B190: Capital Remuneration (RC) | C190: =Regulat!C188 -> 0 | D190: =Regulat!D188 -> 7570811.604 | E190: =Regulat!E188 -> 8692275.879 | F190: =Regulat!F188 -> 9914358.596 | G190: =Regulat!G188 -> 10964598.95 | H190: =Regulat!H188 -> 16005666.18 | I190: =Regulat!I188 -> 15931160.51 | J190: =Regulat!J188 -> 17830614.86 | K190: =Regulat!K188 -> 0 | L190: =Regulat!L188 -> 19471789.26 | M190: =Regulat!M188 -> 22980438.41 | N190: =Regulat!N188 -> - | O190: =Regulat!O188 -> -
A191: EBO | B191: Regulatory Depreciation (QRR) | C191: =Regulat!C189 -> 0 | D191: =Regulat!D189 -> 4759614.551 | E191: =Regulat!E189 -> 5464656.224 | F191: =Regulat!F189 -> 6232954.655 | G191: =Regulat!G189 -> 6893219.307 | H191: =Regulat!H189 -> 6476784.67 | I191: =Regulat!I189 -> 6446635.525 | J191: =Regulat!J189 -> 7215260.628 | K191: =Regulat!K189 -> 0 | L191: =Regulat!L189 -> 8938870.525 | M191: =Regulat!M189 -> 10549578.2 | N191: =Regulat!N189 -> - | O191: =Regulat!O189 -> -
A192: EBO | B192: Annual Costs for Fleet and Real State (CAIMI) | C192: =Regulat!C190 -> 0 | D192: =Regulat!D190 -> 3103089.577 | E192: =Regulat!E190 -> 3562750.216 | F192: =Regulat!F190 -> 4063651.882 | G192: =Regulat!G190 -> 4494119.588 | H192: =Regulat!H190 -> 5921214.201 | I192: =Regulat!I190 -> 5893651.212 | J192: =Regulat!J190 -> 6596344.617 | K192: =Regulat!K190 -> 0 | L192: =Regulat!L190 -> 7602046.849 | M192: =Regulat!M190 -> 8971870.385 | N192: =Regulat!N190 -> - | O192: =Regulat!O190 -> -
A193: EBO | B193: Other Revenues | C193: =Regulat!C191 -> 0 | D193: =Regulat!D191 -> -970584.1366 | E193: =Regulat!E191 -> -1114356.759 | F193: =Regulat!F191 -> -1271028.746 | G193: =Regulat!G191 -> -1405670.404 | H193: =Regulat!H191 -> -1533548.341 | I193: =Regulat!I191 -> -1517938.46 | J193: =Regulat!J191 -> -1690101.936 | K193: =Regulat!K191 -> 0 | L193: =Regulat!L191 -> -2368506.976 | M193: =Regulat!M191 -> -2771254.002 | N193: =Regulat!N191 -> - | O193: =Regulat!O191 -> -
A194: EBO | B194: Excess Demand and Excess Power Factor | C194: =Regulat!C192 -> 0 | D194: =Regulat!D192 -> 0 | E194: =Regulat!E192 -> 0 | F194: =Regulat!F192 -> 0 | G194: =Regulat!G192 -> 0 | H194: =Regulat!H192 -> 0 | I194: =Regulat!I192 -> 0 | J194: =Regulat!J192 -> 0 | K194: =Regulat!K192 -> 0 | L194: =Regulat!L192 -> -1542491.961 | M194: =Regulat!M192 -> 0 | N194: =Regulat!N192 -> - | O194: =Regulat!O192 -> -
A195: EBO | B195: =Regulat!B193 -> ONS | C195: =Regulat!C193 -> 0 | D195: =Regulat!D193 -> 0 | E195: =Regulat!E193 -> 0 | F195: =Regulat!F193 -> 0 | G195: =Regulat!G193 -> 0 | H195: =Regulat!H193 -> 0 | I195: =Regulat!I193 -> 0 | J195: =Regulat!J193 -> 0 | K195: =Regulat!K193 -> 0 | L195: =Regulat!L193 -> 0 | M195: =Regulat!M193 -> 0 | N195: =Regulat!N193 -> - | O195: =Regulat!O193 -> -
A196: EBO | C196: =Regulat!C194 -> 0 | D196: =Regulat!D194 -> 0 | E196: =Regulat!E194 -> 0 | F196: =Regulat!F194 -> 0 | G196: =Regulat!G194 -> 0 | H196: =Regulat!H194 -> 0 | I196: =Regulat!I194 -> 0 | J196: =Regulat!J194 -> 2.980232239e-08 | K196: =Regulat!K194 -> 0 | L196: =Regulat!L194 -> 0 | M196: =Regulat!M194 -> -1820435.761 | N196: =Regulat!N194 -> - | O196: =Regulat!O194 -> -
A197: EBO | B197: VPB | C197: =Regulat!C195 -> 0 | D197: =Regulat!D195 -> 49828254.96 | E197: =Regulat!E195 -> 57209314.05 | F197: =Regulat!F195 -> 65252606.15 | G197: =Regulat!G195 -> 72164896.01 | H197: =Regulat!H195 -> 75553843.47 | I197: =Regulat!I195 -> 74784786.21 | J197: =Regulat!J195 -> 83266822.26 | K197: =Regulat!K195 -> 0 | L197: =Regulat!L195 -> 88433714.68 | M197: =Regulat!M195 -> 103471211.3 | N197: =Regulat!N195 -> - | O197: =Regulat!O195 -> -
A198: EBO
A199: EBO | B199: Required Revenue - % | C199: =Regulat!C197 -> 0 | D199: =Regulat!D197 -> 41309 | E199: =Regulat!E197 -> 41674 | F199: =Regulat!F197 -> 42039 | G199: =Regulat!G197 -> 42404 | H199: =Regulat!H197 -> 42770 | I199: =Regulat!I197 -> 43135 | J199: =Regulat!J197 -> 43500 | K199: =Regulat!K197 -> 43865 | L199: =Regulat!L197 -> 44231 | M199: =Regulat!M197 -> 44596 | N199: =Regulat!N197 -> 44961 | O199: =Regulat!O197 -> 0
A200: EBO | B200: Operating Costs (CO3) | C200: =Regulat!C198 -> 0 | D200: =Regulat!D198 -> 0.6752665937 | E200: =Regulat!E198 -> 0.6752665937 | F200: =Regulat!F198 -> 0.6752665937 | G200: =Regulat!G198 -> 0.6752665937 | H200: =Regulat!H198 -> 0.6411394937 | I200: =Regulat!I198 -> 0.6390234965 | J200: =Regulat!J198 -> 0.6370340842 | K200: =Regulat!K198 -> 0 | L200: =Regulat!L198 -> 0.6334023397 | M200: =Regulat!M198 -> 0.629990196 | N200: =Regulat!N198 -> - | O200: =Regulat!O198 -> -
A201: EBO | B201: Delinquency - Sector Charges (Vi) | C201: =Regulat!C199 -> 0 | D201: =Regulat!D199 -> 0.002317815668 | E201: =Regulat!E199 -> 0.002317815668 | F201: =Regulat!F199 -> 0.002317815668 | G201: =Regulat!G199 -> 0.002317815668 | H201: =Regulat!H199 -> 0.001186019037 | I201: =Regulat!I199 -> 0.001192637949 | J201: =Regulat!J199 -> 0.001198860899 | K201: =Regulat!K199 -> 0 | L201: =Regulat!L199 -> 0.001027320723 | M201: =Regulat!M199 -> 0.001036231602 | N201: =Regulat!N199 -> - | O201: =Regulat!O199 -> -
A202: EBO | B202: Delinquency - Others (Vse) | C202: =Regulat!C200 -> 0 | D202: =Regulat!D200 -> 0.03215995942 | E202: =Regulat!E200 -> 0.03215995942 | F202: =Regulat!F200 -> 0.03215995942 | G202: =Regulat!G200 -> 0.03215995942 | H202: =Regulat!H200 -> 0.002032530805 | I202: =Regulat!I200 -> 0.002043873913 | J202: =Regulat!J200 -> 0.002054538445 | K202: =Regulat!K200 -> 0 | L202: =Regulat!L200 -> 0.002567294682 | M202: =Regulat!M200 -> 0.002589563143 | N202: =Regulat!N200 -> - | O202: =Regulat!O200 -> -
A203: EBO | B203: Capital Remuneration (RC) | C203: =Regulat!C201 -> 0 | D203: =Regulat!D201 -> 0.1519381245 | E203: =Regulat!E201 -> 0.1519381245 | F203: =Regulat!F201 -> 0.1519381245 | G203: =Regulat!G201 -> 0.1519381245 | H203: =Regulat!H201 -> 0.2118444998 | I203: =Regulat!I201 -> 0.2130267575 | J203: =Regulat!J201 -> 0.2141382892 | K203: =Regulat!K201 -> 0 | L203: =Regulat!L201 -> 0.2201851333 | M203: =Regulat!M201 -> 0.2220949975 | N203: =Regulat!N201 -> - | O203: =Regulat!O201 -> -
A204: EBO | B204: Regulatory Depreciation (QRR) | C204: =Regulat!C202 -> 0 | D204: =Regulat!D202 -> 0.0955203941 | E204: =Regulat!E202 -> 0.0955203941 | F204: =Regulat!F202 -> 0.0955203941 | G204: =Regulat!G202 -> 0.0955203941 | H204: =Regulat!H202 -> 0.08572409255 | I204: =Regulat!I202 -> 0.08620249989 | J204: =Regulat!J202 -> 0.08665228757 | K204: =Regulat!K202 -> 0 | L204: =Regulat!L202 -> 0.1010798942 | M204: =Regulat!M202 -> 0.1019566513 | N204: =Regulat!N202 -> - | O204: =Regulat!O202 -> -
A205: EBO | B205: Annual Costs for Fleet and Real State (CAIMI) | C205: =Regulat!C203 -> 0 | D205: =Regulat!D203 -> 0.0622757024 | E205: =Regulat!E203 -> 0.0622757024 | F205: =Regulat!F203 -> 0.0622757024 | G205: =Regulat!G203 -> 0.0622757024 | H205: =Regulat!H203 -> 0.07837078736 | I205: =Regulat!I203 -> 0.07880815752 | J205: =Regulat!J203 -> 0.07921936298 | K205: =Regulat!K203 -> 0 | L205: =Regulat!L203 -> 0.08596321976 | M205: =Regulat!M203 -> 0.08670885626 | N205: =Regulat!N203 -> - | O205: =Regulat!O203 -> -
... 595 more rows

Sheet RegulatBRR
C1: Regulatório - BRR
B8: R$ milhões | C8: 1CRTP | D8: 2CRTP | E8: 3CRTP | F8: 4CRTP | G8: 5CRTP | I8: BRL Regulatória atualizada por IPCA até março de 2025 (R$ milhões) | K8: Data de revisão tarifária | L8: 1CRTP | M8: 2CRTP (2) | N8: 3CRTP (3) | O8: 4CRTP (4) | P8: 5CRTP (1) | Q8: Próximas revisões tarifárias
B9: Energisa Minas Gerais | C9: 148.6 | D9: 170.8 | E9: 218.3 | F9: 308 | G9: 518.2 | I9: 0 | K9: Energisa Minas Gerais | L9: 2004-06-01 | M9: 2008-06-01 | N9: 2012-06-01 | O9: 2016-06-01 | P9: 2021-06-22
B10: Energisa Nova Friburgo | C10: 42.4 | D10: 56.5 | E10: 69.2 | F10: 95 | G10: 122 | I10: 0 | K10: Energisa Nova Friburgo | L10: 2004-06-01 | M10: 2008-06-01 | N10: 2012-06-01 | O10: 2016-06-01 | P10: 2021-06-22
B11: Energisa Borborema | C11: 32.6 | D11: 41 | E11: 67 | F11: 117.7 | G11: 160.7 | I11: 0 | K11: Energisa Borborema | L11: 2005-02-01 | M11: 2009-02-01 | N11: 2013-02-01 | O11: 2017-02-01 | P11: 2021-02-04
B12: Energisa Minas Rio (1) | G12: 640.2 | I12: 808.9 | K12: Energisa Minas Rio (1) | Q12: 2026-06-01
B13: Energisa Sergipe | C13: 233 | D13: 328.6 | E13: 497.6 | F13: 797.3 | G13: 1298.1 | I13: 2401.2 | K13: Energisa Sergipe | L13: 2003-04-01 | M13: 2008-04-01 | N13: 2013-04-01 | O13: 2018-04-01 | P13: 2023-04-22 | Q13: 2028-04-01
B14: Energisa Paraíba (2) | C14: 370.1 | D14: 508.2 | E14: 827.3 | F14: 1318.4 | G14: 1762.3 | I14: 1384.8 | K14: Energisa Paraíba | L14: 2005-08-01 | M14: 2009-08-01 | N14: 2013-08-01 | O14: 2017-08-01 | P14: 2021-08-28 | Q14: 2025-08-01
B15: Energisa Mato Grosso | C15: 490.8 | D15: 1032.8 | E15: 1693.5 | F15: 3459.8 | G15: 6625 | I15: 1423.2 | K15: Energisa Mato Grosso | L15: 2003-04-01 | M15: 2008-04-01 | N15: 2013-04-01 | O15: 2018-04-01 | P15: 2023-04-08 | Q15: 2028-04-01
B16: Energisa Mato Grosso do Sul | C16: 600.3 | D16: 835.7 | E16: 1152.6 | F16: 1864.5 | G16: 3341.7 | I16: 7261 | K16: Energisa Mato Grosso do Sul | L16: 2003-04-01 | M16: 2008-04-01 | N16: 2013-04-01 | O16: 2018-04-01 | P16: 2013-04-08 | Q16: 2028-04-01
B17: Energisa Tocantins | C17: 179 | D17: 238.9 | E17: 257.1 | F17: 596.2 | G17: 1370.5 | I17: 3662.5 | K17: Energisa Tocantins | L17: 2004-07-01 | M17: 2008-07-01 | N17: 2012-07-01 | O17: 2016-07-01 | P17: 2020-07-04 | Q17: 2025-07-01
B18: Energisa Sul-Sudeste | C18: 203.1 | D18: 296.4 | E18: 320.3 | F18: 491.5 | G18: 1102.6 | I18: 1864.9 | K18: Energisa Sul-Sudeste | L18: 2004-05-01 | M18: 2008-05-01 | N18: 2012-05-01 | O18: 2016-05-01 | P18: 2021-07-12 | Q18: 2026-07-01
B19: Energisa Rondônia | C19: 226.1 | D19: 335.6 | E19: 382.6 | F19: 1566.9 | G19: 0 | I19: 3232.2 | K19: Energisa Rondônia | L19: - | M19: - | N19: 2013-11-01 | O19: 2020-12-01 | P19: - | Q19: 2028-12-01
B20: Energisa Acre | C20: 83.3 | D20: 171.9 | E20: 230.2 | F20: 596 | G20: 0 | I20: 1122.2 | K20: Energisa Acre | L20: - | M20: - | N20: 2013-11-01 | O20: 2020-12-01 | P20: - | Q20: 2028-12-01
B21: Total | C21: =SUM(C9:C20) -> 2609.3 | D21: =SUM(D9:D20) -> 4016.4 | E21: =SUM(E9:E20) -> 5715.7 | F21: =SUM(F9:F20) -> 11211.3 | G21: =SUM(G9:G20) -> 16941.3 | I21: =SUM(I12:I20) -> 23160.9
K22: (1) BRL não homolgada pela ANEEL, distribuidoras ainda não realizaram a revisão tarifária no ciclo.
B23: Outras informações você encontra em https://ri.energisa.com.br/concessoes-de-distribuicao-e-transmissao-new/ | K23: (2) Notas técnicas das distribuidoras da Revisão Tarifária - 2º Ciclo
K24: (3) Notas técnicas das distribuidoras da Revisão Tarifária - 3º Ciclo
B25: (1) Considera a soma da EMG e ENF. | K25: (4) Notas técnicas das distribuidoras da Revisão Tarifária - 4º Ciclo
B26: (2) Considera a soma da EPB e EBO. | K26: (5) Em 27 de julho de 2017, a Aneel homologou em caráter definitivo a 4CRTP
B54: Nota: No dia 30/11/2022 a empresa ENF – Energisa Nova Friburgo foi incorporada pela empresa EMG – Energisa Minas Gerais, que agora se chama EMR – Energisa Minas Rio. No dia 30/04/2023 a empresa EBO – Energisa Borborema foi incorporada pela empresa EPB – Energisa Paraíba.

Sheet RAB
C1: Regulatory - RAB
B8: R$ million | C8: 1st Cycle | D8: 2nd Cycle | E8: 3rd Cycle | F8: 4th Cycle | G8: 5th Cycle | I8: BRL Regulatory updated by IPCA 2024 | K8: R$ million | L8: 1st Cycle | M8: 2nd Cycle (2) | N8: 3rd Cycle (3) | O8: 4th Cycle (4) | P8: 5th Cycle (1) | Q8: Next Review
B9: =RegulatBRR!B9 -> Energisa Minas Gerais | C9: =RegulatBRR!C9 -> 148.6 | D9: =RegulatBRR!D9 -> 170.8 | E9: =RegulatBRR!E9 -> 218.3 | F9: =RegulatBRR!F9 -> 308 | G9: =RegulatBRR!G9 -> 518.2 | I9: =RegulatBRR!I9 -> 0 | K9: =RegulatBRR!K9 -> Energisa Minas Gerais | L9: =RegulatBRR!L9 -> 2004-06-01 | M9: =RegulatBRR!M9 -> 2008-06-01 | N9: =RegulatBRR!N9 -> 2012-06-01 | O9: =RegulatBRR!O9 -> 2016-06-01 | P9: =RegulatBRR!P9 -> 2021-06-22
B10: =RegulatBRR!B10 -> Energisa Nova Friburgo | C10: =RegulatBRR!C10 -> 42.4 | D10: =RegulatBRR!D10 -> 56.5 | E10: =RegulatBRR!E10 -> 69.2 | F10: =RegulatBRR!F10 -> 95 | G10: =RegulatBRR!G10 -> 122 | I10: =RegulatBRR!I10 -> 0 | K10: =RegulatBRR!K10 -> Energisa Nova Friburgo | L10: =RegulatBRR!L10 -> 2004-06-01 | M10: =RegulatBRR!M10 -> 2008-06-01 | N10: =RegulatBRR!N10 -> 2012-06-01 | O10: =RegulatBRR!O10 -> 2016-06-01 | P10: =RegulatBRR!P10 -> 2021-06-22
B11: =RegulatBRR!B12 -> Energisa Minas Rio (1) | I11: =RegulatBRR!I12 -> 808.9 | K11: =RegulatBRR!K12 -> Energisa Minas Rio (1) | Q11: =RegulatBRR!Q12 -> 2026-06-01
B12: =RegulatBRR!B13 -> Energisa Sergipe | C12: =RegulatBRR!C13 -> 233 | D12: =RegulatBRR!D13 -> 328.6 | E12: =RegulatBRR!E13 -> 497.6 | F12: =RegulatBRR!F13 -> 797.3 | G12: =RegulatBRR!G13 -> 1298.1 | I12: =RegulatBRR!I13 -> 2401.2 | K12: =RegulatBRR!K13 -> Energisa Sergipe | L12: =RegulatBRR!L13 -> 2003-04-01 | M12: =RegulatBRR!M13 -> 2008-04-01 | N12: =RegulatBRR!N13 -> 2013-04-01 | O12: =RegulatBRR!O13 -> 2018-04-01 | P12: =RegulatBRR!P13 -> 2023-04-22 | Q12: =RegulatBRR!Q13 -> 2028-04-01
B13: =RegulatBRR!B11 -> Energisa Borborema | C13: =RegulatBRR!C11 -> 32.6 | D13: =RegulatBRR!D11 -> 41 | E13: =RegulatBRR!E11 -> 67 | F13: =RegulatBRR!F11 -> 117.7 | G13: =RegulatBRR!G11 -> 160.7 | I13: =RegulatBRR!I11 -> 0 | K13: =RegulatBRR!K11 -> Energisa Borborema | L13: =RegulatBRR!L11 -> 2005-02-01 | M13: =RegulatBRR!M11 -> 2009-02-01 | N13: =RegulatBRR!N11 -> 2013-02-01 | O13: =RegulatBRR!O11 -> 2017-02-01 | P13: =RegulatBRR!P11 -> 2021-02-04
B14: =RegulatBRR!B14 -> Energisa Paraíba (2) | C14: =RegulatBRR!C14 -> 370.1 | D14: =RegulatBRR!D14 -> 508.2 | E14: =RegulatBRR!E14 -> 827.3 | F14: =RegulatBRR!F14 -> 1318.4 | G14: =RegulatBRR!G14 -> 1762.3 | I14: =RegulatBRR!I14 -> 1384.8 | K14: =RegulatBRR!K14 -> Energisa Paraíba | L14: =RegulatBRR!L14 -> 2005-08-01 | M14: =RegulatBRR!M14 -> 2009-08-01 | N14: =RegulatBRR!N14 -> 2013-08-01 | O14: =RegulatBRR!O14 -> 2017-08-01 | P14: =RegulatBRR!P14 -> 2021-08-28 | Q14: =RegulatBRR!Q14 -> 2025-08-01
B15: =RegulatBRR!B15 -> Energisa Mato Grosso | C15: =RegulatBRR!C15 -> 490.8 | D15: =RegulatBRR!D15 -> 1032.8 | E15: =RegulatBRR!E15 -> 1693.5 | F15: =RegulatBRR!F15 -> 3459.8 | G15: =RegulatBRR!G15 -> 6625 | I15: =RegulatBRR!I15 -> 1423.2 | K15: =RegulatBRR!K15 -> Energisa Mato Grosso | L15: =RegulatBRR!L15 -> 2003-04-01 | M15: =RegulatBRR!M15 -> 2008-04-01 | N15: =RegulatBRR!N15 -> 2013-04-01 | O15: =RegulatBRR!O15 -> 2018-04-01 | P15: =RegulatBRR!P15 -> 2023-04-08 | Q15: =RegulatBRR!Q15 -> 2028-04-01
B16: =RegulatBRR!B16 -> Energisa Mato Grosso do Sul | C16: =RegulatBRR!C16 -> 600.3 | D16: =RegulatBRR!D16 -> 835.7 | E16: =RegulatBRR!E16 -> 1152.6 | F16: =RegulatBRR!F16 -> 1864.5 | G16: =RegulatBRR!G16 -> 3341.7 | I16: =RegulatBRR!I16 -> 7261 | K16: =RegulatBRR!K16 -> Energisa Mato Grosso do Sul | L16: =RegulatBRR!L16 -> 2003-04-01 | M16: =RegulatBRR!M16 -> 2008-04-01 | N16: =RegulatBRR!N16 -> 2013-04-01 | O16: =RegulatBRR!O16 -> 2018-04-01 | P16: =RegulatBRR!P16 -> 2013-04-08 | Q16: =RegulatBRR!Q16 -> 2028-04-01
B17: =RegulatBRR!B17 -> Energisa Tocantins | C17: =RegulatBRR!C17 -> 179 | D17: =RegulatBRR!D17 -> 238.9 | E17: =RegulatBRR!E17 -> 257.1 | F17: =RegulatBRR!F17 -> 596.2 | G17: =RegulatBRR!G17 -> 1370.5 | I17: =RegulatBRR!I17 -> 3662.5 | K17: =RegulatBRR!K17 -> Energisa Tocantins | L17: =RegulatBRR!L17 -> 2004-07-01 | M17: =RegulatBRR!M17 -> 2008-07-01 | N17: =RegulatBRR!N17 -> 2012-07-01 | O17: =RegulatBRR!O17 -> 2016-07-01 | P17: =RegulatBRR!P17 -> 2020-07-04 | Q17: =RegulatBRR!Q17 -> 2025-07-01
B18: =RegulatBRR!B18 -> Energisa Sul-Sudeste | C18: =RegulatBRR!C18 -> 203.1 | D18: =RegulatBRR!D18 -> 296.4 | E18: =RegulatBRR!E18 -> 320.3 | F18: =RegulatBRR!F18 -> 491.5 | G18: =RegulatBRR!G18 -> 1102.6 | I18: =RegulatBRR!I18 -> 1864.9 | K18: Energisa Sul-Sudeste | L18: =RegulatBRR!L18 -> 2004-05-01 | M18: =RegulatBRR!M18 -> 2008-05-01 | N18: =RegulatBRR!N18 -> 2012-05-01 | O18: =RegulatBRR!O18 -> 2016-05-01 | P18: =RegulatBRR!P18 -> 2021-07-12 | Q18: =RegulatBRR!Q18 -> 2026-07-01
B19: =RegulatBRR!B19 -> Energisa Rondônia | C19: =RegulatBRR!C19 -> 226.1 | D19: =RegulatBRR!D19 -> 335.6 | E19: =RegulatBRR!E19 -> 382.6 | F19: =RegulatBRR!F19 -> 1566.9 | G19: =RegulatBRR!G19 -> 0 | I19: =RegulatBRR!I19 -> 3232.2 | K19: Energisa Rondônia | L19: =RegulatBRR!L20 -> - | M19: =RegulatBRR!M20 -> - | N19: =RegulatBRR!N20 -> 2013-11-01 | O19: =RegulatBRR!O20 -> 2020-12-01 | P19: =RegulatBRR!P20 -> - | Q19: =RegulatBRR!Q20 -> 2028-12-01
B20: =RegulatBRR!B20 -> Energisa Acre | C20: =RegulatBRR!C20 -> 83.3 | D20: =RegulatBRR!D20 -> 171.9 | E20: =RegulatBRR!E20 -> 230.2 | F20: =RegulatBRR!F20 -> 596 | G20: =RegulatBRR!G20 -> 0 | I20: =RegulatBRR!I20 -> 1122.2 | K20: Energisa Acre | L20: =RegulatBRR!L19 -> - | M20: =RegulatBRR!M19 -> - | N20: =RegulatBRR!N19 -> 2013-11-01 | O20: =RegulatBRR!O19 -> 2020-12-01 | P20: =RegulatBRR!P19 -> - | Q20: =RegulatBRR!Q19 -> 2028-12-01
B21: =RegulatBRR!B21 -> Total | C21: =RegulatBRR!C21 -> 2609.3 | D21: =RegulatBRR!D21 -> 4016.4 | E21: =RegulatBRR!E21 -> 5715.7 | F21: =RegulatBRR!F21 -> 11211.3 | G21: =RegulatBRR!G21 -> 16941.3 | I21: =RegulatBRR!I21 -> 23160.9
K22: (1) BRL not ratified by ANEEL, distribution companies have not yet had the rate review in the cycle.
B23: (1) Considers the sum of EMG and ENF. | K23: (2) Technical notes of the distribution companies of the 2nd Cycle Rate Review.
B24: (2) Considers the sum of EPB and EBO. | K24: (3) Technical notes of the distribution companies of the 3rd Cycle Rate Review.
K25: (4) Technical notes of the distribution companies of the 4th Cycle Rate Review.
B26: Note: On 11/30/2022 the company ENF – Energisa Nova Friburgo was merged into the company EMG – Energisa Minas Gerais, which is now called EMR – Energisa Minas Rio. On 4/30/2023 the company EBO – Energisa Borborema was merged into the company EPB – Energisa Paraíba. As of 2Q23 we are considering the consolidated values. | K26: (5) On July 27, 2017, Aneel permanently ratified 4CRTP.
K27: (*) Simply to restate the Regulatory Remuneration Base.

Sheet Investimentos
C2: Investimentos
B5: Inserir Período Comparativo para essa planilha --->
B8: R$ milhões | C8: =IF(C7="",PeríodoAtual,C7) -> 1T25 | D8: =IF(D7="",PeríodoAtual_anoanterior,D7) -> 1T24 | E8: Var (%) | F8: Var (R$) | I8: 1T12 | J8: 2T12 | K8: 3T12 | L8: 4T12 | M8: 1T13 | N8: 2T13 | O8: 3T13 | P8: 4T13 | Q8: 1T14 | R8: 2T14 | S8: 3T14 | T8: 4T14 | U8: 1T15 | V8: 2T15 | W8: 3T15 | X8: 4T15 | Y8: 1T16 | Z8: 2T16 | AA8: 3T16 | AB8: 4T16 | AC8: 1T17 | AD8: 2T17 | AE8: 3T17 | AF8: 4T17 | AG8: 1T18 | AH8: 2T18 | AI8: 3T18 | AJ8: 4T18 | AK8: 1T19 | AL8: 2T19 | AM8: 3T19 | AN8: 4T19 | AO8: 1T20 | AP8: 2T20 | AQ8: 3T20 | AR8: 4T20 | AS8: 1T21 | AT8: 2T21 | AU8: 3T21 | AV8: 4T21 | AW8: 1T22 | AX8: 2T22 | AY8: 3T22 | AZ8: 4T22 | BA8: 1T23 | BB8: 2T23 | BC8: 3T23 | BD8: 4T23 | BE8: 1T24 | BF8: 2T24 | BG8: 3T24 | BH8: 4T24 | BI8: 1T25
A9: Investimentos
A10: Total | B10: Total | H10: Total | I10: =20&RIGHT(I12,2) -> 2012 | J10: =20&RIGHT(J12,2) -> 2012 | K10: 2012 | L10: 2012 | M10: 2013 | N10: 2013 | O10: 2013 | P10: 2013 | Q10: 2014 | R10: 2014 | S10: 2014 | T10: 2014 | U10: 2015 | V10: 2015 | W10: 2015 | X10: 2015 | Y10: 2016 | Z10: 2016 | AA10: 2016 | AB10: 2016 | AC10: =20&RIGHT(AC12,2) -> 2017 | AD10: =20&RIGHT(AD12,2) -> 2017 | AE10: =20&RIGHT(AE12,2) -> 2017 | AF10: =20&RIGHT(AF12,2) -> 2017 | AG10: 2018 | AH10: 2018 | AI10: 2018 | AJ10: 2018 | AK10: 2019 | AL10: 2019 | AM10: 2019 | AN10: 2019 | AO10: 2020 | AP10: 2020 | AQ10: 2020 | AR10: 2020 | AS10: 2021 | AT10: 2021 | AU10: 2021 | AV10: 2021 | AW10: =20&RIGHT(AW12,2) -> 2022 | AX10: 2022 | AY10: 2022 | AZ10: =20&RIGHT(AZ12,2) -> 2022 | BA10: 2023 | BB10: 2023 | BC10: 2023 | BD10: 2023 | BE10: 2024 | BF10: =20&RIGHT(BF12,2) -> 2024 | BG10: =20&RIGHT(BG12,2) -> 2024 | BH10: =20&RIGHT(BH12,2) -> 2024 | BI10: =20&RIGHT(BI12,2) -> 2025
A11: Total
A12: Total | B12: Investimento total | C12: =$C$8 -> 1T25 | D12: =$D$8 -> 1T24 | E12: Var (%) | F12: Var (R$) | I12: 1T12 | J12: 2T12 | K12: 3T12 | L12: 4T12 | M12: 1T13 | N12: 2T13 | O12: 3T13 | P12: 4T13 | Q12: 1T14 | R12: 2T14 | S12: 3T14 | T12: 4T14 | U12: 1T15 | V12: 2T15 | W12: 3T15 | X12: 4T15 | Y12: 1T16 | Z12: 2T16 | AA12: 3T16 | AB12: 4T16 | AC12: 1T17 | AD12: =AD8 -> 2T17 | AE12: =AE8 -> 3T17 | AF12: =$AF$8 -> 4T17 | AG12: =$AG$8 -> 1T18 | AH12: =$AH$8 -> 2T18 | AI12: =AI8 -> 3T18 | AJ12: 4T18 | AK12: 1T19 | AL12: 2T19 | AM12: 3T19 | AN12: 4T19 | AO12: 1T20 | AP12: 2T20 | AQ12: 3T20 | AR12: 4T20 | AS12: 1T21 | AT12: 2T21 | AU12: 3T21 | AV12: 4T21 | AW12: =AW8 -> 1T22 | AX12: 2T22 | AY12: 3T22 | AZ12: =AZ8 -> 4T22 | BA12: 1T23 | BB12: 2T23 | BC12: 3T23 | BD12: 4T23 | BE12: 1T24 | BF12: =BF8 -> 2T24 | BG12: =BG8 -> 3T24 | BH12: =BH8 -> 4T24 | BI12: =BI8 -> 1T25
A13: Total | H13: Valores em
A14: Total
A15: Total
A16: Total | B16: EMG | C16: =INDEX($H$12:$XFD$29,MATCH($B16,$H$12:$H$29,0),MATCH(C$12,$H$12:$XFD$12,0),1) -> 0 | D16: 0 | E16: =IFERROR(IF((C16/D16-1)*100<=-100,"-",IF((C16/D16-1)*100=0,"-",(C16/D16-1)*100)),"-") -> - | F16: =IFERROR(SUM(C16-D16),"-") -> 0 | H16: EMG | I16: 9.1 | J16: 10.4 | K16: 11.2 | L16: 9.3 | M16: =M63+M112+M161 -> 10.5590253 | N16: 19.04983406 | O16: 14.24206997 | P16: 10.58691403 | Q16: 9.27333507 | R16: 11.86074695 | S16: 15.39588022 | T16: 13.00629248 | U16: 10.53460722 | V16: 19.38508201 | W16: 19.50380989 | X16: 19.19002439 | Y16: 8.03450893 | Z16: 14.21549123 | AA16: 14.1 | AB16: 21 | AC16: 21.7 | AD16: 23.4 | AE16: 18 | AF16: 21.8 | AG16: 14.4 | AH16: 19.1 | AI16: 27.8 | AJ16: 16.3 | AK16: 24.1 | AL16: 20.2 | AM16: 18.7 | AN16: 11.9 | AO16: 12.7 | AP16: 27.133 | AQ16: 32.976 | AR16: 27.9 | AS16: 12.6 | AT16: 18.914 | AU16: 24.299 | AV16: 22.274 | AW16: =IFERROR(SUM(AW63+AW112+AW161),"-") -> 26.97 | AX16: =IFERROR(SUM(AX63+AX112+AX161),"-") -> 30.281 | AY16: 33.841 | AZ16: 42.054
A17: Total | B17: ENF | C17: 0 | D17: 0 | E17: - | F17: =IFERROR(SUM(C17-D17),"-") -> 0 | H17: ENF | I17: 1.9 | J17: 2.6 | K17: 3.3 | L17: 2.9 | M17: =M64+M113+M162 -> 1.8035611 | N17: 2.23541728 | O17: 2.54678143 | P17: 1.87484936 | Q17: 1.79075823 | R17: 1.94501879 | S17: 2.4534412 | T17: 2.06788828 | U17: 1.53315386 | V17: 6.22178063 | W17: 7.52570131 | X17: 4.41559555 | Y17: 1.51849993 | Z17: 1.68298791 | AA17: 1.9 | AB17: 1.4 | AC17: 1.7 | AD17: 1.9 | AE17: 1.7 | AF17: 1.4 | AG17: 1.7 | AH17: 2.1 | AI17: 1.7 | AJ17: 2.4 | AK17: 3.2 | AL17: 2.9 | AM17: 2.3 | AN17: 2.3 | AO17: 2.7 | AP17: 4.958 | AQ17: 4.492 | AR17: 5.4 | AS17: 2.1 | AT17: 2.394 | AU17: 2.252 | AV17: 2.955 | AW17: =IFERROR(SUM(AW64+AW113+AW162),"-") -> 8.657 | AX17: 6.295 | AY17: 4.197 | AZ17: 3.213
A18: Total | B18: EMR | C18: 48.20436412 | D18: 35.93021667 | E18: 34.16107273 | F18: 12.27414745 | H18: EMR | AW18: =SUM(AW16:AW17) -> 35.627 | AX18: =SUM(AX16:AX17) -> 36.576 | AY18: 38.038 | AZ18: 45.267 | BA18: =IFERROR(SUM(BA65+BA114+BA163),"-") -> 39.5 | BB18: 63.216 | BC18: 71.512 | BD18: 63.849 | BE18: 35.93021667 | BF18: 57.0987774 | BG18: 75.8087005 | BH18: 66.26206359 | BI18: 48.20436412
A19: Total | B19: ESE | C19: 54.81848435 | D19: 61.51332763 | E19: -10.88356546 | F19: -6.69484328 | H19: ESE | I19: 19.5 | J19: 24.9 | K19: 29.3 | L19: 20.6 | M19: =M66+M115+M164 -> 15.36594471 | N19: 26.1301226 | O19: 18.92127945 | P19: 19.36128783 | Q19: 19.11076366 | R19: 24.92970777 | S19: 24.57444146 | T19: 21.37754024 | U19: 14.20739967 | V19: 19.78105 | W19: 24.00191601 | X19: 17.85727759 | Y19: 18.90681256 | Z19: 23.96575199 | AA19: 24.9 | AB19: 23.1 | AC19: 22.9 | AD19: 30.6 | AE19: 31.9 | AF19: 21.9 | AG19: 18.8 | AH19: 18.7 | AI19: 18.9 | AJ19: 25.6 | AK19: 17.7 | AL19: 22.4 | AM19: 21 | AN19: 28.3 | AO19: 22.9 | AP19: 22.004 | AQ19: 23.299 | AR19: 20 | AS19: 20.5 | AT19: 32.92 | AU19: 45.542 | AV19: 57.394 | AW19: =IFERROR(SUM(AW66+AW115+AW164),"-") -> 68.317 | AX19: 82.002 | AY19: 74.97 | AZ19: 36.981 | BA19: 49.219 | BB19: 52.566 | BC19: 57.3 | BD19: 56.173 | BE19: 61.51332763 | BF19: 59.23220555 | BG19: 70.05753255 | BH19: 78.05761401 | BI19: 54.81848435
A20: Total | B20: EBO | C20: 0 | D20: 0 | E20: - | F20: 0 | H20: EBO | I20: 6.7 | J20: 10.1 | K20: 3.1 | L20: 2 | M20: =M67+M116+M165 -> 2.85420891 | N20: 4.88123642 | O20: 3.20482472 | P20: 4.60384412 | Q20: 5.27601535 | R20: 4.13595758 | S20: 4.68307407 | T20: 6.40150702 | U20: 4.85438764 | V20: 5.00797886 | W20: 15.70057189 | X20: 31.95817488 | Y20: 6.37741178 | Z20: 3.94709914 | AA20: 3.1 | AB20: 2.7 | AC20: 3.3 | AD20: 3.1 | AE20: 3.5 | AF20: 4.5 | AG20: 3.8 | AH20: 3.5 | AI20: 4.2 | AJ20: 8 | AK20: 3.6 | AL20: 4.3 | AM20: 5.3 | AN20: 5.6 | AO20: 4.5 | AP20: 4.62 | AQ20: 4.404 | AR20: 3.2 | AS20: 3.7 | AT20: 4.63 | AU20: 4.526 | AV20: 5.061 | AW20: =IFERROR(SUM(AW67+AW116+AW165),"-") -> 5.148 | AX20: 7.726 | AY20: 7.97 | AZ20: 6.973 | BA20: 7.027
A21: Total | B21: EPB | C21: 0 | D21: 0 | E21: - | F21: 0 | H21: EPB | I21: 33.3 | J21: 31.8 | K21: 33.5 | L21: 73.1 | M21: =M68+M117+M166 -> 26.90710423 | N21: 33.37810552 | O21: 42.54133936 | P21: 39.24888147 | Q21: 38.50902183 | R21: 39.41450843 | S21: 39.25861088 | T21: 37.54117814 | U21: 35.41716681 | V21: 34.52376406 | W21: 31.59943429 | X21: 27.9468412 | Y21: 35.26574391 | Z21: 43.79289157 | AA21: 42.2 | AB21: 38.1 | AC21: 33 | AD21: 35.6 | AE21: 31.9 | AF21: 39.9 | AG21: 30.9 | AH21: 39 | AI21: 44.3 | AJ21: 42.2 | AK21: 42.6 | AL21: 45.4 | AM21: 51.5 | AN21: 53 | AO21: 46.4 | AP21: 49.3 | AQ21: 46.442 | AR21: 55.6 | AS21: 45 | AT21: 46.365 | AU21: 47.974 | AV21: 50.717 | AW21: =IFERROR(SUM(AW68+AW117+AW166),"-") -> 71.447 | AX21: 88.77 | AY21: 99.91 | AZ21: 69.471 | BA21: 86.521
A22: Total | B22: EPB+EBO | C22: 97.29312025 | D22: 91.5905232 | E22: =IFERROR(IF((C22/D22-1)*100<=-100,"-",IF((C22/D22-1)*100=0,"-",(C22/D22-1)*100)),"-") -> 6.226186783 | F22: =IFERROR(SUM(C22-D22),"-") -> 5.70259705 | H22: EPB+EBO | BA22: =BA21+BA20 -> 93.548 | BB22: =IFERROR(SUM(BB69+BB118+BB167),"-") -> 102.972 | BC22: 90.48 | BD22: 105.304 | BE22: 91.5905232 | BF22: 126.1569901 | BG22: 141.623427 | BH22: 144.324708 | BI22: 97.29312025
A23: Total | B23: EMT | C23: 351.8484204 | D23: 278.2114734 | E23: 26.46797634 | F23: 73.63694695 | H23: EMT | I23: 0 | J23: 0 | K23: 0 | L23: 0 | M23: =M70+M119+M168 -> 79.41376362 | N23: 89.91047915 | O23: 130.6650743 | P23: 68.69643115 | Q23: 63.6 | R23: 40.1 | S23: 80 | T23: 120.5 | U23: 80.32191468 | V23: 133.3528793 | W23: 121.9492555 | X23: 158.3319632 | Y23: 119.6006863 | Z23: 163.0073989 | AA23: 215.9 | AB23: 130 | AC23: 117.3 | AD23: 256.5 | AE23: 160.7 | AF23: 175.8 | AG23: 122 | AH23: 167.7 | AI23: 169.7 | AJ23: 240.9 | AK23: 160.8 | AL23: 173.3 | AM23: 232.9 | AN23: 176.3 | AO23: 150.1 | AP23: 127.899 | AQ23: 96.78 | AR23: 91.5 | AS23: 89 | AT23: 131.692 | AU23: 198.85 | AV23: 176.359 | AW23: =IFERROR(SUM(AW70+AW119+AW168),"-") -> 230.597 | AX23: 279.957 | AY23: 298.727 | AZ23: 310.312 | BA23: 262.115 | BB23: 303.137 | BC23: 251.379 | BD23: 292.748 | BE23: 278.2114734 | BF23: 410.0389277 | BG23: 375.7123275 | BH23: 455.0035768 | BI23: 351.8484204
A24: Total | B24: EMS | C24: 177.3196603 | D24: 162.4345399 | E24: 9.163765597 | F24: 14.88512048 | H24: EMS | I24: 0 | J24: 0 | K24: 0 | L24: 0 | M24: =M71+M120+M169 -> 25.30197326 | N24: 43.24778075 | O24: 48.50853908 | P24: 54.64170771 | Q24: 36.38227672 | R24: 31.18520799 | S24: 44.1 | T24: 107.9418254 | U24: 37.61218731 | V24: 52.17890991 | W24: 62.28350369 | X24: 67.97701754 | Y24: 42.98766337 | Z24: 64.49371385 | AA24: 68.4 | AB24: 68.7 | AC24: 149.2 | AD24: 192.6 | AE24: 79.8 | AF24: 45.7 | AG24: 57.2 | AH24: 56.9 | AI24: 61.7 | AJ24: 76.8 | AK24: 57.5 | AL24: 61.3 | AM24: 67.1 | AN24: 52.4 | AO24: 51.1 | AP24: 52.082 | AQ24: 55.292 | AR24: 67 | AS24: 123 | AT24: 91.85 | AU24: 139.221 | AV24: 161.402 | AW24: =IFERROR(SUM(AW71+AW120+AW169),"-") -> 211.844 | AX24: 216.868 | AY24: 269.157 | AZ24: 135.002 | BA24: 139.839 | BB24: 155.233 | BC24: 172.552 | BD24: 144.081 | BE24: 162.4345399 | BF24: 173.0874923 | BG24: 200.7780578 | BH24: 247.860684 | BI24: 177.3196603
A25: Total | B25: ETO | C25: 129.4148529 | D25: 173.9323136 | E25: -25.59470394 | F25: -44.51746071 | H25: ETO | I25: 0 | J25: 0 | K25: 0 | L25: 0 | M25: =M72+M121+M170 -> 23.35990643 | N25: 8.68585627 | O25: 14.07290439 | P25: 23.10812574 | Q25: 22.26526519 | R25: 11.5 | S25: 28.7 | T25: 33 | U25: 44.07829204 | V25: 59.87872735 | W25: 99.51434389 | X25: 113.07867 | Y25: 50.35445397 | Z25: 81.3 | AA25: 87.5 | AB25: 90.3 | AC25: 34.9 | AD25: 50.8 | AE25: 80 | AF25: 80.4 | AG25: 72.6 | AH25: 81.7 | AI25: 63 | AJ25: 73.9 | AK25: 63.4 | AL25: 76.3 | AM25: 86.5 | AN25: 125.5 | AO25: 50.1 | AP25: 48.125 | AQ25: 39.993 | AR25: 35.5 | AS25: 56.5 | AT25: 77.746 | AU25: 72.987 | AV25: 78.098 | AW25: =IFERROR(SUM(AW72+AW121+AW170),"-") -> 87.533 | AX25: 111.054 | AY25: 104.823 | AZ25: 92.454 | BA25: 116.735 | BB25: 128.629 | BC25: 135.725 | BD25: 113.269 | BE25: 173.9323136 | BF25: 192.8593646 | BG25: 188.6088425 | BH25: 192.8239554 | BI25: 129.4148529
A26: Total | B26: ESS | C26: 104.0483825 | D26: 135.8113871 | E26: -23.38758573 | F26: -31.7630046 | H26: ESS | I26: 0 | J26: 0 | K26: 0 | L26: 0 | M26: =M73+M122+M171 -> 8.26654105 | N26: 12.04651249 | O26: 15.70766899 | P26: 17.29326964 | Q26: 14.95821718 | R26: 13.85104119 | S26: 17.68813198 | T26: 39.9649717 | U26: 14.88558642 | V26: 30.93534526 | W26: 48.16066903 | X26: 48.77346878 | Y26: 13.68104414 | Z26: 28.91514774 | AA26: 45.2 | AB26: 15.1 | AC26: 23.3 | AD26: 36.3 | AE26: 46.9 | AF26: 45.1 | AG26: 20.6 | AH26: 35.6 | AI26: 34.8 | AJ26: 48 | AK26: 28.8 | AL26: 43.2 | AM26: 44.8 | AN26: 42.3 | AO26: 45.6 | AP26: 48.756 | AQ26: 51.175 | AR26: 55.7 | AS26: 32.6 | AT26: 32.159 | AU26: 41.903 | AV26: 39.611 | AW26: =IFERROR(SUM(AW73+AW122+AW171),"-") -> 47.397 | AX26: 72.143 | AY26: 75.282 | AZ26: 52.431 | BA26: 72.652 | BB26: 72.347 | BC26: 75.183 | BD26: 92.035 | BE26: 135.8113871 | BF26: 99.5178717 | BG26: 108.4352136 | BH26: 87.96091684 | BI26: 104.0483825
A27: Total | B27: ERO | C27: 145.1932226 | D27: 136.0436017 | E27: 6.725506193 | F27: 9.14962086 | H27: ERO | I27: =I74+I123+I172 -> 33.62374913 | J27: =J74+J123+J172 -> 52.50062506 | K27: 33.46286429 | L27: 66.55586391 | M27: =M74+M123+M172 -> 55.6972587 | N27: 50.19645628 | O27: 56.02501286 | P27: 62.13044082 | Q27: 46.0320562 | R27: 42.65831831 | S27: 43.14531504 | T27: 37.87608022 | U27: 33.26182253 | V27: 30.53855247 | W27: 17.57505119 | X27: 60.2014735 | Y27: 36.06896941 | Z27: 73.26006759 | AA27: 35.69032782 | AB27: 38.92112954 | AC27: 28.02688984 | AD27: 40.98701958 | AE27: 43.00964412 | AF27: 19.76507647 | AG27: 13.21110237 | AH27: 30.56949984 | AI27: 26.5844857 | AJ27: 48.96580065 | AK27: 56.4 | AL27: 181.3 | AM27: 146.4 | AN27: 237.9 | AO27: 188.9 | AP27: 133.766 | AQ27: 160.653 | AR27: 150.6 | AS27: 150.3 | AT27: 215.663 | AU27: 231.752 | AV27: 240.039 | AW27: =IFERROR(SUM(AW74+AW123+AW172),"-") -> 140.972 | AX27: 181.911 | AY27: 253.331 | AZ27: 299.129 | BA27: 157.304 | BB27: 173.691 | BC27: 113.09 | BD27: 101.38 | BE27: 136.0436017 | BF27: 120.8044333 | BG27: 174.7262972 | BH27: 157.6227675 | BI27: 145.1932226
A28: Total | B28: EAC | C28: 50.70475759 | D28: 104.4795696 | E28: -51.4692128 | F28: -53.77481201 | H28: EAC | I28: =I75+I124+I173 -> 11.63353978 | J28: =J75+J124+J173 -> 12.84627463 | K28: =K75+K124+K173 -> 13.33066231 | L28: =L75+L124+L173 -> 11.20216591 | M28: =M75+M124+M173 -> 16.30840659 | N28: 17.67505388 | O28: 17.70035138 | P28: 23.63562153 | Q28: 8.77733695 | R28: 11.98780674 | S28: 14.0703 | T28: 14.7677214 | U28: 12.00876939 | V28: 7.93346001 | W28: 12.346283 | X28: 20.27052574 | Y28: 13.29387853 | Z28: 18.68710241 | AA28: 17.66117165 | AB28: 15.65768646 | AC28: 1.802 | AD28: 10.2371 | AE28: 13.6893 | AF28: 5.9083 | AG28: 1.8954 | AH28: 11.0432 | AI28: 5.8643 | AJ28: 22.941 | AK28: 31.3 | AL28: 40.3 | AM28: 51.7 | AN28: 89 | AO28: 57.9 | AP28: 49.739 | AQ28: 28.274 | AR28: 31.9 | AS28: 25.2 | AT28: 60.179 | AU28: 75.425 | AV28: 85.547 | AW28: =IFERROR(SUM(AW75+AW124+AW173),"-") -> 58.969 | AX28: 139.527 | AY28: 149.004 | AZ28: 109.018 | BA28: 150.839 | BB28: 114.345 | BC28: 87.924 | BD28: 131.989 | BE28: 104.4795696 | BF28: 110.6631078 | BG28: 183.4038489 | BH28: 205.8087814 | BI28: 50.70475759
A29: Total | B29: Total Distribuidoras | C29: 1158.845265 | D29: 1179.946953 | E29: -1.788359024 | F29: -21.10168781 | H29: Total Distribuidoras | I29: =SUM(I16:I28) -> 115.7572889 | J29: 145.1468997 | K29: 127.1935266 | L29: 185.6580298 | M29: 265.8376939 | N29: 307.4368547 | O29: 364.1358459 | P29: 325.1813734 | Q29: 265.9750464 | R29: 233.5683138 | S29: 314.0691948 | T29: 434.4450049 | U29: 288.7152876 | V29: 399.7375298 | W29: 460.1605397 | X29: 570.0010323 | Y29: 346.0896728 | Z29: 517.2676523 | AA29: 556.5514995 | AB29: 444.978816 | AC29: 437.1288898 | AD29: 682.0241196 | AE29: 511.0989441 | AF29: 462.1733765 | AG29: 357.1065024 | AH29: 465.9126998 | AI29: 458.5487857 | AJ29: 606.0068007 | AK29: 489.4 | AL29: 670.9 | AM29: 728.2 | AN29: 824.5 | AO29: 632.9 | AP29: 568.382 | AQ29: 543.78 | AR29: 544.3 | AS29: 560.5 | AT29: 714.512 | AU29: 884.731 | AV29: 919.457 | AW29: =SUM(AW18:AW28) -> 957.851 | AX29: =SUM(AX18:AX28) -> 1216.534 | AY29: 1371.212 | AZ29: 1157.038 | BA29: =SUM(BA18:BA28)-BA22 -> 1081.751 | BB29: 1166.136 | BC29: 1055.145 | BD29: 1100.828 | BE29: 1179.946953 | BF29: 1349.459171 | BG29: 1519.154247 | BH29: =SUM(BH18:BH28) -> 1635.725068 | BI29: =SUM(BI18:BI28) -> 1158.845265
A30: Total | B30: EPA I | C30: =INDEX($H$12:$XFD$55,MATCH($B30,$H$12:$H$55,0),MATCH(C$12,$H$12:$XFD$12,0),1) -> 0.02039344 | D30: 0.14894406 | E30: -86.30798704 | F30: =IFERROR(SUM(C30-D30),"-") -> -0.12855062 | H30: EPA I | I30: =I77+I126+I175 -> 0 | J30: 0 | K30: 0 | L30: 0 | M30: 0 | N30: 0 | O30: 0 | P30: 0 | Q30: 0 | R30: 0 | S30: 0 | T30: 0 | U30: 0 | V30: 0 | W30: 0 | X30: 0 | Y30: 0 | Z30: 0 | AA30: 0 | AB30: 0 | AC30: 0 | AD30: 0 | AE30: 1.9 | AF30: 6.9 | AG30: 3 | AH30: 22.3 | AI30: 6.9 | AJ30: 47.5 | AK30: 26.3 | AL30: 26.5 | AM30: 53.8 | AN30: 45.4 | AO30: 20.2 | AP30: 13.4 | AQ30: 22.247 | AR30: 22.2 | AS30: 0 | AT30: 0 | AU30: 0 | AV30: 0 | AW30: =IFERROR(SUM(AW77+AW126+AW175),"-") -> 0 | AX30: 0 | AY30: 0 | AZ30: 0 | BA30: 0 | BB30: 0 | BC30: 0 | BD30: 0.032 | BE30: 0.14894406 | BF30: 0 | BG30: 0 | BH30: 0.06227298 | BI30: 0.02039344
A31: Total | B31: EPA II | C31: 0.01618005 | D31: 0.05994778 | E31: -73.00975949 | F31: -0.04376773 | H31: EPA II | I31: =I78+I127+I176 -> 0 | J31: 0 | K31: 0 | L31: 0 | M31: 0 | N31: 0 | O31: 0 | P31: 0 | Q31: 0 | R31: 0 | S31: 0 | T31: 0 | U31: 0 | V31: 0 | W31: 0 | X31: 0 | Y31: 0 | Z31: 0 | AA31: 0 | AB31: 0 | AC31: 0 | AD31: 0 | AE31: 0 | AF31: 0 | AG31: 0 | AH31: 0 | AI31: 1.4 | AJ31: 1.5 | AK31: 2.4 | AL31: 14.2 | AM31: 21.7 | AN31: 35.3 | AO31: 22 | AP31: 53 | AQ31: 33.081 | AR31: 29 | AS31: 75.6 | AT31: 39.476 | AU31: 43.81 | AV31: 28.257 | AW31: =IFERROR(SUM(AW78+AW127+AW176),"-") -> 30.678 | AX31: 1.298 | AY31: 11.406 | AZ31: 9.16 | BA31: 10.442 | BB31: 9.726 | BC31: 0 | BD31: 0.021 | BE31: 0.05994778 | BF31: 0.00078677 | BG31: 0 | BH31: 0.02930579 | BI31: 0.01618005
A32: Total | B32: EGO I | C32: 0.0125863 | D32: 0 | E32: - | F32: 0.0125863 | H32: EGO I | I32: =I79+I128+I177 -> 0 | J32: 0 | K32: 0 | L32: 0 | M32: 0 | N32: 0 | O32: 0 | P32: 0 | Q32: 0 | R32: 0 | S32: 0 | T32: 0 | U32: 0 | V32: 0 | W32: 0 | X32: 0 | Y32: 0 | Z32: 0 | AA32: 0 | AB32: 0 | AC32: 0 | AD32: 0 | AE32: 1.5 | AF32: 4.5 | AG32: 3.7 | AH32: 17.8 | AI32: 8.1 | AJ32: 61 | AK32: 21.8 | AL32: 27.8 | AM32: 42.7 | AN32: 31.8 | AO32: 24.2 | AP32: 8.6 | AQ32: 0.968 | AR32: 0 | AS32: 0 | AT32: 0 | AU32: 0 | AV32: 0 | AW32: =IFERROR(SUM(AW79+AW128+AW177),"-") -> 0 | AX32: 0 | AY32: 0 | AZ32: 0 | BA32: 0 | BB32: 0 | BC32: 0 | BD32: 0.032 | BE32: 0 | BF32: 0 | BG32: 0 | BH32: 0 | BI32: 0.0125863
A33: Total | B33: ETT | C33: 0.0224041 | D33: 0 | E33: - | F33: 0.0224041 | H33: ETT | I33: =I80+I129+I178 -> 0 | J33: 0 | K33: 0 | L33: 0 | M33: 0 | N33: 0 | O33: 0 | P33: 0 | Q33: 0 | R33: 0 | S33: 0 | T33: 0 | U33: 0 | V33: 0 | W33: 0 | X33: 0 | Y33: 0 | Z33: 0 | AA33: 0 | AB33: 0 | AC33: 0 | AD33: 0 | AE33: 0 | AF33: 0 | AG33: 0 | AH33: 0 | AI33: 0 | AJ33: 0 | AK33: 0 | AL33: 1.2 | AM33: 2.6 | AN33: 12.1 | AO33: 3 | AP33: 7.2 | AQ33: 7.09 | AR33: 16 | AS33: 32.2 | AT33: 83.291 | AU33: 172.596 | AV33: 88.506 | AW33: =IFERROR(SUM(AW80+AW129+AW178),"-") -> 72.327 | AX33: 130.682 | AY33: 144.797 | AZ33: -32.99 | BA33: 46.587 | BB33: 31.303 | BC33: 106.45 | BD33: 0.018 | BE33: 0 | BF33: 0 | BG33: 0 | BH33: 0 | BI33: 0.0224041
A34: Total | B34: ETT II | C34: -0.12847519 | D34: 3.99836013 | E34: =IFERROR(IF((C34/D34-1)*100<=-100,"-",IF((C34/D34-1)*100=0,"-",(C34/D34-1)*100)),"-") -> - | F34: -4.12683532 | H34: ETT II | I34: =I81+I130+I179 -> 0 | J34: 0 | K34: 0 | L34: 0 | M34: 0 | N34: 0 | O34: 0 | P34: 0 | Q34: 0 | R34: 0 | S34: 0 | T34: 0 | U34: 0 | V34: 0 | W34: 0 | X34: 0 | Y34: 0 | Z34: 0 | AA34: 0 | AB34: 0 | AC34: 0 | AD34: 0 | AE34: 0 | AF34: 0 | AG34: 0 | AH34: 0 | AI34: 0 | AJ34: 0 | AK34: 0 | AL34: 0 | AM34: 0 | AN34: 0 | AO34: 0 | AP34: 0 | AQ34: 0 | AR34: 0 | AS34: 0 | AT34: 0 | AU34: =AU81+AU130+AU179 -> 0 | AV34: 0 | AW34: =IFERROR(SUM(AW81+AW130+AW179),"-") -> 0.371 | AX34: 0.164 | AY34: 1.86 | AZ34: 3.078 | BA34: 3.014 | BB34: 14.492 | BC34: 12.473 | BD34: 9.894 | BE34: 3.99836013 | BF34: 2.01872533 | BG34: 16.37408047 | BH34: -0.90872976 | BI34: -0.12847519
A35: Total | B35: EAM | C35: 22.52559302 | D35: 41.50241211 | E35: -45.72461726 | F35: -18.97681909 | H35: EAM | I35: =I82+I131+I180 -> 0 | J35: 0 | K35: 0 | L35: 0 | M35: 0 | N35: 0 | O35: 0 | P35: 0 | Q35: 0 | R35: 0 | S35: 0 | T35: 0 | U35: 0 | V35: 0 | W35: 0 | X35: 0 | Y35: 0 | Z35: 0 | AA35: 0 | AB35: 0 | AC35: 0 | AD35: 0 | AE35: 0 | AF35: 0 | AG35: 0 | AH35: 0 | AI35: 0 | AJ35: 0 | AK35: 0 | AL35: 0 | AM35: 0 | AN35: 0 | AO35: 0 | AP35: 0 | AQ35: 0 | AR35: 0 | AS35: 241.1 | AT35: 0.439 | AU35: 9.255 | AV35: 6.51 | AW35: =IFERROR(SUM(AW82+AW131+AW180),"-") -> 27.231 | AX35: 12.347 | AY35: 16.835 | AZ35: 24.824 | BA35: 37.434 | BB35: 63.307 | BC35: 47.521 | BD35: 74.67 | BE35: 41.50241211 | BF35: 72.43239347 | BG35: 58.90273751 | BH35: 50.6979672 | BI35: 22.52559302
A36: Total | B36: EAM II | C36: 11.46190033 | D36: 0.78097121 | E36: 1367.646974 | F36: 10.68092912 | H36: EAM II | I36: =I83+I132+I181 -> 0 | J36: 0 | K36: 0 | L36: 0 | M36: 0 | N36: 0 | O36: 0 | P36: 0 | Q36: 0 | R36: 0 | S36: 0 | T36: 0 | U36: 0 | V36: 0 | W36: 0 | X36: 0 | Y36: 0 | Z36: 0 | AA36: 0 | AB36: 0 | AC36: 0 | AD36: 0 | AE36: 0 | AF36: 0 | AG36: 0 | AH36: 0 | AI36: 0 | AJ36: 0 | AK36: 0 | AL36: 0 | AM36: 0 | AN36: 0 | AO36: 0 | AP36: 0 | AQ36: 0 | AR36: 0 | AS36: 0 | AT36: 0.835 | AU36: 0.482 | AV36: 0.013 | AW36: =IFERROR(SUM(AW83+AW132+AW181),"-") -> 0 | AX36: 0 | AY36: 0 | AZ36: 0 | BA36: - | BB36: - | BC36: 7.898 | BD36: 11.182 | BE36: 0.78097121 | BF36: 13.41211839 | BG36: 28.72080172 | BH36: 50.66899552 | BI36: 11.46190033
A37: Total | B37: EAP | C37: -0.68067021 | D37: 31.35813621 | E37: - | F37: -32.03880642 | H37: EAP | I37: =I84+I133+I182 -> 0 | J37: 0 | K37: 0 | L37: 0 | M37: 0 | N37: 0 | O37: 0 | P37: 0 | Q37: 0 | R37: 0 | S37: 0 | T37: 0 | U37: 0 | V37: 0 | W37: 0 | X37: 0 | Y37: 0 | Z37: 0 | AA37: 0 | AB37: 0 | AC37: 0 | AD37: 0 | AE37: 0 | AF37: 0 | AG37: 0 | AH37: 0 | AI37: 0 | AJ37: 0 | AK37: 0 | AL37: 0 | AM37: 0 | AN37: 0 | AO37: 0 | AP37: 0 | AQ37: 0 | AR37: 0 | AS37: 0 | AT37: 0 | AU37: 0 | AV37: 0 | AW37: =IFERROR(SUM(AW84+AW133+AW182),"-") -> 2.944 | AX37: 0.724 | AY37: 1.783 | AZ37: 2.765 | BA37: 3.254 | BB37: 13.886 | BC37: 3.939 | BD37: 26.733 | BE37: 31.35813621 | BF37: 32.25876097 | BG37: 15.00936562 | BH37: 20.64557732 | BI37: -0.68067021
A38: Total | B38: EPT | C38: 0 | D38: 0 | E38: - | F38: 0 | H38: EPT | AW38: =IFERROR(SUM(AW85+AW134+AW183),"-") -> 0 | AX38: 0 | AY38: 0 | AZ38: 0 | BA38: 0 | BB38: 0.004 | BC38: 0.014 | BD38: 0 | BE38: 0 | BF38: 0 | BG38: 0.06142422 | BH38: 0.34337656 | BI38: 0
A39: Total | B39: EMA I | C39: 0.72793778 | D39: - | E39: =IFERROR(IF((C39/D39-1)*100<=-100,"-",IF((C39/D39-1)*100=0,"-",(C39/D39-1)*100)),"-") -> - | F39: =IFERROR(SUM(C39-D39),"-") -> - | H39: EMA I | AW39: 0 | AX39: 0 | AY39: 0 | AZ39: 0 | BA39: 0 | BB39: 0 | BC39: 0 | BD39: 0 | BE39: - | BF39: - | BG39: - | BH39: 2.67219876 | BI39: 0.72793778
A40: Total | B40: GEMINI Consolidado | C40: 6.42274743 | D40: 10.54481959 | E40: -39.09096903 | F40: -4.12207216 | H40: GEMINI Consolidado | I40: =I87+I136+I185 -> 0 | J40: 0 | K40: 0 | L40: 0 | M40: 0 | N40: 0 | O40: 0 | P40: 0 | Q40: 0 | R40: 0 | S40: 0 | T40: 0 | U40: 0 | V40: 0 | W40: 0 | X40: 0 | Y40: 0 | Z40: 0 | AA40: 0 | AB40: 0 | AC40: 0 | AD40: 0 | AE40: 0 | AF40: 0 | AG40: 0 | AH40: 0 | AI40: 0 | AJ40: 0 | AK40: 0 | AL40: 0 | AM40: 0 | AN40: 0 | AO40: 0 | AP40: 0 | AQ40: 0 | AR40: 0 | AS40: 0 | AT40: 0 | AU40: 0 | AV40: 0 | AW40: =IFERROR(SUM(AW87+AW136+AW185),"-") -> 10.756 | AX40: 11.763 | AY40: 0.286 | AZ40: 5.311 | BA40: 0.146 | BB40: 4.233 | BC40: 6.502 | BD40: 19.674 | BE40: 10.54481959 | BF40: 8.03237545 | BG40: 35.27247995 | BH40: 47.92512524 | BI40: 6.42274743
A41: Total | B41: Total Transmissoras | C41: =SUBTOTAL(9,C30:C40) -> 40.40059705 | D41: =SUBTOTAL(9,D30:D40) -> 88.39359109 | E41: -54.29465355 | F41: -47.99299404 | H41: Total Transmissoras | I41: =SUM(I30:I40) -> 0 | J41: =SUM(J30:J40) -> 0 | K41: 0 | L41: 0 | M41: 0 | N41: 0 | O41: 0 | P41: 0 | Q41: 0 | R41: 0 | S41: 0 | T41: 0 | U41: 0 | V41: 0 | W41: 0 | X41: 0 | Y41: 0 | Z41: 0 | AA41: 0 | AB41: 0 | AC41: 0 | AD41: 0 | AE41: 3.4 | AF41: 11.4 | AG41: 6.7 | AH41: 40.1 | AI41: 16.4 | AJ41: 110 | AK41: 50.5 | AL41: 69.7 | AM41: 120.8 | AN41: 124.6 | AO41: 69.4 | AP41: 82.2 | AQ41: 63.386 | AR41: 67.2 | AS41: 348.9 | AT41: 124.041 | AU41: 226.143 | AV41: 123.286 | AW41: 144.307 | AX41: 156.978 | AY41: 176.967 | AZ41: 12.148 | BA41: 100.877 | BB41: 136.951 | BC41: 184.797 | BD41: 142.256 | BE41: =SUM(BE30:BE40) -> 88.39359109 | BF41: =SUM(BF30:BF40) -> 128.1551604 | BG41: =SUM(BG30:BG40) -> 154.3408895 | BH41: =SUM(BH30:BH40) -> 172.1360896 | BI41: =SUM(BI30:BI40) -> 40.40059705
A42: Total | B42: ALSOL Consolidado | C42: =INDEX($H$12:$XFD$55,MATCH($B42,$H$12:$H$55,0),MATCH(C$12,$H$12:$XFD$12,0),1) -> 42.28704015 | D42: 50.1 | E42: -15.59473024 | F42: =IFERROR(SUM(C42-D42),"-") -> -7.81295985 | H42: ALSOL Consolidado | I42: =I89+I138+I187 -> 0 | J42: 0 | K42: 0 | L42: 0 | M42: 0 | N42: 0 | O42: 0 | P42: 0 | Q42: 0 | R42: 0 | S42: 0 | T42: 0 | U42: 0 | V42: 0 | W42: 0 | X42: 0 | Y42: 0 | Z42: 0 | AA42: 0 | AB42: 0 | AC42: 0 | AD42: 0 | AE42: 0 | AF42: 0 | AG42: 0 | AH42: 0 | AI42: 0 | AJ42: 0 | AK42: 0 | AL42: 0 | AM42: 0 | AN42: 0 | AO42: 0 | AP42: 0 | AQ42: 0 | AR42: 0 | AS42: 21 | AT42: 49.009 | AU42: 66.548 | AV42: 54.133 | AW42: =IFERROR(SUM(AW89+AW138+AW187),"-") -> 93.416 | AX42: 139.212 | AY42: 223.4 | AZ42: 386.8 | BA42: 162.855 | BB42: 409.861 | BC42: 265.089 | BD42: 83.354 | BE42: 50.1 | BF42: 82.83436211 | BG42: 103.6717203 | BH42: 93.39188429 | BI42: 42.28704015
A43: Total | B43: ECOM | C43: 0.05805373 | D43: 0.59226952 | E43: =IFERROR(IF((C43/D43-1)*100<=-100,"-",IF((C43/D43-1)*100=0,"-",(C43/D43-1)*100)),"-") -> -90.19808921 | F43: -0.53421579 | H43: ECOM | I43: =I97+I146+I195 -> 0 | J43: 0 | K43: 0 | L43: 0 | M43: 0 | N43: 0 | O43: 0 | P43: 0 | Q43: 0 | R43: 0 | S43: 0 | T43: 0 | U43: 0 | V43: 0 | W43: 0 | X43: 0 | Y43: 0 | Z43: 0 | AA43: 0 | AB43: 0 | AC43: 0 | AD43: 0 | AE43: 0 | AF43: 0 | AG43: 0 | AH43: 0 | AI43: 0 | AJ43: 0 | AK43: 0 | AL43: 0 | AM43: 0 | AN43: 0 | AO43: 0 | AP43: 0 | AQ43: 0 | AR43: 0 | AS43: 0 | AT43: 0 | AU43: 0 | AV43: 0 | AW43: =IFERROR(SUM(AW90+AW139+AW188),"-") -> 0.065 | AX43: 0.011 | AY43: 0.153 | AZ43: 0.114 | BA43: 0.044 | BB43: 0.079 | BC43: 0.787 | BD43: 0.249 | BE43: 0.59226952 | BF43: 1.15530129 | BG43: 2.50448388 | BH43: 3.31488963 | BI43: 0.05805373
A44: Total | B44: ESOL Consolidada | C44: 0.71464492 | D44: 0.98955602 | E44: -27.78125689 | F44: -0.2749111 | H44: ESOL Consolidada | I44: =I88+I137+I186 -> 0 | J44: 0 | K44: 0 | L44: 0 | M44: 0 | N44: 0 | O44: 0 | P44: 0 | Q44: 0 | R44: 0 | S44: 0 | T44: 0 | U44: 0 | V44: 0 | W44: 0 | X44: 0 | Y44: 0 | Z44: 0 | AA44: 0 | AB44: 0 | AC44: 0 | AD44: 0 | AE44: 3.4 | AF44: 11.4 | AG44: 6.7 | AH44: 40.1 | AI44: 16.4 | AJ44: 110 | AK44: 50.5 | AL44: 69.7 | AM44: 120.8 | AN44: 124.6 | AO44: 69.4 | AP44: 82.2 | AQ44: 63.386 | AR44: 67.2 | AS44: 348.9 | AT44: 124.041 | AU44: 226.143 | AV44: 123.286 | AW44: =IFERROR(SUM(AW91+AW140+AW189),"-") -> 6.236 | AX44: 6.716 | AY44: 8.957 | AZ44: 5.037 | BA44: 3.44 | BB44: 4.234 | BC44: 6.629 | BD44: 4.16 | BE44: 0.98955602 | BF44: 3.11180558 | BG44: 4.86959932 | BH44: 2.39282825 | BI44: 0.71464492
A45: Total | B45: (re)energisa | C45: =SUBTOTAL(9,C42:C44) -> 43.0597388 | D45: =SUBTOTAL(9,D42:D44) -> 51.68182554 | E45: -16.68301506 | F45: -8.62208674 | H45: (re)energisa | I45: =SUM(I42:I44) -> 0 | J45: =SUM(J42:J44) -> 0 | K45: 0 | L45: 0 | M45: 0 | N45: 0 | O45: 0 | P45: 0 | Q45: 0 | R45: 0 | S45: 0 | T45: 0 | U45: 0 | V45: 0 | W45: 0 | X45: 0 | Y45: 0 | Z45: 0 | AA45: 0 | AB45: 0 | AC45: 0 | AD45: 0 | AE45: 3.4 | AF45: 11.4 | AG45: 6.7 | AH45: 40.1 | AI45: 16.4 | AJ45: 110 | AK45: 50.5 | AL45: 69.7 | AM45: 120.8 | AN45: 124.6 | AO45: 69.4 | AP45: 82.2 | AQ45: 63.386 | AR45: 67.2 | AS45: 369.9 | AT45: 173.05 | AU45: 292.691 | AV45: 177.419 | AW45: 99.717 | AX45: 145.939 | AY45: 232.51 | AZ45: 391.951 | BA45: 166.339 | BB45: 414.174 | BC45: 272.505 | BD45: 87.763 | BE45: =SUM(BE42:BE44) -> 51.68182554 | BF45: =SUM(BF42:BF44) -> 87.10146898 | BG45: =SUM(BG42:BG44) -> 111.0458035 | BH45: =SUM(BH42:BH44) -> 99.09960217 | BI45: =SUM(BI42:BI44) -> 43.0597388
A46: Total | B46: ES Gás | C46: =INDEX($H$12:$XFD$55,MATCH($B46,$H$12:$H$55,0),MATCH(C$12,$H$12:$XFD$12,0),1) -> 17.32094818 | D46: =INDEX($H$12:$XFD$55,MATCH($B46,$H$12:$H$55,0),MATCH(D$12,$H$12:$XFD$12,0),1) -> 7.441 | E46: 132.777156 | F46: 9.87994818 | H46: ES Gás | I46: 0 | J46: 0 | K46: 0 | L46: 0 | M46: 0 | N46: 0 | O46: 0 | P46: 0 | Q46: 0 | R46: 0 | S46: 0 | T46: 0 | U46: 0 | V46: 0 | W46: 0 | X46: 0 | Y46: 0 | Z46: 0 | AA46: 0 | AB46: 0 | AC46: 0 | AD46: 0 | AE46: 0 | AF46: 0 | AG46: 0 | AH46: 0 | AI46: 0 | AJ46: 0 | AK46: 0 | AL46: 0 | AM46: 0 | AN46: 0 | AO46: 0 | AP46: 0 | AQ46: 0 | AR46: 0 | AS46: 0 | AT46: 0 | AU46: 0 | AV46: 0 | AW46: =IFERROR(SUM(AW93+AW142+AW191),"-") -> 0 | AX46: 0 | AY46: 0 | AZ46: 0 | BA46: 0 | BB46: 0 | BC46: 11.27030538 | BD46: 24.55573588 | BE46: 7.441 | BF46: 17.299 | BG46: 21.618 | BH46: 46.78 | BI46: 17.32094818
A47: Total | B47: Distribuição de gás natural | C47: =SUBTOTAL(9,C46) -> 17.32094818 | D47: =SUBTOTAL(9,D46) -> 7.441 | E47: 132.777156 | F47: 9.87994818 | H47: Distribuição de gás natural | I47: =I46 -> 0 | J47: =J46 -> 0 | K47: 0 | L47: 0 | M47: 0 | N47: 0 | O47: 0 | P47: 0 | Q47: 0 | R47: 0 | S47: 0 | T47: 0 | U47: 0 | V47: 0 | W47: 0 | X47: 0 | Y47: 0 | Z47: 0 | AA47: 0 | AB47: 0 | AC47: 0 | AD47: 0 | AE47: 0 | AF47: 0 | AG47: 0 | AH47: 0 | AI47: 0 | AJ47: 0 | AK47: 0 | AL47: 0 | AM47: 0 | AN47: 0 | AO47: 0 | AP47: 0 | AQ47: 0 | AR47: 0 | AS47: 0 | AT47: 0 | AU47: 0 | AV47: 0 | AW47: 0 | AX47: 0 | AY47: 0 | AZ47: 0 | BA47: 0 | BB47: 0 | BC47: 11.27030538 | BD47: 24.55573588 | BE47: =SUM(BE46) -> 7.441 | BF47: =SUM(BF46) -> 17.299 | BG47: =SUM(BG46) -> 21.618 | BH47: =SUM(BH46) -> 46.78 | BI47: =SUM(BI46) -> 17.32094818
A48: Total | B48: AGRIC | C48: =INDEX($H$12:$XFD$55,MATCH($B48,$H$12:$H$55,0),MATCH(C$12,$H$12:$XFD$12,0),1) -> 65.7 | D48: =INDEX($H$12:$XFD$55,MATCH($B48,$H$12:$H$55,0),MATCH(D$12,$H$12:$XFD$12,0),1) -> 0.94883374 | E48: 6824.290024 | F48: =IFERROR(SUM(C48-D48),"-") -> 64.75116626 | H48: AGRIC | I48: 0 | J48: 0 | K48: 0 | L48: 0 | M48: 0 | N48: 0 | O48: 0 | P48: 0 | Q48: 0 | R48: 0 | S48: 0 | T48: 0 | U48: 0 | V48: 0 | W48: 0 | X48: 0 | Y48: 0 | Z48: 0 | AA48: 0 | AB48: 0 | AC48: 0 | AD48: 0 | AE48: 0 | AF48: 0 | AG48: 0 | AH48: 0 | AI48: 0 | AJ48: 0 | AK48: 0 | AL48: 0 | AM48: 0 | AN48: 0 | AO48: 0 | AP48: 0 | AQ48: 0 | AR48: 0 | AS48: 0 | AT48: 0 | AU48: 0 | AV48: 0 | AW48: =IFERROR(SUM(AW95+AW144+AW193),"-") -> 0 | AX48: 0 | AY48: 0 | AZ48: 0 | BA48: 0 | BB48: 0 | BC48: 0 | BD48: 3.474 | BE48: 0.94883374 | BF48: 6.90828122 | BG48: 5.68448529 | BH48: 14.84639975 | BI48: 65.7
A49: Total | B49: Biogás | C49: =SUBTOTAL(9,C48) -> 65.7 | D49: =SUBTOTAL(9,D48) -> 0.94883374 | E49: 6824.290024 | F49: =IFERROR(SUM(C49-D49),"-") -> 64.75116626 | H49: Biogás | I49: =I48 -> 0 | J49: =J48 -> 0 | K49: 0 | L49: 0 | M49: 0 | N49: 0 | O49: 0 | P49: 0 | Q49: 0 | R49: 0 | S49: 0 | T49: 0 | U49: 0 | V49: 0 | W49: 0 | X49: 0 | Y49: 0 | Z49: 0 | AA49: 0 | AB49: 0 | AC49: 0 | AD49: 0 | AE49: 0 | AF49: 0 | AG49: 0 | AH49: 0 | AI49: 0 | AJ49: 0 | AK49: 0 | AL49: 0 | AM49: 0 | AN49: 0 | AO49: 0 | AP49: 0 | AQ49: 0 | AR49: 0 | AS49: 0 | AT49: 0 | AU49: 0 | AV49: 0 | AW49: 0 | AX49: 0 | AY49: 0 | AZ49: 0 | BA49: 0 | BB49: 0 | BC49: 0 | BD49: 3.474 | BE49: =SUM(BE48) -> 0.94883374 | BF49: =SUM(BF48) -> 6.90828122 | BG49: =SUM(BG48) -> 5.68448529 | BH49: =SUM(BH48) -> 14.84639975 | BI49: =SUM(BI48) -> 65.7
A50: Total | B50: RIO PEIXE I | C50: =INDEX($H$12:$XFD$55,MATCH($B50,$H$12:$H$55,0),MATCH(C$12,$H$12:$XFD$12,0),1) -> 0 | D50: 0 | E50: =IFERROR(IF((C50/D50-1)*100<=-100,"-",IF((C50/D50-1)*100=0,"-",(C50/D50-1)*100)),"-") -> - | F50: 0 | H50: RIO PEIXE I | I50: =I97+I146+I195 -> 0 | J50: 0 | K50: 0 | L50: 0 | M50: 0 | N50: 0 | O50: 0 | P50: 0 | Q50: 0 | R50: 0 | S50: 0 | T50: 0 | U50: 0 | V50: 0 | W50: 0 | X50: 0 | Y50: 0 | Z50: 0 | AA50: 0 | AB50: 0 | AC50: 0 | AD50: 0 | AE50: 0 | AF50: 0 | AG50: 0 | AH50: 0 | AI50: 0 | AJ50: 0 | AK50: 0 | AL50: 0 | AM50: 0 | AN50: 0 | AO50: 0 | AP50: 0 | AQ50: 0 | AR50: 0 | AS50: 0 | AT50: 0 | AU50: 0 | AV50: 0 | AW50: =IFERROR(SUM(AW97+AW146+AW195),"-") -> 99.217 | AX50: 42.308 | AY50: 21.728 | AZ50: 13.024 | BA50: 0.681 | BB50: 0 | BC50: 0.005 | BD50: 0.698 | BE50: 0 | BF50: 0.36147998 | BG50: 0 | BH50: 0.01171513 | BI50: 0
A51: Total | B51: RIO PEIXE II | C51: - | D51: - | E51: - | F51: - | H51: RIO PEIXE II | I51: =I98+I147+I196 -> 0 | J51: 0 | K51: 0 | L51: 0 | M51: 0 | N51: 0 | O51: 0 | P51: 0 | Q51: 0 | R51: 0 | S51: 0 | T51: 0 | U51: 0 | V51: 0 | W51: 0 | X51: 0 | Y51: 0 | Z51: 0 | AA51: 0 | AB51: 0 | AC51: 0 | AD51: 0 | AE51: 0 | AF51: 0 | AG51: 0 | AH51: 0 | AI51: 0 | AJ51: 0 | AK51: 0 | AL51: 0 | AM51: 0 | AN51: 0 | AO51: 0 | AP51: 0 | AQ51: 0 | AR51: 0 | AS51: 0 | AT51: 0 | AU51: 0 | AV51: 0 | AW51: =IFERROR(SUM(AW98+AW147+AW196),"-") -> 96.895 | AX51: 35.542 | AY51: 11.643 | AZ51: 3.879 | BA51: 0.506 | BB51: 0 | BC51: 0 | BD51: 0 | BE51: - | BF51: - | BG51: - | BH51: - | BI51: -
A52: Total | B52: Outras empresas | C52: 2.28525455 | D52: 6.25040665 | E52: -63.43830605 | F52: -3.9651521 | H52: Outras empresas | I52: =I98+I147+I196 -> 0 | J52: 0 | K52: 0 | L52: 0 | M52: 0 | N52: 0 | O52: 0 | P52: 0 | Q52: 0 | R52: 0 | S52: 0 | T52: 0 | U52: 0 | V52: 0 | W52: 0 | X52: 0 | Y52: 0 | Z52: 0 | AA52: 0 | AB52: 0 | AC52: 0 | AD52: 0 | AE52: 0 | AF52: 0 | AG52: 0 | AH52: 0 | AI52: 0 | AJ52: 0 | AK52: 0 | AL52: 0 | AM52: 0 | AN52: 0 | AO52: 0 | AP52: 0 | AQ52: 0 | AR52: 0 | AS52: 0 | AT52: 0 | AU52: 0 | AV52: 0 | AW52: =IFERROR(SUM(AW99+AW148+AW197),"-") -> 3.311 | AX52: 5.341 | AY52: 16.101 | AZ52: 16.002 | BA52: 4.751 | BB52: 13.287 | BC52: 22.968 | BD52: 26.108 | BE52: 6.25040665 | BF52: 2.37830193 | BG52: 15.41196094 | BH52: 47.42889397 | BI52: 2.28525455
A53: Total | B53: Holding e outras empresas | C53: =SUBTOTAL(9,C36:C52) -> 146.2978569 | D53: =SUBTOTAL(9,D36:D52) -> 109.0059929 | E53: 34.21083824 | F53: 37.29186392 | H53: Holding e outras empresas | I53: =SUM(I50:I52) -> 0 | J53: =SUM(J50:J52) -> 0 | K53: 0 | L53: 0 | M53: 0 | N53: 0 | O53: 0 | P53: 0 | Q53: 0 | R53: 0 | S53: 0 | T53: 0 | U53: 0 | V53: 0 | W53: 0 | X53: 0 | Y53: 0 | Z53: 0 | AA53: 0 | AB53: 0 | AC53: 0 | AD53: 0 | AE53: 0 | AF53: 0 | AG53: 0 | AH53: 0 | AI53: 0 | AJ53: 0 | AK53: 0 | AL53: 0 | AM53: 0 | AN53: 0 | AO53: 0 | AP53: 0 | AQ53: 0 | AR53: 0 | AS53: 0 | AT53: 0 | AU53: 0 | AV53: 0 | AW53: 199.423 | AX53: 83.191 | AY53: 49.472 | AZ53: 32.905 | BA53: 5.938 | BB53: 13.287 | BC53: 22.973 | BD53: 26.806 | BE53: =SUM(BE50:BE52) -> 6.25040665 | BF53: =SUM(BF50:BF52) -> 2.73978191 | BG53: =SUM(BG50:BG52) -> 15.41196094 | BH53: =SUM(BH50:BH52) -> 47.4406091 | BI53: =SUM(BI50:BI52) -> 2.28525455
A54: Total | E54: - | F54: 0
A55: Total | B55: Total | C55: =C53+C47+C45+C41+C29 -> 1405.924406 | D55: =D53+D47+D45+D41+D29 -> 1436.469362 | E55: -2.126391087 | F55: -30.54495649 | H55: Total | I55: =I53+I49+I47+I45+I29+I41 -> 115.7572889 | J55: =J53+J49+J47+J45+J29+J41 -> 145.1468997 | K55: 127.1935266 | L55: 185.6580298 | M55: 265.8376939 | N55: 307.4368547 | O55: 364.1358459 | P55: 325.1813734 | Q55: 265.9750464 | R55: 233.5683138 | S55: 314.0691948 | T55: 434.4450049 | U55: 288.7152876 | V55: 399.7375298 | W55: 460.1605397 | X55: 570.0010323 | Y55: 346.0896728 | Z55: 517.2676523 | AA55: 556.5514995 | AB55: 444.978816 | AC55: 437.1288898 | AD55: 682.0241196 | AE55: 517.8989441 | AF55: 484.9733765 | AG55: 370.5065024 | AH55: 546.1126998 | AI55: 491.3487857 | AJ55: 826.0068007 | AK55: 590.4 | AL55: 810.3 | AM55: 969.8 | AN55: 1073.7 | AO55: 771.7 | AP55: 732.782 | AQ55: 670.552 | AR55: 678.7 | AS55: 1279.3 | AT55: 1011.603 | AU55: 1403.565 | AV55: 1220.162 | AW55: 1401.298 | AX55: 1602.642 | AY55: 1830.161 | AZ55: 1594.042 | BA55: 1354.905 | BB55: 1730.548 | BC55: 1546.690305 | BD55: 1385.682736 | BE55: 1334.66261 | BF55: =BF53+BF49+BF47+BF45+BF29+BF41 -> 1591.662863 | BG55: =BG53+BG49+BG47+BG45+BG29+BG41 -> 1827.255387 | BH55: =BH53+BH49+BH47+BH45+BH29+BH41 -> 2016.027768 | BI55: =BI53+BI49+BI47+BI45+BI29+BI41 -> 1327.611804
A56: Total
A57: Ativo Elétrico | B57: Ativo Elétrico | H57: Ativo Elétrico
A58: Ativo Elétrico
A59: Ativo Elétrico | C59: =$C$8 -> 1T25 | D59: =$D$8 -> 1T24 | E59: Var (%) | F59: Var (R$) | I59: 1T12 | J59: 2T12 | K59: 3T12 | L59: 4T12 | M59: 1T13 | N59: 2T13 | O59: 3T13 | P59: 4T13 | Q59: 1T14 | R59: 2T14 | S59: 3T14 | T59: 4T14 | U59: 1T15 | V59: 2T15 | W59: 3T15 | X59: 4T15 | Y59: 1T16 | Z59: 2T16 | AA59: 3T16 | AB59: 4T16 | AC59: 1T17 | AD59: 2T17 | AE59: 3T17 | AF59: =$AF$8 -> 4T17 | AG59: =$AG$8 -> 1T18 | AH59: =$AH$8 -> 2T18 | AI59: =AI12 -> 3T18 | AJ59: 4T18 | AK59: 1T19 | AL59: 2T19 | AM59: 3T19 | AN59: 4T19 | AO59: 1T20 | AP59: 2T20 | AQ59: 3T20 | AR59: 4T20 | AS59: 1T21 | AT59: 2T21 | AU59: 3T21 | AV59: 4T21 | AW59: =AW12 -> 1T22 | AX59: 2T22 | AY59: 3T22 | AZ59: =AZ12 -> 4T22 | BA59: 1T23 | BB59: 2T23 | BC59: 3T23 | BD59: 4T23 | BE59: 1T24 | BF59: =BF12 -> 2T24 | BG59: =BG12 -> 3T24 | BH59: =BH12 -> 4T24 | BI59: =BI12 -> 1T25
A60: Ativo Elétrico | H60: Valores em
A61: Ativo Elétrico
A62: Ativo Elétrico
A63: Ativo Elétrico | B63: EMG | C63: =INDEX($H$59:$XFD$76,MATCH($B63,$H$59:$H$76,0),MATCH(C$12,$H$12:$XFD$12,0),1) -> 0 | D63: 0 | E63: =IFERROR(IF((C63/D63-1)*100<=-100,"-",IF((C63/D63-1)*100=0,"-",(C63/D63-1)*100)),"-") -> - | F63: =IFERROR(SUM(C63-D63),"-") -> 0 | H63: EMG | I63: 0 | J63: 0 | K63: 0 | L63: 0 | M63: 6.742945247 | N63: 22.00950026 | O63: 0.7878630352 | P63: 1.766771826 | Q63: 5.36536966 | R63: 8.41767325 | S63: 9.66620889 | T63: 9.37872914 | U63: 7.69468506 | V63: 16.35306004 | W63: 16.98141055 | X63: 14.85498108 | Y63: 5.82160175 | Z63: 10.51549123 | AA63: 9.8 | AB63: 10.4 | AC63: 10 | AD63: 9.5 | AE63: 7.8 | AF63: 6.4 | AG63: 9 | AH63: 8.7 | AI63: 7.2 | AJ63: 9.3 | AK63: 9.4 | AL63: 16.4 | AM63: 15.9 | AN63: 9.7 | AO63: 10.8 | AP63: 25.9 | AQ63: 26.423 | AR63: 24.8 | AS63: 11.5 | AT63: 17.772 | AU63: 21.047 | AV63: 16.48 | AW63: 23.228 | AX63: 27.872 | AY63: 27.537 | AZ63: 36.714
A64: Ativo Elétrico | B64: ENF | C64: 0 | D64: 0 | E64: - | F64: 0 | H64: ENF | I64: 0 | J64: 0 | K64: 0 | L64: 0 | M64: 1.29130288 | N64: 1.55400334 | O64: 1.98553787 | P64: 1.3580187 | Q64: 0.94529337 | R64: 1.21602776 | S64: 1.86291043 | T64: 1.36016766 | U64: 1.03016532 | V64: 4.83621528 | W64: 7.42682972 | X64: 3.77146534 | Y64: 1.10038436 | Z64: 1.18298791 | AA64: 1.6 | AB64: 0.9 | AC64: 1.1 | AD64: 1.4 | AE64: 1.5 | AF64: 0.6 | AG64: 1.4 | AH64: 1.6 | AI64: 1.2 | AJ64: 2.4 | AK64: 2.9 | AL64: 2.5 | AM64: 2.2 | AN64: 2.1 | AO64: 2.5 | AP64: 4.5 | AQ64: 3.949 | AR64: 3.9 | AS64: 1.8 | AT64: 2.362 | AU64: 2.162 | AV64: 2.682 | AW64: 8.412 | AX64: 5.796 | AY64: 3.272 | AZ64: 2.784
A65: Ativo Elétrico | B65: EMR | C65: 44.11743625 | D65: 32.74734751 | E65: 34.7206403 | F65: 11.37008874 | H65: EMR | AW65: =SUM(AW63:AW64) -> 31.64 | AX65: =SUM(AX63:AX64) -> 33.668 | AY65: 30.809 | AZ65: 39.498 | BA65: 36.21 | BB65: 58.317 | BC65: 64.264 | BD65: 57.771 | BE65: 32.74734751 | BF65: 51.68418444 | BG65: 68.91314813 | BH65: 58.96646818 | BI65: 44.11743625
A66: Ativo Elétrico | B66: ESE | C66: 50.6911001 | D66: 57.63534306 | E66: -12.04858442 | F66: -6.944242963 | H66: ESE | I66: 0 | J66: 0 | K66: 0 | L66: 0 | M66: 5.016890325 | N66: 13.56006295 | O66: 12.61870824 | P66: 7.714070258 | Q66: 10.76034375 | R66: 17.91460163 | S66: 24.80648935 | T66: 17.42353145 | U66: 9.53360049 | V66: 14.28890251 | W66: 17.70055584 | X66: 11.260965 | Y66: 13.44673154 | Z66: 16.46575199 | AA66: 12.9 | AB66: 13.4 | AC66: 19.7 | AD66: 25.7 | AE66: 27.1 | AF66: 11 | AG66: 11.3 | AH66: 13.7 | AI66: 11.2 | AJ66: 20.8 | AK66: 15.8 | AL66: 18.4 | AM66: 16.7 | AN66: 19.7 | AO66: 18.3 | AP66: 20.5 | AQ66: 21.958 | AR66: 16.8 | AS66: 19.1 | AT66: 30.187 | AU66: 43.937 | AV66: 54.247 | AW66: 65.14 | AX66: 78.173 | AY66: 68.62 | AZ66: 30.123 | BA66: 42.945 | BB66: 47.881 | BC66: 49.04 | BD66: 50.119 | BE66: 57.63534306 | BF66: 54.35122853 | BG66: 63.62896522 | BH66: 67.16265404 | BI66: 50.6911001
A67: Ativo Elétrico | B67: EBO | C67: 0 | D67: 0 | E67: - | F67: 0 | H67: EBO | I67: 0 | J67: 0 | K67: 0 | L67: 0 | M67: 1.744177376 | N67: 1.355543085 | O67: 1.922765054 | P67: 2.891251755 | Q67: 3.6628686 | R67: 3.14280927 | S67: 2.71978741 | T67: 6.78462013 | U67: 3.29449822 | V67: 3.64547962 | W67: 3.39079049 | X67: 3.92533981 | Y67: 4.2 | Z67: 3.1 | AA67: 2.2 | AB67: 2.1 | AC67: 3.1 | AD67: 2.5 | AE67: 2.9 | AF67: 2.8 | AG67: 2.8 | AH67: 2.4 | AI67: 2.4 | AJ67: 1.7 | AK67: 2.3 | AL67: 2.8 | AM67: 4.8 | AN67: 4.3 | AO67: 4.2 | AP67: 4.3 | AQ67: 3.94 | AR67: 2.4 | AS67: 3.2 | AT67: 4.074 | AU67: 3.988 | AV67: 4.516 | AW67: 4.628 | AX67: 6.947 | AY67: 6.596 | AZ67: 3.962 | BA67: 6.205
A68: Ativo Elétrico | B68: EPB | C68: 0 | D68: 0 | E68: - | F68: 0 | H68: EPB | I68: 0 | J68: 0 | K68: 0 | L68: 0 | M68: 13.94415098 | N68: 18.9500616 | O68: 25.65326536 | P68: 22.21675241 | Q68: 26.69925125 | R68: 31.7216632 | S68: 30.31354788 | T68: 35.63176523 | U68: 29.61682466 | V68: 26.64154099 | W68: 21.03769442 | X68: 31.6340484 | Y68: 23.27755394 | Z68: 31.31852395 | AA68: 29.9 | AB68: 30.3 | AC68: 27.5 | AD68: 29.7 | AE68: 27.2 | AF68: 26.2 | AG68: 26.2 | AH68: 32.5 | AI68: 29.3 | AJ68: 35.8 | AK68: 33 | AL68: 41.2 | AM68: 49.1 | AN68: 40.2 | AO68: 42.8 | AP68: 45.7 | AQ68: 42.5 | AR68: 50.5 | AS68: 42.3 | AT68: 43.858 | AU68: 39.975 | AV68: 45.242 | AW68: 67.208 | AX68: 79.786 | AY68: 86.51 | AZ68: 54.297 | BA68: 79.27
A69: Ativo Elétrico | B69: EPB+EBO | C69: 83.94695325 | D69: 86.80757786 | E69: =IFERROR(IF((C69/D69-1)*100<=-100,"-",IF((C69/D69-1)*100=0,"-",(C69/D69-1)*100)),"-") -> -3.295362776 | F69: =IFERROR(SUM(C69-D69),"-") -> -2.860624607 | H69: EPB+EBO | BA69: =SUM(BA67:BA68) -> 85.475 | BB69: 85.562 | BC69: 76.065 | BD69: 89.957 | BE69: 86.80757786 | BF69: 120.7466371 | BG69: 127.4858163 | BH69: 122.2568042 | BI69: 83.94695325
A70: Ativo Elétrico | B70: EMT | C70: 333.6494965 | D70: 267.9471137 | E70: 24.52065331 | F70: 65.70238279 | H70: EMT | I70: 0 | J70: 0 | K70: 0 | L70: 0 | M70: 77.53293531 | N70: 84.88220086 | O70: 118.8381249 | P70: 63.37251942 | Q70: 59.4 | R70: 26.7 | S70: 52.5 | T70: 75.3 | U70: 69.7876198 | V70: 106.8252885 | W70: 104.9235489 | X70: 139.3943892 | Y70: 97.5537635 | Z70: 129.0000375 | AA70: 165.2 | AB70: 91.2 | AC70: 96.7 | AD70: 163.5 | AE70: 126.9 | AF70: 86.7 | AG70: 49.1 | AH70: 155.6 | AI70: 166.6 | AJ70: 167.1 | AK70: 165.3 | AL70: 161.1 | AM70: 215.5 | AN70: 159.3 | AO70: 82.5 | AP70: 73.1 | AQ70: 89.572 | AR70: 87.3 | AS70: 102 | AT70: 123.841 | AU70: 187.99 | AV70: 165.847 | AW70: 220.987 | AX70: 261.303 | AY70: 256.824 | AZ70: 156.691 | BA70: 215.244 | BB70: 257.167 | BC70: 213.495 | BD70: 266.07 | BE70: 267.9471137 | BF70: 373.5876229 | BG70: 331.1434509 | BH70: 427.4202516 | BI70: 333.6494965
A71: Ativo Elétrico | B71: EMS | C71: 164.7181019 | D71: 139.5747993 | E71: 18.0142137 | F71: 25.14330261 | H71: EMS | I71: 0 | J71: 0 | K71: 0 | L71: 0 | M71: 14.30492822 | N71: 31.83442097 | O71: 33.12527377 | P71: 39.02457243 | Q71: 18.98850052 | R71: 24.1 | S71: 38.8 | T71: 76.66968379 | U71: 27.55229906 | V71: 38.31611286 | W71: 46.12534637 | X71: 42.45864711 | Y71: 33.41776548 | Z71: 58.9 | AA71: 60.1 | AB71: 45.5 | AC71: 58.1 | AD71: 62.5 | AE71: 47.9 | AF71: 31.2 | AG71: 45.1 | AH71: 45.5 | AI71: 38.6 | AJ71: 49.9 | AK71: 52 | AL71: 54.1 | AM71: 55.3 | AN71: 43.3 | AO71: 41.4 | AP71: 46.7 | AQ71: 44.929 | AR71: 60.6 | AS71: 118.3 | AT71: 77.182 | AU71: 120.171 | AV71: 150.681 | AW71: 168.192 | AX71: 180.214 | AY71: 240.976 | AZ71: 112.126 | BA71: 128.49 | BB71: 123.892 | BC71: 148.41 | BD71: 129.341 | BE71: 139.5747993 | BF71: 148.3368456 | BG71: 181.9297065 | BH71: 174.4892003 | BI71: 164.7181019
A72: Ativo Elétrico | B72: ETO | C72: 125.4035359 | D72: 167.5446662 | E72: -25.15217653 | F72: -42.1411302 | H72: ETO | I72: 0 | J72: 0 | K72: 0 | L72: 0 | M72: 22.94517208 | N72: 8.42783536 | O72: 11.22213062 | P72: 30.89684487 | Q72: 14.70562446 | R72: 5.5 | S72: -2.1 | T72: 15.5 | U72: 38.35412745 | V72: 44.94438629 | W72: 82.19747793 | X72: 74.39722577 | Y72: 46.90303953 | Z72: 59.4 | AA72: 79.6 | AB72: -1.5 | AC72: 29.4 | AD72: 41.2 | AE72: 33.5 | AF72: 75.9 | AG72: 66.6 | AH72: 74.1 | AI72: 69.5 | AJ72: 73.8 | AK72: 60.7 | AL72: 68.8 | AM72: 108 | AN72: 102.1 | AO72: 44.9 | AP72: 45.1 | AQ72: 0.303 | AR72: 27.9 | AS72: 44.9 | AT72: 64.85 | AU72: 70.269 | AV72: 72.932 | AW72: 81.778 | AX72: 84.94 | AY72: 93.175 | AZ72: 81.835 | BA72: 99.173 | BB72: 115.194 | BC72: 122.492 | BD72: 98.786 | BE72: 167.5446662 | BF72: 184.4057397 | BG72: 176.5327911 | BH72: 174.6985272 | BI72: 125.4035359
A73: Ativo Elétrico | B73: ESS | C73: 91.27339425 | D73: 58.08712606 | E73: 57.13188178 | F73: 33.18626819 | H73: ESS | I73: 0 | J73: 0 | K73: 0 | L73: 0 | M73: 6.84088659 | N73: 7.87926794 | O73: 12.40298433 | P73: 15.04247841 | Q73: 12.78467742 | R73: 6.8250248 | S73: 10.98591154 | T73: 23.39243831 | U73: 6.69302977 | V73: 17.39611681 | W73: 36.22425001 | X73: 41.27030991 | Y73: 9.71168844 | Z73: 19.13476753 | AA73: 18.8 | AB73: 30.1 | AC73: 17.5 | AD73: 12.3 | AE73: 22.9 | AF73: 33.2 | AG73: 17.1 | AH73: 29.8 | AI73: 22.8 | AJ73: 44.4 | AK73: 22.2 | AL73: 36.9 | AM73: 37.5 | AN73: 29 | AO73: 39.3 | AP73: 44.6 | AQ73: 43.746 | AR73: 48.4 | AS73: 27.8 | AT73: 26.52 | AU73: 26.884 | AV73: 37.704 | AW73: 39.323 | AX73: 58.385 | AY73: 64.231 | AZ73: 40.187 | BA73: 64.169 | BB73: 64.261 | BC73: 65.037 | BD73: 71.428 | BE73: 58.08712606 | BF73: 73.04992049 | BG73: 82.30487612 | BH73: 53.20198523 | BI73: 91.27339425
A74: Ativo Elétrico | B74: ERO | C74: 96.45999549 | D74: 122.9945052 | E74: -21.57373589 | F74: -26.53450971 | H74: ERO | I74: 32.28660611 | J74: 51.57234577 | K74: 46.78145795 | L74: 83.22804825 | M74: 53.87736841 | N74: 49.44685323 | O74: 54.50067981 | P74: 53.66268997 | Q74: 45.29850488 | R74: 39.63183623 | S74: 41.22802812 | T74: 37.49655618 | U74: 32.13871045 | V74: 29.72869747 | W74: 34.9392319 | X74: 55.69869593 | Y74: 38.127068 | Z74: 59.70526309 | AA74: 34.73420347 | AB74: 59.17396063 | AC74: 45.19162355 | AD74: 46.71993117 | AE74: 46.2371218 | AF74: 72.88371539 | AG74: 30.36484417 | AH74: 35.49187665 | AI74: 40.19283883 | AJ74: 71.29866817 | AK74: 34.2 | AL74: 127.2 | AM74: 176 | AN74: 88.1 | AO74: 159.6 | AP74: 110 | AQ74: 153.892 | AR74: -130.5 | AS74: 106.3 | AT74: 204.892 | AU74: 226.524 | AV74: -238.521 | AW74: 120.599 | AX74: 93.111 | AY74: 239.912 | AZ74: 234.732 | BA74: 136.459 | BB74: 151.843 | BC74: 55.317 | BD74: 101.378 | BE74: 122.9945052 | BF74: 107.922904 | BG74: 146.7408112 | BH74: 148.7119506 | BI74: 96.45999549
A75: Ativo Elétrico | B75: EAC | C75: 33.59198142 | D75: 105.9061621 | E75: -68.28137215 | F75: -72.31418067 | H75: EAC | I75: 8.30484929 | J75: 12.52262098 | K75: 12.58804753 | L75: 8.902031721 | M75: 15.9683313 | N75: 9.22323851 | O75: 9.94092572 | P75: 21.28874846 | Q75: 8.31633695 | R75: 11.89538492 | S75: 13.830482 | T75: 12.96417144 | U75: 11.93453629 | V75: 7.85338928 | W75: 12.10967863 | X75: 6.39915152 | Y75: 13.01087683 | Z75: 18.65281172 | AA75: 17.59469476 | AB75: 15.6734517 | AC75: 9.0869 | AD75: 13.5316 | AE75: 8.6247 | AF75: 13.9076 | AG75: 13.9553 | AH75: 12.0458 | AI75: 14.2449 | AJ75: 23.6797 | AK75: 19.6 | AL75: 39.7 | AM75: 47.5 | AN75: 109.8 | AO75: 48.5 | AP75: 45 | AQ75: 9.392 | AR75: -169.9 | AS75: 19.6 | AT75: 56.416 | AU75: 77.672 | AV75: 83.312 | AW75: 59.7 | AX75: 119.751 | AY75: 131.576 | AZ75: 70.219 | BA75: 139.259 | BB75: 63.182 | BC75: 59.119 | BD75: 127.825 | BE75: 105.9061621 | BF75: 105.9315555 | BG75: 177.2901243 | BH75: 174.3115171 | BI75: 33.59198142
A76: Ativo Elétrico | B76: Total Distribuidoras | C76: 1023.851995 | D76: 1039.244641 | E76: -1.481137859 | F76: -15.39264582 | H76: Total Distribuidoras | I76: =SUM(I63:I75) -> 40.5914554 | J76: 64.09496675 | K76: 59.36950548 | L76: 92.13007997 | M76: 220.2090887 | N76: 249.1229881 | O76: 282.9982587 | P76: 259.2347185 | Q76: 206.9267709 | R76: 177.0650211 | S76: 224.6133656 | T76: 311.9016633 | U76: 237.6300966 | V76: 310.8291897 | W76: 383.0568147 | X76: 425.065219 | Y76: 286.5704734 | Z76: 407.3756349 | AA76: 432.4288982 | AB76: 297.2474123 | AC76: 317.3785236 | AD76: 408.5515312 | AE76: 352.5618218 | AF76: 360.7913154 | AG76: 272.9201442 | AH76: 411.4376767 | AI76: 403.2377388 | AJ76: 500.1783682 | AK76: 417.4 | AL76: 569.1 | AM76: 728.5 | AN76: 607.6 | AO76: 494.8 | AP76: 465.4 | AQ76: 440.604 | AR76: 22.2 | AS76: 496.8 | AT76: 651.954 | AU76: 820.619 | AV76: 395.122 | AW76: =SUM(AW65:AW75) -> 859.195 | AX76: =SUM(AX65:AX75) -> 996.278 | AY76: 1219.229 | AZ76: 823.67 | BA76: =SUM(BA65:BA75)-BA69 -> 947.424 | BB76: 967.299 | BC76: 853.239 | BD76: 992.675 | BE76: =SUM(BE63:BE75) -> 1039.244641 | BF76: =SUM(BF63:BF75) -> 1220.016638 | BG76: =SUM(BG63:BG75) -> 1355.96969 | BH76: =SUM(BH63:BH75) -> 1401.219358 | BI76: =SUM(BI63:BI75) -> 1023.851995
A77: Ativo Elétrico | B77: EPA I | C77: =INDEX($H$59:$XFD$99,MATCH($B77,$H$59:$H$99,0),MATCH(C$12,$H$12:$XFD$12,0),1) -> 0.0076108 | D77: 0 | E77: - | F77: =IFERROR(SUM(C77-D77),"-") -> 0.0076108 | H77: EPA I | I77: 0 | J77: 0 | K77: 0 | L77: 0 | M77: 0 | N77: 0 | O77: 0 | P77: 0 | Q77: 0 | R77: 0 | S77: 0 | T77: 0 | U77: 0 | V77: 0 | W77: 0 | X77: 0 | Y77: 0 | Z77: 0 | AA77: 0 | AB77: 0 | AC77: 0 | AD77: 0 | AE77: 1.9 | AF77: 6.8 | AG77: 3 | AH77: 22.3 | AI77: 6.9 | AJ77: 47.5 | AK77: 26.3 | AL77: 26.5 | AM77: 53.8 | AN77: 44.8 | AO77: 20.2 | AP77: 13.4 | AQ77: 22.203 | AR77: 22.1 | AS77: 0 | AT77: 0 | AU77: 0 | AV77: 0 | AW77: 0 | AX77: 0 | AY77: 0 | AZ77: 0 | BA77: 0 | BB77: 0 | BC77: 0 | BD77: 0.001 | BE77: 0 | BF77: 0 | BG77: 0 | BH77: 0.06227298 | BI77: 0.0076108
A78: Ativo Elétrico | B78: EPA II | C78: 0.01 | D78: 0.05994778 | E78: -83.31881514 | F78: -0.04994778 | H78: EPA II | I78: 0 | J78: 0 | K78: 0 | L78: 0 | M78: 0 | N78: 0 | O78: 0 | P78: 0 | Q78: 0 | R78: 0 | S78: 0 | T78: 0 | U78: 0 | V78: 0 | W78: 0 | X78: 0 | Y78: 0 | Z78: 0 | AA78: 0 | AB78: 0 | AC78: 0 | AD78: 0 | AE78: 0 | AF78: 0 | AG78: 0 | AH78: 0 | AI78: 1.4 | AJ78: 1.5 | AK78: 2.4 | AL78: 14.2 | AM78: 21.7 | AN78: 35.3 | AO78: 22 | AP78: 53 | AQ78: 33.081 | AR78: 29 | AS78: 75.6 | AT78: 39.171 | AU78: 43.81 | AV78: 28.253 | AW78: 30.647 | AX78: 1.208 | AY78: 11.406 | AZ78: 9.152 | BA78: 10.442 | BB78: 9.726 | BC78: 0 | BD78: 0 | BE78: 0.05994778 | BF78: -0.05489323 | BG78: 0 | BH78: 0.02930579 | BI78: 0.01
A79: Ativo Elétrico | B79: EGO I | C79: 0 | D79: 0 | E79: - | F79: 0 | H79: EGO I | I79: 0 | J79: 0 | K79: 0 | L79: 0 | M79: 0 | N79: 0 | O79: 0 | P79: 0 | Q79: 0 | R79: 0 | S79: 0 | T79: 0 | U79: 0 | V79: 0 | W79: 0 | X79: 0 | Y79: 0 | Z79: 0 | AA79: 0 | AB79: 0 | AC79: 0 | AD79: 0 | AE79: 1.5 | AF79: 4.5 | AG79: 3.7 | AH79: 17.8 | AI79: 8.1 | AJ79: 61 | AK79: 21.8 | AL79: 27.8 | AM79: 42.6 | AN79: 31.1 | AO79: 24.2 | AP79: 8.6 | AQ79: 0.968 | AR79: 0 | AS79: 0 | AT79: 0 | AU79: 0 | AV79: 0 | AW79: 0 | AX79: 0 | AY79: 0 | AZ79: 0 | BA79: 0 | BB79: 0 | BC79: 0 | BD79: 0.001 | BE79: 0 | BF79: 0 | BG79: 0 | BH79: 0 | BI79: 0
A80: Ativo Elétrico | B80: ETT | C80: 0.02071425 | D80: 0 | E80: - | F80: 0.02071425 | H80: ETT | I80: 0 | J80: 0 | K80: 0 | L80: 0 | M80: 0 | N80: 0 | O80: 0 | P80: 0 | Q80: 0 | R80: 0 | S80: 0 | T80: 0 | U80: 0 | V80: 0 | W80: 0 | X80: 0 | Y80: 0 | Z80: 0 | AA80: 0 | AB80: 0 | AC80: 0 | AD80: 0 | AE80: 0 | AF80: 0 | AG80: 0 | AH80: 0 | AI80: 0 | AJ80: 0 | AK80: 0 | AL80: 1.2 | AM80: 2.6 | AN80: 12.1 | AO80: 3 | AP80: 7.2 | AQ80: 7.09 | AR80: 16 | AS80: 32.2 | AT80: 83.291 | AU80: 172.596 | AV80: 88.506 | AW80: 72.311 | AX80: 130.598 | AY80: 144.797 | AZ80: -32.99 | BA80: 46.587 | BB80: 31.303 | BC80: 106.45 | BD80: 0 | BE80: 0 | BF80: 0 | BG80: 0 | BH80: 0 | BI80: 0.02071425
A81: Ativo Elétrico | B81: ETT II | C81: -0.12847519 | D81: 3.99836013 | E81: - | F81: -4.12683532 | H81: ETT II | I81: 0 | J81: 0 | K81: 0 | L81: 0 | M81: 0 | N81: 0 | O81: 0 | P81: 0 | Q81: 0 | R81: 0 | S81: 0 | T81: 0 | U81: 0 | V81: 0 | W81: 0 | X81: 0 | Y81: 0 | Z81: 0 | AA81: 0 | AB81: 0 | AC81: 0 | AD81: 0 | AE81: 0 | AF81: 0 | AG81: 0 | AH81: 0 | AI81: 0 | AJ81: 0 | AK81: 0 | AL81: 0 | AM81: 0 | AN81: 0 | AO81: 0 | AP81: 0 | AQ81: 0 | AR81: 0 | AS81: 0 | AT81: 0 | AU81: 0 | AV81: 0 | AW81: 0.371 | AX81: 0.164 | AY81: 1.86 | AZ81: 3.078 | BA81: 3.014 | BB81: 14.492 | BC81: 12.473 | BD81: 9.883 | BE81: 3.99836013 | BF81: 2.01872533 | BG81: 16.35323788 | BH81: -0.90872976 | BI81: -0.12847519
A82: Ativo Elétrico | B82: EAM | C82: 22.52376606 | D82: 41.50241211 | E82: -45.72901932 | F82: -18.97864605 | H82: EAM | I82: 0 | J82: 0 | K82: 0 | L82: 0 | M82: 0 | N82: 0 | O82: 0 | P82: 0 | Q82: 0 | R82: 0 | S82: 0 | T82: 0 | U82: 0 | V82: 0 | W82: 0 | X82: 0 | Y82: 0 | Z82: 0 | AA82: 0 | AB82: 0 | AC82: 0 | AD82: 0 | AE82: 0 | AF82: 0 | AG82: 0 | AH82: 0 | AI82: 0 | AJ82: 0 | AK82: 0 | AL82: 0 | AM82: 0 | AN82: 0 | AO82: 0 | AP82: 0 | AQ82: 0 | AR82: 0 | AS82: 241.1 | AT82: -0.396 | AU82: 8.773 | AV82: 6.497 | AW82: 26.903 | AX82: 12.311 | AY82: 16.823 | AZ82: 24.647 | BA82: 37.434 | BB82: 63.015 | BC82: 47.521 | BD82: 74.955 | BE82: 41.50241211 | BF82: 72.43239347 | BG82: 58.89849639 | BH82: 50.53966402 | BI82: 22.52376606
A83: Ativo Elétrico | B83: EAM II | C83: 11.46190033 | D83: 0.79997121 | E83: 1332.789104 | F83: 10.66192912 | H83: EAM II | I83: 0 | J83: 0 | K83: 0 | L83: 0 | M83: 0 | N83: 0 | O83: 0 | P83: 0 | Q83: 0 | R83: 0 | S83: 0 | T83: 0 | U83: 0 | V83: 0 | W83: 0 | X83: 0 | Y83: 0 | Z83: 0 | AA83: 0 | AB83: 0 | AC83: 0 | AD83: 0 | AE83: 0 | AF83: 0 | AG83: 0 | AH83: 0 | AI83: 0 | AJ83: 0 | AK83: 0 | AL83: 0 | AM83: 0 | AN83: 0 | AO83: 0 | AP83: 0 | AQ83: 0 | AR83: 0 | AS83: 0 | AT83: 0 | AU83: 0 | AV83: 0 | AW83: 0 | AX83: 0 | AY83: 0 | AZ83: 0 | BA83: - | BB83: - | BC83: 7.898 | BD83: 11.163 | BE83: 0.79997121 | BF83: 13.41211839 | BG83: 28.72080172 | BH83: 50.66899552 | BI83: 11.46190033
A84: Ativo Elétrico | B84: EAP | C84: -0.68067021 | D84: 31.35813621 | E84: - | F84: -32.03880642 | H84: EAP | I84: 0 | J84: 0 | K84: 0 | L84: 0 | M84: 0 | N84: 0 | O84: 0 | P84: 0 | Q84: 0 | R84: 0 | S84: 0 | T84: 0 | U84: 0 | V84: 0 | W84: 0 | X84: 0 | Y84: 0 | Z84: 0 | AA84: 0 | AB84: 0 | AC84: 0 | AD84: 0 | AE84: 0 | AF84: 0 | AG84: 0 | AH84: 0 | AI84: 0 | AJ84: 0 | AK84: 0 | AL84: 0 | AM84: 0 | AN84: 0 | AO84: 0 | AP84: 0 | AQ84: 0 | AR84: 0 | AS84: 0 | AT84: 0 | AU84: 0 | AV84: 0 | AW84: 2.944 | AX84: 0.724 | AY84: 1.783 | AZ84: 2.765 | BA84: 3.254 | BB84: 13.886 | BC84: 3.939 | BD84: 26.733 | BE84: 31.35813621 | BF84: 32.25876097 | BG84: 15.00936562 | BH84: 20.64557732 | BI84: -0.68067021
A85: Ativo Elétrico | B85: EPT | C85: 0 | D85: 0 | E85: - | F85: 0 | H85: EPT | I85: 0 | AW85: 0 | AX85: 0 | AY85: 0 | AZ85: 0 | BA85: 0 | BB85: 0 | BC85: 0 | BD85: 0.014 | BE85: 0 | BF85: 0 | BG85: 0.06142422 | BH85: 0.34337656 | BI85: 0
A86: Ativo Elétrico | B86: EMA I | C86: 0.72793778 | D86: 0 | E86: =IFERROR(IF((C86/D86-1)*100<=-100,"-",IF((C86/D86-1)*100=0,"-",(C86/D86-1)*100)),"-") -> - | F86: =IFERROR(SUM(C86-D86),"-") -> 0.72793778 | H86: EMA I | I86: 0 | J86: 0 | K86: 0 | L86: 0 | M86: 0 | N86: 0 | O86: 0 | P86: 0 | Q86: 0 | R86: 0 | S86: 0 | T86: 0 | U86: 0 | V86: 0 | W86: 0 | X86: 0 | Y86: 0 | Z86: 0 | AA86: 0 | AB86: 0 | AC86: 0 | AD86: 0 | AE86: 0 | AF86: 0 | AG86: 0 | AH86: 0 | AI86: 0 | AJ86: 0 | AK86: 0 | AL86: 0 | AM86: 0 | AN86: 0 | AO86: 0 | AP86: 0 | AQ86: 0 | AR86: 0 | AS86: 0 | AT86: 0 | AU86: 0 | AV86: 0 | AW86: 0 | AX86: 0 | AY86: 0 | AZ86: 0 | BA86: 0 | BB86: 0 | BC86: 0 | BD86: 0 | BE86: 0 | BF86: 0 | BG86: - | BH86: 2.67219876 | BI86: 0.72793778
A87: Ativo Elétrico | B87: GEMINI Consolidado | C87: 6.40928499 | D87: 10.53953547 | E87: -39.18816433 | F87: -4.13025048 | H87: GEMINI Consolidado | I87: 0 | J87: 0 | K87: 0 | L87: 0 | M87: 0 | N87: 0 | O87: 0 | P87: 0 | Q87: 0 | R87: 0 | S87: 0 | T87: 0 | U87: 0 | V87: 0 | W87: 0 | X87: 0 | Y87: 0 | Z87: 0 | AA87: 0 | AB87: 0 | AC87: 0 | AD87: 0 | AE87: 0 | AF87: 0 | AG87: 0 | AH87: 0 | AI87: 0 | AJ87: 0 | AK87: 0 | AL87: 0 | AM87: 0 | AN87: 0 | AO87: 0 | AP87: 0 | AQ87: 0 | AR87: 0 | AS87: 0 | AT87: 0 | AU87: 0 | AV87: 0 | AW87: 10.438 | AX87: 11.105 | AY87: 0 | AZ87: 4.735 | BA87: 0 | BB87: 1.453 | BC87: 0.718 | BD87: 24.254 | BE87: 10.53953547 | BF87: 8.00579913 | BG87: 35.14884115 | BH87: 47.75099431 | BI87: 6.40928499
A88: Ativo Elétrico | B88: Total transmissoras | C88: =SUBTOTAL(9,C77:C87) -> 40.35206881 | D88: =SUBTOTAL(9,D77:D87) -> 88.25836291 | E88: -54.27960878 | F88: -47.9062941 | H88: Total Transmissoras | I88: =SUM(I77:I87) -> 0 | J88: =SUM(J77:J87) -> 0 | K88: 0 | L88: 0 | M88: 0 | N88: 0 | O88: 0 | P88: 0 | Q88: 0 | R88: 0 | S88: 0 | T88: 0 | U88: 0 | V88: 0 | W88: 0 | X88: 0 | Y88: 0 | Z88: 0 | AA88: 0 | AB88: 0 | AC88: 0 | AD88: 0 | AE88: 3.4 | AF88: 11.3 | AG88: 6.7 | AH88: 40.1 | AI88: 16.4 | AJ88: 110 | AK88: 50.5 | AL88: 69.7 | AM88: 120.7 | AN88: 123.3 | AO88: 69.4 | AP88: 82.2 | AQ88: 63.342 | AR88: 67.1 | AS88: 348.9 | AT88: 122.066 | AU88: 225.179 | AV88: 123.256 | AW88: 143.614 | AX88: 156.11 | AY88: 176.669 | AZ88: 11.387 | BA88: 100.731 | BB88: 133.875 | BC88: 178.999 | BD88: 147.004 | BE88: =SUM(BE77:BE87) -> 88.25836291 | BF88: =SUM(BF77:BF87) -> 128.0729041 | BG88: =SUM(BG77:BG87) -> 154.192167 | BH88: =SUM(BH77:BH87) -> 171.8036555 | BI88: =SUM(BI77:BI87) -> 40.35206881
A89: Ativo Elétrico | B89: ALSOL Consolidado | C89: =INDEX($H$59:$XFD$99,MATCH($B89,$H$59:$H$99,0),MATCH(C$12,$H$12:$XFD$12,0),1) -> 23.85254594 | D89: 0 | E89: - | F89: =IFERROR(SUM(C89-D89),"-") -> 23.85254594 | H89: ALSOL Consolidado | I89: 0 | J89: 0 | K89: 0 | L89: 0 | M89: 0 | N89: 0 | O89: 0 | P89: 0 | Q89: 0 | R89: 0 | S89: 0 | T89: 0 | U89: 0 | V89: 0 | W89: 0 | X89: 0 | Y89: 0 | Z89: 0 | AA89: 0 | AB89: 0 | AC89: 0 | AD89: 0 | AE89: 0 | AF89: 0 | AG89: 0 | AH89: 0 | AI89: 0 | AJ89: 0 | AK89: 0 | AL89: 0 | AM89: 0 | AN89: 0 | AO89: 0 | AP89: 0 | AQ89: 0 | AR89: 0 | AS89: 0 | AT89: 0 | AU89: 0 | AV89: 0 | AW89: 0 | AX89: 0 | AY89: 0 | AZ89: 0 | BA89: 0 | BB89: 0 | BC89: 0 | BD89: 0 | BE89: 0 | BF89: 0 | BG89: 0 | BH89: 0 | BI89: 23.85254594
A90: Ativo Elétrico | B90: ECOM | C90: 0 | D90: 0 | E90: - | F90: 0 | H90: ECOM | I90: 0 | AW90: 0 | AX90: 0 | AY90: 0 | AZ90: 0 | BA90: 0 | BB90: 0 | BC90: 0 | BD90: 0 | BE90: 0 | BF90: 0 | BG90: 0 | BH90: 0 | BI90: 0
A91: Ativo Elétrico | B91: ESOL Consolidada | C91: - | D91: - | E91: - | F91: - | H91: ESOL Consolidada | I91: 0 | J91: 0 | K91: 0 | L91: 0 | M91: 0 | N91: 0 | O91: 0 | P91: 0 | Q91: 0 | R91: 0 | S91: 0 | T91: 0 | U91: 0 | V91: 0 | W91: 0 | X91: 0 | Y91: 0 | Z91: 0 | AA91: 0 | AB91: 0 | AC91: 0 | AD91: 0 | AE91: 0 | AF91: 0 | AG91: 0 | AH91: 0 | AI91: 0 | AJ91: 0 | AK91: 0.2 | AL91: 0.8 | AM91: 3.8 | AN91: 2.5 | AO91: 0 | AP91: 0 | AQ91: 0 | AR91: 0 | AS91: 0 | AT91: 0 | AU91: 0 | AV91: 0 | AW91: 0 | AX91: 0 | AY91: 0 | AZ91: 0 | BA91: 0 | BB91: 0 | BC91: 0 | BD91: 0 | BE91: - | BF91: - | BG91: - | BH91: - | BI91: -
A92: Ativo Elétrico | B92: (re)energisa | C92: =SUBTOTAL(9,C89:C91) -> 23.85254594 | D92: =SUBTOTAL(9,D89:D91) -> 0 | E92: - | F92: 23.85254594 | H92: (re)energisa | I92: =SUM(I89:I91) -> 0 | J92: =SUM(J89:J91) -> 0 | K92: 0 | L92: 0 | M92: 0 | N92: 0 | O92: 0 | P92: 0 | Q92: 0 | R92: 0 | S92: 0 | T92: 0 | U92: 0 | V92: 0 | W92: 0 | X92: 0 | Y92: 0 | Z92: 0 | AA92: 0 | AB92: 0 | AC92: 0 | AD92: 0 | AE92: 0 | AF92: 0 | AG92: 0 | AH92: 0 | AI92: 0 | AJ92: 0 | AK92: 0.2 | AL92: 0.8 | AM92: 3.8 | AN92: 2.5 | AO92: 0 | AP92: 0 | AQ92: 0 | AR92: 0 | AS92: 0 | AT92: 0 | AU92: 0 | AV92: 0 | AW92: 0 | AX92: 0 | AY92: 0 | AZ92: 0 | BA92: 0 | BB92: 0 | BC92: 0 | BD92: 0 | BE92: =SUM(BE89:BE91) -> 0 | BF92: =SUM(BF89:BF91) -> 0 | BG92: =SUM(BG89:BG91) -> 0 | BH92: =SUM(BH89:BH91) -> 0 | BI92: =SUM(BI89:BI91) -> 23.85254594
A93: Ativo Elétrico | B93: ES Gás | C93: =INDEX($H$12:$XFD$55,MATCH($B93,$H$12:$H$55,0),MATCH(C$12,$H$12:$XFD$12,0),1) -> 17.32094818 | D93: =INDEX($H$12:$XFD$55,MATCH($B93,$H$12:$H$55,0),MATCH(D$12,$H$12:$XFD$12,0),1) -> 7.441 | E93: 132.777156 | F93: 9.87994818 | H93: ES Gás | AW93: 0 | AX93: 0 | AY93: 0 | AZ93: 0 | BA93: 0 | BB93: 0 | BC93: 0 | BD93: 0 | BE93: 7.404 | BF93: 17.199 | BG93: 21.519 | BH93: 46.774 | BI93: 0
A94: Ativo Elétrico | B94: Distribuição de gás natural | C94: =SUBTOTAL(9,C93) -> 17.32094818 | D94: =SUBTOTAL(9,D93) -> 7.441 | E94: 132.777156 | F94: 9.87994818 | H94: Distribuição de gás natural | I94: =I93 -> 0 | J94: =J93 -> 0 | K94: 0 | L94: 0 | M94: 0 | N94: 0 | O94: 0 | P94: 0 | Q94: 0 | R94: 0 | S94: 0 | T94: 0 | U94: 0 | V94: 0 | W94: 0 | X94: 0 | Y94: 0 | Z94: 0 | AA94: 0 | AB94: 0 | AC94: 0 | AD94: 0 | AE94: 0 | AF94: 0 | AG94: 0 | AH94: 0 | AI94: 0 | AJ94: 0 | AK94: 0 | AL94: 0 | AM94: 0 | AN94: 0 | AO94: 0 | AP94: 0 | AQ94: 0 | AR94: 0 | AS94: 0 | AT94: =AT93 -> 0 | AU94: 0 | AV94: 0 | AW94: 0 | AX94: 0 | AY94: 0 | AZ94: 0 | BA94: 0 | BB94: 0 | BC94: 0 | BD94: 0 | BE94: =SUM(BE93) -> 7.404 | BF94: =SUM(BF93) -> 17.199 | BG94: =SUM(BG93) -> 21.519 | BH94: =SUM(BH93) -> 46.774 | BI94: =SUM(BI93) -> 0
A95: Ativo Elétrico | B95: AGRIC | C95: =INDEX($H$12:$XFD$55,MATCH($B95,$H$12:$H$55,0),MATCH(C$12,$H$12:$XFD$12,0),1) -> 65.7 | D95: =INDEX($H$12:$XFD$55,MATCH($B95,$H$12:$H$55,0),MATCH(D$12,$H$12:$XFD$12,0),1) -> 0.94883374 | E95: =IFERROR(IF((C95/D95-1)*100<=-100,"-",IF((C95/D95-1)*100=0,"-",(C95/D95-1)*100)),"-") -> 6824.290024 | F95: =IFERROR(SUM(C95-D95),"-") -> 64.75116626 | H95: AGRIC | AW95: 0 | AX95: 0 | AY95: 0 | AZ95: 0 | BA95: 0 | BB95: 0 | BC95: 0 | BD95: 1.841 | BE95: 0 | BF95: 0 | BG95: 0 | BH95: 0 | BI95: 65.7
A96: Ativo Elétrico | B96: Biogás | C96: =SUBTOTAL(9,C95) -> 65.7 | D96: =SUBTOTAL(9,D95) -> 0.94883374 | E96: =IFERROR(IF((C96/D96-1)*100<=-100,"-",IF((C96/D96-1)*100=0,"-",(C96/D96-1)*100)),"-") -> 6824.290024 | F96: =IFERROR(SUM(C96-D96),"-") -> 64.75116626 | H96: Biogás | I96: =I95 -> 0 | J96: =J95 -> 0 | K96: 0 | L96: 0 | M96: 0 | N96: 0 | O96: 0 | P96: 0 | Q96: 0 | R96: 0 | S96: 0 | T96: 0 | U96: 0 | V96: 0 | W96: 0 | X96: 0 | Y96: 0 | Z96: 0 | AA96: 0 | AB96: 0 | AC96: 0 | AD96: 0 | AE96: 0 | AF96: 0 | AG96: 0 | AH96: 0 | AI96: 0 | AJ96: 0 | AK96: 0 | AL96: 0 | AM96: 0 | AN96: 0 | AO96: 0 | AP96: 0 | AQ96: 0 | AR96: 0 | AS96: 0 | AT96: =AT95 -> 0 | AU96: 0 | AV96: 0 | AW96: 0 | AX96: 0 | AY96: 0 | AZ96: 0 | BA96: 0 | BB96: 0 | BC96: 0 | BD96: 1.841 | BE96: =SUM(BE95) -> 0 | BF96: =SUM(BF95) -> 0 | BG96: =SUM(BG95) -> 0 | BH96: =SUM(BH95) -> 0 | BI96: =SUM(BI95) -> 65.7
A97: Ativo Elétrico | B97: RIO PEIXE I | C97: =INDEX($H$59:$XFD$99,MATCH($B97,$H$59:$H$99,0),MATCH(C$12,$H$12:$XFD$12,0),1) -> 0 | D97: 0 | E97: - | F97: 0 | H97: RIO PEIXE I | I97: 0 | J97: 0 | K97: 0 | L97: 0 | M97: 0 | N97: 0 | O97: 0 | P97: 0 | Q97: 0 | R97: 0 | S97: 0 | T97: 0 | U97: 0 | V97: 0 | W97: 0 | X97: 0 | Y97: 0 | Z97: 0 | AA97: 0 | AB97: 0 | AC97: 0 | AD97: 0 | AE97: 0 | AF97: 0 | AG97: 0 | AH97: 0 | AI97: 0 | AJ97: 0 | AK97: 0 | AL97: 0 | AM97: 0 | AN97: 0 | AO97: 0 | AP97: 0 | AQ97: 0 | AR97: 0 | AS97: 0 | AT97: 0 | AU97: 0 | AV97: 0 | AW97: 0 | AX97: 0 | AY97: 0 | AZ97: 0 | BA97: 0 | BB97: 0 | BC97: 0 | BD97: 0 | BE97: 0 | BF97: 0 | BG97: 0 | BH97: 0 | BI97: 0
A98: Ativo Elétrico | B98: RIO PEIXE II | C98: 0 | D98: 0 | E98: - | F98: 0 | H98: RIO PEIXE II | I98: 0 | J98: 0 | K98: 0 | L98: 0 | M98: 0 | N98: 0 | O98: 0 | P98: 0 | Q98: 0 | R98: 0 | S98: 0 | T98: 0 | U98: 0 | V98: 0 | W98: 0 | X98: 0 | Y98: 0 | Z98: 0 | AA98: 0 | AB98: 0 | AC98: 0 | AD98: 0 | AE98: 0 | AF98: 0 | AG98: 0 | AH98: 0 | AI98: 0 | AJ98: 0 | AK98: 0 | AL98: 0 | AM98: 0 | AN98: 0 | AO98: 0 | AP98: 0 | AQ98: 0 | AR98: 0 | AS98: 0 | AT98: 0 | AU98: 0 | AV98: 0 | AW98: 0 | AX98: 0 | AY98: 0 | AZ98: 0 | BA98: 0 | BB98: 0 | BC98: 0 | BD98: 0 | BE98: 0 | BF98: 0 | BG98: 0 | BH98: 0 | BI98: 0
A99: Ativo Elétrico | B99: Outras empresas | C99: -0.15100626 | D99: 0 | E99: - | F99: -0.15100626 | H99: Outras empresas | I99: 0 | J99: 0 | K99: 0 | L99: 0 | M99: 0 | N99: 0 | O99: 0 | P99: 0 | Q99: 0 | R99: 0 | S99: 0 | T99: 0 | U99: 0 | V99: 0 | W99: 0 | X99: 0 | Y99: 0 | Z99: 0 | AA99: 0 | AB99: 0 | AC99: 0 | AD99: 0 | AE99: 0 | AF99: 0 | AG99: 0 | AH99: 0 | AI99: 0 | AJ99: 0 | AK99: 0 | AL99: 0 | AM99: 8 | AN99: 18.8 | AO99: 0 | AP99: 0.1 | AQ99: 0.012 | AR99: -0.1 | AS99: 0 | AT99: 0 | AU99: 0.055 | AV99: 30.908 | AW99: 0 | AX99: 0 | AY99: 0 | AZ99: 0 | BA99: 0 | BB99: 0 | BC99: 0 | BD99: 0 | BE99: 0 | BF99: 0 | BG99: 0 | BH99: 0 | BI99: -0.15100626
A100: Ativo Elétrico | B100: Holding e outras empresas | C100: =SUBTOTAL(9,C83:C99) -> 124.6409408 | D100: =SUBTOTAL(9,D83:D99) -> 51.08747663 | E100: 143.9755278 | F100: 73.55346412 | H100: Holding e outras empresas | I100: =SUM(I97:I99) -> 0 | J100: =SUM(J97:J99) -> 0 | K100: 0 | L100: 0 | M100: 0 | N100: 0 | O100: 0 | P100: 0 | Q100: 0 | R100: 0 | S100: 0 | T100: 0 | U100: 0 | V100: 0 | W100: 0 | X100: 0 | Y100: 0 | Z100: 0 | AA100: 0 | AB100: 0 | AC100: 0 | AD100: 0 | AE100: 0 | AF100: 0 | AG100: 0 | AH100: 0 | AI100: 0 | AJ100: 0 | AK100: 0 | AL100: 0 | AM100: 8 | AN100: 18.8 | AO100: 0 | AP100: 0.1 | AQ100: 0.012 | AR100: -0.1 | AS100: 0 | AT100: 0 | AU100: 0.055 | AV100: 30.908 | AW100: 0 | AX100: 0 | AY100: 0 | AZ100: 0 | BA100: 0 | BB100: 0 | BC100: 0 | BD100: 0 | BE100: =SUM(BE97:BE99) -> 0 | BF100: =SUM(BF97:BF99) -> 0 | BG100: =SUM(BG97:BG99) -> 0 | BH100: =SUM(BH97:BH99) -> 0 | BI100: =SUM(BI97:BI99) -> -0.15100626
A101: Ativo Elétrico
A102: Ativo Elétrico | B102: Total | C102: =C100+C94+C92+C88+C76 -> 1230.018499 | D102: =D100+D94+D92+D88+D76 -> 1186.03148 | E102: =IFERROR(IF((C102/D102-1)*100<=-100,"-",IF((C102/D102-1)*100=0,"-",(C102/D102-1)*100)),"-") -> 3.70875639 | F102: =IFERROR(SUM(C102-D102),"-") -> 43.98701832 | H102: Total | I102: =I100+I96+I94+I92+I76+I88 -> 40.5914554 | J102: =J100+J96+J94+J92+J76+J88 -> 64.09496675 | K102: 59.36950548 | L102: 92.13007997 | M102: 220.2090887 | N102: 249.1229881 | O102: 282.9982587 | P102: 259.2347185 | Q102: 206.9267709 | R102: 177.0650211 | S102: 224.6133656 | T102: 311.9016633 | U102: 237.6300966 | V102: 310.8291897 | W102: 383.0568147 | X102: 425.065219 | Y102: 286.5704734 | Z102: 407.3756349 | AA102: 432.4288982 | AB102: 297.2474123 | AC102: 317.3785236 | AD102: 408.5515312 | AE102: 355.9618218 | AF102: 372.0913154 | AG102: 279.6201442 | AH102: 451.5376767 | AI102: 419.6377388 | AJ102: 610.1783682 | AK102: 468.1 | AL102: 639.6 | AM102: 861 | AN102: 752.2 | AO102: 564.2 | AP102: 547.7 | AQ102: 503.958 | AR102: 89.2 | AS102: 845.7 | AT102: 774.02 | AU102: 1045.853 | AV102: 549.286 | AW102: 1002.809 | AX102: 1152.388 | AY102: 1395.898 | AZ102: 835.057 | BA102: 1048.155 | BB102: 1101.174 | BC102: 1032.238 | BD102: 1141.52 | BE102: =BE100+BE96+BE94+BE92+BE76+BE88 -> 1134.907004 | BF102: 1365.288542 | BG102: =BG100+BG96+BG94+BG92+BG76+BG88 -> 1531.680857 | BH102: =BH100+BH96+BH94+BH92+BH76+BH88 -> 1619.797014 | BI102: =BI100+BI96+BI94+BI92+BI76+BI88 -> 1153.605604
A103: Ativo Elétrico | B103: Nota: Na empresa EAM (Energisa Transmissao Amazônia) foi incluído o valor de R$239 milões referente a aquisição da companhia)
A104: Ativo Elétrico | E104: =IFERROR(IF((C104/D104-1)*100<=-100,"-",IF((C104/D104-1)*100=0,"-",(C104/D104-1)*100)),"-") -> - | F104: =C104-D104 -> 0
A105: Ativo Elétrico | E105: =IFERROR(IF((C105/D105-1)*100<=-100,"-",IF((C105/D105-1)*100=0,"-",(C105/D105-1)*100)),"-") -> - | F105: =C105-D105 -> 0
A106: Ativo não Elétrico | B106: Ativo não Elétrico | H106: Ativo não Elétrico
A107: Ativo não Elétrico
A108: Ativo não Elétrico | C108: =$C$8 -> 1T25 | D108: =$D$8 -> 1T24 | E108: Var (%) | F108: Var (R$) | I108: 1T12 | J108: 2T12 | K108: 3T12 | L108: 4T12 | M108: 1T13 | N108: 2T13 | O108: 3T13 | P108: 4T13 | Q108: 1T14 | R108: 2T14 | S108: 3T14 | T108: 4T14 | U108: 1T15 | V108: 2T15 | W108: 3T15 | X108: 4T15 | Y108: 1T16 | Z108: 2T16 | AA108: 3T16 | AB108: 4T16 | AC108: 1T17 | AD108: =AD12 -> 2T17 | AE108: =AE12 -> 3T17 | AF108: =$AF$8 -> 4T17 | AG108: =$AG$8 -> 1T18 | AH108: =$AH$8 -> 2T18 | AI108: =AI59 -> 3T18 | AJ108: 4T18 | AK108: 1T19 | AL108: 2T19 | AM108: 3T19 | AN108: 4T19 | AO108: 1T20 | AP108: 2T20 | AQ108: 3T20 | AR108: 4T20 | AS108: 1T21 | AT108: 2T21 | AU108: 3T21 | AV108: 4T21 | AW108: =AW59 -> 1T22 | AX108: 2T22 | AY108: 3T22 | AZ108: =AZ59 -> 4T22 | BA108: 1T23 | BB108: 2T23 | BC108: 3T23 | BD108: 4T23 | BE108: 1T24 | BF108: =BF59 -> 2T24 | BG108: =BG59 -> 3T24 | BH108: =BH59 -> 4T24 | BI108: =BI59 -> 1T25
A109: Ativo não Elétrico | H109: Valores em
A110: Ativo não Elétrico
A111: Ativo não Elétrico
A112: Ativo não Elétrico | B112: EMG | C112: =INDEX($H$108:$XFD$125,MATCH($B112,$H$108:$H$125,0),MATCH(C$12,$H$12:$XFD$12,0),1) -> 0 | D112: 0 | E112: =IFERROR(IF((C112/D112-1)*100<=-100,"-",IF((C112/D112-1)*100=0,"-",(C112/D112-1)*100)),"-") -> - | F112: =IFERROR(SUM(C112-D112),"-") -> 0 | H112: EMG | I112: 0 | J112: 0 | K112: 0 | L112: 0 | M112: 1.98942807 | N112: 3.10171964 | O112: 2.82641397 | P112: 3.39220131 | Q112: 1.81334443 | R112: 1.9745684 | S112: 2.19346015 | T112: 2.76978785 | U112: 2.03214755 | V112: 2.16226989 | W112: 1.63673902 | X112: 3.40212746 | Y112: 1.74430164 | Z112: 2.8 | AA112: 3.4 | AB112: 7.7 | AC112: 10.1 | AD112: 8.5 | AE112: 8.9 | AF112: 12.1 | AG112: 4.2 | AH112: 5.4 | AI112: 11.5 | AJ112: 5.3 | AK112: 6.9 | AL112: 3.2 | AM112: 2.5 | AN112: 2.2 | AO112: 2 | AP112: 1.233 | AQ112: 2.856 | AR112: 2 | AS112: 0.6 | AT112: 0.533 | AU112: 0.311 | AV112: 1.316 | AW112: 1.807 | AX112: 1.522 | AY112: 4.998 | AZ112: 4.035
A113: Ativo não Elétrico | B113: ENF | C113: 0 | D113: 0 | E113: - | F113: 0 | H113: ENF | I113: 0 | J113: 0 | K113: 0 | L113: 0 | M113: 0.1594627 | N113: 0.37788283 | O113: 0.40845088 | P113: 0.30595619 | Q113: 0.67799657 | R113: 0.49200546 | S113: 0.42282815 | T113: 0.83069625 | U113: 0.20221977 | V113: 1.31653205 | W113: 0.27052224 | X113: 0.47239458 | Y113: 0.31688487 | Z113: 0.4 | AA113: 0.3 | AB113: 0.4 | AC113: 0.3 | AD113: 0.1 | AE113: 0.2 | AF113: 0.4 | AG113: 0.1 | AH113: 0.4 | AI113: 0.5 | AJ113: 0.1 | AK113: 0.2 | AL113: 0.4 | AM113: 0 | AN113: 0.5 | AO113: 0.1 | AP113: 0.258 | AQ113: 0.455 | AR113: 1.6 | AS113: 0.2 | AT113: -0.112 | AU113: -0.021 | AV113: 0.267 | AW113: 0.139 | AX113: 0.374 | AY113: 0.823 | AZ113: 0.556
A114: Ativo não Elétrico | B114: EMR | C114: 1.14490756 | D114: 2.15186916 | E114: -46.794741 | F114: -1.0069616 | H114: EMR | AW114: =SUM(AW112:AW113) -> 1.946 | AX114: =SUM(AX112:AX113) -> 1.896 | AY114: 5.821 | AZ114: 4.591 | BA114: 1.715 | BB114: 3.149 | BC114: 5.685 | BD114: 4.822 | BE114: 2.15186916 | BF114: 2.31962627 | BG114: 4.96017397 | BH114: 3.64118347 | BI114: 1.14490756
A115: Ativo não Elétrico | B115: ESE | C115: 1.8256497 | D115: 1.10340321 | E115: 65.45626145 | F115: 0.72224649 | H115: ESE | I115: 0 | J115: 0 | K115: 0 | L115: 0 | M115: 3.18655118 | N115: 4.71856504 | O115: 3.76865616 | P115: 5.85013044 | Q115: 4.71261972 | R115: 4.60290704 | S115: 5.03838329 | T115: 4.73401285 | U115: 3.00087412 | V115: 3.58107692 | W115: 4.63590303 | X115: 3.1009456 | Y115: 0.96008102 | Z115: 2.2 | AA115: 3.6 | AB115: 1.8 | AC115: 0.5 | AD115: 1.7 | AE115: 2.7 | AF115: 1.6 | AG115: 0.7 | AH115: 2.6 | AI115: 6.8 | AJ115: 3.4 | AK115: 1 | AL115: 1.8 | AM115: 3.4 | AN115: 7.8 | AO115: 2.5 | AP115: 2.004 | AQ115: 0.644 | AR115: 2.6 | AS115: 0.2 | AT115: 0.833 | AU115: -0.037 | AV115: 1.74 | AW115: 1.042 | AX115: 1.832 | AY115: 3.876 | AZ115: 3.463 | BA115: 3.243 | BB115: 2.539 | BC115: 4.096 | BD115: 4.459 | BE115: 1.10340321 | BF115: 2.49257296 | BG115: 4.44832454 | BH115: 6.585917 | BI115: 1.8256497
A116: Ativo não Elétrico | B116: EBO | C116: 0 | D116: 0 | E116: - | F116: 0 | H116: EBO | I116: 0 | J116: 0 | K116: 0 | L116: 0 | M116: 0.80068586 | N116: 0.65936119 | O116: 0.53351985 | P116: 1.05381 | Q116: 1.17212389 | R116: 0.45312832 | S116: 0.67460881 | T116: 0.47855275 | U116: 0.21988826 | V116: 0.67647231 | W116: 0.75612296 | X116: 1.40602966 | Y116: 1.26260177 | Z116: 0.18463591 | AA116: 0.5 | AB116: 0.5 | AC116: 0.1 | AD116: 0.2 | AE116: 0.2 | AF116: 0.5 | AG116: 0.2 | AH116: 0.9 | AI116: 1.3 | AJ116: 2.8 | AK116: 0.5 | AL116: 1.1 | AM116: 0.5 | AN116: 0.7 | AO116: 0.1 | AP116: 0.22 | AQ116: 0.18 | AR116: 0.6 | AS116: 0.1 | AT116: -0.006 | AU116: 0.033 | AV116: 0.346 | AW116: 0.288 | AX116: 0.518 | AY116: 0.875 | AZ116: 1.151 | BA116: 0.362
A117: Ativo não Elétrico | B117: EPB | C117: 0 | D117: 0 | E117: - | F117: 0 | H117: EPB | I117: 0 | J117: 0 | K117: 0 | L117: 0 | M117: 6.92629844 | N117: 6.93981226 | O117: 7.34427497 | P117: 8.22681456 | Q117: 7.94238703 | R117: 5.25888837 | S117: 5.23514646 | T117: 5.47255351 | U117: 2.47297039 | V117: 3.61356684 | W117: 5.54806838 | X117: 5.59395631 | Y117: 5.33397616 | Z117: 4.9 | AA117: 4.3 | AB117: 4.9 | AC117: 1 | AD117: 1.9 | AE117: 2.5 | AF117: 3.3 | AG117: 1.4 | AH117: 6.7 | AI117: 12.8 | AJ117: 3.3 | AK117: 3.6 | AL117: 1.8 | AM117: 0 | AN117: 9.8 | AO117: 2.5 | AP117: 3.3 | AQ117: 2.179 | AR117: 2.5 | AS117: 0.4 | AT117: 0.587 | AU117: 0.724 | AV117: 3.358 | AW117: 1.869 | AX117: 3.432 | AY117: 9.855 | AZ117: 9.864 | BA117: 4.33
A118: Ativo não Elétrico | B118: EPB+EBO | C118: 4.37896627 | D118: 1.46122572 | E118: =IFERROR(IF((C118/D118-1)*100<=-100,"-",IF((C118/D118-1)*100=0,"-",(C118/D118-1)*100)),"-") -> 199.677607 | F118: =IFERROR(SUM(C118-D118),"-") -> 2.91774055 | H118: EPB+EBO | BA118: =SUM(BA116:BA117) -> 4.692 | BB118: 6.951 | BC118: 11.121 | BD118: 11.949 | BE118: 1.46122572 | BF118: 3.00718841 | BG118: 8.82394665 | BH118: 10.67004943 | BI118: 4.37896627
A119: Ativo não Elétrico | B119: EMT | C119: 10.6740207 | D119: 5.11732662 | E119: 108.5858788 | F119: 5.55669408 | H119: EMT | I119: 0 | J119: 0 | K119: 0 | L119: 0 | M119: 1.01610067 | N119: -0.51138461 | O119: 4.60818518 | P119: 0.29972966 | Q119: 2.1 | R119: 3.1 | S119: 1.6 | T119: 9.3 | U119: 6.13585488 | V119: 17.84663077 | W119: 9.95373659 | X119: 12.10212932 | Y119: 19.33136572 | Z119: 25.03329086 | AA119: 25.9 | AB119: 15.5 | AC119: 4 | AD119: 2.7 | AE119: 5.8 | AF119: 6.3 | AG119: 2.2 | AH119: 9 | AI119: 1 | AJ119: 10.4 | AK119: 2.8 | AL119: 7 | AM119: 10.3 | AN119: 11.4 | AO119: 2.7 | AP119: 5.099 | AQ119: 5.187 | AR119: 8.7 | AS119: 2.2 | AT119: 1.05 | AU119: 4.049 | AV119: 4.619 | AW119: 3.77 | AX119: 6.704 | AY119: 12.336 | AZ119: 12.965 | BA119: 7.292 | BB119: 9.398 | BC119: 15.117 | BD119: 12.062 | BE119: 5.11732662 | BF119: 13.29203249 | BG119: 14.07484725 | BH119: 17.16622469 | BI119: 10.6740207
A120: Ativo não Elétrico | B120: EMS | C120: 3.17024478 | D120: 3.03603945 | E120: 4.420407976 | F120: 0.13420533 | H120: EMS | I120: 0 | J120: 0 | K120: 0 | L120: 0 | M120: 2.04585387 | N120: 6.48988924 | O120: 2.26038609 | P120: 3.71668025 | Q120: 0.38390487 | R120: 0.88520799 | S120: -0.9 | T120: 6.76664474 | U120: 5.26012225 | V120: 6.02237638 | W120: 6.57370746 | X120: 4.17306019 | Y120: 2.82561789 | Z120: 1.59071385 | AA120: 1.8 | AB120: 8.2 | AC120: 2.9 | AD120: 2 | AE120: 0.3 | AF120: 7.7 | AG120: 0.7 | AH120: 5.1 | AI120: 20.2 | AJ120: 22.4 | AK120: 2.1 | AL120: 3.4 | AM120: 7.1 | AN120: 5.6 | AO120: 2.7 | AP120: 2.682 | AQ120: 3.466 | AR120: 3.9 | AS120: 1.7 | AT120: 7.931 | AU120: -5.947 | AV120: 1.72 | AW120: 3.629 | AX120: 6.593 | AY120: 8.193 | AZ120: 6.548 | BA120: 3.994 | BB120: 5.529 | BC120: 10.01 | BD120: 6.283 | BE120: 3.03603945 | BF120: 11.07619051 | BG120: 7.64314871 | BH120: 5.36594438 | BI120: 3.17024478
A121: Ativo não Elétrico | B121: ETO | C121: 2.25386165 | D121: 1.55948064 | E121: 44.52642708 | F121: 0.69438101 | H121: ETO | I121: 0 | J121: 0 | K121: 0 | L121: 0 | M121: 0.56969718 | N121: 0.79278128 | O121: 0.76162641 | P121: 2.22357718 | Q121: 0.20792822 | R121: 0.1 | S121: 3.7 | T121: 1.2 | U121: 1.89653332 | V121: 7.74421528 | W121: 6.37805877 | X121: 5.12667565 | Y121: 1.33898444 | Z121: 7.6 | AA121: 6.8 | AB121: 3.6 | AC121: 2.4 | AD121: 1.5 | AE121: 3.9 | AF121: 3.8 | AG121: 4.5 | AH121: 5.1 | AI121: 3.4 | AJ121: -4.3 | AK121: 1.6 | AL121: 3.4 | AM121: 6.2 | AN121: 13.9 | AO121: 2.4 | AP121: 2.225 | AQ121: 2.52 | AR121: 3.9 | AS121: 2.1 | AT121: 0.615 | AU121: 0.156 | AV121: -0.631 | AW121: 1.953 | AX121: 4.291 | AY121: 5.668 | AZ121: 5.593 | BA121: 4.274 | BB121: 4.538 | BC121: 6.135 | BD121: 4.806 | BE121: 1.55948064 | BF121: 2.26675261 | BG121: 6.0227987 | BH121: 6.63045036 | BI121: 2.25386165
A122: Ativo não Elétrico | B122: ESS | C122: 2.1175137 | D122: 1.347 | E122: 57.2022049 | F122: 0.7705137 | H122: ESS | I122: 0 | J122: 0 | K122: 0 | L122: 0 | M122: 0.01598479 | N122: 0.90481443 | O122: 1.20247591 | P122: 0.22833494 | Q122: 0.22507894 | R122: 0.311507133 | S122: 1.7703642 | T122: 6.06442789 | U122: 3.57290118 | V122: 2.21702574 | W122: 2.31277957 | X122: 4.32434985 | Y122: 2.7693557 | Z122: 2.36623021 | AA122: 5.3 | AB122: 2.2 | AC122: 1.7 | AD122: 8.1 | AE122: 14.7 | AF122: 5.5 | AG122: 0.9 | AH122: 3.5 | AI122: 7.8 | AJ122: 0 | AK122: 3.4 | AL122: 2.6 | AM122: 3.5 | AN122: 7.5 | AO122: 2.1 | AP122: 2.256 | AQ122: 4.173 | AR122: 3.5 | AS122: -3.7 | AT122: 0.642 | AU122: 9.798 | AV122: -1.529 | AW122: 1.393 | AX122: 3.606 | AY122: 5.751 | AZ122: 5.198 | BA122: 2.702 | BB122: 3.017 | BC122: 5.213 | BD122: 6.738 | BE122: 1.347 | BF122: 3.22839833 | BG122: 5.72815139 | BH122: 5.62565859 | BI122: 2.1175137
A123: Ativo não Elétrico | B123: ERO | C123: 11.54484304 | D123: 1.83224894 | E123: 530.0914023 | F123: 9.7125941 | H123: ERO | I123: 1.34563139 | J123: 2.53651202 | K123: 2.01115566 | L123: 5.8376242 | M123: 1.82997429 | N123: 1.1482465 | O123: 1.46290069 | P123: 2.91612452 | Q123: 0.73802052 | R123: 3.03022694 | S123: 1.75952559 | T123: 0.38168068 | U123: 1.12660991 | V123: 0.81243323 | W123: 0.51219882 | X123: 4.50547668 | Y123: -2.05601927 | Z123: 2.96455073 | AA123: 0.95696859 | AB123: 0.78205987 | AC123: 0.0416318 | AD123: 0.86919991 | AE123: 0.33661528 | AF123: -0.12508514 | AG123: -0.02507603 | AH123: 0.79707211 | AI123: 0.07179143 | AJ123: 1.21055675 | AK123: 0.1 | AL123: 13.1 | AM123: 10.6 | AN123: 19.5 | AO123: 5.1 | AP123: 4.366 | AQ123: 4.918 | AR123: 33.8 | AS123: 1.4 | AT123: 9.147 | AU123: 3.322 | AV123: 0.97 | AW123: 2.738 | AX123: 3.997 | AY123: 9.146 | AZ123: 10.501 | BA123: 3.788 | BB123: 1.244 | BC123: 7.232 | BD123: 3.631 | BE123: 1.83224894 | BF123: 2.53034718 | BG123: 7.12081179 | BH123: 6.71523487 | BI123: 11.54484304
A124: Ativo não Elétrico | B124: EAC | C124: 1.45489066 | D124: -2.35200923 | E124: - | F124: 3.80689989 | H124: EAC | I124: 3.29160522 | J124: 0.27448642 | K124: 0.68974345 | L124: 2.25322947 | M124: 0.34007529 | N124: 1.04581537 | O124: 0.38042566 | P124: 2.31987307 | Q124: 0.461 | R124: 0.09242182 | S124: 0.239818 | T124: 1.35124615 | U124: 0.01792 | V124: 0.08007073 | W124: 0.23660437 | X124: 2.23210256 | Y124: 0.19051795 | Z124: 0.03429069 | AA124: 0.06647689 | AB124: -0.01576524 | AC124: 0.7933 | AD124: 0.0167 | AE124: 6.9229 | AF124: -1.2292 | AG124: 0.0887 | AH124: 0.0269 | AI124: 1.0054 | AJ124: 1.9165 | AK124: 0.1 | AL124: 3.2 | AM124: 1.6 | AN124: -9 | AO124: 7.3 | AP124: 3.639 | AQ124: 3.992 | AR124: 15.6 | AS124: 3.7 | AT124: 3.431 | AU124: -2.413 | AV124: 1.499 | AW124: -0.839 | AX124: 2.677 | AY124: 4.489 | AZ124: 3.275 | BA124: 2.533 | BB124: 1.25 | BC124: 3.214 | BD124: 3.024 | BE124: -2.35200923 | BF124: 1.00836037 | BG124: 5.79590939 | BH124: 3.02804127 | BI124: 1.45489066
A125: Ativo não Elétrico | B125: Total Distribuidoras | C125: 38.56489806 | D125: 15.25658451 | E125: 152.7754363 | F125: 23.30831355 | H125: Total Distribuidoras | I125: =SUM(I112:I124) -> 4.63723661 | J125: 2.81099844 | K125: 2.70089911 | L125: 8.09085367 | M125: 18.88011234 | N125: 25.66750317 | O125: 25.55731577 | P125: 30.53323212 | Q125: 20.43440419 | R125: 20.30086147 | S125: 21.73413465 | T125: 39.34960267 | U125: 25.93804163 | V125: 46.07267014 | W125: 38.81444121 | X125: 46.43924786 | Y125: 34.01766789 | Z125: 50.07371225 | AA125: 52.92344548 | AB125: 45.56629463 | AC125: 23.8349318 | AD125: 27.58589991 | AE125: 46.45951528 | AF125: 39.84571486 | AG125: 14.96362397 | AH125: 39.52397211 | AI125: 66.37719143 | AJ125: 46.52705675 | AK125: 22.3 | AL125: 41 | AM125: 45.7 | AN125: 69.9 | AO125: 29.5 | AP125: 27.282 | AQ125: 30.57 | AR125: 78.7 | AS125: 8.9 | AT125: 24.651 | AU125: 9.975 | AV125: 13.675 | AW125: =SUM(AW114:AW124) -> 17.789 | AX125: =SUM(AX114:AX124) -> 35.546 | AY125: 66.01 | AZ125: 63.149 | BA125: =SUM(BA114:BA124)-BA118 -> 34.233 | BB125: 37.615 | BC125: 67.823 | BD125: 57.774 | BE125: 15.25658451 | BF125: =SUM(BF112:BF124) -> 41.22146913 | BG125: =SUM(BG112:BG124) -> 64.61811239 | BH125: =SUM(BH112:BH124) -> 65.42870406 | BI125: =SUM(BI112:BI124) -> 38.56489806
A126: Ativo não Elétrico | B126: EPA I | C126: =INDEX($H$108:$XFD$148,MATCH($B126,$H$108:$H$148,0),MATCH(C$12,$H$12:$XFD$12,0),1) -> 0.01278264 | D126: 0.14894406 | E126: -91.41782492 | F126: =IFERROR(SUM(C126-D126),"-") -> -0.13616142 | H126: EPA I | I126: 0 | J126: 0 | K126: 0 | L126: 0 | M126: 0 | N126: 0 | O126: 0 | P126: 0 | Q126: 0 | R126: 0 | S126: 0 | T126: 0 | U126: 0 | V126: 0 | W126: 0 | X126: 0 | Y126: 0 | Z126: 0 | AA126: 0 | AB126: 0 | AC126: 0 | AD126: 0 | AE126: 0 | AF126: 0.1 | AG126: 0 | AH126: 0 | AI126: 0 | AJ126: 0 | AK126: 0 | AL126: 0 | AM126: 0 | AN126: 0.6 | AO126: 0 | AP126: 0 | AQ126: 0.044 | AR126: 0.1 | AS126: 0 | AT126: 0 | AU126: 0 | AV126: 0 | AW126: 0 | AX126: 0 | AY126: 0 | AZ126: 0 | BA126: 0 | BB126: 0 | BC126: 0 | BD126: 0.031 | BE126: 0.14894406 | BF126: 0 | BG126: 0 | BH126: 0 | BI126: 0.01278264
A127: Ativo não Elétrico | B127: EPA II | C127: 0.00618005 | D127: 0 | E127: - | F127: 0.00618005 | H127: EPA II | I127: 0 | J127: 0 | K127: 0 | L127: 0 | M127: 0 | N127: 0 | O127: 0 | P127: 0 | Q127: 0 | R127: 0 | S127: 0 | T127: 0 | U127: 0 | V127: 0 | W127: 0 | X127: 0 | Y127: 0 | Z127: 0 | AA127: 0 | AB127: 0 | AC127: 0 | AD127: 0 | AE127: 0 | AF127: 0 | AG127: 0 | AH127: 0 | AI127: 0 | AJ127: 0 | AK127: 0 | AL127: 0 | AM127: 0 | AN127: 0 | AO127: 0 | AP127: 0 | AQ127: 0 | AR127: 0 | AS127: 0 | AT127: 0.305 | AU127: 0 | AV127: 0.004 | AW127: 0.031 | AX127: 0.09 | AY127: 0 | AZ127: 0.008 | BA127: 0 | BB127: 0 | BC127: 0 | BD127: 0.021 | BE127: 0 | BF127: 0.05568 | BG127: 0 | BH127: 0 | BI127: 0.00618005
A128: Ativo não Elétrico | B128: EGO I | C128: 0.0125863 | D128: 0 | E128: - | F128: 0.0125863 | H128: EGO I | I128: 0 | J128: 0 | K128: 0 | L128: 0 | M128: 0 | N128: 0 | O128: 0 | P128: 0 | Q128: 0 | R128: 0 | S128: 0 | T128: 0 | U128: 0 | V128: 0 | W128: 0 | X128: 0 | Y128: 0 | Z128: 0 | AA128: 0 | AB128: 0 | AC128: 0 | AD128: 0 | AE128: 0 | AF128: 0 | AG128: 0 | AH128: 0 | AI128: 0 | AJ128: 0 | AK128: 0 | AL128: 0 | AM128: 0.1 | AN128: 0.7 | AO128: 0 | AP128: 0 | AQ128: 0 | AR128: 0 | AS128: 0 | AT128: 0 | AU128: 0 | AV128: 0 | AW128: 0 | AX128: 0 | AY128: 0 | AZ128: 0 | BA128: 0 | BB128: 0 | BC128: 0 | BD128: 0.031 | BE128: 0 | BF128: 0 | BG128: 0 | BH128: 0 | BI128: 0.0125863
A129: Ativo não Elétrico | B129: ETT | C129: 0.00168985 | D129: 0 | E129: - | F129: 0.00168985 | H129: ETT | I129: 0 | J129: 0 | K129: 0 | L129: 0 | M129: 0 | N129: 0 | O129: 0 | P129: 0 | Q129: 0 | R129: 0 | S129: 0 | T129: 0 | U129: 0 | V129: 0 | W129: 0 | X129: 0 | Y129: 0 | Z129: 0 | AA129: 0 | AB129: 0 | AC129: 0 | AD129: 0 | AE129: 0 | AF129: 0 | AG129: 0 | AH129: 0 | AI129: 0 | AJ129: 0 | AK129: 0 | AL129: 0 | AM129: 0 | AN129: 0 | AO129: 0 | AP129: 0 | AQ129: 0 | AR129: 0 | AS129: 0 | AT129: 0 | AU129: 0 | AV129: 0 | AW129: 0.016 | AX129: 0.084 | AY129: 0 | AZ129: 0 | BA129: 0 | BB129: 0 | BC129: 0 | BD129: 0.018 | BE129: 0 | BF129: 0 | BG129: 0 | BH129: 0 | BI129: 0.00168985
A130: Ativo não Elétrico | B130: ETT II | C130: 0 | D130: 0 | E130: - | F130: 0 | H130: ETT II | I130: 0 | J130: 0 | K130: 0 | L130: 0 | M130: 0 | N130: 0 | O130: 0 | P130: 0 | Q130: 0 | R130: 0 | S130: 0 | T130: 0 | U130: 0 | V130: 0 | W130: 0 | X130: 0 | Y130: 0 | Z130: 0 | AA130: 0 | AB130: 0 | AC130: 0 | AD130: 0 | AE130: 0 | AF130: 0 | AG130: 0 | AH130: 0 | AI130: 0 | AJ130: 0 | AK130: 0 | AL130: 0 | AM130: 0 | AN130: 0 | AO130: 0 | AP130: 0 | AQ130: 0 | AR130: 0 | AS130: 0 | AT130: 0 | AU130: 0 | AV130: 0 | AW130: 0 | AX130: 0 | AY130: 0 | AZ130: 0 | BA130: 0 | BB130: 0 | BC130: 0 | BD130: 0.011 | BE130: 0 | BF130: 0 | BG130: 0.02084259 | BH130: 0 | BI130: 0
A131: Ativo não Elétrico | B131: EAM | C131: 0.00182696 | D131: 0 | E131: - | F131: 0.00182696 | H131: EAM | I131: 0 | J131: 0 | K131: 0 | L131: 0 | M131: 0 | N131: 0 | O131: 0 | P131: 0 | Q131: 0 | R131: 0 | S131: 0 | T131: 0 | U131: 0 | V131: 0 | W131: 0 | X131: 0 | Y131: 0 | Z131: 0 | AA131: 0 | AB131: 0 | AC131: 0 | AD131: 0 | AE131: 0 | AF131: 0 | AG131: 0 | AH131: 0 | AI131: 0 | AJ131: 0 | AK131: 0 | AL131: 0 | AM131: 0 | AN131: 0 | AO131: 0 | AP131: 0 | AQ131: 0 | AR131: 0 | AS131: 0 | AT131: 0.835 | AU131: 0.482 | AV131: 0.013 | AW131: 0.328 | AX131: 0.036 | AY131: 0.012 | AZ131: 0.177 | BA131: 0 | BB131: 0.292 | BC131: 0 | BD131: -0.285 | BE131: 0 | BF131: 0 | BG131: 0.00424112 | BH131: 0.15830318 | BI131: 0.00182696
A132: Ativo não Elétrico | B132: EAM II | C132: 0 | D132: -0.019 | E132: - | F132: 0.019 | H132: EAM II | I132: 0 | J132: 0 | K132: 0 | L132: 0 | M132: 0 | N132: 0 | O132: 0 | P132: 0 | Q132: 0 | R132: 0 | S132: 0 | T132: 0 | U132: 0 | V132: 0 | W132: 0 | X132: 0 | Y132: 0 | Z132: 0 | AA132: 0 | AB132: 0 | AC132: 0 | AD132: 0 | AE132: 0 | AF132: 0 | AG132: 0 | AH132: 0 | AI132: 0 | AJ132: 0 | AK132: 0 | AL132: 0 | AM132: 0 | AN132: 0 | AO132: 0 | AP132: 0 | AQ132: 0 | AR132: 0 | AS132: 0 | AT132: 0.835 | AU132: 0.482 | AV132: 0.013 | AW132: 0 | AX132: 0 | AY132: 0 | AZ132: 0 | BA132: - | BB132: - | BC132: 0 | BD132: 0.019 | BE132: -0.019 | BF132: 0 | BG132: 0 | BH132: 0 | BI132: 0
A133: Ativo não Elétrico | B133: EAP | C133: 0 | D133: 0 | E133: - | F133: 0 | H133: EAP | I133: 0 | J133: 0 | K133: 0 | L133: 0 | M133: 0 | N133: 0 | O133: 0 | P133: 0 | Q133: 0 | R133: 0 | S133: 0 | T133: 0 | U133: 0 | V133: 0 | W133: 0 | X133: 0 | Y133: 0 | Z133: 0 | AA133: 0 | AB133: 0 | AC133: 0 | AD133: 0 | AE133: 0 | AF133: 0 | AG133: 0 | AH133: 0 | AI133: 0 | AJ133: 0 | AK133: 0 | AL133: 0 | AM133: 0 | AN133: 0 | AO133: 0 | AP133: 0 | AQ133: 0 | AR133: 0 | AS133: 0 | AT133: 0 | AU133: 0 | AV133: 0 | AW133: 0 | AX133: 0 | AY133: 0 | AZ133: 0 | BA133: 0 | BB133: 0 | BC133: 0 | BD133: 0 | BE133: 0 | BF133: 0 | BG133: 0 | BH133: 0 | BI133: 0
A134: Ativo não Elétrico | B134: EPT | C134: =INDEX($H$59:$XFD$99,MATCH($B134,$H$59:$H$99,0),MATCH(C$12,$H$12:$XFD$12,0),1) -> 0 | D134: =INDEX($H$59:$XFD$99,MATCH($B134,$H$59:$H$99,0),MATCH(D$12,$H$12:$XFD$12,0),1) -> 0 | E134: - | F134: 0 | H134: EPT | I134: 0 | AW134: 0 | AX134: 0 | AY134: 0 | AZ134: 0 | BA134: 0 | BB134: 0.004 | BC134: 0.014 | BD134: -0.014 | BE134: 0 | BF134: 0 | BG134: 0 | BH134: 0 | BI134: 0
A135: Ativo não Elétrico | B135: EMA I | C135: =INDEX($H$59:$XFD$99,MATCH($B135,$H$59:$H$99,0),MATCH(C$12,$H$12:$XFD$12,0),1) -> 0.72793778 | D135: =INDEX($H$59:$XFD$99,MATCH($B135,$H$59:$H$99,0),MATCH(D$12,$H$12:$XFD$12,0),1) -> 0 | E135: =IFERROR(IF((C135/D135-1)*100<=-100,"-",IF((C135/D135-1)*100=0,"-",(C135/D135-1)*100)),"-") -> - | F135: =IFERROR(SUM(C135-D135),"-") -> 0.72793778 | H135: EMA I | I135: 0 | J135: 0 | K135: 0 | L135: 0 | M135: 0 | N135: 0 | O135: 0 | P135: 0 | Q135: 0 | R135: 0 | S135: 0 | T135: 0 | U135: 0 | V135: 0 | W135: 0 | X135: 0 | Y135: 0 | Z135: 0 | AA135: 0 | AB135: 0 | AC135: 0 | AD135: 0 | AE135: 0 | AF135: 0 | AG135: 0 | AH135: 0 | AI135: 0 | AJ135: 0 | AK135: 0 | AL135: 0 | AM135: 0 | AN135: 0 | AO135: 0 | AP135: 0 | AQ135: 0 | AR135: 0 | AS135: 0 | AT135: 0 | AU135: 0 | AV135: 0 | AW135: 0 | AX135: 0 | AY135: 0 | AZ135: 0 | BA135: 0 | BB135: 0 | BC135: 0 | BD135: 0 | BE135: 0 | BF135: 0 | BG135: 0 | BH135: 0 | BI135: 0
A136: Ativo não Elétrico | B136: GEMINI Consolidado | C136: =INDEX($H$108:$XFD$148,MATCH($B136,$H$108:$H$148,0),MATCH(C$12,$H$12:$XFD$12,0),1) -> 0.01346244 | D136: =INDEX($H$108:$XFD$148,MATCH($B136,$H$108:$H$148,0),MATCH(D$12,$H$12:$XFD$12,0),1) -> 0.00528412 | E136: 154.7716555 | F136: 0.00817832 | H136: GEMINI Consolidado | J136: 0 | K136: 0 | L136: 0 | M136: 0 | N136: 0 | O136: 0 | P136: 0 | Q136: 0 | R136: 0 | S136: 0 | T136: 0 | U136: 0 | V136: 0 | W136: 0 | X136: 0 | Y136: 0 | Z136: 0 | AA136: 0 | AB136: 0 | AC136: 0 | AD136: 0 | AE136: 0 | AF136: 0 | AG136: 0 | AH136: 0 | AI136: 0 | AJ136: 0 | AK136: 0 | AL136: 0 | AM136: 0 | AN136: 0 | AO136: 0 | AP136: 0 | AQ136: 0 | AR136: 0 | AS136: 0 | AT136: 0 | AU136: 0 | AV136: 0 | AW136: 0.318 | AX136: 0.658 | AY136: 0.286 | AZ136: 0.576 | BA136: 0.146 | BB136: 2.78 | BC136: 5.784 | BD136: -4.58 | BE136: 0.00528412 | BF136: 0.02657632 | BG136: 0.1236388 | BH136: 0.17413093 | BI136: 0.01346244
A137: Ativo não Elétrico | B137: Total Distribuidoras | C137: =SUBTOTAL(9,C126:C136) -> 0.77646602 | D137: =SUBTOTAL(9,D126:D136) -> 0.13522818 | E137: 474.189507 | F137: 0.64123784 | H137: Total Transmissoras | I137: =SUM(I126:I136) -> 0 | J137: 0 | K137: 0 | L137: 0 | M137: 0 | N137: 0 | O137: 0 | P137: 0 | Q137: 0 | R137: 0 | S137: 0 | T137: 0 | U137: 0 | V137: 0 | W137: 0 | X137: 0 | Y137: 0 | Z137: 0 | AA137: 0 | AB137: 0 | AC137: 0 | AD137: 0 | AE137: 0 | AF137: 0.1 | AG137: 0 | AH137: 0 | AI137: 0 | AJ137: 0 | AK137: 0 | AL137: 0 | AM137: 0.1 | AN137: 1.3 | AO137: 0 | AP137: 0 | AQ137: 0.044 | AR137: 0.1 | AS137: 0 | AT137: 1.975 | AU137: 0.964 | AV137: 0.03 | AW137: 0.693 | AX137: 0.868 | AY137: 0.298 | AZ137: 0.761 | BA137: 0.146 | BB137: 3.076 | BC137: 5.798 | BD137: -4.748 | BE137: 0.13522818 | BF137: =SUM(BF126:BF136) -> 0.08225632 | BG137: =SUM(BG126:BG136) -> 0.14872251 | BH137: =SUM(BH126:BH136) -> 0.33243411 | BI137: =SUM(BI126:BI136) -> 0.04852824
A138: Ativo não Elétrico | B138: ALSOL Consolidado | C138: =INDEX($H$108:$XFD$148,MATCH($B138,$H$108:$H$148,0),MATCH(C$12,$H$12:$XFD$12,0),1) -> 18.43449421 | D138: 50.1 | E138: -63.20460238 | F138: -31.66550579 | H138: ALSOL Consolidado | I138: 0 | J138: 0 | K138: 0 | L138: 0 | M138: 0 | N138: 0 | O138: 0 | P138: 0 | Q138: 0 | R138: 0 | S138: 0 | T138: 0 | U138: 0 | V138: 0 | W138: 0 | X138: 0 | Y138: 0 | Z138: 0 | AA138: 0 | AB138: 0 | AC138: 0 | AD138: 0 | AE138: 0 | AF138: 0 | AG138: 0 | AH138: 0 | AI138: 0 | AJ138: 0 | AK138: 0 | AL138: 0 | AM138: 0 | AN138: 0 | AO138: 0 | AP138: 0 | AQ138: 0 | AR138: 0 | AS138: 21 | AT138: 49.009 | AU138: 66.548 | AV138: 54.133 | AW138: 93.416 | AX138: 139.212 | AY138: 223.4 | AZ138: 386.8 | BA138: 162.855 | BB138: 409.861 | BC138: 265.089 | BD138: 83.354 | BE138: 50.1 | BF138: 82.83436211 | BG138: 103.6717203 | BH138: 93.39188429 | BI138: 18.43449421
A139: Ativo não Elétrico | B139: ECOM | C139: 0.05805373 | D139: 0.59226952 | E139: -90.19808921 | F139: -0.53421579 | H139: ECOM | AW139: 0.065 | AX139: 0.011 | AY139: 0.153 | AZ139: 0.114 | BA139: 0.044 | BB139: 0.079 | BC139: 0.787 | BD139: 0.249 | BE139: 0.59226952 | BF139: 1.15530129 | BG139: 2.50448388 | BH139: 3.31488963 | BI139: 0.05805373
A140: Ativo não Elétrico | B140: ESOL Consolidado | C140: 0.71464492 | D140: 0.98955602 | E140: -27.78125689 | F140: -0.2749111 | H140: ESOL Consolidado | I140: 2.7 | J140: 2.5 | K140: 2.4 | L140: 5.9 | M140: 1.9 | N140: 1.7 | O140: 2.1 | P140: 3.2 | Q140: 2.1 | R140: 1.2 | S140: 2 | T140: 5.3 | U140: 9.88509272 | V140: 5.71731491 | W140: 6.26486222 | X140: 8.31564122 | Y140: 2.88789925 | Z140: 1.39945191 | AA140: 3.0448182 | AB140: 1.3 | AC140: 7.5 | AD140: 8.8 | AE140: 0.6 | AF140: 2.5 | AG140: 0.9 | AH140: 4.4 | AI140: 4.5 | AJ140: 2.3 | AK140: 1.8 | AL140: 2.3 | AM140: 0 | AN140: 0 | AO140: 0.6 | AP140: 3.162 | AQ140: 3.23 | AR140: 3.8 | AS140: 5.7 | AT140: 6.531 | AU140: 6.717 | AV140: 10.908 | AW140: 6.236 | AX140: 6.716 | AY140: 8.957 | AZ140: 5.037 | BA140: 3.44 | BB140: 4.234 | BC140: 6.629 | BD140: 4.16 | BE140: 0.98955602 | BF140: 3.11180558 | BG140: 4.86959932 | BH140: 2.39282825 | BI140: 0.71464492
A141: Ativo não Elétrico | B141: (re)energisa | C141: =SUBTOTAL(9,C138:C140) -> 19.20719286 | D141: =SUBTOTAL(9,D138:D140) -> 51.68182554 | E141: -62.83569193 | F141: -32.47463268 | H141: (re)energisa | I141: =SUM(I138:I140) -> 2.7 | J141: =SUM(J138:J140) -> 2.5 | K141: 2.4 | L141: 5.9 | M141: 1.9 | N141: 1.7 | O141: 2.1 | P141: 3.2 | Q141: 2.1 | R141: 1.2 | S141: 2 | T141: 5.3 | U141: 9.88509272 | V141: 5.71731491 | W141: 6.26486222 | X141: 8.31564122 | Y141: 2.88789925 | Z141: 1.39945191 | AA141: 3.0448182 | AB141: 1.3 | AC141: 7.5 | AD141: 8.8 | AE141: 0.6 | AF141: 2.5 | AG141: 0.9 | AH141: 4.4 | AI141: 4.5 | AJ141: 2.3 | AK141: 1.8 | AL141: 2.3 | AM141: 0 | AN141: 0 | AO141: 0.6 | AP141: 3.162 | AQ141: 3.23 | AR141: 3.8 | AS141: 26.7 | AT141: 55.54 | AU141: 73.265 | AV141: 65.041 | AW141: 99.717 | AX141: 145.939 | AY141: 232.51 | AZ141: 391.951 | BA141: 166.339 | BB141: 414.174 | BC141: 272.505 | BD141: 87.763 | BE141: 51.68182554 | BF141: =SUM(BF138:BF140) -> 87.10146898 | BG141: =SUM(BG138:BG140) -> 111.0458035 | BH141: =SUM(BH138:BH140) -> 99.09960217 | BI141: =SUM(BI138:BI140) -> 19.20719286
A142: Ativo não Elétrico | B142: ES Gás | C142: =INDEX($H$12:$XFD$55,MATCH($B142,$H$12:$H$55,0),MATCH(C$12,$H$12:$XFD$12,0),1) -> 17.32094818 | D142: =INDEX($H$12:$XFD$55,MATCH($B142,$H$12:$H$55,0),MATCH(D$12,$H$12:$XFD$12,0),1) -> 7.441 | E142: 132.777156 | F142: 9.87994818 | H142: ES Gás | K142: 0 | L142: 0 | M142: 0 | N142: 0 | O142: 0 | P142: 0 | Q142: 0 | R142: 0 | S142: 0 | T142: 0 | U142: 0 | V142: 0 | W142: 0 | X142: 0 | Y142: 0 | Z142: 0 | AA142: 0 | AB142: 0 | AC142: 0 | AD142: 0 | AE142: 0 | AF142: 0 | AG142: 0 | AH142: 0 | AI142: 0 | AJ142: 0 | AK142: 0 | AL142: 0 | AM142: 0 | AN142: 0 | AO142: 0 | AP142: 0 | AQ142: 0 | AR142: 0 | AS142: 0 | AT142: 0 | AU142: 0 | AV142: 0 | AW142: 0 | AX142: 0 | AY142: 0 | AZ142: 0 | BA142: 0 | BB142: 0 | BC142: 11.27030538 | BD142: 24.55573588 | BE142: 0.037 | BF142: 0.1 | BG142: 0.099 | BH142: 0.006 | BI142: 17.32094818
A143: Ativo não Elétrico | B143: Distribuição de gás natural | C143: =SUBTOTAL(9,C142) -> 17.32094818 | D143: =SUBTOTAL(9,D142) -> 7.441 | E143: 132.777156 | F143: 9.87994818 | H143: Distribuição de gás natural | I143: =I142 -> 0 | J143: =J142 -> 0 | K143: 0 | L143: 0 | M143: 0 | N143: 0 | O143: 0 | P143: 0 | Q143: 0 | R143: 0 | S143: 0 | T143: 0 | U143: 0 | V143: 0 | W143: 0 | X143: 0 | Y143: 0 | Z143: 0 | AA143: 0 | AB143: 0 | AC143: 0 | AD143: 0 | AE143: 0 | AF143: 0 | AG143: 0 | AH143: 0 | AI143: 0 | AJ143: 0 | AK143: 0 | AL143: 0 | AM143: 0 | AN143: 0 | AO143: 0 | AP143: 0 | AQ143: 0 | AR143: 0 | AS143: 0 | AT143: 0 | AU143: 0 | AV143: 0 | AW143: 0 | AX143: 0 | AY143: 0 | AZ143: 0 | BA143: 0 | BB143: 0 | BC143: 11.27030538 | BD143: 24.55573588 | BE143: 0.037 | BF143: =SUM(BF142) -> 0.1 | BG143: =SUM(BG142) -> 0.099 | BH143: =SUM(BH142) -> 0.006 | BI143: =SUM(BI142) -> 17.32094818
A144: Ativo não Elétrico | B144: AGRIC | C144: =INDEX($H$12:$XFD$55,MATCH($B144,$H$12:$H$55,0),MATCH(C$12,$H$12:$XFD$12,0),1) -> 65.7 | D144: =INDEX($H$12:$XFD$55,MATCH($B144,$H$12:$H$55,0),MATCH(D$12,$H$12:$XFD$12,0),1) -> 0.94883374 | E144: =IFERROR(IF((C144/D144-1)*100<=-100,"-",IF((C144/D144-1)*100=0,"-",(C144/D144-1)*100)),"-") -> 6824.290024 | F144: =IFERROR(SUM(C144-D144),"-") -> 64.75116626 | H144: AGRIC | K144: 0 | L144: 0 | M144: 0 | N144: 0 | O144: 0 | P144: 0 | Q144: 0 | R144: 0 | S144: 0 | T144: 0 | U144: 0 | V144: 0 | W144: 0 | X144: 0 | Y144: 0 | Z144: 0 | AA144: 0 | AB144: 0 | AC144: 0 | AD144: 0 | AE144: 0 | AF144: 0 | AG144: 0 | AH144: 0 | AI144: 0 | AJ144: 0 | AK144: 0 | AL144: 0 | AM144: 0 | AN144: 0 | AO144: 0 | AP144: 0 | AQ144: 0 | AR144: 0 | AS144: 0 | AT144: 0 | AU144: 0 | AV144: 0 | AW144: 0 | AX144: 0 | AY144: 0 | AZ144: 0 | BA144: 0 | BB144: 0 | BC144: 0 | BD144: 1.633 | BE144: 0.94883374 | BF144: 6.90828122 | BG144: 5.68448529 | BH144: 14.84639975 | BI144: 0
A145: Ativo não Elétrico | B145: Biogás | C145: =SUBTOTAL(9,C144) -> 65.7 | D145: =SUBTOTAL(9,D144) -> 0.94883374 | E145: =IFERROR(IF((C145/D145-1)*100<=-100,"-",IF((C145/D145-1)*100=0,"-",(C145/D145-1)*100)),"-") -> 6824.290024 | F145: =IFERROR(SUM(C145-D145),"-") -> 64.75116626 | H145: Biogás | I145: =I144 -> 0 | J145: =J144 -> 0 | K145: 0 | L145: 0 | M145: 0 | N145: 0 | O145: 0 | P145: 0 | Q145: 0 | R145: 0 | S145: 0 | T145: 0 | U145: 0 | V145: 0 | W145: 0 | X145: 0 | Y145: 0 | Z145: 0 | AA145: 0 | AB145: 0 | AC145: 0 | AD145: 0 | AE145: 0 | AF145: 0 | AG145: 0 | AH145: 0 | AI145: 0 | AJ145: 0 | AK145: 0 | AL145: 0 | AM145: 0 | AN145: 0 | AO145: 0 | AP145: 0 | AQ145: 0 | AR145: 0 | AS145: 0 | AT145: 0 | AU145: 0 | AV145: 0 | AW145: 0 | AX145: 0 | AY145: 0 | AZ145: 0 | BA145: 0 | BB145: 0 | BC145: 0 | BD145: 1.633 | BE145: 0.94883374 | BF145: =SUM(BF144) -> 6.90828122 | BG145: =SUM(BG144) -> 5.68448529 | BH145: =SUM(BH144) -> 14.84639975 | BI145: =SUM(BI144) -> 0
A146: Ativo não Elétrico | B146: RIO PEIXE I | C146: =INDEX($H$108:$XFD$148,MATCH($B146,$H$108:$H$148,0),MATCH(C$12,$H$12:$XFD$12,0),1) -> 0 | D146: 0 | E146: - | F146: 0 | H146: RIO PEIXE I | I146: 0 | J146: 0 | K146: 0 | L146: 0 | M146: 0 | N146: 0 | O146: 0 | P146: 0 | Q146: 0 | R146: 0 | S146: 0 | T146: 0 | U146: 0 | V146: 0 | W146: 0 | X146: 0 | Y146: 0 | Z146: 0 | AA146: 0 | AB146: 0 | AC146: 0 | AD146: 0 | AE146: 0 | AF146: 0 | AG146: 0 | AH146: 0 | AI146: 0 | AJ146: 0 | AK146: 0 | AL146: 0 | AM146: 0 | AN146: 0 | AO146: 0 | AP146: 0 | AQ146: 0 | AR146: 0 | AS146: 0 | AT146: 0 | AU146: 0 | AV146: 0 | AW146: 99.217 | AX146: 42.308 | AY146: 21.728 | AZ146: 13.024 | BA146: 0.681 | BB146: 0 | BC146: 0.005 | BD146: 0.698 | BE146: 0 | BF146: 0.36147998 | BG146: 0 | BH146: 0.01171513 | BI146: 0
A147: Ativo não Elétrico | B147: RIO PEIXE II | C147: 0 | D147: 0 | E147: - | F147: 0 | H147: RIO PEIXE II | I147: 0 | J147: 0 | K147: 0 | L147: 0 | M147: 0 | N147: 0 | O147: 0 | P147: 0 | Q147: 0 | R147: 0 | S147: 0 | T147: 0 | U147: 0 | V147: 0 | W147: 0 | X147: 0 | Y147: 0 | Z147: 0 | AA147: 0 | AB147: 0 | AC147: 0 | AD147: 0 | AE147: 0 | AF147: 0 | AG147: 0 | AH147: 0 | AI147: 0 | AJ147: 0 | AK147: 0 | AL147: 0 | AM147: 0 | AN147: 0 | AO147: 0 | AP147: 0 | AQ147: 0 | AR147: 0 | AS147: 0 | AT147: 0 | AU147: 0 | AV147: 0 | AW147: 96.895 | AX147: 35.542 | AY147: 11.643 | AZ147: 3.879 | BA147: 0.506 | BB147: 0 | BC147: 0 | BD147: 0 | BE147: 0 | BF147: 0 | BG147: 0 | BH147: 0 | BI147: 0
A148: Ativo não Elétrico | B148: Outras empresas | C148: 2.43626081 | D148: 6.25040665 | E148: -61.02236308 | F148: -3.81414584 | H148: Outras empresas | I148: 0 | J148: 0 | K148: 0 | L148: 0 | M148: 0 | N148: 0 | O148: 0 | P148: 0 | Q148: 0 | R148: 0 | S148: 0 | T148: 0 | U148: 70.13435544 | V148: 10.9766728 | W148: 2.43379901 | X148: 4.14572525 | Y148: 3.13780915 | Z148: 2.47053037 | AA148: 2.87066255 | AB148: 10.1 | AC148: 17.9 | AD148: 6.1 | AE148: 9.3 | AF148: 6.2 | AG148: 1.9 | AH148: 4.8 | AI148: 4.3 | AJ148: 4.2 | AK148: 3.2 | AL148: 10.9 | AM148: 8.8 | AN148: 27.4 | AO148: 11 | AP148: 17.778 | AQ148: 36.072 | AR148: 62.1 | AS148: 0.7 | AT148: 15.947 | AU148: 10.535 | AV148: 19.643 | AW148: 3.311 | AX148: 5.341 | AY148: 16.101 | AZ148: 16.002 | BA148: 4.751 | BB148: 13.287 | BC148: 22.968 | BD148: 26.108 | BE148: 6.25040665 | BF148: 2.37830193 | BG148: 15.41196094 | BH148: 47.42889397 | BI148: 2.43626081
A149: Ativo não Elétrico | B149: Holding e outras empresas | C149: =SUBTOTAL(9,C132:C148) -> 105.4058021 | D149: =SUBTOTAL(9,D132:D148) -> 66.30835005 | E149: 58.96308985 | F149: 39.09745202 | H149: Holding e outras empresas | I149: =SUM(I146:I148) -> 0 | J149: =SUM(J146:J148) -> 0 | K149: 0 | L149: 0 | M149: 0 | N149: 0 | O149: 0 | P149: 0 | Q149: 0 | R149: 0 | S149: 0 | T149: 0 | U149: 70.13435544 | V149: 10.9766728 | W149: 2.43379901 | X149: 4.14572525 | Y149: 3.13780915 | Z149: 2.47053037 | AA149: 2.87066255 | AB149: 10.1 | AC149: 17.9 | AD149: 6.1 | AE149: 9.3 | AF149: 6.2 | AG149: 1.9 | AH149: 4.8 | AI149: 4.3 | AJ149: 4.2 | AK149: 3.2 | AL149: 10.9 | AM149: 8.8 | AN149: 27.4 | AO149: 11 | AP149: 17.778 | AQ149: 36.072 | AR149: 62.1 | AS149: 0.7 | AT149: 15.947 | AU149: 10.535 | AV149: 19.643 | AW149: 199.423 | AX149: 83.191 | AY149: 49.472 | AZ149: 32.905 | BA149: 5.938 | BB149: 13.287 | BC149: 22.973 | BD149: 26.806 | BE149: 6.25040665 | BF149: =SUM(BF146:BF148) -> 2.73978191 | BG149: =SUM(BG146:BG148) -> 15.41196094 | BH149: =SUM(BH146:BH148) -> 47.4406091 | BI149: =SUM(BI146:BI148) -> 2.43626081
A150: Ativo não Elétrico
A151: Ativo não Elétrico | B151: Total | C151: =C149+C143+C141+C137+C125 -> 181.2753072 | D151: =D149+D143+D141+D137+D125 -> 140.8229883 | E151: =IFERROR(IF((C151/D151-1)*100<=-100,"-",IF((C151/D151-1)*100=0,"-",(C151/D151-1)*100)),"-") -> 28.72565013 | F151: =IFERROR(SUM(C151-D151),"-") -> 40.45231891 | H151: Total | I151: =I149+I145+I143+I141+I137+I125 -> 7.33723661 | J151: =J149+J145+J143+J141+J137+J125 -> 5.31099844 | K151: 5.10089911 | L151: 13.99085367 | M151: 20.78011234 | N151: 27.36750317 | O151: 27.65731577 | P151: 33.73323212 | Q151: 22.53440419 | R151: 21.50086147 | S151: 23.73413465 | T151: 44.64960267 | U151: 105.9574898 | V151: 62.76665785 | W151: 47.51310244 | X151: 58.90061433 | Y151: 40.04337629 | Z151: 53.94369453 | AA151: 58.83892623 | AB151: 56.96629463 | AC151: 49.2349318 | AD151: 42.48589991 | AE151: 56.35951528 | AF151: 48.64571486 | AG151: 17.76362397 | AH151: 48.72397211 | AI151: 75.17719143 | AJ151: 53.02705675 | AK151: 27.3 | AL151: 54.2 | AM151: 54.6 | AN151: 98.6 | AO151: 41.1 | AP151: 48.222 | AQ151: 69.916 | AR151: 144.7 | AS151: 36.3 | AT151: 98.113 | AU151: 94.739 | AV151: 98.389 | AW151: 317.622 | AX151: 265.544 | AY151: 348.29 | AZ151: 488.766 | BA151: 206.656 | BB151: 468.152 | BC151: 380.3693054 | BD151: 193.7837359 | BE151: 74.30987862 | BF151: =BF149+BF145+BF143+BF141+BF125+BF137 -> 138.1532576 | BG151: =BG149+BG145+BG143+BG141+BG125+BG137 -> 197.0080846 | BH151: =BH149+BH145+BH143+BH141+BH125+BH137 -> 227.1537492 | BI151: =BI149+BI145+BI143+BI141+BI125+BI137 -> 77.57782815
A152: Ativo não Elétrico
A153: Ativo não Elétrico | E153: =IFERROR(IF((C153/D153-1)*100<=-100,"-",IF((C153/D153-1)*100=0,"-",(C153/D153-1)*100)),"-") -> - | F153: =C153-D153 -> 0
A154: Ativo não Elétrico | E154: =IFERROR(IF((C154/D154-1)*100<=-100,"-",IF((C154/D154-1)*100=0,"-",(C154/D154-1)*100)),"-") -> - | F154: =C154-D154 -> 0
A155: Obrigações Especiais | B155: Obrigações Especiais
A156: Obrigações Especiais
A157: Obrigações Especiais | C157: =$C$8 -> 1T25 | D157: =$D$8 -> 1T24 | E157: Var (%) | F157: Var (R$) | I157: 1T12 | J157: 2T12 | K157: 3T12 | L157: 4T12 | M157: 1T13 | N157: 2T13 | O157: 3T13 | P157: 4T13 | Q157: 1T14 | R157: 2T14 | S157: 3T14 | T157: 4T14 | U157: 1T15 | V157: 2T15 | W157: 3T15 | X157: 4T15 | Y157: 1T16 | Z157: 2T16 | AA157: 3T16 | AB157: 4T16 | AC157: 1T17 | AD157: =AD59 -> 2T17 | AE157: =AE59 -> 3T17 | AF157: =$AF$8 -> 4T17 | AG157: =$AG$8 -> 1T18 | AH157: =$AH$8 -> 2T18 | AI157: =AI108 -> 3T18 | AJ157: 4T18 | AK157: 1T19 | AL157: 2T19 | AM157: 3T19 | AN157: 4T19 | AO157: 1T20 | AP157: 2T20 | AQ157: 3T20 | AR157: 4T20 | AS157: 1T21 | AT157: 2T21 | AU157: 3T21 | AV157: 4T21 | AW157: =AW108 -> 1T22 | AX157: 2T22 | AY157: 3T22 | AZ157: =AZ108 -> 4T22 | BA157: 1T23 | BB157: 2T23 | BC157: 3T23 | BD157: 4T23 | BE157: 1T24 | BF157: =BF108 -> 2T24 | BG157: =BG108 -> 3T24 | BH157: =BH108 -> 4T24 | BI157: =BI108 -> 1T25
A158: Obrigações Especiais | H158: Valores em
A159: Obrigações Especiais
A160: Obrigações Especiais
A161: Obrigações Especiais | B161: EMG | C161: =INDEX($H$157:$XFD$174,MATCH($B161,$H$157:$H$174,0),MATCH(C$12,$H$12:$XFD$12,0),1) -> 0 | D161: 0 | E161: =IFERROR(IF((C161/D161-1)*100<=-100,"-",IF((C161/D161-1)*100=0,"-",(C161/D161-1)*100)),"-") -> - | F161: =IFERROR(SUM(C161-D161),"-") -> 0 | H161: EMG | I161: 0 | J161: 0 | K161: 0 | L161: 0 | M161: 1.826651983 | N161: -6.061385842 | O161: 10.62779296 | P161: 5.427940894 | Q161: 2.09462098 | R161: 1.4685053 | S161: 3.53621118 | T161: 0.85777549 | U161: 0.80777461 | V161: 0.86975208 | W161: 0.88566032 | X161: 0.93291585 | Y161: 0.46860554 | Z161: 0.9 | AA161: 0.9 | AB161: 2.9 | AC161: 1.6 | AD161: 5.4 | AE161: 1.3 | AF161: 3.3 | AG161: 1.2 | AH161: 5 | AI161: 9.1 | AJ161: 1.7 | AK161: 7.8 | AL161: 0.6 | AM161: 0.3 | AN161: 0 | AO161: -0.1 | AP161: 0 | AQ161: 3.697 | AR161: 1.1 | AS161: 0.5 | AT161: 0.609 | AU161: 2.941 | AV161: 4.478 | AW161: 1.935 | AX161: 0.887 | AY161: 1.306 | AZ161: 1.305
A162: Obrigações Especiais | B162: ENF | C162: 0 | D162: 0 | E162: - | F162: 0 | H162: ENF | I162: 0 | J162: 0 | K162: 0 | L162: 0 | M162: 0.35279552 | N162: 0.30353111 | O162: 0.15279268 | P162: 0.21087447 | Q162: 0.16746829 | R162: 0.23698557 | S162: 0.16770262 | T162: -0.12297563 | U162: 0.30076877 | V162: 0.0690333 | W162: -0.17165065 | X162: 0.17173563 | Y162: 0.1012307 | Z162: 0.1 | AA162: 0 | AB162: 0.1 | AC162: 0.3 | AD162: 0.4 | AE162: 0 | AF162: 0.4 | AG162: 0.2 | AH162: 0.1 | AI162: 0 | AJ162: -0.1 | AK162: 0.1 | AL162: 0 | AM162: 0.1 | AN162: -0.3 | AO162: 0.1 | AP162: 0.2 | AQ162: 0.088 | AR162: -0.1 | AS162: 0.1 | AT162: 0.144 | AU162: 0.111 | AV162: 0.006 | AW162: 0.106 | AX162: 0.125 | AY162: 0.102 | AZ162: -0.127
A163: Obrigações Especiais | B163: EMR | C163: 2.942020314 | D163: 1.031 | E163: 185.3559955 | F163: 1.911020314 | H163: EMR | AW163: =SUM(AW161:AW162) -> 2.041 | AX163: 1.012 | AY163: 1.408 | AZ163: 1.178 | BA163: 1.575 | BB163: 1.75 | BC163: 1.563 | BD163: 1.256 | BE163: 1.031 | BF163: 3.09496669 | BG163: 1.9353784 | BH163: 3.65441194 | BI163: 2.942020314
A164: Obrigações Especiais | B164: ESE | C164: 2.301734553 | D164: 2.77458136 | E164: -17.04209558 | F164: -0.4728468073 | H164: ESE | I164: 0 | J164: 0 | K164: 0 | L164: 0 | M164: 7.162503205 | N164: 7.851494611 | O164: 2.533915051 | P164: 5.797087132 | Q164: 3.63780019 | R164: 2.4121991 | S164: -5.27043118 | T164: -0.78000406 | U164: 1.67292506 | V164: 1.91107057 | W164: 1.66545714 | X164: 3.49536699 | Y164: 4.5 | Z164: 5.3 | AA164: 8.4 | AB164: 7.9 | AC164: 2.7 | AD164: 3.2 | AE164: 2.1 | AF164: 9.3 | AG164: 6.8 | AH164: 2.4 | AI164: 0.9 | AJ164: 1.4 | AK164: 0.9 | AL164: 2.2 | AM164: 0.9 | AN164: 0.8 | AO164: 2.1 | AP164: -0.5 | AQ164: 0.697 | AR164: 0.6 | AS164: 1.2 | AT164: 1.9 | AU164: 1.642 | AV164: 1.407 | AW164: 2.135 | AX164: 1.997 | AY164: 2.474 | AZ164: 3.395 | BA164: 3.031 | BB164: 2.146 | BC164: 4.164 | BD164: 1.595 | BE164: 2.77458136 | BF164: 2.38840406 | BG164: 1.98024279 | BH164: 4.30904297 | BI164: 2.301734553
A165: Obrigações Especiais | B165: EBO | C165: 0 | D165: 0 | E165: - | F165: 0 | H165: EBO | I165: 0 | J165: 0 | K165: 0 | L165: 0 | M165: 0.3093456741 | N165: 2.866332145 | O165: 0.7485398159 | P165: 0.6587823652 | Q165: 0.44102286 | R165: 0.54001999 | S165: 1.28867785 | T165: -0.86166586 | U165: 1.34000116 | V165: 0.68602693 | W165: 11.55365844 | X165: 26.62680541 | Y165: 0.91481001 | Z165: 0.66246323 | AA165: 0.4 | AB165: 0.1 | AC165: 0.1 | AD165: 0.4 | AE165: 0.4 | AF165: 1.2 | AG165: 0.8 | AH165: 0.2 | AI165: 0.5 | AJ165: 3.5 | AK165: 0.8 | AL165: 0.4 | AM165: 0 | AN165: 0.6 | AO165: 0.2 | AP165: 0.1 | AQ165: 0.284 | AR165: 0.2 | AS165: 0.4 | AT165: 0.562 | AU165: 0.505 | AV165: 0.199 | AW165: 0.232 | AX165: 0.261 | AY165: 0.499 | AZ165: 1.86 | BA165: 0.46
A166: Obrigações Especiais | B166: EPB | C166: 0 | D166: 0 | E166: - | F166: 0 | H166: EPB | I166: 0 | J166: 0 | K166: 0 | L166: 0 | M166: 6.036654809 | N166: 7.488231657 | O166: 9.543799029 | P166: 8.805314504 | Q166: 3.86738355 | R166: 2.43395686 | S166: 3.70991654 | T166: -3.5631406 | U166: 3.32737176 | V166: 4.26865623 | W166: 5.01367149 | X166: -9.28116351 | Y166: 6.65421381 | Z166: 7.57436762 | AA166: 8 | AB166: 2.9 | AC166: 4.5 | AD166: 4 | AE166: 2.2 | AF166: 10.4 | AG166: 3.3 | AH166: -0.2 | AI166: 2.2 | AJ166: 3.1 | AK166: 6 | AL166: 2.4 | AM166: 2.4 | AN166: 3 | AO166: 1.1 | AP166: 0.3 | AQ166: 1.763 | AR166: 2.6 | AS166: 2.3 | AT166: 1.92 | AU166: 7.275 | AV166: 2.117 | AW166: 2.37 | AX166: 5.552 | AY166: 3.545 | AZ166: 5.31 | BA166: 2.921
A167: Obrigações Especiais | B167: EPB+EBO | C167: - | D167: 3.32171962 | E167: =IFERROR(IF((C167/D167-1)*100<=-100,"-",IF((C167/D167-1)*100=0,"-",(C167/D167-1)*100)),"-") -> - | F167: =IFERROR(SUM(C167-D167),"-") -> - | H167: EPB+EBO | BA167: =SUM(BA165:BA166) -> 3.381 | BB167: 10.459 | BC167: 3.294 | BD167: 3.398 | BE167: 3.32171962 | BF167: 2.40316458 | BG167: 5.31366407 | BH167: 11.39785438 | BI167: -
A168: Obrigações Especiais | B168: EMT | C168: 7.524903215 | D168: 5.14703314 | E168: 46.19884913 | F168: 2.377870075 | H168: EMT | I168: 0 | J168: 0 | K168: 0 | L168: 0 | M168: 0.86472764 | N168: 5.5396629 | O168: 7.21876417 | P168: 5.02418207 | Q168: 2.1 | R168: 10.3 | S168: 25.9 | T168: 35.9 | U168: 4.39844 | V168: 8.68096 | W168: 7.07197 | X168: 6.83544472 | Y168: 2.71555708 | Z168: 8.97407051 | AA168: 24.8 | AB168: 23.3 | AC168: 16.6 | AD168: 90.3 | AE168: 28 | AF168: 82.8 | AG168: 70.7 | AH168: 3.1 | AI168: 2.1 | AJ168: 63.4 | AK168: -7.3 | AL168: 5.2 | AM168: 7.1 | AN168: 5.6 | AO168: 64.9 | AP168: 49.7 | AQ168: 2.021 | AR168: -4.5 | AS168: -15.2 | AT168: 6.801 | AU168: 6.811 | AV168: 5.893 | AW168: 5.84 | AX168: 11.95 | AY168: 29.567 | AZ168: 140.656 | BA168: 39.579 | BB168: 36.572 | BC168: 22.767 | BD168: 14.616 | BE168: 5.14703314 | BF168: 23.15927234 | BG168: 30.49402933 | BH168: 10.41710047 | BI168: 7.524903215
A169: Obrigações Especiais | B169: EMS | C169: 9.431313663 | D169: 19.82370112 | E169: -52.42405237 | F169: -10.39238746 | H169: EMS | I169: 0 | J169: 0 | K169: 0 | L169: 0 | M169: 8.95119117 | N169: 4.92347054 | O169: 13.12287922 | P169: 11.90045503 | Q169: 17.00987133 | R169: 6.2 | S169: 6.2 | T169: 24.50549687 | U169: 4.799766 | V169: 7.84042067 | W169: 9.58444986 | X169: 21.34531024 | Y169: 6.74428 | Z169: 4.003 | AA169: 6.5 | AB169: 15 | AC169: 88.2 | AD169: 128.1 | AE169: 31.6 | AF169: 6.8 | AG169: 11.4 | AH169: 6.3 | AI169: 2.9 | AJ169: 4.5 | AK169: 3.4 | AL169: 3.8 | AM169: 4.7 | AN169: 3.5 | AO169: 7 | AP169: 2.7 | AQ169: 6.897 | AR169: 2.5 | AS169: 3 | AT169: 6.737 | AU169: 24.997 | AV169: 9.001 | AW169: 40.023 | AX169: 30.061 | AY169: 19.988 | AZ169: 16.328 | BA169: 7.355 | BB169: 25.812 | BC169: 14.132 | BD169: 8.457 | BE169: 19.82370112 | BF169: 13.67445624 | BG169: 11.20520258 | BH169: 68.00553925 | BI169: 9.431313663
A170: Obrigações Especiais | B170: ETO | C170: 1.757455264 | D170: 4.82816678 | E170: -63.59994705 | F170: -3.070711516 | H170: ETO | I170: 0 | J170: 0 | K170: 0 | L170: 0 | M170: -0.15496283 | N170: -0.53476037 | O170: 2.08914736 | P170: -10.01229631 | Q170: 7.35171251 | R170: 5.9 | S170: 27.1 | T170: 16.3 | U170: 3.82763127 | V170: 7.19012578 | W170: 10.93880719 | X170: 33.55476854 | Y170: 2.11243 | Z170: 14.3 | AA170: 1.1 | AB170: 88.2 | AC170: 3.1 | AD170: 8.1 | AE170: 42.6 | AF170: 0.7 | AG170: 1.5 | AH170: 2.5 | AI170: -9.9 | AJ170: 4.4 | AK170: 1.1 | AL170: 4.1 | AM170: -27.7 | AN170: 9.5 | AO170: 2.8 | AP170: 0.8 | AQ170: 37.17 | AR170: 3.7 | AS170: 9.5 | AT170: 12.281 | AU170: 2.562 | AV170: 5.797 | AW170: 3.802 | AX170: 21.823 | AY170: 5.98 | AZ170: 5.026 | BA170: 13.288 | BB170: 8.897 | BC170: 7.098 | BD170: 9.677 | BE170: 4.82816678 | BF170: 6.18687225 | BG170: 6.05325267 | BH170: 11.49497791 | BI170: 1.757455264
A171: Obrigações Especiais | B171: ESS | C171: 10.65747459 | D171: 76.37726108 | E171: -86.04627289 | F171: -65.71978649 | H171: ESS | I171: 0 | J171: 0 | K171: 0 | L171: 0 | M171: 1.40966967 | N171: 3.26243012 | O171: 2.10220875 | P171: 2.02245629 | Q171: 1.94846082 | R171: 6.71450926 | S171: 4.93185624 | T171: 10.5081055 | U171: 4.61965547 | V171: 11.32220271 | W171: 9.62363945 | X171: 3.17880902 | Y171: 1.2 | Z171: 7.41415 | AA171: 21.1 | AB171: -17.2 | AC171: 4.1 | AD171: 15.9 | AE171: 9.3 | AF171: 6.4 | AG171: 2.6 | AH171: 2.3 | AI171: 4.2 | AJ171: 3.6 | AK171: 3.2 | AL171: 3.7 | AM171: 3.8 | AN171: 5.8 | AO171: 4.2 | AP171: 1.9 | AQ171: 3.256 | AR171: 3.8 | AS171: 8.5 | AT171: 4.997 | AU171: 5.221 | AV171: 3.436 | AW171: 6.681 | AX171: 10.152 | AY171: 5.3 | AZ171: 7.046 | BA171: 5.781 | BB171: 5.069 | BC171: 4.933 | BD171: 13.869 | BE171: 76.37726108 | BF171: 23.23955288 | BG171: 20.40218604 | BH171: 29.13327302 | BI171: 10.65747459
A172: Obrigações Especiais | B172: ERO | C172: 37.18838407 | D172: 11.2168476 | E172: 231.5404238 | F172: 25.97153647 | H172: ERO | I172: -0.00848837 | J172: -1.60823273 | K172: -15.32974932 | L172: -22.50980854 | M172: -0.010084 | N172: -0.39864345 | O172: 0.06143236 | P172: 5.55162633 | Q172: -0.0044692 | R172: -0.00374486 | S172: 0.15776133 | T172: -0.00215664 | U172: -0.00349783 | V172: -0.00257823 | W172: -17.87637953 | X172: -0.00269911 | Y172: -0.00207932 | Z172: 10.59025377 | AA172: -0.00084424 | AB172: -21.03489096 | AC172: -17.20636551 | AD172: -6.6021115 | AE172: -3.56409296 | AF172: -52.99355378 | AG172: -17.12866577 | AH172: -5.71944892 | AI172: -13.68014456 | AJ172: -23.54342427 | AK172: 22.1 | AL172: 41 | AM172: -40.2 | AN172: 130.3 | AO172: 24.2 | AP172: 19.4 | AQ172: 1.843 | AR172: 247.3 | AS172: 42.6 | AT172: 1.624 | AU172: 1.906 | AV172: 477.59 | AW172: 17.635 | AX172: 84.803 | AY172: 4.273 | AZ172: 53.896 | BA172: 17.057 | BB172: 20.604 | BC172: 50.541 | BD172: -3.629 | BE172: 11.2168476 | BF172: 10.35118211 | BG172: 20.86467413 | BH172: 2.19558205 | BI172: 37.18838407
A173: Obrigações Especiais | B173: EAC | C173: 15.65788551 | D173: 0.92541674 | E173: 1591.982091 | F173: 14.73246877 | H173: EAC | I173: 0.03708527 | J173: 0.04916723 | K173: 0.05287133 | L173: 0.04690472 | M173: 0 | N173: 7.406 | O173: 7.379 | P173: 0.027 | Q173: 0 | R173: 0 | S173: 0 | T173: 0.45230381 | U173: 0.0563131 | V173: 0 | W173: 0 | X173: 11.63927166 | Y173: 0.09248375 | Z173: 0 | AA173: 0 | AB173: 0 | AC173: -8.0782 | AD173: -3.3112 | AE173: -1.8583 | AF173: -6.7701 | AG173: -12.1486 | AH173: -1.0295 | AI173: -9.386 | AJ173: -2.6552 | AK173: 11.6 | AL173: -2.6 | AM173: 2.6 | AN173: -11.8 | AO173: 2.1 | AP173: 1.1 | AQ173: 14.89 | AR173: 186.2 | AS173: 1.9 | AT173: 0.332 | AU173: 0.166 | AV173: 0.736 | AW173: 0.108 | AX173: 17.099 | AY173: 12.939 | AZ173: 35.524 | BA173: 9.047 | BB173: 49.913 | BC173: 25.591 | BD173: 1.14 | BE173: 0.92541674 | BF173: 3.723192008 | BG173: 0.3178152 | BH173: 28.46922309 | BI173: 15.65788551
A174: Obrigações Especiais | B174: Total Distribuidoras | C174: 87.46117117 | D174: 125.4457274 | E174: -30.27967316 | F174: -37.98455627 | H174: Total Distribuidoras | I174: =SUM(I161:I173) -> 0.0285969 | J174: -1.5590655 | K174: -15.27687799 | L174: -22.46290382 | M174: 26.74849284 | N174: 32.64636342 | O174: 55.5802714 | P174: 35.41342278 | Q174: 38.61387133 | R174: 36.20243122 | S174: 67.72169458 | T174: 83.19373888 | U174: 25.14714937 | V174: 42.83567004 | W174: 38.28928371 | X174: 98.49656544 | Y174: 25.50153157 | Z174: 59.81830513 | AA174: 71.19915576 | AB174: 102.165109 | AC174: =SUM(AC161:AC173) -> 95.91543449 | AD174: 245.8866885 | AE174: 112.077607 | AF174: 61.53634622 | AG174: 69.22273423 | AH174: 14.95105108 | AI174: -11.06614456 | AJ174: 59.30137573 | AK174: =SUM(AK161:AK173) -> 49.7 | AL174: 60.8 | AM174: -46 | AN174: 147 | AO174: 108.6 | AP174: 75.7 | AQ174: 72.606 | AR174: 443.4 | AS174: 54.8 | AT174: 37.907 | AU174: 54.137 | AV174: 510.66 | AW174: =SUM(AW163:AW173) -> 80.867 | AX174: =SUM(AX163:AX173) -> 184.71 | AY174: 85.973 | AZ174: 270.219 | BA174: =SUM(BA163:BA173)-BA167 -> 100.094 | BB174: 161.222 | BC174: 134.083 | BD174: 50.379 | BE174: 125.4457274 | BF174: =SUM(BF161:BF173) -> 88.22106316 | BG174: =SUM(BG161:BG173) -> 98.56644521 | BH174: =SUM(BH161:BH173) -> 169.0770051 | BI174: =SUM(BI161:BI173) -> 87.46117117
A175: Obrigações Especiais | B175: EPA I | C175: =INDEX($H$157:$XFD$197,MATCH($B175,$H$157:$H$197,0),MATCH(C$12,$H$12:$XFD$12,0),1) -> 0 | D175: 0 | E175: - | F175: =IFERROR(SUM(C175-D175),"-") -> 0 | H175: EPA I | I175: 0 | J175: 0 | K175: 0 | L175: 0 | M175: 0 | N175: 0 | O175: 0 | P175: 0 | Q175: 0 | R175: 0 | S175: 0 | T175: 0 | U175: 0 | V175: 0 | W175: 0 | X175: 0 | Y175: 0 | Z175: 0 | AA175: 0 | AB175: 0 | AC175: 0 | AD175: 0 | AE175: 0 | AF175: 0 | AG175: 0 | AH175: 0 | AI175: 0 | AJ175: 0 | AK175: 0 | AL175: 0 | AM175: 0 | AN175: 0 | AO175: 0 | AP175: 0 | AQ175: 0 | AR175: 0 | AS175: 0 | AT175: 0 | AU175: 0 | AV175: 0 | AW175: 0 | AX175: 0 | AY175: 0 | AZ175: 0 | BA175: 0 | BB175: 0 | BC175: 0 | BD175: 0 | BE175: 0 | BF175: 0 | BG175: 0 | BH175: 0 | BI175: 0
A176: Obrigações Especiais | B176: EPA II | C176: 0 | D176: 0 | E176: - | F176: 0 | H176: EPA II | I176: 0 | J176: 0 | K176: 0 | L176: 0 | M176: 0 | N176: 0 | O176: 0 | P176: 0 | Q176: 0 | R176: 0 | S176: 0 | T176: 0 | U176: 0 | V176: 0 | W176: 0 | X176: 0 | Y176: 0 | Z176: 0 | AA176: 0 | AB176: 0 | AC176: 0 | AD176: 0 | AE176: 0 | AF176: 0 | AG176: 0 | AH176: 0 | AI176: 0 | AJ176: 0 | AK176: 0 | AL176: 0 | AM176: 0 | AN176: 0 | AO176: 0 | AP176: 0 | AQ176: 0 | AR176: 0 | AS176: 0 | AT176: 0 | AU176: 0 | AV176: 0 | AW176: 0 | AX176: 0 | AY176: 0 | AZ176: 0 | BA176: 0 | BB176: 0 | BC176: 0 | BD176: 0 | BE176: 0 | BF176: 0 | BG176: 0 | BH176: 0 | BI176: 0
A177: Obrigações Especiais | B177: EGO I | C177: 0 | D177: 0 | E177: - | F177: 0 | H177: EGO I | I177: 0 | J177: 0 | K177: 0 | L177: 0 | M177: 0 | N177: 0 | O177: 0 | P177: 0 | Q177: 0 | R177: 0 | S177: 0 | T177: 0 | U177: 0 | V177: 0 | W177: 0 | X177: 0 | Y177: 0 | Z177: 0 | AA177: 0 | AB177: 0 | AC177: 0 | AD177: 0 | AE177: 0 | AF177: 0 | AG177: 0 | AH177: 0 | AI177: 0 | AJ177: 0 | AK177: 0 | AL177: 0 | AM177: 0 | AN177: 0 | AO177: 0 | AP177: 0 | AQ177: 0 | AR177: 0 | AS177: 0 | AT177: 0 | AU177: 0 | AV177: 0 | AW177: 0 | AX177: 0 | AY177: 0 | AZ177: 0 | BA177: 0 | BB177: 0 | BC177: 0 | BD177: 0 | BE177: 0 | BF177: 0 | BG177: 0 | BH177: 0 | BI177: 0
A178: Obrigações Especiais | B178: ETT | C178: 0 | D178: 0 | E178: - | F178: 0 | H178: ETT | I178: 0 | J178: 0 | K178: 0 | L178: 0 | M178: 0 | N178: 0 | O178: 0 | P178: 0 | Q178: 0 | R178: 0 | S178: 0 | T178: 0 | U178: 0 | V178: 0 | W178: 0 | X178: 0 | Y178: 0 | Z178: 0 | AA178: 0 | AB178: 0 | AC178: 0 | AD178: 0 | AE178: 0 | AF178: 0 | AG178: 0 | AH178: 0 | AI178: 0 | AJ178: 0 | AK178: 0 | AL178: 0 | AM178: 0 | AN178: 0 | AO178: 0 | AP178: 0 | AQ178: 0 | AR178: 0 | AS178: 0 | AT178: 0 | AU178: 0 | AV178: 0 | AW178: 0 | AX178: 0 | AY178: 0 | AZ178: 0 | BA178: 0 | BB178: 0 | BC178: 0 | BD178: 0 | BE178: 0 | BF178: 0 | BG178: 0 | BH178: 0 | BI178: 0
A179: Obrigações Especiais | B179: ETT II | C179: 0 | D179: 0 | E179: - | F179: 0 | H179: ETT II | I179: 0 | J179: 0 | K179: 0 | L179: 0 | M179: 0 | N179: 0 | O179: 0 | P179: 0 | Q179: 0 | R179: 0 | S179: 0 | T179: 0 | U179: 0 | V179: 0 | W179: 0 | X179: 0 | Y179: 0 | Z179: 0 | AA179: 0 | AB179: 0 | AC179: 0 | AD179: 0 | AE179: 0 | AF179: 0 | AG179: 0 | AH179: 0 | AI179: 0 | AJ179: 0 | AK179: 0 | AL179: 0 | AM179: 0 | AN179: 0 | AO179: 0 | AP179: 0 | AQ179: 0 | AR179: 0 | AS179: 0 | AT179: 0 | AU179: 0 | AV179: 0 | AW179: 0 | AX179: 0 | AY179: 0 | AZ179: 0 | BA179: 0 | BB179: 0 | BC179: 0 | BD179: 0 | BE179: 0 | BF179: 0 | BG179: 0 | BH179: 0 | BI179: 0
A180: Obrigações Especiais | B180: EAM | C180: 0 | D180: 0 | E180: - | F180: 0 | H180: EAM | I180: 0 | J180: 0 | K180: 0 | L180: 0 | M180: 0 | N180: 0 | O180: 0 | P180: 0 | Q180: 0 | R180: 0 | S180: 0 | T180: 0 | U180: 0 | V180: 0 | W180: 0 | X180: 0 | Y180: 0 | Z180: 0 | AA180: 0 | AB180: 0 | AC180: 0 | AD180: 0 | AE180: 0 | AF180: 0 | AG180: 0 | AH180: 0 | AI180: 0 | AJ180: 0 | AK180: 0 | AL180: 0 | AM180: 0 | AN180: 0 | AO180: 0 | AP180: 0 | AQ180: 0 | AR180: 0 | AS180: 0 | AT180: 0 | AU180: 0 | AV180: 0 | AW180: 0 | AX180: 0 | AY180: 0 | AZ180: 0 | BA180: 0 | BB180: 0 | BC180: 0 | BD180: 0 | BE180: 0 | BF180: 0 | BG180: 0 | BH180: 0 | BI180: 0
A181: Obrigações Especiais | B181: EAM II | C181: 0 | D181: 0 | E181: - | F181: 0 | H181: EAM II | I181: 0 | J181: 0 | K181: 0 | L181: 0 | M181: 0 | N181: 0 | O181: 0 | P181: 0 | Q181: 0 | R181: 0 | S181: 0 | T181: 0 | U181: 0 | V181: 0 | W181: 0 | X181: 0 | Y181: 0 | Z181: 0 | AA181: 0 | AB181: 0 | AC181: 0 | AD181: 0 | AE181: 0 | AF181: 0 | AG181: 0 | AH181: 0 | AI181: 0 | AJ181: 0 | AK181: 0 | AL181: 0 | AM181: 0 | AN181: 0 | AO181: 0 | AP181: 0 | AQ181: 0 | AR181: 0 | AS181: 0 | AT181: 0 | AU181: 0 | AV181: 0 | AW181: 0 | AX181: 0 | AY181: 0 | AZ181: 0 | BA181: - | BB181: - | BC181: 0 | BD181: 0 | BE181: 0 | BF181: 0 | BG181: 0 | BH181: 0 | BI181: 0
A182: Obrigações Especiais | B182: EAP | C182: 0 | D182: 0 | E182: - | F182: 0 | H182: EAP | I182: 0 | J182: 0 | K182: 0 | L182: 0 | M182: 0 | N182: 0 | O182: 0 | P182: 0 | Q182: 0 | R182: 0 | S182: 0 | T182: 0 | U182: 0 | V182: 0 | W182: 0 | X182: 0 | Y182: 0 | Z182: 0 | AA182: 0 | AB182: 0 | AC182: 0 | AD182: 0 | AE182: 0 | AF182: 0 | AG182: 0 | AH182: 0 | AI182: 0 | AJ182: 0 | AK182: 0 | AL182: 0 | AM182: 0 | AN182: 0 | AO182: 0 | AP182: 0 | AQ182: 0 | AR182: 0 | AS182: 0 | AT182: 0 | AU182: 0 | AV182: 0 | AW182: 0 | AX182: 0 | AY182: 0 | AZ182: 0 | BA182: 0 | BB182: 0 | BC182: 0 | BD182: 0 | BE182: 0 | BF182: 0 | BG182: 0 | BH182: 0 | BI182: 0
A183: Obrigações Especiais | B183: EPT | C183: =INDEX($H$59:$XFD$99,MATCH($B183,$H$59:$H$99,0),MATCH(C$12,$H$12:$XFD$12,0),1) -> 0 | D183: =INDEX($H$59:$XFD$99,MATCH($B183,$H$59:$H$99,0),MATCH(D$12,$H$12:$XFD$12,0),1) -> 0 | E183: - | F183: 0 | H183: EPT | I183: 0 | AW183: 0 | AX183: 0 | AY183: 0 | AZ183: 0 | BA183: 0 | BB183: 0 | BC183: 0 | BD183: 0 | BE183: 0 | BF183: 0 | BG183: 0 | BH183: 0 | BI183: 0
A184: Obrigações Especiais | B184: EMA I | C184: =INDEX($H$59:$XFD$99,MATCH($B184,$H$59:$H$99,0),MATCH(C$12,$H$12:$XFD$12,0),1) -> 0.72793778 | D184: =INDEX($H$59:$XFD$99,MATCH($B184,$H$59:$H$99,0),MATCH(D$12,$H$12:$XFD$12,0),1) -> 0 | E184: =IFERROR(IF((C184/D184-1)*100<=-100,"-",IF((C184/D184-1)*100=0,"-",(C184/D184-1)*100)),"-") -> - | F184: =IFERROR(SUM(C184-D184),"-") -> 0.72793778 | H184: EMA I | I184: 0 | J184: 0 | K184: 0 | L184: 0 | M184: 0 | N184: 0 | O184: 0 | P184: 0 | Q184: 0 | R184: 0 | S184: 0 | T184: 0 | U184: 0 | V184: 0 | W184: 0 | X184: 0 | Y184: 0 | Z184: 0 | AA184: 0 | AB184: 0 | AC184: 0 | AD184: 0 | AE184: 0 | AF184: 0 | AG184: 0 | AH184: 0 | AI184: 0 | AJ184: 0 | AK184: 0 | AL184: 0 | AM184: 0 | AN184: 0 | AO184: 0 | AP184: 0 | AQ184: 0 | AR184: 0 | AS184: 0 | AT184: 0 | AU184: 0 | AV184: 0 | AW184: 0 | AX184: 0 | AY184: 0 | AZ184: 0 | BA184: 0 | BB184: 0 | BC184: 0 | BD184: 0 | BE184: 0 | BF184: 0 | BG184: 0 | BH184: - | BI184: 0
A185: Obrigações Especiais | B185: GEMINI Consolidado | C185: =INDEX($H$157:$XFD$197,MATCH($B185,$H$157:$H$197,0),MATCH(C$12,$H$12:$XFD$12,0),1) -> 0 | D185: =INDEX($H$157:$XFD$197,MATCH($B185,$H$157:$H$197,0),MATCH(D$12,$H$12:$XFD$12,0),1) -> 0 | E185: - | F185: 0 | H185: GEMINI Consolidado | I185: 0 | J185: 0 | K185: 0 | L185: 0 | M185: 0 | N185: 0 | O185: 0 | P185: 0 | Q185: 0 | R185: 0 | S185: 0 | T185: 0 | U185: 0 | V185: 0 | W185: 0 | X185: 0 | Y185: 0 | Z185: 0 | AA185: 0 | AB185: 0 | AC185: 0 | AD185: 0 | AE185: 0 | AF185: 0 | AG185: 0 | AH185: 0 | AI185: 0 | AJ185: 0 | AK185: 0 | AL185: 0 | AM185: 0 | AN185: 0 | AO185: 0 | AP185: 0 | AQ185: 0 | AR185: 0 | AS185: 0 | AT185: 0 | AU185: 0 | AV185: 0 | AW185: 0 | AX185: 0 | AY185: 0 | AZ185: 0 | BA185: 0 | BB185: 0 | BC185: 0 | BD185: 0 | BE185: 0 | BF185: 0 | BG185: 0 | BH185: 0 | BI185: 0
A186: Obrigações Especiais | B186: Total Distribuidoras | C186: =SUBTOTAL(9,C175:C185) -> 0.72793778 | D186: =SUBTOTAL(9,D175:D185) -> 0 | E186: - | F186: 0.72793778 | H186: Total Transmissoras | I186: =SUM(I175:I185) -> 0 | J186: =SUM(J175:J185) -> 0 | K186: 0 | L186: 0 | M186: 0 | N186: 0 | O186: 0 | P186: 0 | Q186: 0 | R186: 0 | S186: 0 | T186: 0 | U186: 0 | V186: 0 | W186: 0 | X186: 0 | Y186: 0 | Z186: 0 | AA186: 0 | AB186: 0 | AC186: 0 | AD186: 0 | AE186: 0 | AF186: 0 | AG186: 0 | AH186: 0 | AI186: 0 | AJ186: 0 | AK186: 0 | AL186: 0 | AM186: 0 | AN186: 0 | AO186: 0 | AP186: 0 | AQ186: 0 | AR186: 0 | AS186: 0 | AT186: 0 | AU186: 0 | AV186: 0 | AW186: 0 | AX186: 0 | AY186: 0 | AZ186: 0 | BA186: 0 | BB186: 0 | BC186: 0 | BD186: 0 | BE186: 0 | BF186: =SUM(BF175:BF185) -> 0 | BG186: =SUM(BG175:BG185) -> 0 | BH186: =SUM(BH175:BH185) -> 0 | BI186: =SUM(BI175:BI185) -> 0
A187: Obrigações Especiais | B187: ALSOL Consolidado | C187: =INDEX($H$157:$XFD$197,MATCH($B187,$H$157:$H$197,0),MATCH(C$12,$H$12:$XFD$12,0),1) -> 0 | D187: 0 | E187: - | F187: =IFERROR(SUM(C187-D187),"-") -> 0 | H187: ALSOL Consolidado | I187: 0 | J187: 0 | K187: 0 | L187: 0 | M187: 0 | N187: 0 | O187: 0 | P187: 0 | Q187: 0 | R187: 0 | S187: 0 | T187: 0 | U187: 0 | V187: 0 | W187: 0 | X187: 0 | Y187: 0 | Z187: 0 | AA187: 0 | AB187: 0 | AC187: 0 | AD187: 0 | AE187: 0 | AF187: 0 | AG187: 0 | AH187: 0 | AI187: 0 | AJ187: 0 | AK187: 0 | AL187: 0 | AM187: 0 | AN187: 0 | AO187: 0 | AP187: 0 | AQ187: 0 | AR187: 0 | AS187: 0 | AT187: 0 | AU187: 0 | AV187: 0 | AW187: 0 | AX187: 0 | AY187: 0 | AZ187: 0 | BA187: 0 | BB187: 0 | BC187: 0 | BD187: 0 | BE187: 0 | BF187: 0 | BG187: 0 | BH187: 0 | BI187: 0
A188: Obrigações Especiais | B188: ECOM | C188: 0 | D188: 0 | E188: - | F188: 0 | H188: ECOM | AW188: 0 | AX188: 0 | AY188: 0 | AZ188: 0 | BA188: 0 | BB188: 0 | BC188: 0 | BD188: 0 | BE188: 0 | BF188: 0 | BG188: 0 | BH188: 0 | BI188: 0
A189: Obrigações Especiais | B189: ESOL Consolidada | C189: - | D189: - | E189: - | F189: - | H189: ESOL Consolidada | I189: 0 | J189: 0 | K189: 0 | L189: 0 | M189: 0 | N189: 0 | O189: 0 | P189: 0 | Q189: 0 | R189: 0 | S189: 0 | T189: 0 | U189: 0 | V189: 0 | W189: 0 | X189: 0 | Y189: 0 | Z189: 0 | AA189: 0 | AB189: 0 | AC189: 0 | AD189: 0 | AE189: 0 | AF189: 0 | AG189: 0 | AH189: 0 | AI189: 0 | AJ189: 0 | AK189: 0 | AL189: 0 | AM189: 0 | AN189: 0 | AO189: 0 | AP189: 0 | AQ189: 0 | AR189: 0 | AS189: 0 | AT189: 0 | AU189: 0 | AV189: 0 | AW189: 0 | AX189: 0 | AY189: 0 | AZ189: 0 | BA189: 0 | BB189: 0 | BC189: 0 | BD189: 0 | BE189: - | BF189: - | BG189: - | BH189: - | BI189: -
A190: Obrigações Especiais | B190: (re)energisa | C190: =SUBTOTAL(9,C187:C189) -> 0 | D190: =SUBTOTAL(9,D187:D189) -> 0 | E190: - | F190: 0 | H190: (re)energisa | I190: =SUM(I187:I189) -> 0 | J190: =SUM(J187:J189) -> 0 | K190: 0 | L190: 0 | M190: 0 | N190: 0 | O190: 0 | P190: 0 | Q190: 0 | R190: 0 | S190: 0 | T190: 0 | U190: 0 | V190: 0 | W190: 0 | X190: 0 | Y190: 0 | Z190: 0 | AA190: 0 | AB190: 0 | AC190: 0 | AD190: 0 | AE190: 0 | AF190: 0 | AG190: 0 | AH190: 0 | AI190: 0 | AJ190: 0 | AK190: 0 | AL190: 0 | AM190: 0 | AN190: 0 | AO190: 0 | AP190: 0 | AQ190: 0 | AR190: 0 | AS190: 0 | AT190: 0 | AU190: 0 | AV190: 0 | AW190: 0 | AX190: 0 | AY190: 0 | AZ190: 0 | BA190: 0 | BB190: 0 | BC190: 0 | BD190: 0 | BE190: 0 | BF190: =SUM(BE190) -> 0 | BG190: =SUM(BE190) -> 0 | BH190: =SUM(BE190) -> 0 | BI190: =SUM(BE190) -> 0
A191: Obrigações Especiais | B191: ES Gás | C191: =INDEX($H$12:$XFD$55,MATCH($B191,$H$12:$H$55,0),MATCH(C$12,$H$12:$XFD$12,0),1) -> 17.32094818 | D191: =INDEX($H$12:$XFD$55,MATCH($B191,$H$12:$H$55,0),MATCH(D$12,$H$12:$XFD$12,0),1) -> 7.441 | E191: 132.777156 | F191: 9.87994818 | H191: ES Gás | AW191: 0 | AX191: 0 | AY191: 0 | AZ191: 0 | BA191: 0 | BB191: 0 | BC191: 0 | BD191: 0 | BE191: 0 | BF191: 0 | BG191: 0 | BH191: 0 | BI191: 0
A192: Obrigações Especiais | B192: Distribuição de gás natural | C192: =SUBTOTAL(9,C191) -> 17.32094818 | D192: =SUBTOTAL(9,D191) -> 7.441 | E192: 132.777156 | F192: 9.87994818 | H192: Distribuição de gás natural | I192: =I191 -> 0 | J192: =J191 -> 0 | K192: 0 | L192: 0 | M192: 0 | N192: 0 | O192: 0 | P192: 0 | Q192: 0 | R192: 0 | S192: 0 | T192: 0 | U192: 0 | V192: 0 | W192: 0 | X192: 0 | Y192: 0 | Z192: 0 | AA192: 0 | AB192: 0 | AC192: 0 | AD192: 0 | AE192: 0 | AF192: 0 | AG192: 0 | AH192: 0 | AI192: 0 | AJ192: 0 | AK192: 0 | AL192: 0 | AM192: 0 | AN192: 0 | AO192: 0 | AP192: 0 | AQ192: 0 | AR192: 0 | AS192: 0 | AT192: 0 | AU192: 0 | AV192: 0 | AW192: 0 | AX192: 0 | AY192: 0 | AZ192: 0 | BA192: 0 | BB192: 0 | BC192: 0 | BD192: 0 | BE192: 0 | BF192: =SUM(BF191) -> 0 | BG192: =SUM(BG191) -> 0 | BH192: =SUM(BH191) -> 0 | BI192: =SUM(BI191) -> 0
A193: Obrigações Especiais | B193: AGRIC | C193: =INDEX($H$12:$XFD$55,MATCH($B193,$H$12:$H$55,0),MATCH(C$12,$H$12:$XFD$12,0),1) -> 65.7 | D193: =INDEX($H$12:$XFD$55,MATCH($B193,$H$12:$H$55,0),MATCH(D$12,$H$12:$XFD$12,0),1) -> 0.94883374 | E193: =IFERROR(IF((C193/D193-1)*100<=-100,"-",IF((C193/D193-1)*100=0,"-",(C193/D193-1)*100)),"-") -> 6824.290024 | F193: =IFERROR(SUM(C193-D193),"-") -> 64.75116626 | H193: AGRIC | AW193: 0 | AX193: 0 | AY193: 0 | AZ193: 0 | BA193: 0 | BB193: 0 | BC193: 0 | BD193: 0 | BE193: 0 | BF193: 0 | BG193: 0 | BH193: 0 | BI193: 0
A194: Obrigações Especiais | B194: Biogás | C194: =SUBTOTAL(9,C193) -> 65.7 | D194: =SUBTOTAL(9,D193) -> 0.94883374 | E194: =IFERROR(IF((C194/D194-1)*100<=-100,"-",IF((C194/D194-1)*100=0,"-",(C194/D194-1)*100)),"-") -> 6824.290024 | F194: =IFERROR(SUM(C194-D194),"-") -> 64.75116626 | H194: Biogás | I194: =I193 -> 0 | J194: =J193 -> 0 | K194: 0 | L194: 0 | M194: 0 | N194: 0 | O194: 0 | P194: 0 | Q194: 0 | R194: 0 | S194: 0 | T194: 0 | U194: 0 | V194: 0 | W194: 0 | X194: 0 | Y194: 0 | Z194: 0 | AA194: 0 | AB194: 0 | AC194: 0 | AD194: 0 | AE194: 0 | AF194: 0 | AG194: 0 | AH194: 0 | AI194: 0 | AJ194: 0 | AK194: 0 | AL194: 0 | AM194: 0 | AN194: 0 | AO194: 0 | AP194: 0 | AQ194: 0 | AR194: 0 | AS194: 0 | AT194: 0 | AU194: 0 | AV194: 0 | AW194: 0 | AX194: 0 | AY194: 0 | AZ194: 0 | BA194: 0 | BB194: 0 | BC194: 0 | BD194: 0 | BE194: 0 | BF194: =SUM(BF193) -> 0 | BG194: =SUM(BG193) -> 0 | BH194: =SUM(BH193) -> 0 | BI194: =SUM(BI193) -> 0
A195: Obrigações Especiais | B195: RIO PEIXE I | C195: =INDEX($H$157:$XFD$197,MATCH($B195,$H$157:$H$197,0),MATCH(C$12,$H$12:$XFD$12,0),1) -> 0 | D195: 0 | E195: - | F195: 0 | H195: RIO PEIXE I | I195: 0 | J195: 0 | K195: 0 | L195: 0 | M195: 0 | N195: 0 | O195: 0 | P195: 0 | Q195: 0 | R195: 0 | S195: 0 | T195: 0 | U195: 0 | V195: 0 | W195: 0 | X195: 0 | Y195: 0 | Z195: 0 | AA195: 0 | AB195: 0 | AC195: 0 | AD195: 0 | AE195: 0 | AF195: 0 | AG195: 0 | AH195: 0 | AI195: 0 | AJ195: 0 | AK195: 0 | AL195: 0 | AM195: 0 | AN195: 0 | AO195: 0 | AP195: 0 | AQ195: 0 | AR195: 0 | AS195: 0 | AT195: 0 | AU195: 0 | AV195: 0 | AW195: 0 | AX195: 0 | AY195: 0 | AZ195: 0 | BA195: 0 | BB195: 0 | BC195: 0 | BD195: 0 | BE195: 0 | BF195: 0 | BG195: 0 | BH195: 0 | BI195: 0
A196: Obrigações Especiais | B196: RIO PEIXE II | C196: - | D196: 0 | E196: - | F196: - | H196: RIO PEIXE II | I196: 0 | J196: 0 | K196: 0 | L196: 0 | M196: 0 | N196: 0 | O196: 0 | P196: 0 | Q196: 0 | R196: 0 | S196: 0 | T196: 0 | U196: 0 | V196: 0 | W196: 0 | X196: 0 | Y196: 0 | Z196: 0 | AA196: 0 | AB196: 0 | AC196: 0 | AD196: 0 | AE196: 0 | AF196: 0 | AG196: 0 | AH196: 0 | AI196: 0 | AJ196: 0 | AK196: 0 | AL196: 0 | AM196: 0 | AN196: 0 | AO196: 0 | AP196: 0 | AQ196: 0 | AR196: 0 | AS196: 0 | AT196: 0 | AU196: 0 | AV196: 0 | AW196: 0 | AX196: 0 | AY196: 0 | AZ196: 0 | BA196: 0 | BB196: 0 | BC196: 0 | BD196: 0 | BE196: 0 | BF196: 0 | BG196: 0 | BH196: 0 | BI196: -
A197: Obrigações Especiais | B197: Outras empresas | C197: - | D197: 0 | E197: - | F197: - | H197: Outras empresas | I197: 0 | J197: 0 | K197: 0 | L197: 0 | M197: 0 | N197: 0 | O197: 0 | P197: 0 | Q197: 0 | R197: 0 | S197: 0 | T197: 0 | U197: 0 | V197: 0 | W197: 0 | X197: 0 | Y197: 0 | Z197: 0 | AA197: 0 | AB197: 0 | AC197: 0 | AD197: 0 | AE197: 0 | AF197: 0 | AG197: 0 | AH197: 0 | AI197: 0 | AJ197: 0 | AK197: 0 | AL197: 0 | AM197: 0 | AN197: 0 | AO197: 0 | AP197: 0 | AQ197: 0 | AR197: 0 | AS197: 0 | AT197: 0 | AU197: 0 | AV197: 0 | AW197: 0 | AX197: 0 | AY197: 0 | AZ197: 0 | BA197: 0 | BB197: 0 | BC197: 0 | BD197: 0 | BE197: 0 | BF197: 0 | BG197: 0 | BH197: 0 | BI197: -
A198: Obrigações Especiais | B198: Holding e outras empresas | C198: =SUBTOTAL(9,C181:C197) -> 83.74888596 | D198: =SUBTOTAL(9,D181:D197) -> 8.38983374 | E198: 898.2186603 | F198: 75.35905222 | H198: Holding e outras empresas | I198: =SUM(I195:I197) -> 0 | J198: =SUM(J195:J197) -> 0 | K198: 0 | L198: 0 | M198: 0 | N198: 0 | O198: 0 | P198: 0 | Q198: 0 | R198: 0 | S198: 0 | T198: 0 | U198: 0 | V198: 0 | W198: 0 | X198: 0 | Y198: 0 | Z198: 0 | AA198: 0 | AB198: 0 | AC198: 0 | AD198: 0 | AE198: 0 | AF198: 0 | AG198: 0 | AH198: 0 | AI198: 0 | AJ198: 0 | AK198: 0 | AL198: 0 | AM198: 0 | AN198: 0 | AO198: 0 | AP198: 0 | AQ198: 0 | AR198: 0 | AS198: 0 | AT198: 0 | AU198: 0 | AV198: 0 | AW198: 0 | AX198: 0 | AY198: 0 | AZ198: 0 | BA198: 0 | BB198: 0 | BC198: 0 | BD198: 0 | BE198: 0 | BF198: =SUM(BF195:BF197) -> 0 | BG198: =SUM(BG195:BG197) -> 0 | BH198: =SUM(BH195:BH197) -> 0 | BI198: =SUM(BI195:BI197) -> 0
A199: Obrigações Especiais
A200: Obrigações Especiais | B200: Total | C200: =C198+C192+C190+C186+C174 -> 189.2589431 | D200: =D198+D192+D190+D186+D174 -> 141.2765612 | E200: =IFERROR(IF((C200/D200-1)*100<=-100,"-",IF((C200/D200-1)*100=0,"-",(C200/D200-1)*100)),"-") -> 33.96344129 | F200: =IFERROR(SUM(C200-D200),"-") -> 47.98238191 | H200: Total | I200: =I198+I194+I192+I190+I186+I174 -> 0.0285969 | J200: =J198+J194+J192+J190+J186+J174 -> -1.5590655 | K200: -15.27687799 | L200: -22.46290382 | M200: 26.74849284 | N200: 32.64636342 | O200: 55.5802714 | P200: 35.41342278 | Q200: 38.61387133 | R200: 36.20243122 | S200: 67.72169458 | T200: 83.19373888 | U200: 25.14714937 | V200: 42.83567004 | W200: 38.28928371 | X200: 98.49656544 | Y200: 25.50153157 | Z200: 59.81830513 | AA200: 71.19915576 | AB200: 102.165109 | AC200: 95.91543449 | AD200: 245.8866885 | AE200: 112.077607 | AF200: 61.53634622 | AG200: 69.22273423 | AH200: 14.95105108 | AI200: -11.06614456 | AJ200: 59.30137573 | AK200: 49.7 | AL200: 60.8 | AM200: -46 | AN200: 147 | AO200: 108.6 | AP200: 75.7 | AQ200: 72.606 | AR200: 443.4 | AS200: 54.8 | AT200: 37.907 | AU200: 54.137 | AV200: 510.66 | AW200: 80.867 | AX200: 184.71 | AY200: 85.973 | AZ200: 270.219 | BA200: 100.094 | BB200: 161.222 | BC200: 134.083 | BD200: 50.379 | BE200: 125.4457274 | BF200: =BF198+BF194+BF192+BF190+BF174+BF186 -> 88.22106316 | BG200: =BG198+BG194+BG192+BG190+BG174+BG186 -> 98.56644521 | BH200: =BH198+BH194+BH192+BH190+BH174+BH186 -> 169.0770051 | BI200: =BI198+BI194+BI192+BI190+BI174+BI186 -> 87.46117117
A201: Total
A202: Total
A203: Total
A204: Total
A205: Total
... 3 more rows

Sheet Investments
C1: Investments
B5: Comparison Periof for this sheet --->
A8: . | B8: R$ million | C8: 2Q24 | D8: 2Q23 | E8: Var (%) | F8: Var (R$) | I8: 1Q12 | J8: 2Q12 | K8: 3Q12 | L8: 4Q12 | M8: 1Q13 | N8: 2Q13 | O8: 3Q13 | P8: 4Q13 | Q8: 1Q14 | R8: 2Q14 | S8: 3Q14 | T8: 4Q14 | U8: 1Q15 | V8: 2Q15 | W8: 3Q15 | X8: 4Q15 | Y8: 1Q16 | Z8: 2Q16 | AA8: 3Q16 | AB8: 4Q16 | AC8: 1Q17 | AD8: 2Q17 | AE8: 3Q17 | AF8: 4Q17 | AG8: 1Q18 | AH8: 2Q18 | AI8: 3Q18 | AJ8: 4Q18 | AK8: 1Q19 | AL8: 2Q19 | AM8: 3Q19 | AN8: 4Q19 | AO8: 1Q20 | AP8: 2Q20 | AQ8: 3Q20 | AR8: 4Q20 | AS8: 1Q21 | AT8: 2Q21 | AU8: 3Q21 | AV8: 4Q21 | AW8: 1Q22 | AX8: 2Q22 | AY8: 3Q22 | AZ8: 4Q22 | BA8: 1Q23 | BB8: 2Q23 | BC8: 3Q23 | BD8: 4Q23 | BE8: 1Q24 | BF8: 2Q24 | BG8: 3Q24 | BH8: 4Q24 | BI8: 1Q25
A9: Consolidated
A10: Consolidated | B10: Consolidated | I10: =20&RIGHT(I12,2) -> 2012 | J10: =20&RIGHT(J12,2) -> 2012 | K10: 2012 | L10: 2012 | M10: 2013 | N10: 2013 | O10: 2013 | P10: 2013 | Q10: 2014 | R10: 2014 | S10: 2014 | T10: 2014 | U10: 2015 | V10: 2015 | W10: 2015 | X10: 2015 | Y10: 2016 | Z10: 2016 | AA10: 2016 | AB10: 2016 | AC10: =20&RIGHT(AC12,2) -> 2017 | AD10: 2017 | AE10: 2017 | AF10: 2017 | AG10: 2018 | AH10: 2018 | AI10: 2018 | AJ10: 20= | AK10: 2019 | AL10: 2019 | AM10: 2019 | AN10: 2019 | AO10: 2020 | AP10: 2020 | AQ10: =20&RIGHT(AQ12,2) -> 2020 | AR10: 2020 | AS10: 2021 | AT10: 2021 | AU10: 2021 | AV10: 2021 | AW10: 2022 | AX10: 2022 | AY10: 2022 | AZ10: 2022 | BA10: 2023 | BB10: 2023 | BC10: =20&RIGHT(BC12,2) -> 2023 | BD10: =20&RIGHT(BD12,2) -> 2023 | BE10: =20&RIGHT(BE12,2) -> 2024 | BF10: =20&RIGHT(BF12,2) -> 2024 | BG10: =20&RIGHT(BG12,2) -> 2024 | BH10: =20&RIGHT(BH12,2) -> 2024 | BI10: 2025
A11: Consolidated
A12: Consolidated | C12: 2Q24 | D12: 2Q23 | E12: Var (%) | F12: Var (R$) | I12: 1Q12 | J12: 2Q12 | K12: 3Q12 | L12: 4Q12 | M12: 1Q13 | N12: 2Q13 | O12: 3Q13 | P12: 4Q13 | Q12: 1Q14 | R12: 2Q14 | S12: 3Q14 | T12: 4Q14 | U12: 1Q15 | V12: 2Q15 | W12: 3Q15 | X12: 4Q15 | Y12: 1Q16 | Z12: 2Q16 | AA12: 3Q16 | AB12: 4Q16 | AC12: 1Q17 | AD12: =AD$8 -> 2Q17 | AE12: 3Q17 | AF12: 4Q17 | AG12: 1Q18 | AH12: 2Q18 | AI12: 3Q18 | AJ12: = | AK12: 1Q19 | AL12: 2Q19 | AM12: 3Q19 | AN12: 4Q19 | AO12: 1Q20 | AP12: 2Q20 | AQ12: 3Q20 | AR12: 4Q20 | AS12: 1Q21 | AT12: 2Q21 | AU12: 3Q21 | AV12: 4Q21 | AW12: 1Q22 | AX12: 2Q22 | AY12: 3Q22 | AZ12: 4Q22 | BA12: 1Q23 | BB12: 2Q23 | BC12: 3Q23 | BD12: 4Q23 | BE12: 1Q24 | BF12: 2Q24 | BG12: 3Q24 | BH12: 4Q24 | BI12: 1Q25
A13: Consolidated | H13: Valores em
A14: Consolidated
A15: Consolidated
A16: Consolidated | B16: =Investimentos!B16 -> EMG | C16: =Investimentos!C16 -> 0 | D16: =Investimentos!D16 -> 0 | E16: =Investimentos!E16 -> - | F16: =Investimentos!F16 -> 0 | H16: =Investimentos!H16 -> EMG | I16: =Investimentos!I16 -> 9.1 | J16: =Investimentos!J16 -> 10.4 | K16: =Investimentos!K16 -> 11.2 | L16: =Investimentos!L16 -> 9.3 | M16: =Investimentos!M16 -> 10.5590253 | N16: =Investimentos!N16 -> 19.04983406 | O16: =Investimentos!O16 -> 14.24206997 | P16: =Investimentos!P16 -> 10.58691403 | Q16: =Investimentos!Q16 -> 9.27333507 | R16: =Investimentos!R16 -> 11.86074695 | S16: =Investimentos!S16 -> 15.39588022 | T16: =Investimentos!T16 -> 13.00629248 | U16: =Investimentos!U16 -> 10.53460722 | V16: =Investimentos!V16 -> 19.38508201 | W16: =Investimentos!W16 -> 19.50380989 | X16: =Investimentos!X16 -> 19.19002439 | Y16: =Investimentos!Y16 -> 8.03450893 | Z16: =Investimentos!Z16 -> 14.21549123 | AA16: =Investimentos!AA16 -> 14.1 | AB16: =Investimentos!AB16 -> 21 | AC16: =Investimentos!AC16 -> 21.7 | AD16: =Investimentos!AD16 -> 23.4 | AE16: =Investimentos!AE16 -> 18 | AF16: =Investimentos!AF16 -> 21.8 | AG16: =Investimentos!AG16 -> 14.4 | AH16: =Investimentos!AH16 -> 19.1 | AI16: =Investimentos!AI16 -> 27.8 | AJ16: =Investimentos!AJ16 -> 16.3 | AK16: =Investimentos!AK16 -> 24.1 | AL16: =Investimentos!AL16 -> 20.2 | AM16: =Investimentos!AM16 -> 18.7 | AN16: =Investimentos!AN16 -> 11.9 | AO16: =Investimentos!AO16 -> 12.7 | AP16: =Investimentos!AP16 -> 27.133 | AQ16: =Investimentos!AQ16 -> 32.976 | AR16: =Investimentos!AR16 -> 27.9 | AS16: =Investimentos!AS16 -> 12.6 | AT16: =Investimentos!AT16 -> 18.914 | AU16: =Investimentos!AU16 -> 24.299 | AV16: =Investimentos!AV16 -> 22.274 | AW16: =Investimentos!AW16 -> 26.97 | AX16: =Investimentos!AX16 -> 30.281 | AY16: =Investimentos!AY16 -> 33.841 | AZ16: =Investimentos!AZ16 -> 42.054 | BA16: =Investimentos!BA16 -> 0 | BB16: =Investimentos!BB16 -> 0 | BC16: =Investimentos!BC16 -> 0 | BD16: =Investimentos!BD16 -> 0 | BE16: =Investimentos!BE16 -> 0 | BF16: =Investimentos!BF16 -> 0 | BG16: =Investimentos!BG16 -> 0 | BH16: =Investimentos!BH16 -> 0 | BI16: =Investimentos!BI16 -> 0
A17: Consolidated | B17: =Investimentos!B17 -> ENF | C17: =Investimentos!C17 -> 0 | D17: =Investimentos!D17 -> 0 | E17: =Investimentos!E17 -> - | F17: =Investimentos!F17 -> 0 | H17: =Investimentos!H17 -> ENF | I17: =Investimentos!I17 -> 1.9 | J17: =Investimentos!J17 -> 2.6 | K17: =Investimentos!K17 -> 3.3 | L17: =Investimentos!L17 -> 2.9 | M17: =Investimentos!M17 -> 1.8035611 | N17: =Investimentos!N17 -> 2.23541728 | O17: =Investimentos!O17 -> 2.54678143 | P17: =Investimentos!P17 -> 1.87484936 | Q17: =Investimentos!Q17 -> 1.79075823 | R17: =Investimentos!R17 -> 1.94501879 | S17: =Investimentos!S17 -> 2.4534412 | T17: =Investimentos!T17 -> 2.06788828 | U17: =Investimentos!U17 -> 1.53315386 | V17: =Investimentos!V17 -> 6.22178063 | W17: =Investimentos!W17 -> 7.52570131 | X17: =Investimentos!X17 -> 4.41559555 | Y17: =Investimentos!Y17 -> 1.51849993 | Z17: =Investimentos!Z17 -> 1.68298791 | AA17: =Investimentos!AA17 -> 1.9 | AB17: =Investimentos!AB17 -> 1.4 | AC17: =Investimentos!AC17 -> 1.7 | AD17: =Investimentos!AD17 -> 1.9 | AE17: =Investimentos!AE17 -> 1.7 | AF17: =Investimentos!AF17 -> 1.4 | AG17: =Investimentos!AG17 -> 1.7 | AH17: =Investimentos!AH17 -> 2.1 | AI17: =Investimentos!AI17 -> 1.7 | AJ17: =Investimentos!AJ17 -> 2.4 | AK17: =Investimentos!AK17 -> 3.2 | AL17: =Investimentos!AL17 -> 2.9 | AM17: =Investimentos!AM17 -> 2.3 | AN17: =Investimentos!AN17 -> 2.3 | AO17: =Investimentos!AO17 -> 2.7 | AP17: =Investimentos!AP17 -> 4.958 | AQ17: =Investimentos!AQ17 -> 4.492 | AR17: =Investimentos!AR17 -> 5.4 | AS17: =Investimentos!AS17 -> 2.1 | AT17: =Investimentos!AT17 -> 2.394 | AU17: =Investimentos!AU17 -> 2.252 | AV17: =Investimentos!AV17 -> 2.955 | AW17: =Investimentos!AW17 -> 8.657 | AX17: =Investimentos!AX17 -> 6.295 | AY17: =Investimentos!AY17 -> 4.197 | AZ17: =Investimentos!AZ17 -> 3.213 | BA17: =Investimentos!BA17 -> 0 | BB17: =Investimentos!BB17 -> 0 | BC17: =Investimentos!BC17 -> 0 | BD17: =Investimentos!BD17 -> 0 | BE17: =Investimentos!BE17 -> 0 | BF17: =Investimentos!BF17 -> 0 | BG17: =Investimentos!BG17 -> 0 | BH17: =Investimentos!BH17 -> 0 | BI17: =Investimentos!BI17 -> 0
A18: Consolidated | B18: =Investimentos!B18 -> EMR | C18: =Investimentos!C18 -> 48.20436412 | D18: =Investimentos!D18 -> 35.93021667 | E18: =Investimentos!E18 -> 34.16107273 | F18: =Investimentos!F18 -> 12.27414745 | H18: =Investimentos!H18 -> EMR | I18: =Investimentos!I18 -> 0 | J18: =Investimentos!J18 -> 0 | K18: =Investimentos!K18 -> 0 | L18: =Investimentos!L18 -> 0 | M18: =Investimentos!M18 -> 0 | N18: =Investimentos!N18 -> 0 | O18: =Investimentos!O18 -> 0 | P18: =Investimentos!P18 -> 0 | Q18: =Investimentos!Q18 -> 0 | R18: =Investimentos!R18 -> 0 | S18: =Investimentos!S18 -> 0 | T18: =Investimentos!T18 -> 0 | U18: =Investimentos!U18 -> 0 | V18: =Investimentos!V18 -> 0 | W18: =Investimentos!W18 -> 0 | X18: =Investimentos!X18 -> 0 | Y18: =Investimentos!Y18 -> 0 | Z18: =Investimentos!Z18 -> 0 | AA18: =Investimentos!AA18 -> 0 | AB18: =Investimentos!AB18 -> 0 | AC18: =Investimentos!AC18 -> 0 | AD18: =Investimentos!AD18 -> 0 | AE18: =Investimentos!AE18 -> 0 | AF18: =Investimentos!AF18 -> 0 | AG18: =Investimentos!AG18 -> 0 | AH18: =Investimentos!AH18 -> 0 | AI18: =Investimentos!AI18 -> 0 | AJ18: =Investimentos!AJ18 -> 0 | AK18: =Investimentos!AK18 -> 0 | AL18: =Investimentos!AL18 -> 0 | AM18: =Investimentos!AM18 -> 0 | AN18: =Investimentos!AN18 -> 0 | AO18: =Investimentos!AO18 -> 0 | AP18: =Investimentos!AP18 -> 0 | AQ18: =Investimentos!AQ18 -> 0 | AR18: =Investimentos!AR18 -> 0 | AS18: =Investimentos!AS18 -> 0 | AT18: =Investimentos!AT18 -> 0 | AU18: =Investimentos!AU18 -> 0 | AV18: =Investimentos!AV18 -> 0 | AW18: =Investimentos!AW18 -> 35.627 | AX18: =Investimentos!AX18 -> 36.576 | AY18: =Investimentos!AY18 -> 38.038 | AZ18: =Investimentos!AZ18 -> 45.267 | BA18: =Investimentos!BA18 -> 39.5 | BB18: =Investimentos!BB18 -> 63.216 | BC18: =Investimentos!BC18 -> 71.512 | BD18: =Investimentos!BD18 -> 63.849 | BE18: =Investimentos!BE18 -> 35.93021667 | BF18: =Investimentos!BF18 -> 57.0987774 | BG18: =Investimentos!BG18 -> 75.8087005 | BH18: =Investimentos!BH18 -> 66.26206359 | BI18: =Investimentos!BI18 -> 48.20436412
A19: Consolidated | B19: =Investimentos!B19 -> ESE | C19: =Investimentos!C19 -> 54.81848435 | D19: =Investimentos!D19 -> 61.51332763 | E19: =Investimentos!E19 -> -10.88356546 | F19: =Investimentos!F19 -> -6.69484328 | H19: =Investimentos!H19 -> ESE | I19: =Investimentos!I19 -> 19.5 | J19: =Investimentos!J19 -> 24.9 | K19: =Investimentos!K19 -> 29.3 | L19: =Investimentos!L19 -> 20.6 | M19: =Investimentos!M19 -> 15.36594471 | N19: =Investimentos!N19 -> 26.1301226 | O19: =Investimentos!O19 -> 18.92127945 | P19: =Investimentos!P19 -> 19.36128783 | Q19: =Investimentos!Q19 -> 19.11076366 | R19: =Investimentos!R19 -> 24.92970777 | S19: =Investimentos!S19 -> 24.57444146 | T19: =Investimentos!T19 -> 21.37754024 | U19: =Investimentos!U19 -> 14.20739967 | V19: =Investimentos!V19 -> 19.78105 | W19: =Investimentos!W19 -> 24.00191601 | X19: =Investimentos!X19 -> 17.85727759 | Y19: =Investimentos!Y19 -> 18.90681256 | Z19: =Investimentos!Z19 -> 23.96575199 | AA19: =Investimentos!AA19 -> 24.9 | AB19: =Investimentos!AB19 -> 23.1 | AC19: =Investimentos!AC19 -> 22.9 | AD19: =Investimentos!AD19 -> 30.6 | AE19: =Investimentos!AE19 -> 31.9 | AF19: =Investimentos!AF19 -> 21.9 | AG19: =Investimentos!AG19 -> 18.8 | AH19: =Investimentos!AH19 -> 18.7 | AI19: =Investimentos!AI19 -> 18.9 | AJ19: =Investimentos!AJ19 -> 25.6 | AK19: =Investimentos!AK19 -> 17.7 | AL19: =Investimentos!AL19 -> 22.4 | AM19: =Investimentos!AM19 -> 21 | AN19: =Investimentos!AN19 -> 28.3 | AO19: =Investimentos!AO19 -> 22.9 | AP19: =Investimentos!AP19 -> 22.004 | AQ19: =Investimentos!AQ19 -> 23.299 | AR19: =Investimentos!AR19 -> 20 | AS19: =Investimentos!AS19 -> 20.5 | AT19: =Investimentos!AT19 -> 32.92 | AU19: =Investimentos!AU19 -> 45.542 | AV19: =Investimentos!AV19 -> 57.394 | AW19: =Investimentos!AW19 -> 68.317 | AX19: =Investimentos!AX19 -> 82.002 | AY19: =Investimentos!AY19 -> 74.97 | AZ19: =Investimentos!AZ19 -> 36.981 | BA19: =Investimentos!BA19 -> 49.219 | BB19: =Investimentos!BB19 -> 52.566 | BC19: =Investimentos!BC19 -> 57.3 | BD19: =Investimentos!BD19 -> 56.173 | BE19: =Investimentos!BE19 -> 61.51332763 | BF19: =Investimentos!BF19 -> 59.23220555 | BG19: =Investimentos!BG19 -> 70.05753255 | BH19: =Investimentos!BH19 -> 78.05761401 | BI19: =Investimentos!BI19 -> 54.81848435
